Workbook

Sheet NOTES
A1: 1. Dates shaded in orange on the "Date Selection" tab represent Flex Alert/Emergency Alert Days that were added to the Top 5 Load Days set.
A3: 2. Dataset excludes any production from resources on days before their official Commercial Operation Date (COD). Historical data is aggregated from confidential CAISO settlement data.
A5: 3. For ease of calculation, the display of data in this model has been modified in the "Source Data", "Installed Capacity", and "Worst Day Profiles" tabs. The choosing of exceedance levels via Solver (and the resulting exceedance generation profiles) here is performed with the same constraints as the 10/4/2023 exceedance update.
A7: 4. For each technology/location, the Solver setup picks an exceedance level for each season using hourly weights (based on reliability risk) and overcounting/undercounting weights (prioritizing minimization of overcounting relative to undercounting).
A9: 5. Additional Solver constraints: no overcounting greater than 10% in any hour relative to Worst Day profile, no overcounting greater than 2% in LOLE hours relative to the Worst Day profile, and chosen exceedance levels have a lower bound of 50% and upper bound of 85%.
A11: 6. Beginning with the 2025 RA Compliance Year, exceedance levels are chosen on a monthly rather than seasonal basis.
A13: 7. 2023 data has been appended to the previous 2017-2022 dataset (2018-2023 is the basis for 2025 RA Compliance Year exceedance values, in line with D.23-04-010).

Sheet Source Data
A1: Date | B1: Year | C1: Month | D1: Day | E1: Hour Ending | F1: Path Designation | G1: Resource Type | H1: MWH | I1: Capacity Factor
A2: 43101 | B2: 2018 | C2: 1 | D2: 1 | E2: 1 | F2: North | G2: Solar Fixed | H2: 0 | I2: =H2/SUMIFS('Installed Capacity'!$E$2:$E$589,'Installed Capacity'!$A$2:$A$589,B2,'Installed Capacity'!$B$2:$B$589,C2,'Installed Capacity'!$C$2:$C$589,G2,'Installed Capacity'!$D$2:$D$589,F2) -> 0
A3: 43101 | B3: 2018 | C3: 1 | D3: 1 | E3: 2 | F3: North | G3: Solar Fixed | H3: 0 | I3: =H3/SUMIFS('Installed Capacity'!$E$2:$E$589,'Installed Capacity'!$A$2:$A$589,B3,'Installed Capacity'!$B$2:$B$589,C3,'Installed Capacity'!$C$2:$C$589,G3,'Installed Capacity'!$D$2:$D$589,F3) -> 0
A4: 43101 | B4: 2018 | C4: 1 | D4: 1 | E4: 3 | F4: North | G4: Solar Fixed | H4: 0 | I4: =H4/SUMIFS('Installed Capacity'!$E$2:$E$589,'Installed Capacity'!$A$2:$A$589,B4,'Installed Capacity'!$B$2:$B$589,C4,'Installed Capacity'!$C$2:$C$589,G4,'Installed Capacity'!$D$2:$D$589,F4) -> 0
A5: 43101 | B5: 2018 | C5: 1 | D5: 1 | E5: 4 | F5: North | G5: Solar Fixed | H5: 0 | I5: =H5/SUMIFS('Installed Capacity'!$E$2:$E$589,'Installed Capacity'!$A$2:$A$589,B5,'Installed Capacity'!$B$2:$B$589,C5,'Installed Capacity'!$C$2:$C$589,G5,'Installed Capacity'!$D$2:$D$589,F5) -> 0
A6: 43101 | B6: 2018 | C6: 1 | D6: 1 | E6: 5 | F6: North | G6: Solar Fixed | H6: 0 | I6: =H6/SUMIFS('Installed Capacity'!$E$2:$E$589,'Installed Capacity'!$A$2:$A$589,B6,'Installed Capacity'!$B$2:$B$589,C6,'Installed Capacity'!$C$2:$C$589,G6,'Installed Capacity'!$D$2:$D$589,F6) -> 0
A7: 43101 | B7: 2018 | C7: 1 | D7: 1 | E7: 6 | F7: North | G7: Solar Fixed | H7: 0 | I7: =H7/SUMIFS('Installed Capacity'!$E$2:$E$589,'Installed Capacity'!$A$2:$A$589,B7,'Installed Capacity'!$B$2:$B$589,C7,'Installed Capacity'!$C$2:$C$589,G7,'Installed Capacity'!$D$2:$D$589,F7) -> 0
A8: 43101 | B8: 2018 | C8: 1 | D8: 1 | E8: 7 | F8: North | G8: Solar Fixed | H8: 0 | I8: =H8/SUMIFS('Installed Capacity'!$E$2:$E$589,'Installed Capacity'!$A$2:$A$589,B8,'Installed Capacity'!$B$2:$B$589,C8,'Installed Capacity'!$C$2:$C$589,G8,'Installed Capacity'!$D$2:$D$589,F8) -> 0
A9: 43101 | B9: 2018 | C9: 1 | D9: 1 | E9: 8 | F9: North | G9: Solar Fixed | H9: 66.63923052 | I9: =H9/SUMIFS('Installed Capacity'!$E$2:$E$589,'Installed Capacity'!$A$2:$A$589,B9,'Installed Capacity'!$B$2:$B$589,C9,'Installed Capacity'!$C$2:$C$589,G9,'Installed Capacity'!$D$2:$D$589,F9) -> 0.04062178784
A10: 43101 | B10: 2018 | C10: 1 | D10: 1 | E10: 9 | F10: North | G10: Solar Fixed | H10: 475.1805363 | I10: =H10/SUMIFS('Installed Capacity'!$E$2:$E$589,'Installed Capacity'!$A$2:$A$589,B10,'Installed Capacity'!$B$2:$B$589,C10,'Installed Capacity'!$C$2:$C$589,G10,'Installed Capacity'!$D$2:$D$589,F10) -> 0.2896594511
A11: 43101 | B11: 2018 | C11: 1 | D11: 1 | E11: 10 | F11: North | G11: Solar Fixed | H11: 876.245043 | I11: =H11/SUMIFS('Installed Capacity'!$E$2:$E$589,'Installed Capacity'!$A$2:$A$589,B11,'Installed Capacity'!$B$2:$B$589,C11,'Installed Capacity'!$C$2:$C$589,G11,'Installed Capacity'!$D$2:$D$589,F11) -> 0.5341394244
A12: 43101 | B12: 2018 | C12: 1 | D12: 1 | E12: 11 | F12: North | G12: Solar Fixed | H12: 1067.837343 | I12: =H12/SUMIFS('Installed Capacity'!$E$2:$E$589,'Installed Capacity'!$A$2:$A$589,B12,'Installed Capacity'!$B$2:$B$589,C12,'Installed Capacity'!$C$2:$C$589,G12,'Installed Capacity'!$D$2:$D$589,F12) -> 0.6509298153
A13: 43101 | B13: 2018 | C13: 1 | D13: 1 | E13: 12 | F13: North | G13: Solar Fixed | H13: 1115.456059 | I13: =H13/SUMIFS('Installed Capacity'!$E$2:$E$589,'Installed Capacity'!$A$2:$A$589,B13,'Installed Capacity'!$B$2:$B$589,C13,'Installed Capacity'!$C$2:$C$589,G13,'Installed Capacity'!$D$2:$D$589,F13) -> 0.6799571214
A14: 43101 | B14: 2018 | C14: 1 | D14: 1 | E14: 13 | F14: North | G14: Solar Fixed | H14: 1158.773997 | I14: =H14/SUMIFS('Installed Capacity'!$E$2:$E$589,'Installed Capacity'!$A$2:$A$589,B14,'Installed Capacity'!$B$2:$B$589,C14,'Installed Capacity'!$C$2:$C$589,G14,'Installed Capacity'!$D$2:$D$589,F14) -> 0.7063627701
A15: 43101 | B15: 2018 | C15: 1 | D15: 1 | E15: 14 | F15: North | G15: Solar Fixed | H15: 981.4384271 | I15: =H15/SUMIFS('Installed Capacity'!$E$2:$E$589,'Installed Capacity'!$A$2:$A$589,B15,'Installed Capacity'!$B$2:$B$589,C15,'Installed Capacity'!$C$2:$C$589,G15,'Installed Capacity'!$D$2:$D$589,F15) -> 0.598262964
A16: 43101 | B16: 2018 | C16: 1 | D16: 1 | E16: 15 | F16: North | G16: Solar Fixed | H16: 532.3544487 | I16: =H16/SUMIFS('Installed Capacity'!$E$2:$E$589,'Installed Capacity'!$A$2:$A$589,B16,'Installed Capacity'!$B$2:$B$589,C16,'Installed Capacity'!$C$2:$C$589,G16,'Installed Capacity'!$D$2:$D$589,F16) -> 0.3245113922
A17: 43101 | B17: 2018 | C17: 1 | D17: 1 | E17: 16 | F17: North | G17: Solar Fixed | H17: 254.2092821 | I17: =H17/SUMIFS('Installed Capacity'!$E$2:$E$589,'Installed Capacity'!$A$2:$A$589,B17,'Installed Capacity'!$B$2:$B$589,C17,'Installed Capacity'!$C$2:$C$589,G17,'Installed Capacity'!$D$2:$D$589,F17) -> 0.1549603056
A18: 43101 | B18: 2018 | C18: 1 | D18: 1 | E18: 17 | F18: North | G18: Solar Fixed | H18: 36.87451116 | I18: =H18/SUMIFS('Installed Capacity'!$E$2:$E$589,'Installed Capacity'!$A$2:$A$589,B18,'Installed Capacity'!$B$2:$B$589,C18,'Installed Capacity'!$C$2:$C$589,G18,'Installed Capacity'!$D$2:$D$589,F18) -> 0.02247787913
A19: 43101 | B19: 2018 | C19: 1 | D19: 1 | E19: 18 | F19: North | G19: Solar Fixed | H19: 3.787e-06 | I19: =H19/SUMIFS('Installed Capacity'!$E$2:$E$589,'Installed Capacity'!$A$2:$A$589,B19,'Installed Capacity'!$B$2:$B$589,C19,'Installed Capacity'!$C$2:$C$589,G19,'Installed Capacity'!$D$2:$D$589,F19) -> 2.308470692e-09
A20: 43101 | B20: 2018 | C20: 1 | D20: 1 | E20: 19 | F20: North | G20: Solar Fixed | H20: 0 | I20: =H20/SUMIFS('Installed Capacity'!$E$2:$E$589,'Installed Capacity'!$A$2:$A$589,B20,'Installed Capacity'!$B$2:$B$589,C20,'Installed Capacity'!$C$2:$C$589,G20,'Installed Capacity'!$D$2:$D$589,F20) -> 0
A21: 43101 | B21: 2018 | C21: 1 | D21: 1 | E21: 20 | F21: North | G21: Solar Fixed | H21: 0 | I21: =H21/SUMIFS('Installed Capacity'!$E$2:$E$589,'Installed Capacity'!$A$2:$A$589,B21,'Installed Capacity'!$B$2:$B$589,C21,'Installed Capacity'!$C$2:$C$589,G21,'Installed Capacity'!$D$2:$D$589,F21) -> 0
A22: 43101 | B22: 2018 | C22: 1 | D22: 1 | E22: 21 | F22: North | G22: Solar Fixed | H22: 0 | I22: =H22/SUMIFS('Installed Capacity'!$E$2:$E$589,'Installed Capacity'!$A$2:$A$589,B22,'Installed Capacity'!$B$2:$B$589,C22,'Installed Capacity'!$C$2:$C$589,G22,'Installed Capacity'!$D$2:$D$589,F22) -> 0
A23: 43101 | B23: 2018 | C23: 1 | D23: 1 | E23: 22 | F23: North | G23: Solar Fixed | H23: 0 | I23: =H23/SUMIFS('Installed Capacity'!$E$2:$E$589,'Installed Capacity'!$A$2:$A$589,B23,'Installed Capacity'!$B$2:$B$589,C23,'Installed Capacity'!$C$2:$C$589,G23,'Installed Capacity'!$D$2:$D$589,F23) -> 0
A24: 43101 | B24: 2018 | C24: 1 | D24: 1 | E24: 23 | F24: North | G24: Solar Fixed | H24: 0 | I24: =H24/SUMIFS('Installed Capacity'!$E$2:$E$589,'Installed Capacity'!$A$2:$A$589,B24,'Installed Capacity'!$B$2:$B$589,C24,'Installed Capacity'!$C$2:$C$589,G24,'Installed Capacity'!$D$2:$D$589,F24) -> 0
A25: 43101 | B25: 2018 | C25: 1 | D25: 1 | E25: 24 | F25: North | G25: Solar Fixed | H25: 0 | I25: =H25/SUMIFS('Installed Capacity'!$E$2:$E$589,'Installed Capacity'!$A$2:$A$589,B25,'Installed Capacity'!$B$2:$B$589,C25,'Installed Capacity'!$C$2:$C$589,G25,'Installed Capacity'!$D$2:$D$589,F25) -> 0
A26: 43102 | B26: 2018 | C26: 1 | D26: 2 | E26: 1 | F26: North | G26: Solar Fixed | H26: 0 | I26: =H26/SUMIFS('Installed Capacity'!$E$2:$E$589,'Installed Capacity'!$A$2:$A$589,B26,'Installed Capacity'!$B$2:$B$589,C26,'Installed Capacity'!$C$2:$C$589,G26,'Installed Capacity'!$D$2:$D$589,F26) -> 0
A27: 43102 | B27: 2018 | C27: 1 | D27: 2 | E27: 2 | F27: North | G27: Solar Fixed | H27: 0 | I27: =H27/SUMIFS('Installed Capacity'!$E$2:$E$589,'Installed Capacity'!$A$2:$A$589,B27,'Installed Capacity'!$B$2:$B$589,C27,'Installed Capacity'!$C$2:$C$589,G27,'Installed Capacity'!$D$2:$D$589,F27) -> 0
A28: 43102 | B28: 2018 | C28: 1 | D28: 2 | E28: 3 | F28: North | G28: Solar Fixed | H28: 0 | I28: =H28/SUMIFS('Installed Capacity'!$E$2:$E$589,'Installed Capacity'!$A$2:$A$589,B28,'Installed Capacity'!$B$2:$B$589,C28,'Installed Capacity'!$C$2:$C$589,G28,'Installed Capacity'!$D$2:$D$589,F28) -> 0
A29: 43102 | B29: 2018 | C29: 1 | D29: 2 | E29: 4 | F29: North | G29: Solar Fixed | H29: 0 | I29: =H29/SUMIFS('Installed Capacity'!$E$2:$E$589,'Installed Capacity'!$A$2:$A$589,B29,'Installed Capacity'!$B$2:$B$589,C29,'Installed Capacity'!$C$2:$C$589,G29,'Installed Capacity'!$D$2:$D$589,F29) -> 0
A30: 43102 | B30: 2018 | C30: 1 | D30: 2 | E30: 5 | F30: North | G30: Solar Fixed | H30: 0 | I30: =H30/SUMIFS('Installed Capacity'!$E$2:$E$589,'Installed Capacity'!$A$2:$A$589,B30,'Installed Capacity'!$B$2:$B$589,C30,'Installed Capacity'!$C$2:$C$589,G30,'Installed Capacity'!$D$2:$D$589,F30) -> 0
A31: 43102 | B31: 2018 | C31: 1 | D31: 2 | E31: 6 | F31: North | G31: Solar Fixed | H31: 0 | I31: =H31/SUMIFS('Installed Capacity'!$E$2:$E$589,'Installed Capacity'!$A$2:$A$589,B31,'Installed Capacity'!$B$2:$B$589,C31,'Installed Capacity'!$C$2:$C$589,G31,'Installed Capacity'!$D$2:$D$589,F31) -> 0
A32: 43102 | B32: 2018 | C32: 1 | D32: 2 | E32: 7 | F32: North | G32: Solar Fixed | H32: 0 | I32: =H32/SUMIFS('Installed Capacity'!$E$2:$E$589,'Installed Capacity'!$A$2:$A$589,B32,'Installed Capacity'!$B$2:$B$589,C32,'Installed Capacity'!$C$2:$C$589,G32,'Installed Capacity'!$D$2:$D$589,F32) -> 0
A33: 43102 | B33: 2018 | C33: 1 | D33: 2 | E33: 8 | F33: North | G33: Solar Fixed | H33: 23.36992326 | I33: =H33/SUMIFS('Installed Capacity'!$E$2:$E$589,'Installed Capacity'!$A$2:$A$589,B33,'Installed Capacity'!$B$2:$B$589,C33,'Installed Capacity'!$C$2:$C$589,G33,'Installed Capacity'!$D$2:$D$589,F33) -> 0.01424578371
A34: 43102 | B34: 2018 | C34: 1 | D34: 2 | E34: 9 | F34: North | G34: Solar Fixed | H34: 188.5635978 | I34: =H34/SUMIFS('Installed Capacity'!$E$2:$E$589,'Installed Capacity'!$A$2:$A$589,B34,'Installed Capacity'!$B$2:$B$589,C34,'Installed Capacity'!$C$2:$C$589,G34,'Installed Capacity'!$D$2:$D$589,F34) -> 0.1149441613
A35: 43102 | B35: 2018 | C35: 1 | D35: 2 | E35: 10 | F35: North | G35: Solar Fixed | H35: 449.3028255 | I35: =H35/SUMIFS('Installed Capacity'!$E$2:$E$589,'Installed Capacity'!$A$2:$A$589,B35,'Installed Capacity'!$B$2:$B$589,C35,'Installed Capacity'!$C$2:$C$589,G35,'Installed Capacity'!$D$2:$D$589,F35) -> 0.2738849761
A36: 43102 | B36: 2018 | C36: 1 | D36: 2 | E36: 11 | F36: North | G36: Solar Fixed | H36: 545.5905249 | I36: =H36/SUMIFS('Installed Capacity'!$E$2:$E$589,'Installed Capacity'!$A$2:$A$589,B36,'Installed Capacity'!$B$2:$B$589,C36,'Installed Capacity'!$C$2:$C$589,G36,'Installed Capacity'!$D$2:$D$589,F36) -> 0.3325798089
A37: 43102 | B37: 2018 | C37: 1 | D37: 2 | E37: 12 | F37: North | G37: Solar Fixed | H37: 768.8700916 | I37: =H37/SUMIFS('Installed Capacity'!$E$2:$E$589,'Installed Capacity'!$A$2:$A$589,B37,'Installed Capacity'!$B$2:$B$589,C37,'Installed Capacity'!$C$2:$C$589,G37,'Installed Capacity'!$D$2:$D$589,F37) -> 0.4686860502
A38: 43102 | B38: 2018 | C38: 1 | D38: 2 | E38: 13 | F38: North | G38: Solar Fixed | H38: 775.8968891 | I38: =H38/SUMIFS('Installed Capacity'!$E$2:$E$589,'Installed Capacity'!$A$2:$A$589,B38,'Installed Capacity'!$B$2:$B$589,C38,'Installed Capacity'!$C$2:$C$589,G38,'Installed Capacity'!$D$2:$D$589,F38) -> 0.4729694291
A39: 43102 | B39: 2018 | C39: 1 | D39: 2 | E39: 14 | F39: North | G39: Solar Fixed | H39: 632.7034534 | I39: =H39/SUMIFS('Installed Capacity'!$E$2:$E$589,'Installed Capacity'!$A$2:$A$589,B39,'Installed Capacity'!$B$2:$B$589,C39,'Installed Capacity'!$C$2:$C$589,G39,'Installed Capacity'!$D$2:$D$589,F39) -> 0.3856819061
A40: 43102 | B40: 2018 | C40: 1 | D40: 2 | E40: 15 | F40: North | G40: Solar Fixed | H40: 333.2251837 | I40: =H40/SUMIFS('Installed Capacity'!$E$2:$E$589,'Installed Capacity'!$A$2:$A$589,B40,'Installed Capacity'!$B$2:$B$589,C40,'Installed Capacity'!$C$2:$C$589,G40,'Installed Capacity'!$D$2:$D$589,F40) -> 0.2031266359
A41: 43102 | B41: 2018 | C41: 1 | D41: 2 | E41: 16 | F41: North | G41: Solar Fixed | H41: 143.6060537 | I41: =H41/SUMIFS('Installed Capacity'!$E$2:$E$589,'Installed Capacity'!$A$2:$A$589,B41,'Installed Capacity'!$B$2:$B$589,C41,'Installed Capacity'!$C$2:$C$589,G41,'Installed Capacity'!$D$2:$D$589,F41) -> 0.08753904569
A42: 43102 | B42: 2018 | C42: 1 | D42: 2 | E42: 17 | F42: North | G42: Solar Fixed | H42: 70.94144951 | I42: =H42/SUMIFS('Installed Capacity'!$E$2:$E$589,'Installed Capacity'!$A$2:$A$589,B42,'Installed Capacity'!$B$2:$B$589,C42,'Installed Capacity'!$C$2:$C$589,G42,'Installed Capacity'!$D$2:$D$589,F42) -> 0.04324432453
A43: 43102 | B43: 2018 | C43: 1 | D43: 2 | E43: 18 | F43: North | G43: Solar Fixed | H43: 0 | I43: =H43/SUMIFS('Installed Capacity'!$E$2:$E$589,'Installed Capacity'!$A$2:$A$589,B43,'Installed Capacity'!$B$2:$B$589,C43,'Installed Capacity'!$C$2:$C$589,G43,'Installed Capacity'!$D$2:$D$589,F43) -> 0
A44: 43102 | B44: 2018 | C44: 1 | D44: 2 | E44: 19 | F44: North | G44: Solar Fixed | H44: 0 | I44: =H44/SUMIFS('Installed Capacity'!$E$2:$E$589,'Installed Capacity'!$A$2:$A$589,B44,'Installed Capacity'!$B$2:$B$589,C44,'Installed Capacity'!$C$2:$C$589,G44,'Installed Capacity'!$D$2:$D$589,F44) -> 0
A45: 43102 | B45: 2018 | C45: 1 | D45: 2 | E45: 20 | F45: North | G45: Solar Fixed | H45: 0 | I45: =H45/SUMIFS('Installed Capacity'!$E$2:$E$589,'Installed Capacity'!$A$2:$A$589,B45,'Installed Capacity'!$B$2:$B$589,C45,'Installed Capacity'!$C$2:$C$589,G45,'Installed Capacity'!$D$2:$D$589,F45) -> 0
A46: 43102 | B46: 2018 | C46: 1 | D46: 2 | E46: 21 | F46: North | G46: Solar Fixed | H46: 0 | I46: =H46/SUMIFS('Installed Capacity'!$E$2:$E$589,'Installed Capacity'!$A$2:$A$589,B46,'Installed Capacity'!$B$2:$B$589,C46,'Installed Capacity'!$C$2:$C$589,G46,'Installed Capacity'!$D$2:$D$589,F46) -> 0
A47: 43102 | B47: 2018 | C47: 1 | D47: 2 | E47: 22 | F47: North | G47: Solar Fixed | H47: 0 | I47: =H47/SUMIFS('Installed Capacity'!$E$2:$E$589,'Installed Capacity'!$A$2:$A$589,B47,'Installed Capacity'!$B$2:$B$589,C47,'Installed Capacity'!$C$2:$C$589,G47,'Installed Capacity'!$D$2:$D$589,F47) -> 0
A48: 43102 | B48: 2018 | C48: 1 | D48: 2 | E48: 23 | F48: North | G48: Solar Fixed | H48: 0 | I48: =H48/SUMIFS('Installed Capacity'!$E$2:$E$589,'Installed Capacity'!$A$2:$A$589,B48,'Installed Capacity'!$B$2:$B$589,C48,'Installed Capacity'!$C$2:$C$589,G48,'Installed Capacity'!$D$2:$D$589,F48) -> 0
A49: 43102 | B49: 2018 | C49: 1 | D49: 2 | E49: 24 | F49: North | G49: Solar Fixed | H49: 0 | I49: =H49/SUMIFS('Installed Capacity'!$E$2:$E$589,'Installed Capacity'!$A$2:$A$589,B49,'Installed Capacity'!$B$2:$B$589,C49,'Installed Capacity'!$C$2:$C$589,G49,'Installed Capacity'!$D$2:$D$589,F49) -> 0
A50: 43103 | B50: 2018 | C50: 1 | D50: 3 | E50: 1 | F50: North | G50: Solar Fixed | H50: 0 | I50: =H50/SUMIFS('Installed Capacity'!$E$2:$E$589,'Installed Capacity'!$A$2:$A$589,B50,'Installed Capacity'!$B$2:$B$589,C50,'Installed Capacity'!$C$2:$C$589,G50,'Installed Capacity'!$D$2:$D$589,F50) -> 0
A51: 43103 | B51: 2018 | C51: 1 | D51: 3 | E51: 2 | F51: North | G51: Solar Fixed | H51: 0 | I51: =H51/SUMIFS('Installed Capacity'!$E$2:$E$589,'Installed Capacity'!$A$2:$A$589,B51,'Installed Capacity'!$B$2:$B$589,C51,'Installed Capacity'!$C$2:$C$589,G51,'Installed Capacity'!$D$2:$D$589,F51) -> 0
A52: 43103 | B52: 2018 | C52: 1 | D52: 3 | E52: 3 | F52: North | G52: Solar Fixed | H52: 0 | I52: =H52/SUMIFS('Installed Capacity'!$E$2:$E$589,'Installed Capacity'!$A$2:$A$589,B52,'Installed Capacity'!$B$2:$B$589,C52,'Installed Capacity'!$C$2:$C$589,G52,'Installed Capacity'!$D$2:$D$589,F52) -> 0
A53: 43103 | B53: 2018 | C53: 1 | D53: 3 | E53: 4 | F53: North | G53: Solar Fixed | H53: 0 | I53: =H53/SUMIFS('Installed Capacity'!$E$2:$E$589,'Installed Capacity'!$A$2:$A$589,B53,'Installed Capacity'!$B$2:$B$589,C53,'Installed Capacity'!$C$2:$C$589,G53,'Installed Capacity'!$D$2:$D$589,F53) -> 0
A54: 43103 | B54: 2018 | C54: 1 | D54: 3 | E54: 5 | F54: North | G54: Solar Fixed | H54: 0 | I54: =H54/SUMIFS('Installed Capacity'!$E$2:$E$589,'Installed Capacity'!$A$2:$A$589,B54,'Installed Capacity'!$B$2:$B$589,C54,'Installed Capacity'!$C$2:$C$589,G54,'Installed Capacity'!$D$2:$D$589,F54) -> 0
A55: 43103 | B55: 2018 | C55: 1 | D55: 3 | E55: 6 | F55: North | G55: Solar Fixed | H55: 0 | I55: =H55/SUMIFS('Installed Capacity'!$E$2:$E$589,'Installed Capacity'!$A$2:$A$589,B55,'Installed Capacity'!$B$2:$B$589,C55,'Installed Capacity'!$C$2:$C$589,G55,'Installed Capacity'!$D$2:$D$589,F55) -> 0
A56: 43103 | B56: 2018 | C56: 1 | D56: 3 | E56: 7 | F56: North | G56: Solar Fixed | H56: 0 | I56: =H56/SUMIFS('Installed Capacity'!$E$2:$E$589,'Installed Capacity'!$A$2:$A$589,B56,'Installed Capacity'!$B$2:$B$589,C56,'Installed Capacity'!$C$2:$C$589,G56,'Installed Capacity'!$D$2:$D$589,F56) -> 0
A57: 43103 | B57: 2018 | C57: 1 | D57: 3 | E57: 8 | F57: North | G57: Solar Fixed | H57: 63.30031196 | I57: =H57/SUMIFS('Installed Capacity'!$E$2:$E$589,'Installed Capacity'!$A$2:$A$589,B57,'Installed Capacity'!$B$2:$B$589,C57,'Installed Capacity'!$C$2:$C$589,G57,'Installed Capacity'!$D$2:$D$589,F57) -> 0.0385864576
A58: 43103 | B58: 2018 | C58: 1 | D58: 3 | E58: 9 | F58: North | G58: Solar Fixed | H58: 340.423461 | I58: =H58/SUMIFS('Installed Capacity'!$E$2:$E$589,'Installed Capacity'!$A$2:$A$589,B58,'Installed Capacity'!$B$2:$B$589,C58,'Installed Capacity'!$C$2:$C$589,G58,'Installed Capacity'!$D$2:$D$589,F58) -> 0.2075145451
A59: 43103 | B59: 2018 | C59: 1 | D59: 3 | E59: 10 | F59: North | G59: Solar Fixed | H59: 681.5648388 | I59: =H59/SUMIFS('Installed Capacity'!$E$2:$E$589,'Installed Capacity'!$A$2:$A$589,B59,'Installed Capacity'!$B$2:$B$589,C59,'Installed Capacity'!$C$2:$C$589,G59,'Installed Capacity'!$D$2:$D$589,F59) -> 0.4154667163
A60: 43103 | B60: 2018 | C60: 1 | D60: 3 | E60: 11 | F60: North | G60: Solar Fixed | H60: 808.4190701 | I60: =H60/SUMIFS('Installed Capacity'!$E$2:$E$589,'Installed Capacity'!$A$2:$A$589,B60,'Installed Capacity'!$B$2:$B$589,C60,'Installed Capacity'!$C$2:$C$589,G60,'Installed Capacity'!$D$2:$D$589,F60) -> 0.4927942249
A61: 43103 | B61: 2018 | C61: 1 | D61: 3 | E61: 12 | F61: North | G61: Solar Fixed | H61: 557.7882784 | I61: =H61/SUMIFS('Installed Capacity'!$E$2:$E$589,'Installed Capacity'!$A$2:$A$589,B61,'Installed Capacity'!$B$2:$B$589,C61,'Installed Capacity'!$C$2:$C$589,G61,'Installed Capacity'!$D$2:$D$589,F61) -> 0.3400152873
A62: 43103 | B62: 2018 | C62: 1 | D62: 3 | E62: 13 | F62: North | G62: Solar Fixed | H62: 300.0953871 | I62: =H62/SUMIFS('Installed Capacity'!$E$2:$E$589,'Installed Capacity'!$A$2:$A$589,B62,'Installed Capacity'!$B$2:$B$589,C62,'Installed Capacity'!$C$2:$C$589,G62,'Installed Capacity'!$D$2:$D$589,F62) -> 0.1829314512
A63: 43103 | B63: 2018 | C63: 1 | D63: 3 | E63: 14 | F63: North | G63: Solar Fixed | H63: 170.5711797 | I63: =H63/SUMIFS('Installed Capacity'!$E$2:$E$589,'Installed Capacity'!$A$2:$A$589,B63,'Installed Capacity'!$B$2:$B$589,C63,'Installed Capacity'!$C$2:$C$589,G63,'Installed Capacity'!$D$2:$D$589,F63) -> 0.1039763848
A64: 43103 | B64: 2018 | C64: 1 | D64: 3 | E64: 15 | F64: North | G64: Solar Fixed | H64: 119.3599116 | I64: =H64/SUMIFS('Installed Capacity'!$E$2:$E$589,'Installed Capacity'!$A$2:$A$589,B64,'Installed Capacity'!$B$2:$B$589,C64,'Installed Capacity'!$C$2:$C$589,G64,'Installed Capacity'!$D$2:$D$589,F64) -> 0.07275913853
A65: 43103 | B65: 2018 | C65: 1 | D65: 3 | E65: 16 | F65: North | G65: Solar Fixed | H65: 45.54348238 | I65: =H65/SUMIFS('Installed Capacity'!$E$2:$E$589,'Installed Capacity'!$A$2:$A$589,B65,'Installed Capacity'!$B$2:$B$589,C65,'Installed Capacity'!$C$2:$C$589,G65,'Installed Capacity'!$D$2:$D$589,F65) -> 0.02776229053
A66: 43103 | B66: 2018 | C66: 1 | D66: 3 | E66: 17 | F66: North | G66: Solar Fixed | H66: 18.59990243 | I66: =H66/SUMIFS('Installed Capacity'!$E$2:$E$589,'Installed Capacity'!$A$2:$A$589,B66,'Installed Capacity'!$B$2:$B$589,C66,'Installed Capacity'!$C$2:$C$589,G66,'Installed Capacity'!$D$2:$D$589,F66) -> 0.01133808545
A67: 43103 | B67: 2018 | C67: 1 | D67: 3 | E67: 18 | F67: North | G67: Solar Fixed | H67: 0.000273289 | I67: =H67/SUMIFS('Installed Capacity'!$E$2:$E$589,'Installed Capacity'!$A$2:$A$589,B67,'Installed Capacity'!$B$2:$B$589,C67,'Installed Capacity'!$C$2:$C$589,G67,'Installed Capacity'!$D$2:$D$589,F67) -> 1.665908758e-07
A68: 43103 | B68: 2018 | C68: 1 | D68: 3 | E68: 19 | F68: North | G68: Solar Fixed | H68: 0 | I68: =H68/SUMIFS('Installed Capacity'!$E$2:$E$589,'Installed Capacity'!$A$2:$A$589,B68,'Installed Capacity'!$B$2:$B$589,C68,'Installed Capacity'!$C$2:$C$589,G68,'Installed Capacity'!$D$2:$D$589,F68) -> 0
A69: 43103 | B69: 2018 | C69: 1 | D69: 3 | E69: 20 | F69: North | G69: Solar Fixed | H69: 0 | I69: =H69/SUMIFS('Installed Capacity'!$E$2:$E$589,'Installed Capacity'!$A$2:$A$589,B69,'Installed Capacity'!$B$2:$B$589,C69,'Installed Capacity'!$C$2:$C$589,G69,'Installed Capacity'!$D$2:$D$589,F69) -> 0
A70: 43103 | B70: 2018 | C70: 1 | D70: 3 | E70: 21 | F70: North | G70: Solar Fixed | H70: 0 | I70: =H70/SUMIFS('Installed Capacity'!$E$2:$E$589,'Installed Capacity'!$A$2:$A$589,B70,'Installed Capacity'!$B$2:$B$589,C70,'Installed Capacity'!$C$2:$C$589,G70,'Installed Capacity'!$D$2:$D$589,F70) -> 0
A71: 43103 | B71: 2018 | C71: 1 | D71: 3 | E71: 22 | F71: North | G71: Solar Fixed | H71: 0 | I71: =H71/SUMIFS('Installed Capacity'!$E$2:$E$589,'Installed Capacity'!$A$2:$A$589,B71,'Installed Capacity'!$B$2:$B$589,C71,'Installed Capacity'!$C$2:$C$589,G71,'Installed Capacity'!$D$2:$D$589,F71) -> 0
A72: 43103 | B72: 2018 | C72: 1 | D72: 3 | E72: 23 | F72: North | G72: Solar Fixed | H72: 0 | I72: =H72/SUMIFS('Installed Capacity'!$E$2:$E$589,'Installed Capacity'!$A$2:$A$589,B72,'Installed Capacity'!$B$2:$B$589,C72,'Installed Capacity'!$C$2:$C$589,G72,'Installed Capacity'!$D$2:$D$589,F72) -> 0
A73: 43103 | B73: 2018 | C73: 1 | D73: 3 | E73: 24 | F73: North | G73: Solar Fixed | H73: 0 | I73: =H73/SUMIFS('Installed Capacity'!$E$2:$E$589,'Installed Capacity'!$A$2:$A$589,B73,'Installed Capacity'!$B$2:$B$589,C73,'Installed Capacity'!$C$2:$C$589,G73,'Installed Capacity'!$D$2:$D$589,F73) -> 0
A74: 43104 | B74: 2018 | C74: 1 | D74: 4 | E74: 1 | F74: North | G74: Solar Fixed | H74: 0 | I74: =H74/SUMIFS('Installed Capacity'!$E$2:$E$589,'Installed Capacity'!$A$2:$A$589,B74,'Installed Capacity'!$B$2:$B$589,C74,'Installed Capacity'!$C$2:$C$589,G74,'Installed Capacity'!$D$2:$D$589,F74) -> 0
A75: 43104 | B75: 2018 | C75: 1 | D75: 4 | E75: 2 | F75: North | G75: Solar Fixed | H75: 0 | I75: =H75/SUMIFS('Installed Capacity'!$E$2:$E$589,'Installed Capacity'!$A$2:$A$589,B75,'Installed Capacity'!$B$2:$B$589,C75,'Installed Capacity'!$C$2:$C$589,G75,'Installed Capacity'!$D$2:$D$589,F75) -> 0
A76: 43104 | B76: 2018 | C76: 1 | D76: 4 | E76: 3 | F76: North | G76: Solar Fixed | H76: 0 | I76: =H76/SUMIFS('Installed Capacity'!$E$2:$E$589,'Installed Capacity'!$A$2:$A$589,B76,'Installed Capacity'!$B$2:$B$589,C76,'Installed Capacity'!$C$2:$C$589,G76,'Installed Capacity'!$D$2:$D$589,F76) -> 0
A77: 43104 | B77: 2018 | C77: 1 | D77: 4 | E77: 4 | F77: North | G77: Solar Fixed | H77: 0 | I77: =H77/SUMIFS('Installed Capacity'!$E$2:$E$589,'Installed Capacity'!$A$2:$A$589,B77,'Installed Capacity'!$B$2:$B$589,C77,'Installed Capacity'!$C$2:$C$589,G77,'Installed Capacity'!$D$2:$D$589,F77) -> 0
A78: 43104 | B78: 2018 | C78: 1 | D78: 4 | E78: 5 | F78: North | G78: Solar Fixed | H78: 0 | I78: =H78/SUMIFS('Installed Capacity'!$E$2:$E$589,'Installed Capacity'!$A$2:$A$589,B78,'Installed Capacity'!$B$2:$B$589,C78,'Installed Capacity'!$C$2:$C$589,G78,'Installed Capacity'!$D$2:$D$589,F78) -> 0
A79: 43104 | B79: 2018 | C79: 1 | D79: 4 | E79: 6 | F79: North | G79: Solar Fixed | H79: 0 | I79: =H79/SUMIFS('Installed Capacity'!$E$2:$E$589,'Installed Capacity'!$A$2:$A$589,B79,'Installed Capacity'!$B$2:$B$589,C79,'Installed Capacity'!$C$2:$C$589,G79,'Installed Capacity'!$D$2:$D$589,F79) -> 0
A80: 43104 | B80: 2018 | C80: 1 | D80: 4 | E80: 7 | F80: North | G80: Solar Fixed | H80: 0 | I80: =H80/SUMIFS('Installed Capacity'!$E$2:$E$589,'Installed Capacity'!$A$2:$A$589,B80,'Installed Capacity'!$B$2:$B$589,C80,'Installed Capacity'!$C$2:$C$589,G80,'Installed Capacity'!$D$2:$D$589,F80) -> 0
A81: 43104 | B81: 2018 | C81: 1 | D81: 4 | E81: 8 | F81: North | G81: Solar Fixed | H81: 14.88646502 | I81: =H81/SUMIFS('Installed Capacity'!$E$2:$E$589,'Installed Capacity'!$A$2:$A$589,B81,'Installed Capacity'!$B$2:$B$589,C81,'Installed Capacity'!$C$2:$C$589,G81,'Installed Capacity'!$D$2:$D$589,F81) -> 0.009074456881
A82: 43104 | B82: 2018 | C82: 1 | D82: 4 | E82: 9 | F82: North | G82: Solar Fixed | H82: 145.8674323 | I82: =H82/SUMIFS('Installed Capacity'!$E$2:$E$589,'Installed Capacity'!$A$2:$A$589,B82,'Installed Capacity'!$B$2:$B$589,C82,'Installed Capacity'!$C$2:$C$589,G82,'Installed Capacity'!$D$2:$D$589,F82) -> 0.08891753162
A83: 43104 | B83: 2018 | C83: 1 | D83: 4 | E83: 10 | F83: North | G83: Solar Fixed | H83: 367.9637866 | I83: =H83/SUMIFS('Installed Capacity'!$E$2:$E$589,'Installed Capacity'!$A$2:$A$589,B83,'Installed Capacity'!$B$2:$B$589,C83,'Installed Capacity'!$C$2:$C$589,G83,'Installed Capacity'!$D$2:$D$589,F83) -> 0.224302513
A84: 43104 | B84: 2018 | C84: 1 | D84: 4 | E84: 11 | F84: North | G84: Solar Fixed | H84: 506.964241 | I84: =H84/SUMIFS('Installed Capacity'!$E$2:$E$589,'Installed Capacity'!$A$2:$A$589,B84,'Installed Capacity'!$B$2:$B$589,C84,'Installed Capacity'!$C$2:$C$589,G84,'Installed Capacity'!$D$2:$D$589,F84) -> 0.3090340882
A85: 43104 | B85: 2018 | C85: 1 | D85: 4 | E85: 12 | F85: North | G85: Solar Fixed | H85: 664.6593679 | I85: =H85/SUMIFS('Installed Capacity'!$E$2:$E$589,'Installed Capacity'!$A$2:$A$589,B85,'Installed Capacity'!$B$2:$B$589,C85,'Installed Capacity'!$C$2:$C$589,G85,'Installed Capacity'!$D$2:$D$589,F85) -> 0.4051615185
A86: 43104 | B86: 2018 | C86: 1 | D86: 4 | E86: 13 | F86: North | G86: Solar Fixed | H86: 888.8479927 | I86: =H86/SUMIFS('Installed Capacity'!$E$2:$E$589,'Installed Capacity'!$A$2:$A$589,B86,'Installed Capacity'!$B$2:$B$589,C86,'Installed Capacity'!$C$2:$C$589,G86,'Installed Capacity'!$D$2:$D$589,F86) -> 0.5418219013
A87: 43104 | B87: 2018 | C87: 1 | D87: 4 | E87: 14 | F87: North | G87: Solar Fixed | H87: 957.1399698 | I87: =H87/SUMIFS('Installed Capacity'!$E$2:$E$589,'Installed Capacity'!$A$2:$A$589,B87,'Installed Capacity'!$B$2:$B$589,C87,'Installed Capacity'!$C$2:$C$589,G87,'Installed Capacity'!$D$2:$D$589,F87) -> 0.5834511666
A88: 43104 | B88: 2018 | C88: 1 | D88: 4 | E88: 15 | F88: North | G88: Solar Fixed | H88: 973.3855022 | I88: =H88/SUMIFS('Installed Capacity'!$E$2:$E$589,'Installed Capacity'!$A$2:$A$589,B88,'Installed Capacity'!$B$2:$B$589,C88,'Installed Capacity'!$C$2:$C$589,G88,'Installed Capacity'!$D$2:$D$589,F88) -> 0.5933540806
A89: 43104 | B89: 2018 | C89: 1 | D89: 4 | E89: 16 | F89: North | G89: Solar Fixed | H89: 585.5000368 | I89: =H89/SUMIFS('Installed Capacity'!$E$2:$E$589,'Installed Capacity'!$A$2:$A$589,B89,'Installed Capacity'!$B$2:$B$589,C89,'Installed Capacity'!$C$2:$C$589,G89,'Installed Capacity'!$D$2:$D$589,F89) -> 0.3569077567
A90: 43104 | B90: 2018 | C90: 1 | D90: 4 | E90: 17 | F90: North | G90: Solar Fixed | H90: 79.74095446 | I90: =H90/SUMIFS('Installed Capacity'!$E$2:$E$589,'Installed Capacity'!$A$2:$A$589,B90,'Installed Capacity'!$B$2:$B$589,C90,'Installed Capacity'!$C$2:$C$589,G90,'Installed Capacity'!$D$2:$D$589,F90) -> 0.04860830639
A91: 43104 | B91: 2018 | C91: 1 | D91: 4 | E91: 18 | F91: North | G91: Solar Fixed | H91: 0.000342346 | I91: =H91/SUMIFS('Installed Capacity'!$E$2:$E$589,'Installed Capacity'!$A$2:$A$589,B91,'Installed Capacity'!$B$2:$B$589,C91,'Installed Capacity'!$C$2:$C$589,G91,'Installed Capacity'!$D$2:$D$589,F91) -> 2.08686482e-07
A92: 43104 | B92: 2018 | C92: 1 | D92: 4 | E92: 19 | F92: North | G92: Solar Fixed | H92: 0 | I92: =H92/SUMIFS('Installed Capacity'!$E$2:$E$589,'Installed Capacity'!$A$2:$A$589,B92,'Installed Capacity'!$B$2:$B$589,C92,'Installed Capacity'!$C$2:$C$589,G92,'Installed Capacity'!$D$2:$D$589,F92) -> 0
A93: 43104 | B93: 2018 | C93: 1 | D93: 4 | E93: 20 | F93: North | G93: Solar Fixed | H93: 0 | I93: =H93/SUMIFS('Installed Capacity'!$E$2:$E$589,'Installed Capacity'!$A$2:$A$589,B93,'Installed Capacity'!$B$2:$B$589,C93,'Installed Capacity'!$C$2:$C$589,G93,'Installed Capacity'!$D$2:$D$589,F93) -> 0
A94: 43104 | B94: 2018 | C94: 1 | D94: 4 | E94: 21 | F94: North | G94: Solar Fixed | H94: 0 | I94: =H94/SUMIFS('Installed Capacity'!$E$2:$E$589,'Installed Capacity'!$A$2:$A$589,B94,'Installed Capacity'!$B$2:$B$589,C94,'Installed Capacity'!$C$2:$C$589,G94,'Installed Capacity'!$D$2:$D$589,F94) -> 0
A95: 43104 | B95: 2018 | C95: 1 | D95: 4 | E95: 22 | F95: North | G95: Solar Fixed | H95: 0 | I95: =H95/SUMIFS('Installed Capacity'!$E$2:$E$589,'Installed Capacity'!$A$2:$A$589,B95,'Installed Capacity'!$B$2:$B$589,C95,'Installed Capacity'!$C$2:$C$589,G95,'Installed Capacity'!$D$2:$D$589,F95) -> 0
A96: 43104 | B96: 2018 | C96: 1 | D96: 4 | E96: 23 | F96: North | G96: Solar Fixed | H96: 0 | I96: =H96/SUMIFS('Installed Capacity'!$E$2:$E$589,'Installed Capacity'!$A$2:$A$589,B96,'Installed Capacity'!$B$2:$B$589,C96,'Installed Capacity'!$C$2:$C$589,G96,'Installed Capacity'!$D$2:$D$589,F96) -> 0
A97: 43104 | B97: 2018 | C97: 1 | D97: 4 | E97: 24 | F97: North | G97: Solar Fixed | H97: 0 | I97: =H97/SUMIFS('Installed Capacity'!$E$2:$E$589,'Installed Capacity'!$A$2:$A$589,B97,'Installed Capacity'!$B$2:$B$589,C97,'Installed Capacity'!$C$2:$C$589,G97,'Installed Capacity'!$D$2:$D$589,F97) -> 0
A98: 43105 | B98: 2018 | C98: 1 | D98: 5 | E98: 1 | F98: North | G98: Solar Fixed | H98: 0 | I98: =H98/SUMIFS('Installed Capacity'!$E$2:$E$589,'Installed Capacity'!$A$2:$A$589,B98,'Installed Capacity'!$B$2:$B$589,C98,'Installed Capacity'!$C$2:$C$589,G98,'Installed Capacity'!$D$2:$D$589,F98) -> 0
A99: 43105 | B99: 2018 | C99: 1 | D99: 5 | E99: 2 | F99: North | G99: Solar Fixed | H99: 0 | I99: =H99/SUMIFS('Installed Capacity'!$E$2:$E$589,'Installed Capacity'!$A$2:$A$589,B99,'Installed Capacity'!$B$2:$B$589,C99,'Installed Capacity'!$C$2:$C$589,G99,'Installed Capacity'!$D$2:$D$589,F99) -> 0
A100: 43105 | B100: 2018 | C100: 1 | D100: 5 | E100: 3 | F100: North | G100: Solar Fixed | H100: 0 | I100: =H100/SUMIFS('Installed Capacity'!$E$2:$E$589,'Installed Capacity'!$A$2:$A$589,B100,'Installed Capacity'!$B$2:$B$589,C100,'Installed Capacity'!$C$2:$C$589,G100,'Installed Capacity'!$D$2:$D$589,F100) -> 0
A101: 43105 | B101: 2018 | C101: 1 | D101: 5 | E101: 4 | F101: North | G101: Solar Fixed | H101: 0 | I101: =H101/SUMIFS('Installed Capacity'!$E$2:$E$589,'Installed Capacity'!$A$2:$A$589,B101,'Installed Capacity'!$B$2:$B$589,C101,'Installed Capacity'!$C$2:$C$589,G101,'Installed Capacity'!$D$2:$D$589,F101) -> 0
A102: 43105 | B102: 2018 | C102: 1 | D102: 5 | E102: 5 | F102: North | G102: Solar Fixed | H102: 0 | I102: =H102/SUMIFS('Installed Capacity'!$E$2:$E$589,'Installed Capacity'!$A$2:$A$589,B102,'Installed Capacity'!$B$2:$B$589,C102,'Installed Capacity'!$C$2:$C$589,G102,'Installed Capacity'!$D$2:$D$589,F102) -> 0
A103: 43105 | B103: 2018 | C103: 1 | D103: 5 | E103: 6 | F103: North | G103: Solar Fixed | H103: 0 | I103: =H103/SUMIFS('Installed Capacity'!$E$2:$E$589,'Installed Capacity'!$A$2:$A$589,B103,'Installed Capacity'!$B$2:$B$589,C103,'Installed Capacity'!$C$2:$C$589,G103,'Installed Capacity'!$D$2:$D$589,F103) -> 0
A104: 43105 | B104: 2018 | C104: 1 | D104: 5 | E104: 7 | F104: North | G104: Solar Fixed | H104: 0 | I104: =H104/SUMIFS('Installed Capacity'!$E$2:$E$589,'Installed Capacity'!$A$2:$A$589,B104,'Installed Capacity'!$B$2:$B$589,C104,'Installed Capacity'!$C$2:$C$589,G104,'Installed Capacity'!$D$2:$D$589,F104) -> 0
A105: 43105 | B105: 2018 | C105: 1 | D105: 5 | E105: 8 | F105: North | G105: Solar Fixed | H105: 66.53167396 | I105: =H105/SUMIFS('Installed Capacity'!$E$2:$E$589,'Installed Capacity'!$A$2:$A$589,B105,'Installed Capacity'!$B$2:$B$589,C105,'Installed Capacity'!$C$2:$C$589,G105,'Installed Capacity'!$D$2:$D$589,F105) -> 0.04055622376
A106: 43105 | B106: 2018 | C106: 1 | D106: 5 | E106: 9 | F106: North | G106: Solar Fixed | H106: 542.7630839 | I106: =H106/SUMIFS('Installed Capacity'!$E$2:$E$589,'Installed Capacity'!$A$2:$A$589,B106,'Installed Capacity'!$B$2:$B$589,C106,'Installed Capacity'!$C$2:$C$589,G106,'Installed Capacity'!$D$2:$D$589,F106) -> 0.330856264
A107: 43105 | B107: 2018 | C107: 1 | D107: 5 | E107: 10 | F107: North | G107: Solar Fixed | H107: 1043.434519 | I107: =H107/SUMIFS('Installed Capacity'!$E$2:$E$589,'Installed Capacity'!$A$2:$A$589,B107,'Installed Capacity'!$B$2:$B$589,C107,'Installed Capacity'!$C$2:$C$589,G107,'Installed Capacity'!$D$2:$D$589,F107) -> 0.6360543982
A108: 43105 | B108: 2018 | C108: 1 | D108: 5 | E108: 11 | F108: North | G108: Solar Fixed | H108: 1197.146334 | I108: =H108/SUMIFS('Installed Capacity'!$E$2:$E$589,'Installed Capacity'!$A$2:$A$589,B108,'Installed Capacity'!$B$2:$B$589,C108,'Installed Capacity'!$C$2:$C$589,G108,'Installed Capacity'!$D$2:$D$589,F108) -> 0.7297536903
A109: 43105 | B109: 2018 | C109: 1 | D109: 5 | E109: 12 | F109: North | G109: Solar Fixed | H109: 1212.845147 | I109: =H109/SUMIFS('Installed Capacity'!$E$2:$E$589,'Installed Capacity'!$A$2:$A$589,B109,'Installed Capacity'!$B$2:$B$589,C109,'Installed Capacity'!$C$2:$C$589,G109,'Installed Capacity'!$D$2:$D$589,F109) -> 0.7393233363
A110: 43105 | B110: 2018 | C110: 1 | D110: 5 | E110: 13 | F110: North | G110: Solar Fixed | H110: 1190.962932 | I110: =H110/SUMIFS('Installed Capacity'!$E$2:$E$589,'Installed Capacity'!$A$2:$A$589,B110,'Installed Capacity'!$B$2:$B$589,C110,'Installed Capacity'!$C$2:$C$589,G110,'Installed Capacity'!$D$2:$D$589,F110) -> 0.7259844268
A111: 43105 | B111: 2018 | C111: 1 | D111: 5 | E111: 14 | F111: North | G111: Solar Fixed | H111: 1002.429107 | I111: =H111/SUMIFS('Installed Capacity'!$E$2:$E$589,'Installed Capacity'!$A$2:$A$589,B111,'Installed Capacity'!$B$2:$B$589,C111,'Installed Capacity'!$C$2:$C$589,G111,'Installed Capacity'!$D$2:$D$589,F111) -> 0.6110584142
A112: 43105 | B112: 2018 | C112: 1 | D112: 5 | E112: 15 | F112: North | G112: Solar Fixed | H112: 1000.68456 | I112: =H112/SUMIFS('Installed Capacity'!$E$2:$E$589,'Installed Capacity'!$A$2:$A$589,B112,'Installed Capacity'!$B$2:$B$589,C112,'Installed Capacity'!$C$2:$C$589,G112,'Installed Capacity'!$D$2:$D$589,F112) -> 0.6099949773
A113: 43105 | B113: 2018 | C113: 1 | D113: 5 | E113: 16 | F113: North | G113: Solar Fixed | H113: 479.831219 | I113: =H113/SUMIFS('Installed Capacity'!$E$2:$E$589,'Installed Capacity'!$A$2:$A$589,B113,'Installed Capacity'!$B$2:$B$589,C113,'Installed Capacity'!$C$2:$C$589,G113,'Installed Capacity'!$D$2:$D$589,F113) -> 0.2924944035
A114: 43105 | B114: 2018 | C114: 1 | D114: 5 | E114: 17 | F114: North | G114: Solar Fixed | H114: 37.42001307 | I114: =H114/SUMIFS('Installed Capacity'!$E$2:$E$589,'Installed Capacity'!$A$2:$A$589,B114,'Installed Capacity'!$B$2:$B$589,C114,'Installed Capacity'!$C$2:$C$589,G114,'Installed Capacity'!$D$2:$D$589,F114) -> 0.02281040492
A115: 43105 | B115: 2018 | C115: 1 | D115: 5 | E115: 18 | F115: North | G115: Solar Fixed | H115: 0 | I115: =H115/SUMIFS('Installed Capacity'!$E$2:$E$589,'Installed Capacity'!$A$2:$A$589,B115,'Installed Capacity'!$B$2:$B$589,C115,'Installed Capacity'!$C$2:$C$589,G115,'Installed Capacity'!$D$2:$D$589,F115) -> 0
A116: 43105 | B116: 2018 | C116: 1 | D116: 5 | E116: 19 | F116: North | G116: Solar Fixed | H116: 0 | I116: =H116/SUMIFS('Installed Capacity'!$E$2:$E$589,'Installed Capacity'!$A$2:$A$589,B116,'Installed Capacity'!$B$2:$B$589,C116,'Installed Capacity'!$C$2:$C$589,G116,'Installed Capacity'!$D$2:$D$589,F116) -> 0
A117: 43105 | B117: 2018 | C117: 1 | D117: 5 | E117: 20 | F117: North | G117: Solar Fixed | H117: 0 | I117: =H117/SUMIFS('Installed Capacity'!$E$2:$E$589,'Installed Capacity'!$A$2:$A$589,B117,'Installed Capacity'!$B$2:$B$589,C117,'Installed Capacity'!$C$2:$C$589,G117,'Installed Capacity'!$D$2:$D$589,F117) -> 0
A118: 43105 | B118: 2018 | C118: 1 | D118: 5 | E118: 21 | F118: North | G118: Solar Fixed | H118: 0 | I118: =H118/SUMIFS('Installed Capacity'!$E$2:$E$589,'Installed Capacity'!$A$2:$A$589,B118,'Installed Capacity'!$B$2:$B$589,C118,'Installed Capacity'!$C$2:$C$589,G118,'Installed Capacity'!$D$2:$D$589,F118) -> 0
A119: 43105 | B119: 2018 | C119: 1 | D119: 5 | E119: 22 | F119: North | G119: Solar Fixed | H119: 0 | I119: =H119/SUMIFS('Installed Capacity'!$E$2:$E$589,'Installed Capacity'!$A$2:$A$589,B119,'Installed Capacity'!$B$2:$B$589,C119,'Installed Capacity'!$C$2:$C$589,G119,'Installed Capacity'!$D$2:$D$589,F119) -> 0
A120: 43105 | B120: 2018 | C120: 1 | D120: 5 | E120: 23 | F120: North | G120: Solar Fixed | H120: 0 | I120: =H120/SUMIFS('Installed Capacity'!$E$2:$E$589,'Installed Capacity'!$A$2:$A$589,B120,'Installed Capacity'!$B$2:$B$589,C120,'Installed Capacity'!$C$2:$C$589,G120,'Installed Capacity'!$D$2:$D$589,F120) -> 0
A121: 43105 | B121: 2018 | C121: 1 | D121: 5 | E121: 24 | F121: North | G121: Solar Fixed | H121: 0 | I121: =H121/SUMIFS('Installed Capacity'!$E$2:$E$589,'Installed Capacity'!$A$2:$A$589,B121,'Installed Capacity'!$B$2:$B$589,C121,'Installed Capacity'!$C$2:$C$589,G121,'Installed Capacity'!$D$2:$D$589,F121) -> 0
A122: 43106 | B122: 2018 | C122: 1 | D122: 6 | E122: 1 | F122: North | G122: Solar Fixed | H122: 0 | I122: =H122/SUMIFS('Installed Capacity'!$E$2:$E$589,'Installed Capacity'!$A$2:$A$589,B122,'Installed Capacity'!$B$2:$B$589,C122,'Installed Capacity'!$C$2:$C$589,G122,'Installed Capacity'!$D$2:$D$589,F122) -> 0
A123: 43106 | B123: 2018 | C123: 1 | D123: 6 | E123: 2 | F123: North | G123: Solar Fixed | H123: 0 | I123: =H123/SUMIFS('Installed Capacity'!$E$2:$E$589,'Installed Capacity'!$A$2:$A$589,B123,'Installed Capacity'!$B$2:$B$589,C123,'Installed Capacity'!$C$2:$C$589,G123,'Installed Capacity'!$D$2:$D$589,F123) -> 0
A124: 43106 | B124: 2018 | C124: 1 | D124: 6 | E124: 3 | F124: North | G124: Solar Fixed | H124: 0 | I124: =H124/SUMIFS('Installed Capacity'!$E$2:$E$589,'Installed Capacity'!$A$2:$A$589,B124,'Installed Capacity'!$B$2:$B$589,C124,'Installed Capacity'!$C$2:$C$589,G124,'Installed Capacity'!$D$2:$D$589,F124) -> 0
A125: 43106 | B125: 2018 | C125: 1 | D125: 6 | E125: 4 | F125: North | G125: Solar Fixed | H125: 0 | I125: =H125/SUMIFS('Installed Capacity'!$E$2:$E$589,'Installed Capacity'!$A$2:$A$589,B125,'Installed Capacity'!$B$2:$B$589,C125,'Installed Capacity'!$C$2:$C$589,G125,'Installed Capacity'!$D$2:$D$589,F125) -> 0
A126: 43106 | B126: 2018 | C126: 1 | D126: 6 | E126: 5 | F126: North | G126: Solar Fixed | H126: 0 | I126: =H126/SUMIFS('Installed Capacity'!$E$2:$E$589,'Installed Capacity'!$A$2:$A$589,B126,'Installed Capacity'!$B$2:$B$589,C126,'Installed Capacity'!$C$2:$C$589,G126,'Installed Capacity'!$D$2:$D$589,F126) -> 0
A127: 43106 | B127: 2018 | C127: 1 | D127: 6 | E127: 6 | F127: North | G127: Solar Fixed | H127: 0 | I127: =H127/SUMIFS('Installed Capacity'!$E$2:$E$589,'Installed Capacity'!$A$2:$A$589,B127,'Installed Capacity'!$B$2:$B$589,C127,'Installed Capacity'!$C$2:$C$589,G127,'Installed Capacity'!$D$2:$D$589,F127) -> 0
A128: 43106 | B128: 2018 | C128: 1 | D128: 6 | E128: 7 | F128: North | G128: Solar Fixed | H128: 0 | I128: =H128/SUMIFS('Installed Capacity'!$E$2:$E$589,'Installed Capacity'!$A$2:$A$589,B128,'Installed Capacity'!$B$2:$B$589,C128,'Installed Capacity'!$C$2:$C$589,G128,'Installed Capacity'!$D$2:$D$589,F128) -> 0
A129: 43106 | B129: 2018 | C129: 1 | D129: 6 | E129: 8 | F129: North | G129: Solar Fixed | H129: 14.36946489 | I129: =H129/SUMIFS('Installed Capacity'!$E$2:$E$589,'Installed Capacity'!$A$2:$A$589,B129,'Installed Capacity'!$B$2:$B$589,C129,'Installed Capacity'!$C$2:$C$589,G129,'Installed Capacity'!$D$2:$D$589,F129) -> 0.008759305139
A130: 43106 | B130: 2018 | C130: 1 | D130: 6 | E130: 9 | F130: North | G130: Solar Fixed | H130: 126.3050036 | I130: =H130/SUMIFS('Installed Capacity'!$E$2:$E$589,'Installed Capacity'!$A$2:$A$589,B130,'Installed Capacity'!$B$2:$B$589,C130,'Installed Capacity'!$C$2:$C$589,G130,'Installed Capacity'!$D$2:$D$589,F130) -> 0.07699271165
A131: 43106 | B131: 2018 | C131: 1 | D131: 6 | E131: 10 | F131: North | G131: Solar Fixed | H131: 371.1382797 | I131: =H131/SUMIFS('Installed Capacity'!$E$2:$E$589,'Installed Capacity'!$A$2:$A$589,B131,'Installed Capacity'!$B$2:$B$589,C131,'Installed Capacity'!$C$2:$C$589,G131,'Installed Capacity'!$D$2:$D$589,F131) -> 0.2262376132
A132: 43106 | B132: 2018 | C132: 1 | D132: 6 | E132: 11 | F132: North | G132: Solar Fixed | H132: 475.8712058 | I132: =H132/SUMIFS('Installed Capacity'!$E$2:$E$589,'Installed Capacity'!$A$2:$A$589,B132,'Installed Capacity'!$B$2:$B$589,C132,'Installed Capacity'!$C$2:$C$589,G132,'Installed Capacity'!$D$2:$D$589,F132) -> 0.2900804678
A133: 43106 | B133: 2018 | C133: 1 | D133: 6 | E133: 12 | F133: North | G133: Solar Fixed | H133: 617.5423478 | I133: =H133/SUMIFS('Installed Capacity'!$E$2:$E$589,'Installed Capacity'!$A$2:$A$589,B133,'Installed Capacity'!$B$2:$B$589,C133,'Installed Capacity'!$C$2:$C$589,G133,'Installed Capacity'!$D$2:$D$589,F133) -> 0.3764400345
A134: 43106 | B134: 2018 | C134: 1 | D134: 6 | E134: 13 | F134: North | G134: Solar Fixed | H134: 613.2128175 | I134: =H134/SUMIFS('Installed Capacity'!$E$2:$E$589,'Installed Capacity'!$A$2:$A$589,B134,'Installed Capacity'!$B$2:$B$589,C134,'Installed Capacity'!$C$2:$C$589,G134,'Installed Capacity'!$D$2:$D$589,F134) -> 0.3738008494
A135: 43106 | B135: 2018 | C135: 1 | D135: 6 | E135: 14 | F135: North | G135: Solar Fixed | H135: 546.562493 | I135: =H135/SUMIFS('Installed Capacity'!$E$2:$E$589,'Installed Capacity'!$A$2:$A$589,B135,'Installed Capacity'!$B$2:$B$589,C135,'Installed Capacity'!$C$2:$C$589,G135,'Installed Capacity'!$D$2:$D$589,F135) -> 0.3331722989
A136: 43106 | B136: 2018 | C136: 1 | D136: 6 | E136: 15 | F136: North | G136: Solar Fixed | H136: 340.5519638 | I136: =H136/SUMIFS('Installed Capacity'!$E$2:$E$589,'Installed Capacity'!$A$2:$A$589,B136,'Installed Capacity'!$B$2:$B$589,C136,'Installed Capacity'!$C$2:$C$589,G136,'Installed Capacity'!$D$2:$D$589,F136) -> 0.2075928776
A137: 43106 | B137: 2018 | C137: 1 | D137: 6 | E137: 16 | F137: North | G137: Solar Fixed | H137: 141.3075147 | I137: =H137/SUMIFS('Installed Capacity'!$E$2:$E$589,'Installed Capacity'!$A$2:$A$589,B137,'Installed Capacity'!$B$2:$B$589,C137,'Installed Capacity'!$C$2:$C$589,G137,'Installed Capacity'!$D$2:$D$589,F137) -> 0.08613790761
A138: 43106 | B138: 2018 | C138: 1 | D138: 6 | E138: 17 | F138: North | G138: Solar Fixed | H138: 37.39654359 | I138: =H138/SUMIFS('Installed Capacity'!$E$2:$E$589,'Installed Capacity'!$A$2:$A$589,B138,'Installed Capacity'!$B$2:$B$589,C138,'Installed Capacity'!$C$2:$C$589,G138,'Installed Capacity'!$D$2:$D$589,F138) -> 0.02279609845
A139: 43106 | B139: 2018 | C139: 1 | D139: 6 | E139: 18 | F139: North | G139: Solar Fixed | H139: 0.00038991 | I139: =H139/SUMIFS('Installed Capacity'!$E$2:$E$589,'Installed Capacity'!$A$2:$A$589,B139,'Installed Capacity'!$B$2:$B$589,C139,'Installed Capacity'!$C$2:$C$589,G139,'Installed Capacity'!$D$2:$D$589,F139) -> 2.37680435e-07
A140: 43106 | B140: 2018 | C140: 1 | D140: 6 | E140: 19 | F140: North | G140: Solar Fixed | H140: 0 | I140: =H140/SUMIFS('Installed Capacity'!$E$2:$E$589,'Installed Capacity'!$A$2:$A$589,B140,'Installed Capacity'!$B$2:$B$589,C140,'Installed Capacity'!$C$2:$C$589,G140,'Installed Capacity'!$D$2:$D$589,F140) -> 0
A141: 43106 | B141: 2018 | C141: 1 | D141: 6 | E141: 20 | F141: North | G141: Solar Fixed | H141: 0 | I141: =H141/SUMIFS('Installed Capacity'!$E$2:$E$589,'Installed Capacity'!$A$2:$A$589,B141,'Installed Capacity'!$B$2:$B$589,C141,'Installed Capacity'!$C$2:$C$589,G141,'Installed Capacity'!$D$2:$D$589,F141) -> 0
A142: 43106 | B142: 2018 | C142: 1 | D142: 6 | E142: 21 | F142: North | G142: Solar Fixed | H142: 0 | I142: =H142/SUMIFS('Installed Capacity'!$E$2:$E$589,'Installed Capacity'!$A$2:$A$589,B142,'Installed Capacity'!$B$2:$B$589,C142,'Installed Capacity'!$C$2:$C$589,G142,'Installed Capacity'!$D$2:$D$589,F142) -> 0
A143: 43106 | B143: 2018 | C143: 1 | D143: 6 | E143: 22 | F143: North | G143: Solar Fixed | H143: 0 | I143: =H143/SUMIFS('Installed Capacity'!$E$2:$E$589,'Installed Capacity'!$A$2:$A$589,B143,'Installed Capacity'!$B$2:$B$589,C143,'Installed Capacity'!$C$2:$C$589,G143,'Installed Capacity'!$D$2:$D$589,F143) -> 0
A144: 43106 | B144: 2018 | C144: 1 | D144: 6 | E144: 23 | F144: North | G144: Solar Fixed | H144: 0 | I144: =H144/SUMIFS('Installed Capacity'!$E$2:$E$589,'Installed Capacity'!$A$2:$A$589,B144,'Installed Capacity'!$B$2:$B$589,C144,'Installed Capacity'!$C$2:$C$589,G144,'Installed Capacity'!$D$2:$D$589,F144) -> 0
A145: 43106 | B145: 2018 | C145: 1 | D145: 6 | E145: 24 | F145: North | G145: Solar Fixed | H145: 0 | I145: =H145/SUMIFS('Installed Capacity'!$E$2:$E$589,'Installed Capacity'!$A$2:$A$589,B145,'Installed Capacity'!$B$2:$B$589,C145,'Installed Capacity'!$C$2:$C$589,G145,'Installed Capacity'!$D$2:$D$589,F145) -> 0
A146: 43107 | B146: 2018 | C146: 1 | D146: 7 | E146: 1 | F146: North | G146: Solar Fixed | H146: 0 | I146: =H146/SUMIFS('Installed Capacity'!$E$2:$E$589,'Installed Capacity'!$A$2:$A$589,B146,'Installed Capacity'!$B$2:$B$589,C146,'Installed Capacity'!$C$2:$C$589,G146,'Installed Capacity'!$D$2:$D$589,F146) -> 0
A147: 43107 | B147: 2018 | C147: 1 | D147: 7 | E147: 2 | F147: North | G147: Solar Fixed | H147: 0 | I147: =H147/SUMIFS('Installed Capacity'!$E$2:$E$589,'Installed Capacity'!$A$2:$A$589,B147,'Installed Capacity'!$B$2:$B$589,C147,'Installed Capacity'!$C$2:$C$589,G147,'Installed Capacity'!$D$2:$D$589,F147) -> 0
A148: 43107 | B148: 2018 | C148: 1 | D148: 7 | E148: 3 | F148: North | G148: Solar Fixed | H148: 0 | I148: =H148/SUMIFS('Installed Capacity'!$E$2:$E$589,'Installed Capacity'!$A$2:$A$589,B148,'Installed Capacity'!$B$2:$B$589,C148,'Installed Capacity'!$C$2:$C$589,G148,'Installed Capacity'!$D$2:$D$589,F148) -> 0
A149: 43107 | B149: 2018 | C149: 1 | D149: 7 | E149: 4 | F149: North | G149: Solar Fixed | H149: 0 | I149: =H149/SUMIFS('Installed Capacity'!$E$2:$E$589,'Installed Capacity'!$A$2:$A$589,B149,'Installed Capacity'!$B$2:$B$589,C149,'Installed Capacity'!$C$2:$C$589,G149,'Installed Capacity'!$D$2:$D$589,F149) -> 0
A150: 43107 | B150: 2018 | C150: 1 | D150: 7 | E150: 5 | F150: North | G150: Solar Fixed | H150: 0 | I150: =H150/SUMIFS('Installed Capacity'!$E$2:$E$589,'Installed Capacity'!$A$2:$A$589,B150,'Installed Capacity'!$B$2:$B$589,C150,'Installed Capacity'!$C$2:$C$589,G150,'Installed Capacity'!$D$2:$D$589,F150) -> 0
A151: 43107 | B151: 2018 | C151: 1 | D151: 7 | E151: 6 | F151: North | G151: Solar Fixed | H151: 0 | I151: =H151/SUMIFS('Installed Capacity'!$E$2:$E$589,'Installed Capacity'!$A$2:$A$589,B151,'Installed Capacity'!$B$2:$B$589,C151,'Installed Capacity'!$C$2:$C$589,G151,'Installed Capacity'!$D$2:$D$589,F151) -> 0
A152: 43107 | B152: 2018 | C152: 1 | D152: 7 | E152: 7 | F152: North | G152: Solar Fixed | H152: 0 | I152: =H152/SUMIFS('Installed Capacity'!$E$2:$E$589,'Installed Capacity'!$A$2:$A$589,B152,'Installed Capacity'!$B$2:$B$589,C152,'Installed Capacity'!$C$2:$C$589,G152,'Installed Capacity'!$D$2:$D$589,F152) -> 0
A153: 43107 | B153: 2018 | C153: 1 | D153: 7 | E153: 8 | F153: North | G153: Solar Fixed | H153: 54.78772048 | I153: =H153/SUMIFS('Installed Capacity'!$E$2:$E$589,'Installed Capacity'!$A$2:$A$589,B153,'Installed Capacity'!$B$2:$B$589,C153,'Installed Capacity'!$C$2:$C$589,G153,'Installed Capacity'!$D$2:$D$589,F153) -> 0.03339737179
A154: 43107 | B154: 2018 | C154: 1 | D154: 7 | E154: 9 | F154: North | G154: Solar Fixed | H154: 465.3129525 | I154: =H154/SUMIFS('Installed Capacity'!$E$2:$E$589,'Installed Capacity'!$A$2:$A$589,B154,'Installed Capacity'!$B$2:$B$589,C154,'Installed Capacity'!$C$2:$C$589,G154,'Installed Capacity'!$D$2:$D$589,F154) -> 0.2836443922
A155: 43107 | B155: 2018 | C155: 1 | D155: 7 | E155: 10 | F155: North | G155: Solar Fixed | H155: 787.8786213 | I155: =H155/SUMIFS('Installed Capacity'!$E$2:$E$589,'Installed Capacity'!$A$2:$A$589,B155,'Installed Capacity'!$B$2:$B$589,C155,'Installed Capacity'!$C$2:$C$589,G155,'Installed Capacity'!$D$2:$D$589,F155) -> 0.4802732257
A156: 43107 | B156: 2018 | C156: 1 | D156: 7 | E156: 11 | F156: North | G156: Solar Fixed | H156: 913.3447227 | I156: =H156/SUMIFS('Installed Capacity'!$E$2:$E$589,'Installed Capacity'!$A$2:$A$589,B156,'Installed Capacity'!$B$2:$B$589,C156,'Installed Capacity'!$C$2:$C$589,G156,'Installed Capacity'!$D$2:$D$589,F156) -> 0.5567545613
A157: 43107 | B157: 2018 | C157: 1 | D157: 7 | E157: 12 | F157: North | G157: Solar Fixed | H157: 1079.154476 | I157: =H157/SUMIFS('Installed Capacity'!$E$2:$E$589,'Installed Capacity'!$A$2:$A$589,B157,'Installed Capacity'!$B$2:$B$589,C157,'Installed Capacity'!$C$2:$C$589,G157,'Installed Capacity'!$D$2:$D$589,F157) -> 0.6578284869
A158: 43107 | B158: 2018 | C158: 1 | D158: 7 | E158: 13 | F158: North | G158: Solar Fixed | H158: 1208.458476 | I158: =H158/SUMIFS('Installed Capacity'!$E$2:$E$589,'Installed Capacity'!$A$2:$A$589,B158,'Installed Capacity'!$B$2:$B$589,C158,'Installed Capacity'!$C$2:$C$589,G158,'Installed Capacity'!$D$2:$D$589,F158) -> 0.7366493199
A159: 43107 | B159: 2018 | C159: 1 | D159: 7 | E159: 14 | F159: North | G159: Solar Fixed | H159: 1109.000975 | I159: =H159/SUMIFS('Installed Capacity'!$E$2:$E$589,'Installed Capacity'!$A$2:$A$589,B159,'Installed Capacity'!$B$2:$B$589,C159,'Installed Capacity'!$C$2:$C$589,G159,'Installed Capacity'!$D$2:$D$589,F159) -> 0.6760222467
A160: 43107 | B160: 2018 | C160: 1 | D160: 7 | E160: 15 | F160: North | G160: Solar Fixed | H160: 818.7521346 | I160: =H160/SUMIFS('Installed Capacity'!$E$2:$E$589,'Installed Capacity'!$A$2:$A$589,B160,'Installed Capacity'!$B$2:$B$589,C160,'Installed Capacity'!$C$2:$C$589,G160,'Installed Capacity'!$D$2:$D$589,F160) -> 0.4990930305
A161: 43107 | B161: 2018 | C161: 1 | D161: 7 | E161: 16 | F161: North | G161: Solar Fixed | H161: 365.5760748 | I161: =H161/SUMIFS('Installed Capacity'!$E$2:$E$589,'Installed Capacity'!$A$2:$A$589,B161,'Installed Capacity'!$B$2:$B$589,C161,'Installed Capacity'!$C$2:$C$589,G161,'Installed Capacity'!$D$2:$D$589,F161) -> 0.2228470172
A162: 43107 | B162: 2018 | C162: 1 | D162: 7 | E162: 17 | F162: North | G162: Solar Fixed | H162: 46.02831764 | I162: =H162/SUMIFS('Installed Capacity'!$E$2:$E$589,'Installed Capacity'!$A$2:$A$589,B162,'Installed Capacity'!$B$2:$B$589,C162,'Installed Capacity'!$C$2:$C$589,G162,'Installed Capacity'!$D$2:$D$589,F162) -> 0.02805783529
A163: 43107 | B163: 2018 | C163: 1 | D163: 7 | E163: 18 | F163: North | G163: Solar Fixed | H163: 0.00024458 | I163: =H163/SUMIFS('Installed Capacity'!$E$2:$E$589,'Installed Capacity'!$A$2:$A$589,B163,'Installed Capacity'!$B$2:$B$589,C163,'Installed Capacity'!$C$2:$C$589,G163,'Installed Capacity'!$D$2:$D$589,F163) -> 1.490905101e-07
A164: 43107 | B164: 2018 | C164: 1 | D164: 7 | E164: 19 | F164: North | G164: Solar Fixed | H164: 0 | I164: =H164/SUMIFS('Installed Capacity'!$E$2:$E$589,'Installed Capacity'!$A$2:$A$589,B164,'Installed Capacity'!$B$2:$B$589,C164,'Installed Capacity'!$C$2:$C$589,G164,'Installed Capacity'!$D$2:$D$589,F164) -> 0
A165: 43107 | B165: 2018 | C165: 1 | D165: 7 | E165: 20 | F165: North | G165: Solar Fixed | H165: 0 | I165: =H165/SUMIFS('Installed Capacity'!$E$2:$E$589,'Installed Capacity'!$A$2:$A$589,B165,'Installed Capacity'!$B$2:$B$589,C165,'Installed Capacity'!$C$2:$C$589,G165,'Installed Capacity'!$D$2:$D$589,F165) -> 0
A166: 43107 | B166: 2018 | C166: 1 | D166: 7 | E166: 21 | F166: North | G166: Solar Fixed | H166: 0 | I166: =H166/SUMIFS('Installed Capacity'!$E$2:$E$589,'Installed Capacity'!$A$2:$A$589,B166,'Installed Capacity'!$B$2:$B$589,C166,'Installed Capacity'!$C$2:$C$589,G166,'Installed Capacity'!$D$2:$D$589,F166) -> 0
A167: 43107 | B167: 2018 | C167: 1 | D167: 7 | E167: 22 | F167: North | G167: Solar Fixed | H167: 0 | I167: =H167/SUMIFS('Installed Capacity'!$E$2:$E$589,'Installed Capacity'!$A$2:$A$589,B167,'Installed Capacity'!$B$2:$B$589,C167,'Installed Capacity'!$C$2:$C$589,G167,'Installed Capacity'!$D$2:$D$589,F167) -> 0
A168: 43107 | B168: 2018 | C168: 1 | D168: 7 | E168: 23 | F168: North | G168: Solar Fixed | H168: 0 | I168: =H168/SUMIFS('Installed Capacity'!$E$2:$E$589,'Installed Capacity'!$A$2:$A$589,B168,'Installed Capacity'!$B$2:$B$589,C168,'Installed Capacity'!$C$2:$C$589,G168,'Installed Capacity'!$D$2:$D$589,F168) -> 0
A169: 43107 | B169: 2018 | C169: 1 | D169: 7 | E169: 24 | F169: North | G169: Solar Fixed | H169: 0 | I169: =H169/SUMIFS('Installed Capacity'!$E$2:$E$589,'Installed Capacity'!$A$2:$A$589,B169,'Installed Capacity'!$B$2:$B$589,C169,'Installed Capacity'!$C$2:$C$589,G169,'Installed Capacity'!$D$2:$D$589,F169) -> 0
A170: 43108 | B170: 2018 | C170: 1 | D170: 8 | E170: 1 | F170: North | G170: Solar Fixed | H170: 0 | I170: =H170/SUMIFS('Installed Capacity'!$E$2:$E$589,'Installed Capacity'!$A$2:$A$589,B170,'Installed Capacity'!$B$2:$B$589,C170,'Installed Capacity'!$C$2:$C$589,G170,'Installed Capacity'!$D$2:$D$589,F170) -> 0
A171: 43108 | B171: 2018 | C171: 1 | D171: 8 | E171: 2 | F171: North | G171: Solar Fixed | H171: 0 | I171: =H171/SUMIFS('Installed Capacity'!$E$2:$E$589,'Installed Capacity'!$A$2:$A$589,B171,'Installed Capacity'!$B$2:$B$589,C171,'Installed Capacity'!$C$2:$C$589,G171,'Installed Capacity'!$D$2:$D$589,F171) -> 0
A172: 43108 | B172: 2018 | C172: 1 | D172: 8 | E172: 3 | F172: North | G172: Solar Fixed | H172: 0 | I172: =H172/SUMIFS('Installed Capacity'!$E$2:$E$589,'Installed Capacity'!$A$2:$A$589,B172,'Installed Capacity'!$B$2:$B$589,C172,'Installed Capacity'!$C$2:$C$589,G172,'Installed Capacity'!$D$2:$D$589,F172) -> 0
A173: 43108 | B173: 2018 | C173: 1 | D173: 8 | E173: 4 | F173: North | G173: Solar Fixed | H173: 0 | I173: =H173/SUMIFS('Installed Capacity'!$E$2:$E$589,'Installed Capacity'!$A$2:$A$589,B173,'Installed Capacity'!$B$2:$B$589,C173,'Installed Capacity'!$C$2:$C$589,G173,'Installed Capacity'!$D$2:$D$589,F173) -> 0
A174: 43108 | B174: 2018 | C174: 1 | D174: 8 | E174: 5 | F174: North | G174: Solar Fixed | H174: 0 | I174: =H174/SUMIFS('Installed Capacity'!$E$2:$E$589,'Installed Capacity'!$A$2:$A$589,B174,'Installed Capacity'!$B$2:$B$589,C174,'Installed Capacity'!$C$2:$C$589,G174,'Installed Capacity'!$D$2:$D$589,F174) -> 0
A175: 43108 | B175: 2018 | C175: 1 | D175: 8 | E175: 6 | F175: North | G175: Solar Fixed | H175: 0 | I175: =H175/SUMIFS('Installed Capacity'!$E$2:$E$589,'Installed Capacity'!$A$2:$A$589,B175,'Installed Capacity'!$B$2:$B$589,C175,'Installed Capacity'!$C$2:$C$589,G175,'Installed Capacity'!$D$2:$D$589,F175) -> 0
A176: 43108 | B176: 2018 | C176: 1 | D176: 8 | E176: 7 | F176: North | G176: Solar Fixed | H176: 0 | I176: =H176/SUMIFS('Installed Capacity'!$E$2:$E$589,'Installed Capacity'!$A$2:$A$589,B176,'Installed Capacity'!$B$2:$B$589,C176,'Installed Capacity'!$C$2:$C$589,G176,'Installed Capacity'!$D$2:$D$589,F176) -> 0
A177: 43108 | B177: 2018 | C177: 1 | D177: 8 | E177: 8 | F177: North | G177: Solar Fixed | H177: 2.195753308 | I177: =H177/SUMIFS('Installed Capacity'!$E$2:$E$589,'Installed Capacity'!$A$2:$A$589,B177,'Installed Capacity'!$B$2:$B$589,C177,'Installed Capacity'!$C$2:$C$589,G177,'Installed Capacity'!$D$2:$D$589,F177) -> 0.001338482217
A178: 43108 | B178: 2018 | C178: 1 | D178: 8 | E178: 9 | F178: North | G178: Solar Fixed | H178: 41.06931509 | I178: =H178/SUMIFS('Installed Capacity'!$E$2:$E$589,'Installed Capacity'!$A$2:$A$589,B178,'Installed Capacity'!$B$2:$B$589,C178,'Installed Capacity'!$C$2:$C$589,G178,'Installed Capacity'!$D$2:$D$589,F178) -> 0.025034938
A179: 43108 | B179: 2018 | C179: 1 | D179: 8 | E179: 10 | F179: North | G179: Solar Fixed | H179: 128.263508 | I179: =H179/SUMIFS('Installed Capacity'!$E$2:$E$589,'Installed Capacity'!$A$2:$A$589,B179,'Installed Capacity'!$B$2:$B$589,C179,'Installed Capacity'!$C$2:$C$589,G179,'Installed Capacity'!$D$2:$D$589,F179) -> 0.0781865722
A180: 43108 | B180: 2018 | C180: 1 | D180: 8 | E180: 11 | F180: North | G180: Solar Fixed | H180: 395.3036908 | I180: =H180/SUMIFS('Installed Capacity'!$E$2:$E$589,'Installed Capacity'!$A$2:$A$589,B180,'Installed Capacity'!$B$2:$B$589,C180,'Installed Capacity'!$C$2:$C$589,G180,'Installed Capacity'!$D$2:$D$589,F180) -> 0.2409683086
A181: 43108 | B181: 2018 | C181: 1 | D181: 8 | E181: 12 | F181: North | G181: Solar Fixed | H181: 295.4373436 | I181: =H181/SUMIFS('Installed Capacity'!$E$2:$E$589,'Installed Capacity'!$A$2:$A$589,B181,'Installed Capacity'!$B$2:$B$589,C181,'Installed Capacity'!$C$2:$C$589,G181,'Installed Capacity'!$D$2:$D$589,F181) -> 0.1800920118
A182: 43108 | B182: 2018 | C182: 1 | D182: 8 | E182: 13 | F182: North | G182: Solar Fixed | H182: 430.8374144 | I182: =H182/SUMIFS('Installed Capacity'!$E$2:$E$589,'Installed Capacity'!$A$2:$A$589,B182,'Installed Capacity'!$B$2:$B$589,C182,'Installed Capacity'!$C$2:$C$589,G182,'Installed Capacity'!$D$2:$D$589,F182) -> 0.2626288735
A183: 43108 | B183: 2018 | C183: 1 | D183: 8 | E183: 14 | F183: North | G183: Solar Fixed | H183: 236.6373865 | I183: =H183/SUMIFS('Installed Capacity'!$E$2:$E$589,'Installed Capacity'!$A$2:$A$589,B183,'Installed Capacity'!$B$2:$B$589,C183,'Installed Capacity'!$C$2:$C$589,G183,'Installed Capacity'!$D$2:$D$589,F183) -> 0.1442488701
A184: 43108 | B184: 2018 | C184: 1 | D184: 8 | E184: 15 | F184: North | G184: Solar Fixed | H184: 122.0886858 | I184: =H184/SUMIFS('Installed Capacity'!$E$2:$E$589,'Installed Capacity'!$A$2:$A$589,B184,'Installed Capacity'!$B$2:$B$589,C184,'Installed Capacity'!$C$2:$C$589,G184,'Installed Capacity'!$D$2:$D$589,F184) -> 0.07442253838
A185: 43108 | B185: 2018 | C185: 1 | D185: 8 | E185: 16 | F185: North | G185: Solar Fixed | H185: 49.3734351 | I185: =H185/SUMIFS('Installed Capacity'!$E$2:$E$589,'Installed Capacity'!$A$2:$A$589,B185,'Installed Capacity'!$B$2:$B$589,C185,'Installed Capacity'!$C$2:$C$589,G185,'Installed Capacity'!$D$2:$D$589,F185) -> 0.03009694425
A186: 43108 | B186: 2018 | C186: 1 | D186: 8 | E186: 17 | F186: North | G186: Solar Fixed | H186: 4.604306104 | I186: =H186/SUMIFS('Installed Capacity'!$E$2:$E$589,'Installed Capacity'!$A$2:$A$589,B186,'Installed Capacity'!$B$2:$B$589,C186,'Installed Capacity'!$C$2:$C$589,G186,'Installed Capacity'!$D$2:$D$589,F186) -> 0.002806682254
A187: 43108 | B187: 2018 | C187: 1 | D187: 8 | E187: 18 | F187: North | G187: Solar Fixed | H187: 5.5937e-05 | I187: =H187/SUMIFS('Installed Capacity'!$E$2:$E$589,'Installed Capacity'!$A$2:$A$589,B187,'Installed Capacity'!$B$2:$B$589,C187,'Installed Capacity'!$C$2:$C$589,G187,'Installed Capacity'!$D$2:$D$589,F187) -> 3.409794694e-08
A188: 43108 | B188: 2018 | C188: 1 | D188: 8 | E188: 19 | F188: North | G188: Solar Fixed | H188: 0 | I188: =H188/SUMIFS('Installed Capacity'!$E$2:$E$589,'Installed Capacity'!$A$2:$A$589,B188,'Installed Capacity'!$B$2:$B$589,C188,'Installed Capacity'!$C$2:$C$589,G188,'Installed Capacity'!$D$2:$D$589,F188) -> 0
A189: 43108 | B189: 2018 | C189: 1 | D189: 8 | E189: 20 | F189: North | G189: Solar Fixed | H189: 0 | I189: =H189/SUMIFS('Installed Capacity'!$E$2:$E$589,'Installed Capacity'!$A$2:$A$589,B189,'Installed Capacity'!$B$2:$B$589,C189,'Installed Capacity'!$C$2:$C$589,G189,'Installed Capacity'!$D$2:$D$589,F189) -> 0
A190: 43108 | B190: 2018 | C190: 1 | D190: 8 | E190: 21 | F190: North | G190: Solar Fixed | H190: 0 | I190: =H190/SUMIFS('Installed Capacity'!$E$2:$E$589,'Installed Capacity'!$A$2:$A$589,B190,'Installed Capacity'!$B$2:$B$589,C190,'Installed Capacity'!$C$2:$C$589,G190,'Installed Capacity'!$D$2:$D$589,F190) -> 0
A191: 43108 | B191: 2018 | C191: 1 | D191: 8 | E191: 22 | F191: North | G191: Solar Fixed | H191: 0 | I191: =H191/SUMIFS('Installed Capacity'!$E$2:$E$589,'Installed Capacity'!$A$2:$A$589,B191,'Installed Capacity'!$B$2:$B$589,C191,'Installed Capacity'!$C$2:$C$589,G191,'Installed Capacity'!$D$2:$D$589,F191) -> 0
A192: 43108 | B192: 2018 | C192: 1 | D192: 8 | E192: 23 | F192: North | G192: Solar Fixed | H192: 0 | I192: =H192/SUMIFS('Installed Capacity'!$E$2:$E$589,'Installed Capacity'!$A$2:$A$589,B192,'Installed Capacity'!$B$2:$B$589,C192,'Installed Capacity'!$C$2:$C$589,G192,'Installed Capacity'!$D$2:$D$589,F192) -> 0
A193: 43108 | B193: 2018 | C193: 1 | D193: 8 | E193: 24 | F193: North | G193: Solar Fixed | H193: 0 | I193: =H193/SUMIFS('Installed Capacity'!$E$2:$E$589,'Installed Capacity'!$A$2:$A$589,B193,'Installed Capacity'!$B$2:$B$589,C193,'Installed Capacity'!$C$2:$C$589,G193,'Installed Capacity'!$D$2:$D$589,F193) -> 0
A194: 43109 | B194: 2018 | C194: 1 | D194: 9 | E194: 1 | F194: North | G194: Solar Fixed | H194: 0 | I194: =H194/SUMIFS('Installed Capacity'!$E$2:$E$589,'Installed Capacity'!$A$2:$A$589,B194,'Installed Capacity'!$B$2:$B$589,C194,'Installed Capacity'!$C$2:$C$589,G194,'Installed Capacity'!$D$2:$D$589,F194) -> 0
A195: 43109 | B195: 2018 | C195: 1 | D195: 9 | E195: 2 | F195: North | G195: Solar Fixed | H195: 0 | I195: =H195/SUMIFS('Installed Capacity'!$E$2:$E$589,'Installed Capacity'!$A$2:$A$589,B195,'Installed Capacity'!$B$2:$B$589,C195,'Installed Capacity'!$C$2:$C$589,G195,'Installed Capacity'!$D$2:$D$589,F195) -> 0
A196: 43109 | B196: 2018 | C196: 1 | D196: 9 | E196: 3 | F196: North | G196: Solar Fixed | H196: 0 | I196: =H196/SUMIFS('Installed Capacity'!$E$2:$E$589,'Installed Capacity'!$A$2:$A$589,B196,'Installed Capacity'!$B$2:$B$589,C196,'Installed Capacity'!$C$2:$C$589,G196,'Installed Capacity'!$D$2:$D$589,F196) -> 0
A197: 43109 | B197: 2018 | C197: 1 | D197: 9 | E197: 4 | F197: North | G197: Solar Fixed | H197: 0 | I197: =H197/SUMIFS('Installed Capacity'!$E$2:$E$589,'Installed Capacity'!$A$2:$A$589,B197,'Installed Capacity'!$B$2:$B$589,C197,'Installed Capacity'!$C$2:$C$589,G197,'Installed Capacity'!$D$2:$D$589,F197) -> 0
A198: 43109 | B198: 2018 | C198: 1 | D198: 9 | E198: 5 | F198: North | G198: Solar Fixed | H198: 0 | I198: =H198/SUMIFS('Installed Capacity'!$E$2:$E$589,'Installed Capacity'!$A$2:$A$589,B198,'Installed Capacity'!$B$2:$B$589,C198,'Installed Capacity'!$C$2:$C$589,G198,'Installed Capacity'!$D$2:$D$589,F198) -> 0
A199: 43109 | B199: 2018 | C199: 1 | D199: 9 | E199: 6 | F199: North | G199: Solar Fixed | H199: 0 | I199: =H199/SUMIFS('Installed Capacity'!$E$2:$E$589,'Installed Capacity'!$A$2:$A$589,B199,'Installed Capacity'!$B$2:$B$589,C199,'Installed Capacity'!$C$2:$C$589,G199,'Installed Capacity'!$D$2:$D$589,F199) -> 0
A200: 43109 | B200: 2018 | C200: 1 | D200: 9 | E200: 7 | F200: North | G200: Solar Fixed | H200: 0 | I200: =H200/SUMIFS('Installed Capacity'!$E$2:$E$589,'Installed Capacity'!$A$2:$A$589,B200,'Installed Capacity'!$B$2:$B$589,C200,'Installed Capacity'!$C$2:$C$589,G200,'Installed Capacity'!$D$2:$D$589,F200) -> 0
... 925 more rows

Sheet Date Selection
B2: 2018 | G2: 2019 | L2: 2020 | Q2: 2021 | V2: 2022 | AA2: 2023
B3: Month | C3: Rank | D3: Load | E3: Date | G3: Month | H3: Rank | I3: Load | J3: Date | L3: Month | M3: Rank | N3: Load | O3: Date | Q3: Month | R3: Rank | S3: Load | T3: Date | V3: Month | W3: Rank | X3: Load | Y3: Date | AA3: Month | AB3: Rank | AC3: Load | AD3: Date
B4: 1 | C4: 1 | D4: 29544.64695 | E4: 43129 | G4: 1 | H4: 1 | I4: 29253.02 | J4: 43479 | L4: 1 | M4: 1 | N4: 29239.33 | O4: 43846 | Q4: 1 | R4: 1 | S4: 29289.18282 | T4: 44221 | V4: 1 | W4: 1 | X4: 29104.85232 | Y4: 44564 | AA4: 1 | AB4: 5 | AC4: 28426.10362 | AD4: 44928
B5: 1 | C5: 2 | D5: 29225.77984 | E5: 43108 | G5: 1 | H5: 2 | I5: 29151.89 | J5: 43480 | L5: 1 | M5: 2 | N5: 28539.89 | O5: 43845 | Q5: 1 | R5: 2 | S5: 29137.06456 | T5: 44222 | V5: 1 | W5: 2 | X5: 28584.10654 | Y5: 44565 | AA5: 1 | AB5: 1 | AC5: 28989.95666 | AD5: 44929
B6: 1 | C6: 3 | D6: 29075.88426 | E6: 43122 | G6: 1 | H6: 3 | I6: 29136.91 | J6: 43467 | L6: 1 | M6: 3 | N6: 28321.13 | O6: 43843 | Q6: 1 | R6: 3 | S6: 28252.71768 | T6: 44223 | V6: 1 | W6: 3 | X6: 28398.10137 | Y6: 44592 | AA6: 1 | AB6: 3 | AC6: 28863.94217 | AD6: 44937
B7: 1 | C7: 4 | D7: 29065.34263 | E7: 43125 | G7: 1 | H7: 4 | I7: 29030.74 | J7: 43468 | L7: 1 | M7: 4 | N7: 28251.49 | O7: 43844 | Q7: 1 | R7: 4 | S7: 27894.34825 | T7: 44203 | V7: 1 | W7: 4 | X7: 28180.43125 | Y7: 44571 | AA7: 1 | AB7: 4 | AC7: 28457.83471 | AD7: 44943
B8: 1 | C8: 5 | D8: 28932.36281 | E8: 43103 | G8: 1 | H8: 5 | I8: 28671.39 | J8: 43481 | L8: 1 | M8: 5 | N8: 28226 | O8: 43839 | Q8: 1 | R8: 5 | S8: 27882.88786 | T8: 44202 | V8: 1 | W8: 5 | X8: 28126.16449 | Y8: 44566 | AA8: 1 | AB8: 2 | AC8: 28865.55216 | AD8: 44945
B9: 2 | C9: 1 | D9: 30054 | E9: 43151 | G9: 2 | H9: 1 | I9: 29582.5179 | J9: 43516 | L9: 2 | M9: 1 | N9: 29437.06 | O9: 43865 | Q9: 2 | R9: 1 | S9: 27252.8 | T9: 44236 | V9: 2 | W9: 1 | X9: 29019.71188 | Y9: 44615 | AA9: 2 | AB9: 5 | AC9: 28371.919 | AD9: 44971
B10: 2 | C10: 2 | D10: 29747 | E10: 43153 | G10: 2 | H10: 2 | I10: 29408.8075 | J10: 43517 | L10: 2 | M10: 2 | N10: 29114.35 | O10: 43864 | Q10: 2 | R10: 2 | S10: 27130.8 | T10: 44238 | V10: 2 | W10: 2 | X10: 28726.9742 | Y10: 44614 | AA10: 2 | AB10: 3 | AC10: 28756.04857 | AD10: 44979
B11: 2 | C11: 3 | D11: 29387 | E11: 43158 | G11: 2 | H11: 3 | I11: 29066.0053 | J11: 43501 | L11: 2 | M11: 3 | N11: 28754.82 | O11: 43866 | Q11: 2 | R11: 3 | S11: 27120.2 | T11: 44244 | V11: 2 | W11: 3 | X11: 28307.8715 | Y11: 44616 | AA11: 2 | AB11: 2 | AC11: 28891.04789 | AD11: 44980
B12: 2 | C12: 4 | D12: 29382 | E12: 43150 | G12: 2 | H12: 4 | I12: 29021.2922 | J12: 43509 | L12: 2 | M12: 4 | N12: 28276.01 | O12: 43871 | Q12: 2 | R12: 4 | S12: 26993.5 | T12: 44235 | V12: 2 | W12: 4 | X12: 28081.92842 | Y12: 44593 | AA12: 2 | AB12: 1 | AC12: 29126.65588 | AD12: 44984
B13: 2 | C13: 5 | D13: 29350 | E13: 43152 | G13: 2 | H13: 5 | I13: 29001.3896 | J13: 43508 | L13: 2 | M13: 5 | N13: 28132.87 | O13: 43872 | Q13: 2 | R13: 5 | S13: 26980.7 | T13: 44231 | V13: 2 | W13: 5 | X13: 28048.59459 | Y13: 44602 | AA13: 2 | AB13: 4 | AC13: 28573.85766 | AD13: 44985
B14: 3 | C14: 1 | D14: 28329 | E14: 43160 | G14: 3 | H14: 1 | I14: 28091.8381 | J14: 43530 | L14: 3 | M14: 1 | N14: 28215.79 | O14: 43895 | Q14: 3 | R14: 1 | S14: 28135.80429 | T14: 44265 | V14: 3 | W14: 1 | X14: 28687.81929 | Y14: 44643 | AA14: 3 | AB14: 1 | AC14: 28696.96473 | AD14: 44986
B15: 3 | C15: 2 | D15: 28151 | E15: 43164 | G15: 3 | H15: 2 | I15: 28089.6574 | J15: 43529 | L15: 3 | M15: 2 | N15: 28046.77 | O15: 43892 | Q15: 3 | R15: 2 | S15: 27973.0972 | T15: 44264 | V15: 3 | W15: 2 | X15: 28483.51477 | Y15: 44644 | AA15: 3 | AB15: 6 | AC15: 27308.40349 | AD15: 44995
B16: 3 | C16: 3 | D16: 28121 | E16: 43161 | G16: 3 | H16: 3 | I16: 27730.9129 | J16: 43531 | L16: 3 | M16: 3 | N16: 27992.38 | O16: 43894 | Q16: 3 | R16: 3 | S16: 27910.53441 | T16: 44258 | V16: 3 | W16: 3 | X16: 27970.66538 | Y16: 44642 | AA16: 3 | AB16: 7 | AC16: 25888.42099 | AD16: 44996
B17: 3 | C17: 4 | D17: 27979 | E17: 43171 | G17: 3 | H17: 4 | I17: 27518.9062 | J17: 43535 | L17: 3 | M17: 4 | N17: 27946.4 | O17: 43893 | Q17: 3 | R17: 4 | S17: 27620.06656 | T17: 44270 | V17: 3 | W17: 4 | X17: 27687.06434 | Y17: 44645 | AA17: 3 | AB17: 5 | AC17: 27699.40471 | AD17: 44991
B18: 3 | C18: 5 | D18: 27926 | E18: 43188 | G18: 3 | H18: 5 | I18: 27492.597 | J18: 43528 | L18: 3 | M18: 5 | N18: 27607.96 | O18: 43902 | Q18: 3 | R18: 5 | S18: 27612.11876 | T18: 44266 | V18: 3 | W18: 5 | X18: 27608.88618 | Y18: 44621 | AA18: 3 | AB18: 2 | AC18: 28308.12945 | AD18: 44994
B19: 4 | C19: 1 | D19: 30025 | E19: 43199 | G19: 4 | H19: 1 | I19: 30960.24 | J19: 43579 | L19: 4 | M19: 1 | N19: 30577.76 | O19: 43949 | Q19: 4 | R19: 1 | S19: 30066.20242 | T19: 44316 | V19: 4 | W19: 1 | X19: 33267.74566 | Y19: 44659 | AA19: 3 | AB19: 4 | AC19: 27717.79031 | AD19: 45006
B20: 4 | C20: 2 | D20: 29399 | E20: 43213 | G20: 4 | H20: 2 | I20: 30604.18 | J20: 43580 | L20: 4 | M20: 2 | N20: 30114.52 | O20: 43945 | Q20: 4 | R20: 2 | S20: 29496.21423 | T20: 44315 | V20: 4 | W20: 2 | X20: 32916.58253 | Y20: 44658 | AA20: 3 | AB20: 3 | AC20: 27943.82391 | AD20: 45014
B21: 4 | C21: 3 | D21: 29396 | E21: 43200 | G21: 4 | H21: 3 | I21: 29828.47 | J21: 43578 | L21: 4 | M21: 3 | N21: 29381.28 | O21: 43946 | Q21: 4 | R21: 3 | S21: 28297.72874 | T21: 44305 | V21: 4 | W21: 3 | X21: 29756.17752 | Y21: 44657 | AA21: 4 | AB21: 4 | AC21: 27566.16984 | AD21: 45019
B22: 4 | C22: 4 | D22: 29237 | E22: 43215 | G22: 4 | H22: 4 | I22: 29046.52 | J22: 43573 | L22: 4 | M22: 4 | N22: 28109.86 | O22: 43948 | Q22: 4 | R22: 4 | S22: 27496.87809 | T22: 44287 | V22: 4 | W22: 4 | X22: 28178.47151 | Y22: 44676 | AA22: 4 | AB22: 5 | AC22: 27256.25714 | AD22: 45020
B23: 4 | C23: 5 | D23: 29103 | E23: 43214 | G23: 4 | H23: 5 | I23: 29025.38 | J23: 43581 | L23: 4 | M23: 5 | N23: 27998.14 | O23: 43950 | Q23: 4 | R23: 5 | S23: 27439.43344 | T23: 44314 | V23: 4 | W23: 5 | X23: 27449.93711 | Y23: 44677 | AA23: 4 | AB23: 3 | AC23: 28645.8436 | AD23: 45042
B24: 5 | C24: 1 | D24: 32256 | E24: 43249 | G24: 5 | H24: 1 | I24: 28446.15 | J24: 43598 | L24: 5 | M24: 1 | N24: 37822.63 | O24: 43978 | Q24: 5 | R24: 1 | S24: 31650.49662 | T24: 44347 | V24: 5 | W24: 1 | X24: 34250.08402 | Y24: 44706 | AA24: 4 | AB24: 1 | AC24: 29200.94221 | AD24: 45043
B25: 5 | C25: 2 | D25: 30456 | E25: 43228 | G25: 5 | H25: 2 | I25: 28320.04 | J25: 43599 | L25: 5 | M25: 2 | N25: 37693.83 | O25: 43977 | Q25: 5 | R25: 2 | S25: 31397.03964 | T25: 44321 | V25: 5 | W25: 2 | X25: 33299.16802 | Y25: 44705 | AA25: 4 | AB25: 2 | AC25: 29110.26109 | AD25: 45044
B26: 5 | C26: 3 | D26: 30273 | E26: 43229 | G26: 5 | H26: 3 | I26: 28276.29 | J26: 43587 | L26: 5 | M26: 3 | N26: 35390.98 | O26: 43979 | Q26: 5 | R26: 3 | S26: 30671.95881 | T26: 44320 | V26: 5 | W26: 3 | X26: 31018.81597 | Y26: 44699 | AA26: 5 | AB26: 5 | AC26: 29581.91909 | AD26: 45061
B27: 5 | C27: 4 | D27: 30190 | E27: 43227 | G27: 5 | H27: 4 | I27: 28133.49 | J27: 43593 | L27: 5 | M27: 4 | N27: 32792.35 | O27: 43958 | Q27: 5 | R27: 4 | S27: 30556.33444 | T27: 44328 | V27: 5 | W27: 4 | X27: 30367.70159 | Y27: 44707 | AA27: 5 | AB27: 1 | AC27: 30753.99502 | AD27: 45062
B28: 5 | C28: 5 | D28: 29720 | E28: 43248 | G28: 5 | H28: 5 | I28: 28059.27 | J28: 43615 | L28: 5 | M28: 5 | N28: 32491.92 | O28: 43976 | Q28: 5 | R28: 5 | S28: 30108.0715 | T28: 44341 | V28: 5 | W28: 5 | X28: 30040.02536 | Y28: 44695 | AA28: 5 | AB28: 3 | AC28: 30107.31687 | AD28: 45063
B29: 6 | C29: 1 | D29: 37595 | E29: 43273 | G29: 6 | H29: 1 | I29: 42437.17 | J29: 43627 | L29: 6 | M29: 1 | N29: 39814.93 | O29: 43985 | Q29: 6 | R29: 1 | S29: 41083.25036 | T29: 44364 | V29: 6 | W29: 1 | X29: 41362.38771 | Y29: 44739 | AA29: 5 | AB29: 4 | AC29: 29598.56265 | AD29: 45064
B30: 6 | C30: 2 | D30: 37311 | E30: 43264 | G30: 6 | H30: 2 | I30: 40947.39 | J30: 43626 | L30: 6 | M30: 2 | N30: 38850.06 | O30: 43992 | Q30: 6 | R30: 2 | S30: 40580.30114 | T30: 44365 | V30: 6 | W30: 2 | X30: 40648.39698 | Y30: 44740 | AA30: 5 | AB30: 2 | AC30: 30543.10755 | AD30: 45068
B31: 6 | C31: 3 | D31: 36538 | E31: 43263 | G31: 6 | H31: 3 | I31: 39317.66 | J31: 43628 | L31: 6 | M31: 3 | N31: 36961.18 | O31: 43993 | Q31: 6 | R31: 3 | S31: 38943.00304 | T31: 44363 | V31: 6 | W31: 3 | X31: 39998.73236 | Y31: 44735 | AA31: 6 | AB31: 5 | AC31: 29972.98939 | AD31: 45091
B32: 6 | C32: 4 | D32: 36127 | E32: 43265 | G32: 6 | H32: 4 | I32: 33673.69 | J32: 43621 | L32: 6 | M32: 4 | N32: 36665.15 | O32: 44006 | Q32: 6 | R32: 4 | S32: 38842.99301 | T32: 44362 | V32: 6 | W32: 4 | X32: 39709.84017 | Y32: 44736 | AA32: 6 | AB32: 4 | AC32: 30075.04829 | AD32: 45093
B33: 6 | C33: 5 | D33: 35380 | E33: 43277 | G33: 6 | H33: 5 | I33: 33436.57 | J33: 43635 | L33: 6 | M33: 5 | N33: 36586.31 | O33: 44005 | Q33: 6 | R33: 5 | S33: 37734.44823 | T33: 44375 | V33: 6 | W33: 5 | X33: 39408.69592 | Y33: 44733 | AA33: 6 | AB33: 3 | AC33: 30259.48358 | AD33: 45105
B34: 7 | C34: 1 | D34: 46310 | E34: 43306 | G34: 7 | H34: 1 | I34: 42844.9 | J34: 43670 | L34: 7 | M34: 1 | N34: 41535.69 | O34: 44024 | Q34: 7 | R34: 1 | S34: 42993.81831 | T34: 44386 | V34: 7 | W34: 1 | X34: 41412.79449 | Y34: 44760 | AA34: 6 | AB34: 2 | AC34: 32874.11908 | AD34: 45106
B35: 7 | C35: 2 | D35: 46172 | E35: 43305 | G35: 7 | H35: 2 | I35: 42040.68 | J35: 43672 | L35: 7 | M35: 2 | N35: 41409.77 | O35: 44023 | Q35: 7 | R35: 2 | S35: 41867.97223 | T35: 44396 | V35: 7 | W35: 2 | X35: 41266.38495 | Y35: 44761 | AA35: 6 | AB35: 1 | AC35: 35723.01921 | AD35: 45107
B36: 7 | C36: 3 | D36: 45749 | E36: 43304 | G36: 7 | H36: 3 | I36: 41714.3 | J36: 43671 | L36: 7 | M36: 3 | N36: 40518.24 | O36: 44022 | Q36: 7 | R36: 3 | S36: 41363.03688 | T36: 44406 | V36: 7 | W36: 3 | X36: 40413.1546 | Y36: 44762 | AA36: 7 | AB36: 3 | AC36: 42461.253 | AD36: 45124
B37: 7 | C37: 4 | D37: 45126 | E37: 43287 | G37: 7 | H37: 4 | I37: 41703.11 | J37: 43669 | L37: 7 | M37: 4 | N37: 40391.224 | O37: 44043 | Q37: 7 | R37: 4 | S37: 41046.40339 | T37: 44398 | V37: 7 | W37: 4 | X37: 39452.93803 | Y37: 44753 | AA37: 7 | AB37: 4 | AC37: 42079.30856 | AD37: 45127
B38: 7 | C38: 5 | D38: 43741 | E38: 43312 | G38: 7 | H38: 5 | I38: 41339.64 | J38: 43673 | L38: 7 | M38: 5 | N38: 39833.38 | O38: 44025 | Q38: 7 | R38: 5 | S38: 41000.11837 | T38: 44397 | V38: 7 | W38: 5 | X38: 39327.84355 | Y38: 44763 | AA38: 7 | AB38: 5 | AC38: 41366.92147 | AD38: 45128
B39: 8 | C39: 1 | D39: 44996 | E39: 43321 | G39: 7 | H39: 6 | I39: 39384.57 | J39: 43674 | L39: 8 | M39: 1 | N39: 46973.59 | O39: 44061 | Q39: 7 | R39: 6 | S39: 40897.12 | T39: 44405 | V39: 8 | W39: 1 | X39: 45232.86481 | Y39: 44789 | AA39: 7 | AB39: 1 | AC39: 43236.42061 | AD39: 45132
B40: 8 | C40: 2 | D40: 44272 | E40: 43318 | G40: 8 | H40: 1 | I40: 44094.87 | J40: 43692 | L40: 8 | M40: 2 | N40: 46284.1 | O40: 44057 | Q40: 7 | R40: 7 | S40: 40325.07 | T40: 7/10/2021 | V40: 8 | W40: 2 | X40: 45178.58447 | Y40: 44804 | AA40: 7 | AB40: 2 | AC40: 42851.18828 | AD40: 45133
B41: 8 | C41: 3 | D41: 43962 | E41: 43319 | G41: 8 | H41: 2 | I41: 43853.62 | J41: 43691 | L41: 8 | M41: 3 | N41: 45846.06 | O41: 44062 | Q41: 7 | R41: 8 | S41: 38447.76 | T41: 44389 | V41: 8 | W41: 3 | X41: 43385.67067 | Y41: 44788 | AA41: 8 | AB41: 2 | AC41: 43220.13327 | AD41: 45153
B42: 8 | C42: 4 | D42: 43891 | E42: 43320 | G42: 8 | H42: 3 | I42: 43387.9 | J42: 43703 | L42: 8 | M42: 4 | N42: 44939.06 | O42: 44060 | Q42: 8 | R42: 1 | S42: 42720.08681 | T42: 44424 | V42: 8 | W42: 4 | X42: 42754.72357 | Y42: 44790 | AA42: 8 | AB42: 6 | AC42: 42089.59296 | AD42: 45168
B43: 8 | C43: 5 | D43: 43803 | E43: 43313 | G43: 8 | H43: 4 | I43: 42814.98 | J43: 43704 | L43: 8 | M43: 5 | N43: 44791.4 | O43: 44058 | Q43: 8 | R43: 2 | S43: 42147.96491 | T43: 44420 | V43: 8 | W43: 5 | X43: 42101.81302 | Y43: 44796 | AA43: 8 | AB43: 1 | AC43: 44230.28638 | AD43: 45154
B44: 9 | C44: 1 | D44: 38558 | E44: 43350 | G44: 8 | H44: 5 | I44: 41222.57 | J44: 43683 | L44: 8 | M44: 6 | N44: 43471.27 | O44: 44059 | Q44: 8 | R44: 3 | S44: 42138.5456 | T44: 44435 | V44: 9 | W44: 1 | X44: 51479.0047 | Y44: 44810 | AA44: 8 | AB44: 5 | AC44: 42449.19772 | AD44: 45155
B45: 9 | C45: 2 | D45: 37844 | E45: 43351 | G45: 9 | H45: 1 | I45: 43835.2 | J45: 43711 | L45: 8 | M45: 7 | N45: 42153.89 | O45: 44056 | Q45: 8 | R45: 4 | S45: 41733.48803 | T45: 44418 | V45: 9 | W45: 2 | X45: 49859.09202 | Y45: 44811 | AA45: 8 | AB45: 3 | AC45: 42664.93311 | AD45: 45166
B46: 9 | C46: 3 | D46: 37682 | E46: 43353 | G46: 9 | H46: 2 | I46: 43395.22 | J46: 43712 | L46: 9 | M46: 1 | N46: 46528 | O46: 44080 | Q46: 8 | R46: 5 | S46: 41225.0628 | T46: 44419 | V46: 9 | W46: 3 | X46: 48704.1645 | Y46: 44809 | AA46: 8 | AB46: 4 | AC46: 42581.8333 | AD46: 45167
B47: 9 | C47: 4 | D47: 36199 | E47: 43352 | G47: 9 | H47: 3 | I47: 42132.35 | J47: 43721 | L47: 9 | M47: 2 | N47: 45656.33 | O47: 44079 | Q47: 9 | R47: 1 | S47: 43789.22775 | T47: 44447 | V47: 9 | W47: 4 | X47: 48351.20318 | Y47: 44812 | AA47: 9 | AB47: 5 | AC47: 35853.28307 | AD47: 45176
B48: 9 | C48: 5 | D48: 36058 | E48: 43347 | G48: 9 | H48: 4 | I48: 41915.82 | J48: 43713 | L48: 9 | M48: 3 | N48: 42754.1158 | O48: 44104 | Q48: 9 | R48: 2 | S48: 43232.35919 | T48: 44448 | V48: 9 | W48: 5 | X48: 47101.35921 | Y48: 44805 | AA48: 9 | AB48: 1 | AC48: 38490.28696 | AD48: 45177
B49: 10 | C49: 1 | D49: 34751 | E49: 43374 | G49: 9 | H49: 5 | I49: 41322.42 | J49: 43714 | L49: 9 | M49: 4 | N49: 41632.12 | O49: 44081 | Q49: 9 | R49: 3 | S49: 42344.89957 | T49: 44446 | V49: 9 | W49: 6 | X49: 45674.86103 | Y49: 44806 | AA49: 9 | AB49: 3 | AC49: 36321.83476 | AD49: 45178
B50: 10 | C50: 2 | D50: 32185 | E50: 43375 | G50: 10 | H50: 1 | I50: 33227.4 | J50: 43762 | L50: 9 | M50: 5 | N50: 41191.31 | O50: 44103 | Q50: 9 | R50: 4 | S50: 40762.68742 | T50: 44460 | V50: 9 | W50: 7 | X50: 43888.31231 | Y50: 44808 | AA50: 9 | AB50: 4 | AC50: 36296.13726 | AD50: 45179
B51: 10 | C51: 3 | D51: 31183 | E51: 43376 | G51: 10 | H51: 2 | I51: 32787.3 | J51: 43763 | L51: 9 | M51: 6 | N51: 37516.87 | O51: 44077 | Q51: 9 | R51: 5 | S51: 40084.72763 | T51: 44449 | V51: 9 | W51: 8 | X51: 43852.15282 | Y51: 44807 | AA51: 9 | AB51: 2 | AC51: 36495.1945 | AD51: 45180
B52: 10 | C52: 4 | D52: 30528 | E52: 43381 | G52: 10 | H52: 3 | I52: 32608.64 | J52: 43760 | L52: 10 | M52: 1 | N52: 43147.4021 | O52: 44105 | Q52: 10 | R52: 1 | S52: 33102.16759 | T52: 44470 | V52: 9 | W52: 9 | X52: 42862.31083 | Y52: 44813 | AA52: 10 | AB52: 2 | AC52: 36354.2857 | AD52: 45204
B53: 10 | C53: 5 | D53: 30307 | E53: 43377 | G53: 10 | H53: 4 | I53: 32115.26 | J53: 43745 | L53: 10 | M53: 2 | N53: 41403.8186 | O53: 44106 | Q53: 10 | R53: 2 | S53: 32743.8278 | T53: 44473 | V53: 10 | W53: 1 | X53: 34315.99362 | Y53: 44839 | AA53: 10 | AB53: 1 | AC53: 36936.50625 | AD53: 45205
B54: 11 | C54: 1 | D54: 29880 | E54: 43406 | G54: 10 | H54: 5 | I54: 31773.56 | J54: 43761 | L54: 10 | M54: 3 | N54: 37676.8114 | O54: 44119 | Q54: 10 | R54: 3 | S54: 32497.63372 | T54: 44472 | V54: 10 | W54: 2 | X54: 34170.62828 | Y54: 44853 | AA54: 10 | AB54: 3 | AC54: 34282.09645 | AD54: 45206
B55: 11 | C55: 2 | D55: 29673 | E55: 43405 | G55: 11 | H55: 1 | I55: 29661.386 | J55: 43787 | L55: 10 | M55: 4 | N55: 37512.199 | O55: 44120 | Q55: 10 | R55: 4 | S55: 32353.87552 | T55: 44471 | V55: 10 | W55: 3 | X55: 33933.97899 | Y55: 44841 | AA55: 10 | AB55: 5 | AC55: 33448.83964 | AD55: 45217
B56: 11 | C56: 3 | D56: 29409 | E56: 43409 | G56: 11 | H56: 2 | I56: 29030.5956 | J56: 43777 | L56: 10 | M56: 5 | N56: 37301.1641 | O56: 44107 | Q56: 10 | R56: 5 | S56: 31214.74818 | T56: 44474 | V56: 10 | W56: 4 | X56: 33521.90166 | Y56: 44840 | AA56: 10 | AB56: 4 | AC56: 34220.78619 | AD56: 45218
B57: 11 | C57: 4 | D57: 29342 | E57: 43418 | G57: 11 | H57: 3 | I57: 28960.8639 | J57: 43776 | L57: 11 | M57: 1 | N57: 29618.7771 | O57: 44140 | Q57: 11 | R57: 1 | S57: 30145.66765 | T57: 44512 | V57: 10 | W57: 5 | X57: 33436.5574 | Y57: 44838 | AA57: 11 | AB57: 1 | AC57: 28695.44847 | AD57: 45232
B58: 11 | C58: 5 | D58: 29122 | E58: 43411 | G58: 11 | H58: 4 | I58: 28870.0123 | J58: 43774 | L58: 11 | M58: 2 | N58: 29520.6935 | O58: 44139 | Q58: 11 | R58: 2 | S58: 29317.43546 | T58: 44511 | V58: 11 | W58: 1 | X58: 28252.65066 | Y58: 44895 | AA58: 11 | AB58: 5 | AC58: 28392.60499 | AD58: 45236
B59: 12 | C59: 1 | D59: 30118 | E59: 43439 | G59: 11 | H59: 5 | I59: 28780.1161 | J59: 43795 | L59: 11 | M59: 3 | N59: 28838.7847 | O59: 44137 | Q59: 11 | R59: 3 | S59: 28968.75916 | T59: 44515 | V59: 11 | W59: 2 | X59: 28183.5979 | Y59: 44894 | AA59: 11 | AB59: 4 | AC59: 28414.94986 | AD59: 45257
B60: 12 | C60: 2 | D60: 29942 | E60: 43444 | G60: 12 | H60: 1 | I60: 30238.55 | J60: 43815 | L60: 11 | M60: 4 | N60: 28711.0952 | O60: 44165 | Q60: 11 | R60: 4 | S60: 28658.18955 | T60: 44529 | V60: 11 | W60: 3 | X60: 28175.72008 | Y60: 44873 | AA60: 11 | AB60: 3 | AC60: 28480.70529 | AD60: 45259
B61: 12 | C61: 3 | D61: 29760 | E61: 43440 | G61: 12 | H61: 2 | I61: 30120.74 | J61: 43816 | L61: 11 | M61: 5 | N61: 28627.1288 | O61: 44138 | Q61: 11 | R61: 5 | S61: 28626.43484 | T61: 44530 | V61: 11 | W61: 4 | X61: 28110.24198 | Y61: 44893 | AA61: 11 | AB61: 2 | AC61: 28488.71447 | AD61: 45260
B62: 12 | C62: 4 | D62: 29592 | E62: 43445 | G62: 12 | H62: 3 | I62: 30106.8 | J62: 43817 | L62: 12 | M62: 1 | N62: 29458.1152 | O62: 44180 | Q62: 12 | R62: 1 | S62: 31157.7637 | T62: 44544 | V62: 11 | W62: 5 | X62: 27980.38376 | Y62: 44886 | AA62: 12 | AB62: 5 | AC62: 28717.23183 | AD62: 45271
B63: 12 | C63: 5 | D63: 29564 | E63: 43437 | G63: 12 | H63: 4 | I63: 29421.98 | J63: 43818 | L63: 12 | M63: 2 | N63: 29317.8984 | O63: 44179 | Q63: 12 | R63: 2 | S63: 31111.53546 | T63: 44545 | V63: 12 | W63: 1 | X63: 30047.57175 | Y63: 44907 | AA63: 12 | AB63: 2 | AC63: 28936.19376 | AD63: 45273
G64: 12 | H64: 5 | I64: 29280.58 | J64: 43810 | L64: 12 | M64: 3 | N64: 29305.9684 | O64: 44181 | Q64: 12 | R64: 3 | S64: 30600.0154 | T64: 44543 | V64: 12 | W64: 2 | X64: 29773.13592 | Y64: 44909 | AA64: 12 | AB64: 4 | AC64: 28754.72214 | AD64: 45274
L65: 12 | M65: 4 | N65: 29117.9462 | O65: 44172 | Q65: 12 | R65: 4 | S65: 30438.99727 | T65: 44546 | V65: 12 | W65: 3 | X65: 29724.8021 | Y65: 44908 | AA65: 12 | AB65: 1 | AC65: 28973.08691 | AD65: 45278
L66: 12 | M66: 5 | N66: 29055.51 | O66: 44182 | Q66: 12 | R66: 5 | S66: 30149.97769 | T66: 44550 | V66: 12 | W66: 4 | X66: 29588.0673 | Y66: 44914 | AA66: 12 | AB66: 3 | AC66: 28887.81022 | AD66: 45280
V67: 12 | W67: 5 | X67: 29321.55919 | Y67: 44910

Sheet Date List
A1: 43129
A2: 43108
A3: 43122
A4: 43125
A5: 43103
A6: 43151
A7: 43153
A8: 43158
A9: 43150
A10: 43152
A11: 43160
A12: 43164
A13: 43161
A14: 43171
A15: 43188
A16: 43199
A17: 43213
A18: 43200
A19: 43215
A20: 43214
A21: 43249
A22: 43228
A23: 43229
A24: 43227
A25: 43248
A26: 43273
A27: 43264
A28: 43263
A29: 43265
A30: 43277
A31: 43306
A32: 43305
A33: 43304
A34: 43287
A35: 43312
A36: 43321
A37: 43318
A38: 43319
A39: 43320
A40: 43313
A41: 43350
A42: 43351
A43: 43353
A44: 43352
A45: 43347
A46: 43374
A47: 43375
A48: 43376
A49: 43381
A50: 43377
A51: 43406
A52: 43405
A53: 43409
A54: 43418
A55: 43411
A56: 43439
A57: 43444
A58: 43440
A59: 43445
A60: 43437
A61: 43479
A62: 43480
A63: 43467
A64: 43468
A65: 43481
A66: 43516
A67: 43517
A68: 43501
A69: 43509
A70: 43508
A71: 43530
A72: 43529
A73: 43531
A74: 43535
A75: 43528
A76: 43579
A77: 43580
A78: 43578
A79: 43573
A80: 43581
A81: 43598
A82: 43599
A83: 43587
A84: 43593
A85: 43615
A86: 43627
A87: 43626
A88: 43628
A89: 43621
A90: 43635
A91: 43670
A92: 43672
A93: 43671
A94: 43669
A95: 43673
A96: 43674
A97: 43692
A98: 43691
A99: 43703
A100: 43704
A101: 43683
A102: 43711
A103: 43712
A104: 43721
A105: 43713
A106: 43714
A107: 43762
A108: 43763
A109: 43760
A110: 43745
A111: 43761
A112: 43787
A113: 43777
A114: 43776
A115: 43774
A116: 43795
A117: 43815
A118: 43816
A119: 43817
A120: 43818
A121: 43810
A122: 43846
A123: 43845
A124: 43843
A125: 43844
A126: 43839
A127: 43865
A128: 43864
A129: 43866
A130: 43871
A131: 43872
A132: 43895
A133: 43892
A134: 43894
A135: 43893
A136: 43902
A137: 43949
A138: 43945
A139: 43946
A140: 43948
A141: 43950
A142: 43978
A143: 43977
A144: 43979
A145: 43958
A146: 43976
A147: 43985
A148: 43992
A149: 43993
A150: 44006
A151: 44005
A152: 44024
A153: 44023
A154: 44022
A155: 44043
A156: 44025
A157: 44061
A158: 44057
A159: 44062
A160: 44060
A161: 44058
A162: 44059
A163: 44056
A164: 44080
A165: 44079
A166: 44104
A167: 44081
A168: 44103
A169: 44077
A170: 44105
A171: 44106
A172: 44119
A173: 44120
A174: 44107
A175: 44140
A176: 44139
A177: 44137
A178: 44165
A179: 44138
A180: 44180
A181: 44179
A182: 44181
A183: 44172
A184: 44182
A185: 44221
A186: 44222
A187: 44223
A188: 44203
A189: 44202
A190: 44236
A191: 44238
A192: 44244
A193: 44235
A194: 44231
A195: 44265
A196: 44264
A197: 44258
A198: 44270
A199: 44266
A200: 44316
... 174 more rows

Sheet Installed Capacity
A1: Year | B1: Attribute | C1: Technology | D1: Path | E1: Installed Capacity
A2: 2023 | B2: 1 | C2: Solar Fixed | D2: North | E2: 2094.98
A3: 2023 | B3: 2 | C3: Solar Fixed | D3: North | E3: 2094.98
A4: 2023 | B4: 3 | C4: Solar Fixed | D4: North | E4: 2094.98
A5: 2023 | B5: 4 | C5: Solar Fixed | D5: North | E5: 2094.98
A6: 2023 | B6: 5 | C6: Solar Fixed | D6: North | E6: 2094.98
A7: 2023 | B7: 6 | C7: Solar Fixed | D7: North | E7: 2094.98
A8: 2023 | B8: 7 | C8: Solar Fixed | D8: North | E8: 2094.98
A9: 2023 | B9: 8 | C9: Solar Fixed | D9: North | E9: 2094.98
A10: 2023 | B10: 9 | C10: Solar Fixed | D10: North | E10: 2094.98
A11: 2023 | B11: 10 | C11: Solar Fixed | D11: North | E11: 2094.98
A12: 2023 | B12: 11 | C12: Solar Fixed | D12: North | E12: 2094.98
A13: 2023 | B13: 12 | C13: Solar Fixed | D13: North | E13: 2094.98
A14: 2022 | B14: 1 | C14: Solar Fixed | D14: North | E14: 1840.48
A15: 2022 | B15: 2 | C15: Solar Fixed | D15: North | E15: 1840.48
A16: 2022 | B16: 3 | C16: Solar Fixed | D16: North | E16: 1840.48
A17: 2022 | B17: 4 | C17: Solar Fixed | D17: North | E17: 1840.48
A18: 2022 | B18: 5 | C18: Solar Fixed | D18: North | E18: 1840.48
A19: 2022 | B19: 6 | C19: Solar Fixed | D19: North | E19: 1840.48
A20: 2022 | B20: 7 | C20: Solar Fixed | D20: North | E20: 1840.48
A21: 2022 | B21: 8 | C21: Solar Fixed | D21: North | E21: 1840.48
A22: 2022 | B22: 9 | C22: Solar Fixed | D22: North | E22: 1840.48
A23: 2022 | B23: 10 | C23: Solar Fixed | D23: North | E23: 1840.48
A24: 2022 | B24: 11 | C24: Solar Fixed | D24: North | E24: 1840.48
A25: 2022 | B25: 12 | C25: Solar Fixed | D25: North | E25: 1840.48
A26: 2021 | B26: 1 | C26: Solar Fixed | D26: North | E26: 1840.48
A27: 2021 | B27: 2 | C27: Solar Fixed | D27: North | E27: 1840.48
A28: 2021 | B28: 3 | C28: Solar Fixed | D28: North | E28: 1840.48
A29: 2021 | B29: 4 | C29: Solar Fixed | D29: North | E29: 1840.48
A30: 2021 | B30: 5 | C30: Solar Fixed | D30: North | E30: 1840.48
A31: 2021 | B31: 6 | C31: Solar Fixed | D31: North | E31: 1840.48
A32: 2021 | B32: 7 | C32: Solar Fixed | D32: North | E32: 1840.48
A33: 2021 | B33: 8 | C33: Solar Fixed | D33: North | E33: 1840.48
A34: 2021 | B34: 9 | C34: Solar Fixed | D34: North | E34: 1840.48
A35: 2021 | B35: 10 | C35: Solar Fixed | D35: North | E35: 1840.48
A36: 2021 | B36: 11 | C36: Solar Fixed | D36: North | E36: 1840.48
A37: 2021 | B37: 12 | C37: Solar Fixed | D37: North | E37: 1840.48
A38: 2020 | B38: 1 | C38: Solar Fixed | D38: North | E38: 1840.48
A39: 2020 | B39: 2 | C39: Solar Fixed | D39: North | E39: 1840.48
A40: 2020 | B40: 3 | C40: Solar Fixed | D40: North | E40: 1840.48
A41: 2020 | B41: 4 | C41: Solar Fixed | D41: North | E41: 1840.48
A42: 2020 | B42: 5 | C42: Solar Fixed | D42: North | E42: 1840.48
A43: 2020 | B43: 6 | C43: Solar Fixed | D43: North | E43: 1840.48
A44: 2020 | B44: 7 | C44: Solar Fixed | D44: North | E44: 1840.48
A45: 2020 | B45: 8 | C45: Solar Fixed | D45: North | E45: 1840.48
A46: 2020 | B46: 9 | C46: Solar Fixed | D46: North | E46: 1840.48
A47: 2020 | B47: 10 | C47: Solar Fixed | D47: North | E47: 1840.48
A48: 2020 | B48: 11 | C48: Solar Fixed | D48: North | E48: 1840.48
A49: 2020 | B49: 12 | C49: Solar Fixed | D49: North | E49: 1840.48
A50: 2019 | B50: 1 | C50: Solar Fixed | D50: North | E50: 1640.48
A51: 2019 | B51: 2 | C51: Solar Fixed | D51: North | E51: 1640.48
A52: 2019 | B52: 3 | C52: Solar Fixed | D52: North | E52: 1640.48
A53: 2019 | B53: 4 | C53: Solar Fixed | D53: North | E53: 1640.48
A54: 2019 | B54: 5 | C54: Solar Fixed | D54: North | E54: 1640.48
A55: 2019 | B55: 6 | C55: Solar Fixed | D55: North | E55: 1640.48
A56: 2019 | B56: 7 | C56: Solar Fixed | D56: North | E56: 1640.48
A57: 2019 | B57: 8 | C57: Solar Fixed | D57: North | E57: 1640.48
A58: 2019 | B58: 9 | C58: Solar Fixed | D58: North | E58: 1640.48
A59: 2019 | B59: 10 | C59: Solar Fixed | D59: North | E59: 1640.48
A60: 2019 | B60: 11 | C60: Solar Fixed | D60: North | E60: 1640.48
A61: 2019 | B61: 12 | C61: Solar Fixed | D61: North | E61: 1840.48
A62: 2018 | B62: 1 | C62: Solar Fixed | D62: North | E62: 1640.48
A63: 2018 | B63: 2 | C63: Solar Fixed | D63: North | E63: 1640.48
A64: 2018 | B64: 3 | C64: Solar Fixed | D64: North | E64: 1640.48
A65: 2018 | B65: 4 | C65: Solar Fixed | D65: North | E65: 1640.48
A66: 2018 | B66: 5 | C66: Solar Fixed | D66: North | E66: 1640.48
A67: 2018 | B67: 6 | C67: Solar Fixed | D67: North | E67: 1640.48
A68: 2018 | B68: 7 | C68: Solar Fixed | D68: North | E68: 1640.48
A69: 2018 | B69: 8 | C69: Solar Fixed | D69: North | E69: 1640.48
A70: 2018 | B70: 9 | C70: Solar Fixed | D70: North | E70: 1640.48
A71: 2018 | B71: 10 | C71: Solar Fixed | D71: North | E71: 1640.48
A72: 2018 | B72: 11 | C72: Solar Fixed | D72: North | E72: 1640.48
A73: 2018 | B73: 12 | C73: Solar Fixed | D73: North | E73: 1640.48
A74: 2017 | B74: 1 | C74: Solar Fixed | D74: North | E74: 1510.48
A75: 2017 | B75: 2 | C75: Solar Fixed | D75: North | E75: 1510.48
A76: 2017 | B76: 3 | C76: Solar Fixed | D76: North | E76: 1510.48
A77: 2017 | B77: 4 | C77: Solar Fixed | D77: North | E77: 1510.48
A78: 2017 | B78: 5 | C78: Solar Fixed | D78: North | E78: 1510.48
A79: 2017 | B79: 6 | C79: Solar Fixed | D79: North | E79: 1510.48
A80: 2017 | B80: 7 | C80: Solar Fixed | D80: North | E80: 1510.48
A81: 2017 | B81: 8 | C81: Solar Fixed | D81: North | E81: 1510.48
A82: 2017 | B82: 9 | C82: Solar Fixed | D82: North | E82: 1510.48
A83: 2017 | B83: 10 | C83: Solar Fixed | D83: North | E83: 1510.48
A84: 2017 | B84: 11 | C84: Solar Fixed | D84: North | E84: 1640.48
A85: 2017 | B85: 12 | C85: Solar Fixed | D85: North | E85: 1640.48
A86: 2023 | B86: 1 | C86: Solar Tracking | D86: North | E86: 2600.32
A87: 2023 | B87: 2 | C87: Solar Tracking | D87: North | E87: 2600.32
A88: 2023 | B88: 3 | C88: Solar Tracking | D88: North | E88: 2600.32
A89: 2023 | B89: 4 | C89: Solar Tracking | D89: North | E89: 2600.32
A90: 2023 | B90: 5 | C90: Solar Tracking | D90: North | E90: 2600.32
A91: 2023 | B91: 6 | C91: Solar Tracking | D91: North | E91: 2600.32
A92: 2023 | B92: 7 | C92: Solar Tracking | D92: North | E92: 2600.32
A93: 2023 | B93: 8 | C93: Solar Tracking | D93: North | E93: 2600.32
A94: 2023 | B94: 9 | C94: Solar Tracking | D94: North | E94: 2600.32
A95: 2023 | B95: 10 | C95: Solar Tracking | D95: North | E95: 2872
A96: 2023 | B96: 11 | C96: Solar Tracking | D96: North | E96: 2872
A97: 2023 | B97: 12 | C97: Solar Tracking | D97: North | E97: 2872
A98: 2022 | B98: 1 | C98: Solar Tracking | D98: North | E98: 2583.82
A99: 2022 | B99: 2 | C99: Solar Tracking | D99: North | E99: 2583.82
A100: 2022 | B100: 3 | C100: Solar Tracking | D100: North | E100: 2583.82
A101: 2022 | B101: 4 | C101: Solar Tracking | D101: North | E101: 2583.82
A102: 2022 | B102: 5 | C102: Solar Tracking | D102: North | E102: 2583.82
A103: 2022 | B103: 6 | C103: Solar Tracking | D103: North | E103: 2583.82
A104: 2022 | B104: 7 | C104: Solar Tracking | D104: North | E104: 2583.82
A105: 2022 | B105: 8 | C105: Solar Tracking | D105: North | E105: 2583.82
A106: 2022 | B106: 9 | C106: Solar Tracking | D106: North | E106: 2583.82
A107: 2022 | B107: 10 | C107: Solar Tracking | D107: North | E107: 2583.82
A108: 2022 | B108: 11 | C108: Solar Tracking | D108: North | E108: 2583.82
A109: 2022 | B109: 12 | C109: Solar Tracking | D109: North | E109: 2583.82
A110: 2021 | B110: 1 | C110: Solar Tracking | D110: North | E110: 2238.32
A111: 2021 | B111: 2 | C111: Solar Tracking | D111: North | E111: 2278.32
A112: 2021 | B112: 3 | C112: Solar Tracking | D112: North | E112: 2278.32
A113: 2021 | B113: 4 | C113: Solar Tracking | D113: North | E113: 2278.32
A114: 2021 | B114: 5 | C114: Solar Tracking | D114: North | E114: 2278.32
A115: 2021 | B115: 6 | C115: Solar Tracking | D115: North | E115: 2278.32
A116: 2021 | B116: 7 | C116: Solar Tracking | D116: North | E116: 2278.32
A117: 2021 | B117: 8 | C117: Solar Tracking | D117: North | E117: 2278.32
A118: 2021 | B118: 9 | C118: Solar Tracking | D118: North | E118: 2283.32
A119: 2021 | B119: 10 | C119: Solar Tracking | D119: North | E119: 2283.32
A120: 2021 | B120: 11 | C120: Solar Tracking | D120: North | E120: 2333.82
A121: 2021 | B121: 12 | C121: Solar Tracking | D121: North | E121: 2583.82
A122: 2020 | B122: 1 | C122: Solar Tracking | D122: North | E122: 1755.32
A123: 2020 | B123: 2 | C123: Solar Tracking | D123: North | E123: 1755.32
A124: 2020 | B124: 3 | C124: Solar Tracking | D124: North | E124: 1755.32
A125: 2020 | B125: 4 | C125: Solar Tracking | D125: North | E125: 1755.32
A126: 2020 | B126: 5 | C126: Solar Tracking | D126: North | E126: 1805.32
A127: 2020 | B127: 6 | C127: Solar Tracking | D127: North | E127: 1805.32
A128: 2020 | B128: 7 | C128: Solar Tracking | D128: North | E128: 1805.32
A129: 2020 | B129: 8 | C129: Solar Tracking | D129: North | E129: 1805.32
A130: 2020 | B130: 9 | C130: Solar Tracking | D130: North | E130: 1805.32
A131: 2020 | B131: 10 | C131: Solar Tracking | D131: North | E131: 1805.32
A132: 2020 | B132: 11 | C132: Solar Tracking | D132: North | E132: 1955.32
A133: 2020 | B133: 12 | C133: Solar Tracking | D133: North | E133: 2238.32
A134: 2019 | B134: 1 | C134: Solar Tracking | D134: North | E134: 1580.82
A135: 2019 | B135: 2 | C135: Solar Tracking | D135: North | E135: 1600.82
A136: 2019 | B136: 3 | C136: Solar Tracking | D136: North | E136: 1750.82
A137: 2019 | B137: 4 | C137: Solar Tracking | D137: North | E137: 1750.82
A138: 2019 | B138: 5 | C138: Solar Tracking | D138: North | E138: 1752.32
A139: 2019 | B139: 6 | C139: Solar Tracking | D139: North | E139: 1752.32
A140: 2019 | B140: 7 | C140: Solar Tracking | D140: North | E140: 1752.32
A141: 2019 | B141: 8 | C141: Solar Tracking | D141: North | E141: 1752.32
A142: 2019 | B142: 9 | C142: Solar Tracking | D142: North | E142: 1752.32
A143: 2019 | B143: 10 | C143: Solar Tracking | D143: North | E143: 1752.32
A144: 2019 | B144: 11 | C144: Solar Tracking | D144: North | E144: 1752.32
A145: 2019 | B145: 12 | C145: Solar Tracking | D145: North | E145: 1755.32
A146: 2018 | B146: 1 | C146: Solar Tracking | D146: North | E146: 1259.32
A147: 2018 | B147: 2 | C147: Solar Tracking | D147: North | E147: 1259.32
A148: 2018 | B148: 3 | C148: Solar Tracking | D148: North | E148: 1259.32
A149: 2018 | B149: 4 | C149: Solar Tracking | D149: North | E149: 1422.32
A150: 2018 | B150: 5 | C150: Solar Tracking | D150: North | E150: 1422.32
A151: 2018 | B151: 6 | C151: Solar Tracking | D151: North | E151: 1422.32
A152: 2018 | B152: 7 | C152: Solar Tracking | D152: North | E152: 1422.32
A153: 2018 | B153: 8 | C153: Solar Tracking | D153: North | E153: 1422.32
A154: 2018 | B154: 9 | C154: Solar Tracking | D154: North | E154: 1422.32
A155: 2018 | B155: 10 | C155: Solar Tracking | D155: North | E155: 1440.82
A156: 2018 | B156: 11 | C156: Solar Tracking | D156: North | E156: 1580.82
A157: 2018 | B157: 12 | C157: Solar Tracking | D157: North | E157: 1580.82
A158: 2017 | B158: 1 | C158: Solar Tracking | D158: North | E158: 1070.07
A159: 2017 | B159: 2 | C159: Solar Tracking | D159: North | E159: 1070.07
A160: 2017 | B160: 3 | C160: Solar Tracking | D160: North | E160: 1090.07
A161: 2017 | B161: 4 | C161: Solar Tracking | D161: North | E161: 1110.07
A162: 2017 | B162: 5 | C162: Solar Tracking | D162: North | E162: 1110.07
A163: 2017 | B163: 6 | C163: Solar Tracking | D163: North | E163: 1130.07
A164: 2017 | B164: 7 | C164: Solar Tracking | D164: North | E164: 1130.07
A165: 2017 | B165: 8 | C165: Solar Tracking | D165: North | E165: 1130.07
A166: 2017 | B166: 9 | C166: Solar Tracking | D166: North | E166: 1130.07
A167: 2017 | B167: 10 | C167: Solar Tracking | D167: North | E167: 1130.07
A168: 2017 | B168: 11 | C168: Solar Tracking | D168: North | E168: 1170.07
A169: 2017 | B169: 12 | C169: Solar Tracking | D169: North | E169: 1208.82
A170: 2023 | B170: 1 | C170: Solar Fixed | D170: South | E170: 4256.51
A171: 2023 | B171: 2 | C171: Solar Fixed | D171: South | E171: 4256.51
A172: 2023 | B172: 3 | C172: Solar Fixed | D172: South | E172: 4256.51
A173: 2023 | B173: 4 | C173: Solar Fixed | D173: South | E173: 4256.51
A174: 2023 | B174: 5 | C174: Solar Fixed | D174: South | E174: 4256.51
A175: 2023 | B175: 6 | C175: Solar Fixed | D175: South | E175: 4256.51
A176: 2023 | B176: 7 | C176: Solar Fixed | D176: South | E176: 4256.51
A177: 2023 | B177: 8 | C177: Solar Fixed | D177: South | E177: 4256.51
A178: 2023 | B178: 9 | C178: Solar Fixed | D178: South | E178: 4256.51
A179: 2023 | B179: 10 | C179: Solar Fixed | D179: South | E179: 4256.51
A180: 2023 | B180: 11 | C180: Solar Fixed | D180: South | E180: 4256.51
A181: 2023 | B181: 12 | C181: Solar Fixed | D181: South | E181: 4256.51
A182: 2022 | B182: 1 | C182: Solar Fixed | D182: South | E182: 4215.81
A183: 2022 | B183: 2 | C183: Solar Fixed | D183: South | E183: 4219.31
A184: 2022 | B184: 3 | C184: Solar Fixed | D184: South | E184: 4219.31
A185: 2022 | B185: 4 | C185: Solar Fixed | D185: South | E185: 4219.31
A186: 2022 | B186: 5 | C186: Solar Fixed | D186: South | E186: 4219.31
A187: 2022 | B187: 6 | C187: Solar Fixed | D187: South | E187: 4219.31
A188: 2022 | B188: 7 | C188: Solar Fixed | D188: South | E188: 4219.31
A189: 2022 | B189: 8 | C189: Solar Fixed | D189: South | E189: 4219.31
A190: 2022 | B190: 9 | C190: Solar Fixed | D190: South | E190: 4219.31
A191: 2022 | B191: 10 | C191: Solar Fixed | D191: South | E191: 4219.31
A192: 2022 | B192: 11 | C192: Solar Fixed | D192: South | E192: 4219.31
A193: 2022 | B193: 12 | C193: Solar Fixed | D193: South | E193: 4219.31
A194: 2021 | B194: 1 | C194: Solar Fixed | D194: South | E194: 4204.81
A195: 2021 | B195: 2 | C195: Solar Fixed | D195: South | E195: 4204.81
A196: 2021 | B196: 3 | C196: Solar Fixed | D196: South | E196: 4204.81
A197: 2021 | B197: 4 | C197: Solar Fixed | D197: South | E197: 4204.81
A198: 2021 | B198: 5 | C198: Solar Fixed | D198: South | E198: 4204.81
A199: 2021 | B199: 6 | C199: Solar Fixed | D199: South | E199: 4204.81
A200: 2021 | B200: 7 | C200: Solar Fixed | D200: South | E200: 4204.81
... 389 more rows

Sheet Worst Day Profiles
D1: Month | E1: 1 | F1: 2 | G1: 3 | H1: 4 | I1: 5 | J1: 6 | K1: 7 | L1: 8 | M1: 9 | N1: 10 | O1: 11 | P1: 12 | Q1: 13 | R1: 14 | S1: 15 | T1: 16 | U1: 17 | V1: 18 | W1: 19 | X1: 20 | Y1: 21 | Z1: 22 | AA1: 23 | AB1: 24
A2: Solar Fixed | B2: North | C2: 43129 | D2: =MONTH(C2) -> 1 | E2: =SUMIFS('Source Data'!$I$2:$I$366913,'Source Data'!$A$2:$A$366913,'Worst Day Profiles'!$C2,'Source Data'!$E$2:$E$366913,'Worst Day Profiles'!E$1,'Source Data'!$F$2:$F$366913,$B2,'Source Data'!$G$2:$G$366913,$A2) -> 0 | F2: =SUMIFS('Source Data'!$I$2:$I$366913,'Source Data'!$A$2:$A$366913,'Worst Day Profiles'!$C2,'Source Data'!$E$2:$E$366913,'Worst Day Profiles'!F$1,'Source Data'!$F$2:$F$366913,$B2,'Source Data'!$G$2:$G$366913,$A2) -> 0 | G2: =SUMIFS('Source Data'!$I$2:$I$366913,'Source Data'!$A$2:$A$366913,'Worst Day Profiles'!$C2,'Source Data'!$E$2:$E$366913,'Worst Day Profiles'!G$1,'Source Data'!$F$2:$F$366913,$B2,'Source Data'!$G$2:$G$366913,$A2) -> 0 | H2: =SUMIFS('Source Data'!$I$2:$I$366913,'Source Data'!$A$2:$A$366913,'Worst Day Profiles'!$C2,'Source Data'!$E$2:$E$366913,'Worst Day Profiles'!H$1,'Source Data'!$F$2:$F$366913,$B2,'Source Data'!$G$2:$G$366913,$A2) -> 0 | I2: =SUMIFS('Source Data'!$I$2:$I$366913,'Source Data'!$A$2:$A$366913,'Worst Day Profiles'!$C2,'Source Data'!$E$2:$E$366913,'Worst Day Profiles'!I$1,'Source Data'!$F$2:$F$366913,$B2,'Source Data'!$G$2:$G$366913,$A2) -> 0 | J2: =SUMIFS('Source Data'!$I$2:$I$366913,'Source Data'!$A$2:$A$366913,'Worst Day Profiles'!$C2,'Source Data'!$E$2:$E$366913,'Worst Day Profiles'!J$1,'Source Data'!$F$2:$F$366913,$B2,'Source Data'!$G$2:$G$366913,$A2) -> 0 | K2: =SUMIFS('Source Data'!$I$2:$I$366913,'Source Data'!$A$2:$A$366913,'Worst Day Profiles'!$C2,'Source Data'!$E$2:$E$366913,'Worst Day Profiles'!K$1,'Source Data'!$F$2:$F$366913,$B2,'Source Data'!$G$2:$G$366913,$A2) -> 8.654208524e-06 | L2: =SUMIFS('Source Data'!$I$2:$I$366913,'Source Data'!$A$2:$A$366913,'Worst Day Profiles'!$C2,'Source Data'!$E$2:$E$366913,'Worst Day Profiles'!L$1,'Source Data'!$F$2:$F$366913,$B2,'Source Data'!$G$2:$G$366913,$A2) -> 0.04505501383 | M2: =SUMIFS('Source Data'!$I$2:$I$366913,'Source Data'!$A$2:$A$366913,'Worst Day Profiles'!$C2,'Source Data'!$E$2:$E$366913,'Worst Day Profiles'!M$1,'Source Data'!$F$2:$F$366913,$B2,'Source Data'!$G$2:$G$366913,$A2) -> 0.3074620897 | N2: =SUMIFS('Source Data'!$I$2:$I$366913,'Source Data'!$A$2:$A$366913,'Worst Day Profiles'!$C2,'Source Data'!$E$2:$E$366913,'Worst Day Profiles'!N$1,'Source Data'!$F$2:$F$366913,$B2,'Source Data'!$G$2:$G$366913,$A2) -> 0.6010460797 | O2: =SUMIFS('Source Data'!$I$2:$I$366913,'Source Data'!$A$2:$A$366913,'Worst Day Profiles'!$C2,'Source Data'!$E$2:$E$366913,'Worst Day Profiles'!O$1,'Source Data'!$F$2:$F$366913,$B2,'Source Data'!$G$2:$G$366913,$A2) -> 0.705478865 | P2: =SUMIFS('Source Data'!$I$2:$I$366913,'Source Data'!$A$2:$A$366913,'Worst Day Profiles'!$C2,'Source Data'!$E$2:$E$366913,'Worst Day Profiles'!P$1,'Source Data'!$F$2:$F$366913,$B2,'Source Data'!$G$2:$G$366913,$A2) -> 0.7142609404 | Q2: =SUMIFS('Source Data'!$I$2:$I$366913,'Source Data'!$A$2:$A$366913,'Worst Day Profiles'!$C2,'Source Data'!$E$2:$E$366913,'Worst Day Profiles'!Q$1,'Source Data'!$F$2:$F$366913,$B2,'Source Data'!$G$2:$G$366913,$A2) -> 0.6198919163 | R2: =SUMIFS('Source Data'!$I$2:$I$366913,'Source Data'!$A$2:$A$366913,'Worst Day Profiles'!$C2,'Source Data'!$E$2:$E$366913,'Worst Day Profiles'!R$1,'Source Data'!$F$2:$F$366913,$B2,'Source Data'!$G$2:$G$366913,$A2) -> 0.572226705 | S2: =SUMIFS('Source Data'!$I$2:$I$366913,'Source Data'!$A$2:$A$366913,'Worst Day Profiles'!$C2,'Source Data'!$E$2:$E$366913,'Worst Day Profiles'!S$1,'Source Data'!$F$2:$F$366913,$B2,'Source Data'!$G$2:$G$366913,$A2) -> 0.3315322952 | T2: =SUMIFS('Source Data'!$I$2:$I$366913,'Source Data'!$A$2:$A$366913,'Worst Day Profiles'!$C2,'Source Data'!$E$2:$E$366913,'Worst Day Profiles'!T$1,'Source Data'!$F$2:$F$366913,$B2,'Source Data'!$G$2:$G$366913,$A2) -> 0.1932952917 | U2: =SUMIFS('Source Data'!$I$2:$I$366913,'Source Data'!$A$2:$A$366913,'Worst Day Profiles'!$C2,'Source Data'!$E$2:$E$366913,'Worst Day Profiles'!U$1,'Source Data'!$F$2:$F$366913,$B2,'Source Data'!$G$2:$G$366913,$A2) -> 0.05478585516 | V2: =SUMIFS('Source Data'!$I$2:$I$366913,'Source Data'!$A$2:$A$366913,'Worst Day Profiles'!$C2,'Source Data'!$E$2:$E$366913,'Worst Day Profiles'!V$1,'Source Data'!$F$2:$F$366913,$B2,'Source Data'!$G$2:$G$366913,$A2) -> 0.001446558449 | W2: =SUMIFS('Source Data'!$I$2:$I$366913,'Source Data'!$A$2:$A$366913,'Worst Day Profiles'!$C2,'Source Data'!$E$2:$E$366913,'Worst Day Profiles'!W$1,'Source Data'!$F$2:$F$366913,$B2,'Source Data'!$G$2:$G$366913,$A2) -> 0 | X2: =SUMIFS('Source Data'!$I$2:$I$366913,'Source Data'!$A$2:$A$366913,'Worst Day Profiles'!$C2,'Source Data'!$E$2:$E$366913,'Worst Day Profiles'!X$1,'Source Data'!$F$2:$F$366913,$B2,'Source Data'!$G$2:$G$366913,$A2) -> 0 | Y2: =SUMIFS('Source Data'!$I$2:$I$366913,'Source Data'!$A$2:$A$366913,'Worst Day Profiles'!$C2,'Source Data'!$E$2:$E$366913,'Worst Day Profiles'!Y$1,'Source Data'!$F$2:$F$366913,$B2,'Source Data'!$G$2:$G$366913,$A2) -> 0 | Z2: =SUMIFS('Source Data'!$I$2:$I$366913,'Source Data'!$A$2:$A$366913,'Worst Day Profiles'!$C2,'Source Data'!$E$2:$E$366913,'Worst Day Profiles'!Z$1,'Source Data'!$F$2:$F$366913,$B2,'Source Data'!$G$2:$G$366913,$A2) -> 0 | AA2: =SUMIFS('Source Data'!$I$2:$I$366913,'Source Data'!$A$2:$A$366913,'Worst Day Profiles'!$C2,'Source Data'!$E$2:$E$366913,'Worst Day Profiles'!AA$1,'Source Data'!$F$2:$F$366913,$B2,'Source Data'!$G$2:$G$366913,$A2) -> 0 | AB2: =SUMIFS('Source Data'!$I$2:$I$366913,'Source Data'!$A$2:$A$366913,'Worst Day Profiles'!$C2,'Source Data'!$E$2:$E$366913,'Worst Day Profiles'!AB$1,'Source Data'!$F$2:$F$366913,$B2,'Source Data'!$G$2:$G$366913,$A2) -> 0
A3: Solar Fixed | B3: North | C3: 43108 | D3: =MONTH(C3) -> 1 | E3: =SUMIFS('Source Data'!$I$2:$I$366913,'Source Data'!$A$2:$A$366913,'Worst Day Profiles'!$C3,'Source Data'!$E$2:$E$366913,'Worst Day Profiles'!E$1,'Source Data'!$F$2:$F$366913,$B3,'Source Data'!$G$2:$G$366913,$A3) -> 0 | F3: =SUMIFS('Source Data'!$I$2:$I$366913,'Source Data'!$A$2:$A$366913,'Worst Day Profiles'!$C3,'Source Data'!$E$2:$E$366913,'Worst Day Profiles'!F$1,'Source Data'!$F$2:$F$366913,$B3,'Source Data'!$G$2:$G$366913,$A3) -> 0 | G3: =SUMIFS('Source Data'!$I$2:$I$366913,'Source Data'!$A$2:$A$366913,'Worst Day Profiles'!$C3,'Source Data'!$E$2:$E$366913,'Worst Day Profiles'!G$1,'Source Data'!$F$2:$F$366913,$B3,'Source Data'!$G$2:$G$366913,$A3) -> 0 | H3: =SUMIFS('Source Data'!$I$2:$I$366913,'Source Data'!$A$2:$A$366913,'Worst Day Profiles'!$C3,'Source Data'!$E$2:$E$366913,'Worst Day Profiles'!H$1,'Source Data'!$F$2:$F$366913,$B3,'Source Data'!$G$2:$G$366913,$A3) -> 0 | I3: =SUMIFS('Source Data'!$I$2:$I$366913,'Source Data'!$A$2:$A$366913,'Worst Day Profiles'!$C3,'Source Data'!$E$2:$E$366913,'Worst Day Profiles'!I$1,'Source Data'!$F$2:$F$366913,$B3,'Source Data'!$G$2:$G$366913,$A3) -> 0 | J3: =SUMIFS('Source Data'!$I$2:$I$366913,'Source Data'!$A$2:$A$366913,'Worst Day Profiles'!$C3,'Source Data'!$E$2:$E$366913,'Worst Day Profiles'!J$1,'Source Data'!$F$2:$F$366913,$B3,'Source Data'!$G$2:$G$366913,$A3) -> 0 | K3: =SUMIFS('Source Data'!$I$2:$I$366913,'Source Data'!$A$2:$A$366913,'Worst Day Profiles'!$C3,'Source Data'!$E$2:$E$366913,'Worst Day Profiles'!K$1,'Source Data'!$F$2:$F$366913,$B3,'Source Data'!$G$2:$G$366913,$A3) -> 0 | L3: =SUMIFS('Source Data'!$I$2:$I$366913,'Source Data'!$A$2:$A$366913,'Worst Day Profiles'!$C3,'Source Data'!$E$2:$E$366913,'Worst Day Profiles'!L$1,'Source Data'!$F$2:$F$366913,$B3,'Source Data'!$G$2:$G$366913,$A3) -> 0.001338482217 | M3: =SUMIFS('Source Data'!$I$2:$I$366913,'Source Data'!$A$2:$A$366913,'Worst Day Profiles'!$C3,'Source Data'!$E$2:$E$366913,'Worst Day Profiles'!M$1,'Source Data'!$F$2:$F$366913,$B3,'Source Data'!$G$2:$G$366913,$A3) -> 0.025034938 | N3: =SUMIFS('Source Data'!$I$2:$I$366913,'Source Data'!$A$2:$A$366913,'Worst Day Profiles'!$C3,'Source Data'!$E$2:$E$366913,'Worst Day Profiles'!N$1,'Source Data'!$F$2:$F$366913,$B3,'Source Data'!$G$2:$G$366913,$A3) -> 0.0781865722 | O3: =SUMIFS('Source Data'!$I$2:$I$366913,'Source Data'!$A$2:$A$366913,'Worst Day Profiles'!$C3,'Source Data'!$E$2:$E$366913,'Worst Day Profiles'!O$1,'Source Data'!$F$2:$F$366913,$B3,'Source Data'!$G$2:$G$366913,$A3) -> 0.2409683086 | P3: =SUMIFS('Source Data'!$I$2:$I$366913,'Source Data'!$A$2:$A$366913,'Worst Day Profiles'!$C3,'Source Data'!$E$2:$E$366913,'Worst Day Profiles'!P$1,'Source Data'!$F$2:$F$366913,$B3,'Source Data'!$G$2:$G$366913,$A3) -> 0.1800920118 | Q3: =SUMIFS('Source Data'!$I$2:$I$366913,'Source Data'!$A$2:$A$366913,'Worst Day Profiles'!$C3,'Source Data'!$E$2:$E$366913,'Worst Day Profiles'!Q$1,'Source Data'!$F$2:$F$366913,$B3,'Source Data'!$G$2:$G$366913,$A3) -> 0.2626288735 | R3: =SUMIFS('Source Data'!$I$2:$I$366913,'Source Data'!$A$2:$A$366913,'Worst Day Profiles'!$C3,'Source Data'!$E$2:$E$366913,'Worst Day Profiles'!R$1,'Source Data'!$F$2:$F$366913,$B3,'Source Data'!$G$2:$G$366913,$A3) -> 0.1442488701 | S3: =SUMIFS('Source Data'!$I$2:$I$366913,'Source Data'!$A$2:$A$366913,'Worst Day Profiles'!$C3,'Source Data'!$E$2:$E$366913,'Worst Day Profiles'!S$1,'Source Data'!$F$2:$F$366913,$B3,'Source Data'!$G$2:$G$366913,$A3) -> 0.07442253838 | T3: =SUMIFS('Source Data'!$I$2:$I$366913,'Source Data'!$A$2:$A$366913,'Worst Day Profiles'!$C3,'Source Data'!$E$2:$E$366913,'Worst Day Profiles'!T$1,'Source Data'!$F$2:$F$366913,$B3,'Source Data'!$G$2:$G$366913,$A3) -> 0.03009694425 | U3: =SUMIFS('Source Data'!$I$2:$I$366913,'Source Data'!$A$2:$A$366913,'Worst Day Profiles'!$C3,'Source Data'!$E$2:$E$366913,'Worst Day Profiles'!U$1,'Source Data'!$F$2:$F$366913,$B3,'Source Data'!$G$2:$G$366913,$A3) -> 0.002806682254 | V3: =SUMIFS('Source Data'!$I$2:$I$366913,'Source Data'!$A$2:$A$366913,'Worst Day Profiles'!$C3,'Source Data'!$E$2:$E$366913,'Worst Day Profiles'!V$1,'Source Data'!$F$2:$F$366913,$B3,'Source Data'!$G$2:$G$366913,$A3) -> 3.409794694e-08 | W3: =SUMIFS('Source Data'!$I$2:$I$366913,'Source Data'!$A$2:$A$366913,'Worst Day Profiles'!$C3,'Source Data'!$E$2:$E$366913,'Worst Day Profiles'!W$1,'Source Data'!$F$2:$F$366913,$B3,'Source Data'!$G$2:$G$366913,$A3) -> 0 | X3: =SUMIFS('Source Data'!$I$2:$I$366913,'Source Data'!$A$2:$A$366913,'Worst Day Profiles'!$C3,'Source Data'!$E$2:$E$366913,'Worst Day Profiles'!X$1,'Source Data'!$F$2:$F$366913,$B3,'Source Data'!$G$2:$G$366913,$A3) -> 0 | Y3: =SUMIFS('Source Data'!$I$2:$I$366913,'Source Data'!$A$2:$A$366913,'Worst Day Profiles'!$C3,'Source Data'!$E$2:$E$366913,'Worst Day Profiles'!Y$1,'Source Data'!$F$2:$F$366913,$B3,'Source Data'!$G$2:$G$366913,$A3) -> 0 | Z3: =SUMIFS('Source Data'!$I$2:$I$366913,'Source Data'!$A$2:$A$366913,'Worst Day Profiles'!$C3,'Source Data'!$E$2:$E$366913,'Worst Day Profiles'!Z$1,'Source Data'!$F$2:$F$366913,$B3,'Source Data'!$G$2:$G$366913,$A3) -> 0 | AA3: =SUMIFS('Source Data'!$I$2:$I$366913,'Source Data'!$A$2:$A$366913,'Worst Day Profiles'!$C3,'Source Data'!$E$2:$E$366913,'Worst Day Profiles'!AA$1,'Source Data'!$F$2:$F$366913,$B3,'Source Data'!$G$2:$G$366913,$A3) -> 0 | AB3: =SUMIFS('Source Data'!$I$2:$I$366913,'Source Data'!$A$2:$A$366913,'Worst Day Profiles'!$C3,'Source Data'!$E$2:$E$366913,'Worst Day Profiles'!AB$1,'Source Data'!$F$2:$F$366913,$B3,'Source Data'!$G$2:$G$366913,$A3) -> 0
A4: Solar Fixed | B4: North | C4: 43122 | D4: 1 | E4: =SUMIFS('Source Data'!$I$2:$I$366913,'Source Data'!$A$2:$A$366913,'Worst Day Profiles'!$C4,'Source Data'!$E$2:$E$366913,'Worst Day Profiles'!E$1,'Source Data'!$F$2:$F$366913,$B4,'Source Data'!$G$2:$G$366913,$A4) -> 0 | F4: =SUMIFS('Source Data'!$I$2:$I$366913,'Source Data'!$A$2:$A$366913,'Worst Day Profiles'!$C4,'Source Data'!$E$2:$E$366913,'Worst Day Profiles'!F$1,'Source Data'!$F$2:$F$366913,$B4,'Source Data'!$G$2:$G$366913,$A4) -> 0 | G4: =SUMIFS('Source Data'!$I$2:$I$366913,'Source Data'!$A$2:$A$366913,'Worst Day Profiles'!$C4,'Source Data'!$E$2:$E$366913,'Worst Day Profiles'!G$1,'Source Data'!$F$2:$F$366913,$B4,'Source Data'!$G$2:$G$366913,$A4) -> 0 | H4: =SUMIFS('Source Data'!$I$2:$I$366913,'Source Data'!$A$2:$A$366913,'Worst Day Profiles'!$C4,'Source Data'!$E$2:$E$366913,'Worst Day Profiles'!H$1,'Source Data'!$F$2:$F$366913,$B4,'Source Data'!$G$2:$G$366913,$A4) -> 0 | I4: =SUMIFS('Source Data'!$I$2:$I$366913,'Source Data'!$A$2:$A$366913,'Worst Day Profiles'!$C4,'Source Data'!$E$2:$E$366913,'Worst Day Profiles'!I$1,'Source Data'!$F$2:$F$366913,$B4,'Source Data'!$G$2:$G$366913,$A4) -> 0 | J4: =SUMIFS('Source Data'!$I$2:$I$366913,'Source Data'!$A$2:$A$366913,'Worst Day Profiles'!$C4,'Source Data'!$E$2:$E$366913,'Worst Day Profiles'!J$1,'Source Data'!$F$2:$F$366913,$B4,'Source Data'!$G$2:$G$366913,$A4) -> 0 | K4: =SUMIFS('Source Data'!$I$2:$I$366913,'Source Data'!$A$2:$A$366913,'Worst Day Profiles'!$C4,'Source Data'!$E$2:$E$366913,'Worst Day Profiles'!K$1,'Source Data'!$F$2:$F$366913,$B4,'Source Data'!$G$2:$G$366913,$A4) -> 0 | L4: =SUMIFS('Source Data'!$I$2:$I$366913,'Source Data'!$A$2:$A$366913,'Worst Day Profiles'!$C4,'Source Data'!$E$2:$E$366913,'Worst Day Profiles'!L$1,'Source Data'!$F$2:$F$366913,$B4,'Source Data'!$G$2:$G$366913,$A4) -> 0.06960416674 | M4: =SUMIFS('Source Data'!$I$2:$I$366913,'Source Data'!$A$2:$A$366913,'Worst Day Profiles'!$C4,'Source Data'!$E$2:$E$366913,'Worst Day Profiles'!M$1,'Source Data'!$F$2:$F$366913,$B4,'Source Data'!$G$2:$G$366913,$A4) -> 0.4277875251 | N4: =SUMIFS('Source Data'!$I$2:$I$366913,'Source Data'!$A$2:$A$366913,'Worst Day Profiles'!$C4,'Source Data'!$E$2:$E$366913,'Worst Day Profiles'!N$1,'Source Data'!$F$2:$F$366913,$B4,'Source Data'!$G$2:$G$366913,$A4) -> 0.7092285721 | O4: =SUMIFS('Source Data'!$I$2:$I$366913,'Source Data'!$A$2:$A$366913,'Worst Day Profiles'!$C4,'Source Data'!$E$2:$E$366913,'Worst Day Profiles'!O$1,'Source Data'!$F$2:$F$366913,$B4,'Source Data'!$G$2:$G$366913,$A4) -> 0.7872622291 | P4: =SUMIFS('Source Data'!$I$2:$I$366913,'Source Data'!$A$2:$A$366913,'Worst Day Profiles'!$C4,'Source Data'!$E$2:$E$366913,'Worst Day Profiles'!P$1,'Source Data'!$F$2:$F$366913,$B4,'Source Data'!$G$2:$G$366913,$A4) -> 0.7925475373 | Q4: =SUMIFS('Source Data'!$I$2:$I$366913,'Source Data'!$A$2:$A$366913,'Worst Day Profiles'!$C4,'Source Data'!$E$2:$E$366913,'Worst Day Profiles'!Q$1,'Source Data'!$F$2:$F$366913,$B4,'Source Data'!$G$2:$G$366913,$A4) -> 0.793156271 | R4: =SUMIFS('Source Data'!$I$2:$I$366913,'Source Data'!$A$2:$A$366913,'Worst Day Profiles'!$C4,'Source Data'!$E$2:$E$366913,'Worst Day Profiles'!R$1,'Source Data'!$F$2:$F$366913,$B4,'Source Data'!$G$2:$G$366913,$A4) -> 0.7828394571 | S4: =SUMIFS('Source Data'!$I$2:$I$366913,'Source Data'!$A$2:$A$366913,'Worst Day Profiles'!$C4,'Source Data'!$E$2:$E$366913,'Worst Day Profiles'!S$1,'Source Data'!$F$2:$F$366913,$B4,'Source Data'!$G$2:$G$366913,$A4) -> 0.7072714422 | T4: =SUMIFS('Source Data'!$I$2:$I$366913,'Source Data'!$A$2:$A$366913,'Worst Day Profiles'!$C4,'Source Data'!$E$2:$E$366913,'Worst Day Profiles'!T$1,'Source Data'!$F$2:$F$366913,$B4,'Source Data'!$G$2:$G$366913,$A4) -> 0.5305438875 | U4: =SUMIFS('Source Data'!$I$2:$I$366913,'Source Data'!$A$2:$A$366913,'Worst Day Profiles'!$C4,'Source Data'!$E$2:$E$366913,'Worst Day Profiles'!U$1,'Source Data'!$F$2:$F$366913,$B4,'Source Data'!$G$2:$G$366913,$A4) -> 0.1426754113 | V4: =SUMIFS('Source Data'!$I$2:$I$366913,'Source Data'!$A$2:$A$366913,'Worst Day Profiles'!$C4,'Source Data'!$E$2:$E$366913,'Worst Day Profiles'!V$1,'Source Data'!$F$2:$F$366913,$B4,'Source Data'!$G$2:$G$366913,$A4) -> 0.001916784169 | W4: =SUMIFS('Source Data'!$I$2:$I$366913,'Source Data'!$A$2:$A$366913,'Worst Day Profiles'!$C4,'Source Data'!$E$2:$E$366913,'Worst Day Profiles'!W$1,'Source Data'!$F$2:$F$366913,$B4,'Source Data'!$G$2:$G$366913,$A4) -> 7.193016678e-11 | X4: =SUMIFS('Source Data'!$I$2:$I$366913,'Source Data'!$A$2:$A$366913,'Worst Day Profiles'!$C4,'Source Data'!$E$2:$E$366913,'Worst Day Profiles'!X$1,'Source Data'!$F$2:$F$366913,$B4,'Source Data'!$G$2:$G$366913,$A4) -> 0 | Y4: =SUMIFS('Source Data'!$I$2:$I$366913,'Source Data'!$A$2:$A$366913,'Worst Day Profiles'!$C4,'Source Data'!$E$2:$E$366913,'Worst Day Profiles'!Y$1,'Source Data'!$F$2:$F$366913,$B4,'Source Data'!$G$2:$G$366913,$A4) -> 0 | Z4: =SUMIFS('Source Data'!$I$2:$I$366913,'Source Data'!$A$2:$A$366913,'Worst Day Profiles'!$C4,'Source Data'!$E$2:$E$366913,'Worst Day Profiles'!Z$1,'Source Data'!$F$2:$F$366913,$B4,'Source Data'!$G$2:$G$366913,$A4) -> 1.578806203e-10 | AA4: =SUMIFS('Source Data'!$I$2:$I$366913,'Source Data'!$A$2:$A$366913,'Worst Day Profiles'!$C4,'Source Data'!$E$2:$E$366913,'Worst Day Profiles'!AA$1,'Source Data'!$F$2:$F$366913,$B4,'Source Data'!$G$2:$G$366913,$A4) -> 0 | AB4: =SUMIFS('Source Data'!$I$2:$I$366913,'Source Data'!$A$2:$A$366913,'Worst Day Profiles'!$C4,'Source Data'!$E$2:$E$366913,'Worst Day Profiles'!AB$1,'Source Data'!$F$2:$F$366913,$B4,'Source Data'!$G$2:$G$366913,$A4) -> 0
A5: Solar Fixed | B5: North | C5: 43125 | D5: 1 | E5: =SUMIFS('Source Data'!$I$2:$I$366913,'Source Data'!$A$2:$A$366913,'Worst Day Profiles'!$C5,'Source Data'!$E$2:$E$366913,'Worst Day Profiles'!E$1,'Source Data'!$F$2:$F$366913,$B5,'Source Data'!$G$2:$G$366913,$A5) -> 0 | F5: =SUMIFS('Source Data'!$I$2:$I$366913,'Source Data'!$A$2:$A$366913,'Worst Day Profiles'!$C5,'Source Data'!$E$2:$E$366913,'Worst Day Profiles'!F$1,'Source Data'!$F$2:$F$366913,$B5,'Source Data'!$G$2:$G$366913,$A5) -> 0 | G5: =SUMIFS('Source Data'!$I$2:$I$366913,'Source Data'!$A$2:$A$366913,'Worst Day Profiles'!$C5,'Source Data'!$E$2:$E$366913,'Worst Day Profiles'!G$1,'Source Data'!$F$2:$F$366913,$B5,'Source Data'!$G$2:$G$366913,$A5) -> 0 | H5: =SUMIFS('Source Data'!$I$2:$I$366913,'Source Data'!$A$2:$A$366913,'Worst Day Profiles'!$C5,'Source Data'!$E$2:$E$366913,'Worst Day Profiles'!H$1,'Source Data'!$F$2:$F$366913,$B5,'Source Data'!$G$2:$G$366913,$A5) -> 0 | I5: =SUMIFS('Source Data'!$I$2:$I$366913,'Source Data'!$A$2:$A$366913,'Worst Day Profiles'!$C5,'Source Data'!$E$2:$E$366913,'Worst Day Profiles'!I$1,'Source Data'!$F$2:$F$366913,$B5,'Source Data'!$G$2:$G$366913,$A5) -> 0 | J5: =SUMIFS('Source Data'!$I$2:$I$366913,'Source Data'!$A$2:$A$366913,'Worst Day Profiles'!$C5,'Source Data'!$E$2:$E$366913,'Worst Day Profiles'!J$1,'Source Data'!$F$2:$F$366913,$B5,'Source Data'!$G$2:$G$366913,$A5) -> 0 | K5: =SUMIFS('Source Data'!$I$2:$I$366913,'Source Data'!$A$2:$A$366913,'Worst Day Profiles'!$C5,'Source Data'!$E$2:$E$366913,'Worst Day Profiles'!K$1,'Source Data'!$F$2:$F$366913,$B5,'Source Data'!$G$2:$G$366913,$A5) -> 0 | L5: =SUMIFS('Source Data'!$I$2:$I$366913,'Source Data'!$A$2:$A$366913,'Worst Day Profiles'!$C5,'Source Data'!$E$2:$E$366913,'Worst Day Profiles'!L$1,'Source Data'!$F$2:$F$366913,$B5,'Source Data'!$G$2:$G$366913,$A5) -> 0.02823406142 | M5: =SUMIFS('Source Data'!$I$2:$I$366913,'Source Data'!$A$2:$A$366913,'Worst Day Profiles'!$C5,'Source Data'!$E$2:$E$366913,'Worst Day Profiles'!M$1,'Source Data'!$F$2:$F$366913,$B5,'Source Data'!$G$2:$G$366913,$A5) -> 0.2318597019 | N5: =SUMIFS('Source Data'!$I$2:$I$366913,'Source Data'!$A$2:$A$366913,'Worst Day Profiles'!$C5,'Source Data'!$E$2:$E$366913,'Worst Day Profiles'!N$1,'Source Data'!$F$2:$F$366913,$B5,'Source Data'!$G$2:$G$366913,$A5) -> 0.5109598711 | O5: =SUMIFS('Source Data'!$I$2:$I$366913,'Source Data'!$A$2:$A$366913,'Worst Day Profiles'!$C5,'Source Data'!$E$2:$E$366913,'Worst Day Profiles'!O$1,'Source Data'!$F$2:$F$366913,$B5,'Source Data'!$G$2:$G$366913,$A5) -> 0.6479928103 | P5: =SUMIFS('Source Data'!$I$2:$I$366913,'Source Data'!$A$2:$A$366913,'Worst Day Profiles'!$C5,'Source Data'!$E$2:$E$366913,'Worst Day Profiles'!P$1,'Source Data'!$F$2:$F$366913,$B5,'Source Data'!$G$2:$G$366913,$A5) -> 0.6410058652 | Q5: =SUMIFS('Source Data'!$I$2:$I$366913,'Source Data'!$A$2:$A$366913,'Worst Day Profiles'!$C5,'Source Data'!$E$2:$E$366913,'Worst Day Profiles'!Q$1,'Source Data'!$F$2:$F$366913,$B5,'Source Data'!$G$2:$G$366913,$A5) -> 0.6684027302 | R5: =SUMIFS('Source Data'!$I$2:$I$366913,'Source Data'!$A$2:$A$366913,'Worst Day Profiles'!$C5,'Source Data'!$E$2:$E$366913,'Worst Day Profiles'!R$1,'Source Data'!$F$2:$F$366913,$B5,'Source Data'!$G$2:$G$366913,$A5) -> 0.7048417648 | S5: =SUMIFS('Source Data'!$I$2:$I$366913,'Source Data'!$A$2:$A$366913,'Worst Day Profiles'!$C5,'Source Data'!$E$2:$E$366913,'Worst Day Profiles'!S$1,'Source Data'!$F$2:$F$366913,$B5,'Source Data'!$G$2:$G$366913,$A5) -> 0.5661937425 | T5: =SUMIFS('Source Data'!$I$2:$I$366913,'Source Data'!$A$2:$A$366913,'Worst Day Profiles'!$C5,'Source Data'!$E$2:$E$366913,'Worst Day Profiles'!T$1,'Source Data'!$F$2:$F$366913,$B5,'Source Data'!$G$2:$G$366913,$A5) -> 0.3071347239 | U5: =SUMIFS('Source Data'!$I$2:$I$366913,'Source Data'!$A$2:$A$366913,'Worst Day Profiles'!$C5,'Source Data'!$E$2:$E$366913,'Worst Day Profiles'!U$1,'Source Data'!$F$2:$F$366913,$B5,'Source Data'!$G$2:$G$366913,$A5) -> 0.1161006102 | V5: =SUMIFS('Source Data'!$I$2:$I$366913,'Source Data'!$A$2:$A$366913,'Worst Day Profiles'!$C5,'Source Data'!$E$2:$E$366913,'Worst Day Profiles'!V$1,'Source Data'!$F$2:$F$366913,$B5,'Source Data'!$G$2:$G$366913,$A5) -> 0.004020576086 | W5: =SUMIFS('Source Data'!$I$2:$I$366913,'Source Data'!$A$2:$A$366913,'Worst Day Profiles'!$C5,'Source Data'!$E$2:$E$366913,'Worst Day Profiles'!W$1,'Source Data'!$F$2:$F$366913,$B5,'Source Data'!$G$2:$G$366913,$A5) -> 0 | X5: =SUMIFS('Source Data'!$I$2:$I$366913,'Source Data'!$A$2:$A$366913,'Worst Day Profiles'!$C5,'Source Data'!$E$2:$E$366913,'Worst Day Profiles'!X$1,'Source Data'!$F$2:$F$366913,$B5,'Source Data'!$G$2:$G$366913,$A5) -> 0 | Y5: =SUMIFS('Source Data'!$I$2:$I$366913,'Source Data'!$A$2:$A$366913,'Worst Day Profiles'!$C5,'Source Data'!$E$2:$E$366913,'Worst Day Profiles'!Y$1,'Source Data'!$F$2:$F$366913,$B5,'Source Data'!$G$2:$G$366913,$A5) -> 0 | Z5: =SUMIFS('Source Data'!$I$2:$I$366913,'Source Data'!$A$2:$A$366913,'Worst Day Profiles'!$C5,'Source Data'!$E$2:$E$366913,'Worst Day Profiles'!Z$1,'Source Data'!$F$2:$F$366913,$B5,'Source Data'!$G$2:$G$366913,$A5) -> 0 | AA5: =SUMIFS('Source Data'!$I$2:$I$366913,'Source Data'!$A$2:$A$366913,'Worst Day Profiles'!$C5,'Source Data'!$E$2:$E$366913,'Worst Day Profiles'!AA$1,'Source Data'!$F$2:$F$366913,$B5,'Source Data'!$G$2:$G$366913,$A5) -> 0 | AB5: =SUMIFS('Source Data'!$I$2:$I$366913,'Source Data'!$A$2:$A$366913,'Worst Day Profiles'!$C5,'Source Data'!$E$2:$E$366913,'Worst Day Profiles'!AB$1,'Source Data'!$F$2:$F$366913,$B5,'Source Data'!$G$2:$G$366913,$A5) -> 0
A6: Solar Fixed | B6: North | C6: 43103 | D6: 1 | E6: =SUMIFS('Source Data'!$I$2:$I$366913,'Source Data'!$A$2:$A$366913,'Worst Day Profiles'!$C6,'Source Data'!$E$2:$E$366913,'Worst Day Profiles'!E$1,'Source Data'!$F$2:$F$366913,$B6,'Source Data'!$G$2:$G$366913,$A6) -> 0 | F6: =SUMIFS('Source Data'!$I$2:$I$366913,'Source Data'!$A$2:$A$366913,'Worst Day Profiles'!$C6,'Source Data'!$E$2:$E$366913,'Worst Day Profiles'!F$1,'Source Data'!$F$2:$F$366913,$B6,'Source Data'!$G$2:$G$366913,$A6) -> 0 | G6: =SUMIFS('Source Data'!$I$2:$I$366913,'Source Data'!$A$2:$A$366913,'Worst Day Profiles'!$C6,'Source Data'!$E$2:$E$366913,'Worst Day Profiles'!G$1,'Source Data'!$F$2:$F$366913,$B6,'Source Data'!$G$2:$G$366913,$A6) -> 0 | H6: =SUMIFS('Source Data'!$I$2:$I$366913,'Source Data'!$A$2:$A$366913,'Worst Day Profiles'!$C6,'Source Data'!$E$2:$E$366913,'Worst Day Profiles'!H$1,'Source Data'!$F$2:$F$366913,$B6,'Source Data'!$G$2:$G$366913,$A6) -> 0 | I6: =SUMIFS('Source Data'!$I$2:$I$366913,'Source Data'!$A$2:$A$366913,'Worst Day Profiles'!$C6,'Source Data'!$E$2:$E$366913,'Worst Day Profiles'!I$1,'Source Data'!$F$2:$F$366913,$B6,'Source Data'!$G$2:$G$366913,$A6) -> 0 | J6: =SUMIFS('Source Data'!$I$2:$I$366913,'Source Data'!$A$2:$A$366913,'Worst Day Profiles'!$C6,'Source Data'!$E$2:$E$366913,'Worst Day Profiles'!J$1,'Source Data'!$F$2:$F$366913,$B6,'Source Data'!$G$2:$G$366913,$A6) -> 0 | K6: =SUMIFS('Source Data'!$I$2:$I$366913,'Source Data'!$A$2:$A$366913,'Worst Day Profiles'!$C6,'Source Data'!$E$2:$E$366913,'Worst Day Profiles'!K$1,'Source Data'!$F$2:$F$366913,$B6,'Source Data'!$G$2:$G$366913,$A6) -> 0 | L6: =SUMIFS('Source Data'!$I$2:$I$366913,'Source Data'!$A$2:$A$366913,'Worst Day Profiles'!$C6,'Source Data'!$E$2:$E$366913,'Worst Day Profiles'!L$1,'Source Data'!$F$2:$F$366913,$B6,'Source Data'!$G$2:$G$366913,$A6) -> 0.0385864576 | M6: =SUMIFS('Source Data'!$I$2:$I$366913,'Source Data'!$A$2:$A$366913,'Worst Day Profiles'!$C6,'Source Data'!$E$2:$E$366913,'Worst Day Profiles'!M$1,'Source Data'!$F$2:$F$366913,$B6,'Source Data'!$G$2:$G$366913,$A6) -> 0.2075145451 | N6: =SUMIFS('Source Data'!$I$2:$I$366913,'Source Data'!$A$2:$A$366913,'Worst Day Profiles'!$C6,'Source Data'!$E$2:$E$366913,'Worst Day Profiles'!N$1,'Source Data'!$F$2:$F$366913,$B6,'Source Data'!$G$2:$G$366913,$A6) -> 0.4154667163 | O6: =SUMIFS('Source Data'!$I$2:$I$366913,'Source Data'!$A$2:$A$366913,'Worst Day Profiles'!$C6,'Source Data'!$E$2:$E$366913,'Worst Day Profiles'!O$1,'Source Data'!$F$2:$F$366913,$B6,'Source Data'!$G$2:$G$366913,$A6) -> 0.4927942249 | P6: =SUMIFS('Source Data'!$I$2:$I$366913,'Source Data'!$A$2:$A$366913,'Worst Day Profiles'!$C6,'Source Data'!$E$2:$E$366913,'Worst Day Profiles'!P$1,'Source Data'!$F$2:$F$366913,$B6,'Source Data'!$G$2:$G$366913,$A6) -> 0.3400152873 | Q6: =SUMIFS('Source Data'!$I$2:$I$366913,'Source Data'!$A$2:$A$366913,'Worst Day Profiles'!$C6,'Source Data'!$E$2:$E$366913,'Worst Day Profiles'!Q$1,'Source Data'!$F$2:$F$366913,$B6,'Source Data'!$G$2:$G$366913,$A6) -> 0.1829314512 | R6: =SUMIFS('Source Data'!$I$2:$I$366913,'Source Data'!$A$2:$A$366913,'Worst Day Profiles'!$C6,'Source Data'!$E$2:$E$366913,'Worst Day Profiles'!R$1,'Source Data'!$F$2:$F$366913,$B6,'Source Data'!$G$2:$G$366913,$A6) -> 0.1039763848 | S6: =SUMIFS('Source Data'!$I$2:$I$366913,'Source Data'!$A$2:$A$366913,'Worst Day Profiles'!$C6,'Source Data'!$E$2:$E$366913,'Worst Day Profiles'!S$1,'Source Data'!$F$2:$F$366913,$B6,'Source Data'!$G$2:$G$366913,$A6) -> 0.07275913853 | T6: =SUMIFS('Source Data'!$I$2:$I$366913,'Source Data'!$A$2:$A$366913,'Worst Day Profiles'!$C6,'Source Data'!$E$2:$E$366913,'Worst Day Profiles'!T$1,'Source Data'!$F$2:$F$366913,$B6,'Source Data'!$G$2:$G$366913,$A6) -> 0.02776229053 | U6: =SUMIFS('Source Data'!$I$2:$I$366913,'Source Data'!$A$2:$A$366913,'Worst Day Profiles'!$C6,'Source Data'!$E$2:$E$366913,'Worst Day Profiles'!U$1,'Source Data'!$F$2:$F$366913,$B6,'Source Data'!$G$2:$G$366913,$A6) -> 0.01133808545 | V6: =SUMIFS('Source Data'!$I$2:$I$366913,'Source Data'!$A$2:$A$366913,'Worst Day Profiles'!$C6,'Source Data'!$E$2:$E$366913,'Worst Day Profiles'!V$1,'Source Data'!$F$2:$F$366913,$B6,'Source Data'!$G$2:$G$366913,$A6) -> 1.665908758e-07 | W6: =SUMIFS('Source Data'!$I$2:$I$366913,'Source Data'!$A$2:$A$366913,'Worst Day Profiles'!$C6,'Source Data'!$E$2:$E$366913,'Worst Day Profiles'!W$1,'Source Data'!$F$2:$F$366913,$B6,'Source Data'!$G$2:$G$366913,$A6) -> 0 | X6: =SUMIFS('Source Data'!$I$2:$I$366913,'Source Data'!$A$2:$A$366913,'Worst Day Profiles'!$C6,'Source Data'!$E$2:$E$366913,'Worst Day Profiles'!X$1,'Source Data'!$F$2:$F$366913,$B6,'Source Data'!$G$2:$G$366913,$A6) -> 0 | Y6: =SUMIFS('Source Data'!$I$2:$I$366913,'Source Data'!$A$2:$A$366913,'Worst Day Profiles'!$C6,'Source Data'!$E$2:$E$366913,'Worst Day Profiles'!Y$1,'Source Data'!$F$2:$F$366913,$B6,'Source Data'!$G$2:$G$366913,$A6) -> 0 | Z6: =SUMIFS('Source Data'!$I$2:$I$366913,'Source Data'!$A$2:$A$366913,'Worst Day Profiles'!$C6,'Source Data'!$E$2:$E$366913,'Worst Day Profiles'!Z$1,'Source Data'!$F$2:$F$366913,$B6,'Source Data'!$G$2:$G$366913,$A6) -> 0 | AA6: =SUMIFS('Source Data'!$I$2:$I$366913,'Source Data'!$A$2:$A$366913,'Worst Day Profiles'!$C6,'Source Data'!$E$2:$E$366913,'Worst Day Profiles'!AA$1,'Source Data'!$F$2:$F$366913,$B6,'Source Data'!$G$2:$G$366913,$A6) -> 0 | AB6: =SUMIFS('Source Data'!$I$2:$I$366913,'Source Data'!$A$2:$A$366913,'Worst Day Profiles'!$C6,'Source Data'!$E$2:$E$366913,'Worst Day Profiles'!AB$1,'Source Data'!$F$2:$F$366913,$B6,'Source Data'!$G$2:$G$366913,$A6) -> 0
A7: Solar Fixed | B7: North | C7: 43151 | D7: 2 | E7: =SUMIFS('Source Data'!$I$2:$I$366913,'Source Data'!$A$2:$A$366913,'Worst Day Profiles'!$C7,'Source Data'!$E$2:$E$366913,'Worst Day Profiles'!E$1,'Source Data'!$F$2:$F$366913,$B7,'Source Data'!$G$2:$G$366913,$A7) -> 0 | F7: =SUMIFS('Source Data'!$I$2:$I$366913,'Source Data'!$A$2:$A$366913,'Worst Day Profiles'!$C7,'Source Data'!$E$2:$E$366913,'Worst Day Profiles'!F$1,'Source Data'!$F$2:$F$366913,$B7,'Source Data'!$G$2:$G$366913,$A7) -> 0 | G7: =SUMIFS('Source Data'!$I$2:$I$366913,'Source Data'!$A$2:$A$366913,'Worst Day Profiles'!$C7,'Source Data'!$E$2:$E$366913,'Worst Day Profiles'!G$1,'Source Data'!$F$2:$F$366913,$B7,'Source Data'!$G$2:$G$366913,$A7) -> 0 | H7: =SUMIFS('Source Data'!$I$2:$I$366913,'Source Data'!$A$2:$A$366913,'Worst Day Profiles'!$C7,'Source Data'!$E$2:$E$366913,'Worst Day Profiles'!H$1,'Source Data'!$F$2:$F$366913,$B7,'Source Data'!$G$2:$G$366913,$A7) -> 0 | I7: =SUMIFS('Source Data'!$I$2:$I$366913,'Source Data'!$A$2:$A$366913,'Worst Day Profiles'!$C7,'Source Data'!$E$2:$E$366913,'Worst Day Profiles'!I$1,'Source Data'!$F$2:$F$366913,$B7,'Source Data'!$G$2:$G$366913,$A7) -> 0 | J7: =SUMIFS('Source Data'!$I$2:$I$366913,'Source Data'!$A$2:$A$366913,'Worst Day Profiles'!$C7,'Source Data'!$E$2:$E$366913,'Worst Day Profiles'!J$1,'Source Data'!$F$2:$F$366913,$B7,'Source Data'!$G$2:$G$366913,$A7) -> 0 | K7: =SUMIFS('Source Data'!$I$2:$I$366913,'Source Data'!$A$2:$A$366913,'Worst Day Profiles'!$C7,'Source Data'!$E$2:$E$366913,'Worst Day Profiles'!K$1,'Source Data'!$F$2:$F$366913,$B7,'Source Data'!$G$2:$G$366913,$A7) -> 0.003187554214 | L7: =SUMIFS('Source Data'!$I$2:$I$366913,'Source Data'!$A$2:$A$366913,'Worst Day Profiles'!$C7,'Source Data'!$E$2:$E$366913,'Worst Day Profiles'!L$1,'Source Data'!$F$2:$F$366913,$B7,'Source Data'!$G$2:$G$366913,$A7) -> 0.239415952 | M7: =SUMIFS('Source Data'!$I$2:$I$366913,'Source Data'!$A$2:$A$366913,'Worst Day Profiles'!$C7,'Source Data'!$E$2:$E$366913,'Worst Day Profiles'!M$1,'Source Data'!$F$2:$F$366913,$B7,'Source Data'!$G$2:$G$366913,$A7) -> 0.6612050599 | N7: =SUMIFS('Source Data'!$I$2:$I$366913,'Source Data'!$A$2:$A$366913,'Worst Day Profiles'!$C7,'Source Data'!$E$2:$E$366913,'Worst Day Profiles'!N$1,'Source Data'!$F$2:$F$366913,$B7,'Source Data'!$G$2:$G$366913,$A7) -> 0.8514041442 | O7: =SUMIFS('Source Data'!$I$2:$I$366913,'Source Data'!$A$2:$A$366913,'Worst Day Profiles'!$C7,'Source Data'!$E$2:$E$366913,'Worst Day Profiles'!O$1,'Source Data'!$F$2:$F$366913,$B7,'Source Data'!$G$2:$G$366913,$A7) -> 0.905041923 | P7: =SUMIFS('Source Data'!$I$2:$I$366913,'Source Data'!$A$2:$A$366913,'Worst Day Profiles'!$C7,'Source Data'!$E$2:$E$366913,'Worst Day Profiles'!P$1,'Source Data'!$F$2:$F$366913,$B7,'Source Data'!$G$2:$G$366913,$A7) -> 0.8948351038 | Q7: =SUMIFS('Source Data'!$I$2:$I$366913,'Source Data'!$A$2:$A$366913,'Worst Day Profiles'!$C7,'Source Data'!$E$2:$E$366913,'Worst Day Profiles'!Q$1,'Source Data'!$F$2:$F$366913,$B7,'Source Data'!$G$2:$G$366913,$A7) -> 0.889970393 | R7: =SUMIFS('Source Data'!$I$2:$I$366913,'Source Data'!$A$2:$A$366913,'Worst Day Profiles'!$C7,'Source Data'!$E$2:$E$366913,'Worst Day Profiles'!R$1,'Source Data'!$F$2:$F$366913,$B7,'Source Data'!$G$2:$G$366913,$A7) -> 0.8938051555 | S7: =SUMIFS('Source Data'!$I$2:$I$366913,'Source Data'!$A$2:$A$366913,'Worst Day Profiles'!$C7,'Source Data'!$E$2:$E$366913,'Worst Day Profiles'!S$1,'Source Data'!$F$2:$F$366913,$B7,'Source Data'!$G$2:$G$366913,$A7) -> 0.8780824076 | T7: =SUMIFS('Source Data'!$I$2:$I$366913,'Source Data'!$A$2:$A$366913,'Worst Day Profiles'!$C7,'Source Data'!$E$2:$E$366913,'Worst Day Profiles'!T$1,'Source Data'!$F$2:$F$366913,$B7,'Source Data'!$G$2:$G$366913,$A7) -> 0.6891006011 | U7: =SUMIFS('Source Data'!$I$2:$I$366913,'Source Data'!$A$2:$A$366913,'Worst Day Profiles'!$C7,'Source Data'!$E$2:$E$366913,'Worst Day Profiles'!U$1,'Source Data'!$F$2:$F$366913,$B7,'Source Data'!$G$2:$G$366913,$A7) -> 0.4167201441 | V7: =SUMIFS('Source Data'!$I$2:$I$366913,'Source Data'!$A$2:$A$366913,'Worst Day Profiles'!$C7,'Source Data'!$E$2:$E$366913,'Worst Day Profiles'!V$1,'Source Data'!$F$2:$F$366913,$B7,'Source Data'!$G$2:$G$366913,$A7) -> 0.04778345021 | W7: =SUMIFS('Source Data'!$I$2:$I$366913,'Source Data'!$A$2:$A$366913,'Worst Day Profiles'!$C7,'Source Data'!$E$2:$E$366913,'Worst Day Profiles'!W$1,'Source Data'!$F$2:$F$366913,$B7,'Source Data'!$G$2:$G$366913,$A7) -> 0 | X7: =SUMIFS('Source Data'!$I$2:$I$366913,'Source Data'!$A$2:$A$366913,'Worst Day Profiles'!$C7,'Source Data'!$E$2:$E$366913,'Worst Day Profiles'!X$1,'Source Data'!$F$2:$F$366913,$B7,'Source Data'!$G$2:$G$366913,$A7) -> 0 | Y7: =SUMIFS('Source Data'!$I$2:$I$366913,'Source Data'!$A$2:$A$366913,'Worst Day Profiles'!$C7,'Source Data'!$E$2:$E$366913,'Worst Day Profiles'!Y$1,'Source Data'!$F$2:$F$366913,$B7,'Source Data'!$G$2:$G$366913,$A7) -> 0 | Z7: =SUMIFS('Source Data'!$I$2:$I$366913,'Source Data'!$A$2:$A$366913,'Worst Day Profiles'!$C7,'Source Data'!$E$2:$E$366913,'Worst Day Profiles'!Z$1,'Source Data'!$F$2:$F$366913,$B7,'Source Data'!$G$2:$G$366913,$A7) -> 0 | AA7: =SUMIFS('Source Data'!$I$2:$I$366913,'Source Data'!$A$2:$A$366913,'Worst Day Profiles'!$C7,'Source Data'!$E$2:$E$366913,'Worst Day Profiles'!AA$1,'Source Data'!$F$2:$F$366913,$B7,'Source Data'!$G$2:$G$366913,$A7) -> 0 | AB7: =SUMIFS('Source Data'!$I$2:$I$366913,'Source Data'!$A$2:$A$366913,'Worst Day Profiles'!$C7,'Source Data'!$E$2:$E$366913,'Worst Day Profiles'!AB$1,'Source Data'!$F$2:$F$366913,$B7,'Source Data'!$G$2:$G$366913,$A7) -> 0
A8: Solar Fixed | B8: North | C8: 43153 | D8: 2 | E8: =SUMIFS('Source Data'!$I$2:$I$366913,'Source Data'!$A$2:$A$366913,'Worst Day Profiles'!$C8,'Source Data'!$E$2:$E$366913,'Worst Day Profiles'!E$1,'Source Data'!$F$2:$F$366913,$B8,'Source Data'!$G$2:$G$366913,$A8) -> 0 | F8: =SUMIFS('Source Data'!$I$2:$I$366913,'Source Data'!$A$2:$A$366913,'Worst Day Profiles'!$C8,'Source Data'!$E$2:$E$366913,'Worst Day Profiles'!F$1,'Source Data'!$F$2:$F$366913,$B8,'Source Data'!$G$2:$G$366913,$A8) -> 0 | G8: =SUMIFS('Source Data'!$I$2:$I$366913,'Source Data'!$A$2:$A$366913,'Worst Day Profiles'!$C8,'Source Data'!$E$2:$E$366913,'Worst Day Profiles'!G$1,'Source Data'!$F$2:$F$366913,$B8,'Source Data'!$G$2:$G$366913,$A8) -> 0 | H8: =SUMIFS('Source Data'!$I$2:$I$366913,'Source Data'!$A$2:$A$366913,'Worst Day Profiles'!$C8,'Source Data'!$E$2:$E$366913,'Worst Day Profiles'!H$1,'Source Data'!$F$2:$F$366913,$B8,'Source Data'!$G$2:$G$366913,$A8) -> 0 | I8: =SUMIFS('Source Data'!$I$2:$I$366913,'Source Data'!$A$2:$A$366913,'Worst Day Profiles'!$C8,'Source Data'!$E$2:$E$366913,'Worst Day Profiles'!I$1,'Source Data'!$F$2:$F$366913,$B8,'Source Data'!$G$2:$G$366913,$A8) -> 0 | J8: =SUMIFS('Source Data'!$I$2:$I$366913,'Source Data'!$A$2:$A$366913,'Worst Day Profiles'!$C8,'Source Data'!$E$2:$E$366913,'Worst Day Profiles'!J$1,'Source Data'!$F$2:$F$366913,$B8,'Source Data'!$G$2:$G$366913,$A8) -> 0 | K8: =SUMIFS('Source Data'!$I$2:$I$366913,'Source Data'!$A$2:$A$366913,'Worst Day Profiles'!$C8,'Source Data'!$E$2:$E$366913,'Worst Day Profiles'!K$1,'Source Data'!$F$2:$F$366913,$B8,'Source Data'!$G$2:$G$366913,$A8) -> 0.003209188798 | L8: =SUMIFS('Source Data'!$I$2:$I$366913,'Source Data'!$A$2:$A$366913,'Worst Day Profiles'!$C8,'Source Data'!$E$2:$E$366913,'Worst Day Profiles'!L$1,'Source Data'!$F$2:$F$366913,$B8,'Source Data'!$G$2:$G$366913,$A8) -> 0.1923348442 | M8: =SUMIFS('Source Data'!$I$2:$I$366913,'Source Data'!$A$2:$A$366913,'Worst Day Profiles'!$C8,'Source Data'!$E$2:$E$366913,'Worst Day Profiles'!M$1,'Source Data'!$F$2:$F$366913,$B8,'Source Data'!$G$2:$G$366913,$A8) -> 0.599429324 | N8: =SUMIFS('Source Data'!$I$2:$I$366913,'Source Data'!$A$2:$A$366913,'Worst Day Profiles'!$C8,'Source Data'!$E$2:$E$366913,'Worst Day Profiles'!N$1,'Source Data'!$F$2:$F$366913,$B8,'Source Data'!$G$2:$G$366913,$A8) -> 0.7886835538 | O8: =SUMIFS('Source Data'!$I$2:$I$366913,'Source Data'!$A$2:$A$366913,'Worst Day Profiles'!$C8,'Source Data'!$E$2:$E$366913,'Worst Day Profiles'!O$1,'Source Data'!$F$2:$F$366913,$B8,'Source Data'!$G$2:$G$366913,$A8) -> 0.8467830334 | P8: =SUMIFS('Source Data'!$I$2:$I$366913,'Source Data'!$A$2:$A$366913,'Worst Day Profiles'!$C8,'Source Data'!$E$2:$E$366913,'Worst Day Profiles'!P$1,'Source Data'!$F$2:$F$366913,$B8,'Source Data'!$G$2:$G$366913,$A8) -> 0.7944656958 | Q8: =SUMIFS('Source Data'!$I$2:$I$366913,'Source Data'!$A$2:$A$366913,'Worst Day Profiles'!$C8,'Source Data'!$E$2:$E$366913,'Worst Day Profiles'!Q$1,'Source Data'!$F$2:$F$366913,$B8,'Source Data'!$G$2:$G$366913,$A8) -> 0.8203882107 | R8: =SUMIFS('Source Data'!$I$2:$I$366913,'Source Data'!$A$2:$A$366913,'Worst Day Profiles'!$C8,'Source Data'!$E$2:$E$366913,'Worst Day Profiles'!R$1,'Source Data'!$F$2:$F$366913,$B8,'Source Data'!$G$2:$G$366913,$A8) -> 0.8126470392 | S8: =SUMIFS('Source Data'!$I$2:$I$366913,'Source Data'!$A$2:$A$366913,'Worst Day Profiles'!$C8,'Source Data'!$E$2:$E$366913,'Worst Day Profiles'!S$1,'Source Data'!$F$2:$F$366913,$B8,'Source Data'!$G$2:$G$366913,$A8) -> 0.8272118865 | T8: =SUMIFS('Source Data'!$I$2:$I$366913,'Source Data'!$A$2:$A$366913,'Worst Day Profiles'!$C8,'Source Data'!$E$2:$E$366913,'Worst Day Profiles'!T$1,'Source Data'!$F$2:$F$366913,$B8,'Source Data'!$G$2:$G$366913,$A8) -> 0.6885363981 | U8: =SUMIFS('Source Data'!$I$2:$I$366913,'Source Data'!$A$2:$A$366913,'Worst Day Profiles'!$C8,'Source Data'!$E$2:$E$366913,'Worst Day Profiles'!U$1,'Source Data'!$F$2:$F$366913,$B8,'Source Data'!$G$2:$G$366913,$A8) -> 0.3033270463 | V8: =SUMIFS('Source Data'!$I$2:$I$366913,'Source Data'!$A$2:$A$366913,'Worst Day Profiles'!$C8,'Source Data'!$E$2:$E$366913,'Worst Day Profiles'!V$1,'Source Data'!$F$2:$F$366913,$B8,'Source Data'!$G$2:$G$366913,$A8) -> 0.04519787473 | W8: =SUMIFS('Source Data'!$I$2:$I$366913,'Source Data'!$A$2:$A$366913,'Worst Day Profiles'!$C8,'Source Data'!$E$2:$E$366913,'Worst Day Profiles'!W$1,'Source Data'!$F$2:$F$366913,$B8,'Source Data'!$G$2:$G$366913,$A8) -> 0 | X8: =SUMIFS('Source Data'!$I$2:$I$366913,'Source Data'!$A$2:$A$366913,'Worst Day Profiles'!$C8,'Source Data'!$E$2:$E$366913,'Worst Day Profiles'!X$1,'Source Data'!$F$2:$F$366913,$B8,'Source Data'!$G$2:$G$366913,$A8) -> 0 | Y8: =SUMIFS('Source Data'!$I$2:$I$366913,'Source Data'!$A$2:$A$366913,'Worst Day Profiles'!$C8,'Source Data'!$E$2:$E$366913,'Worst Day Profiles'!Y$1,'Source Data'!$F$2:$F$366913,$B8,'Source Data'!$G$2:$G$366913,$A8) -> 0 | Z8: =SUMIFS('Source Data'!$I$2:$I$366913,'Source Data'!$A$2:$A$366913,'Worst Day Profiles'!$C8,'Source Data'!$E$2:$E$366913,'Worst Day Profiles'!Z$1,'Source Data'!$F$2:$F$366913,$B8,'Source Data'!$G$2:$G$366913,$A8) -> 0 | AA8: =SUMIFS('Source Data'!$I$2:$I$366913,'Source Data'!$A$2:$A$366913,'Worst Day Profiles'!$C8,'Source Data'!$E$2:$E$366913,'Worst Day Profiles'!AA$1,'Source Data'!$F$2:$F$366913,$B8,'Source Data'!$G$2:$G$366913,$A8) -> 0 | AB8: =SUMIFS('Source Data'!$I$2:$I$366913,'Source Data'!$A$2:$A$366913,'Worst Day Profiles'!$C8,'Source Data'!$E$2:$E$366913,'Worst Day Profiles'!AB$1,'Source Data'!$F$2:$F$366913,$B8,'Source Data'!$G$2:$G$366913,$A8) -> 0
A9: Solar Fixed | B9: North | C9: 43158 | D9: 2 | E9: =SUMIFS('Source Data'!$I$2:$I$366913,'Source Data'!$A$2:$A$366913,'Worst Day Profiles'!$C9,'Source Data'!$E$2:$E$366913,'Worst Day Profiles'!E$1,'Source Data'!$F$2:$F$366913,$B9,'Source Data'!$G$2:$G$366913,$A9) -> 0 | F9: =SUMIFS('Source Data'!$I$2:$I$366913,'Source Data'!$A$2:$A$366913,'Worst Day Profiles'!$C9,'Source Data'!$E$2:$E$366913,'Worst Day Profiles'!F$1,'Source Data'!$F$2:$F$366913,$B9,'Source Data'!$G$2:$G$366913,$A9) -> 0 | G9: =SUMIFS('Source Data'!$I$2:$I$366913,'Source Data'!$A$2:$A$366913,'Worst Day Profiles'!$C9,'Source Data'!$E$2:$E$366913,'Worst Day Profiles'!G$1,'Source Data'!$F$2:$F$366913,$B9,'Source Data'!$G$2:$G$366913,$A9) -> 0 | H9: =SUMIFS('Source Data'!$I$2:$I$366913,'Source Data'!$A$2:$A$366913,'Worst Day Profiles'!$C9,'Source Data'!$E$2:$E$366913,'Worst Day Profiles'!H$1,'Source Data'!$F$2:$F$366913,$B9,'Source Data'!$G$2:$G$366913,$A9) -> 0 | I9: =SUMIFS('Source Data'!$I$2:$I$366913,'Source Data'!$A$2:$A$366913,'Worst Day Profiles'!$C9,'Source Data'!$E$2:$E$366913,'Worst Day Profiles'!I$1,'Source Data'!$F$2:$F$366913,$B9,'Source Data'!$G$2:$G$366913,$A9) -> 0 | J9: =SUMIFS('Source Data'!$I$2:$I$366913,'Source Data'!$A$2:$A$366913,'Worst Day Profiles'!$C9,'Source Data'!$E$2:$E$366913,'Worst Day Profiles'!J$1,'Source Data'!$F$2:$F$366913,$B9,'Source Data'!$G$2:$G$366913,$A9) -> 0 | K9: =SUMIFS('Source Data'!$I$2:$I$366913,'Source Data'!$A$2:$A$366913,'Worst Day Profiles'!$C9,'Source Data'!$E$2:$E$366913,'Worst Day Profiles'!K$1,'Source Data'!$F$2:$F$366913,$B9,'Source Data'!$G$2:$G$366913,$A9) -> 0.004953805279 | L9: =SUMIFS('Source Data'!$I$2:$I$366913,'Source Data'!$A$2:$A$366913,'Worst Day Profiles'!$C9,'Source Data'!$E$2:$E$366913,'Worst Day Profiles'!L$1,'Source Data'!$F$2:$F$366913,$B9,'Source Data'!$G$2:$G$366913,$A9) -> 0.1775384116 | M9: =SUMIFS('Source Data'!$I$2:$I$366913,'Source Data'!$A$2:$A$366913,'Worst Day Profiles'!$C9,'Source Data'!$E$2:$E$366913,'Worst Day Profiles'!M$1,'Source Data'!$F$2:$F$366913,$B9,'Source Data'!$G$2:$G$366913,$A9) -> 0.3786191473 | N9: =SUMIFS('Source Data'!$I$2:$I$366913,'Source Data'!$A$2:$A$366913,'Worst Day Profiles'!$C9,'Source Data'!$E$2:$E$366913,'Worst Day Profiles'!N$1,'Source Data'!$F$2:$F$366913,$B9,'Source Data'!$G$2:$G$366913,$A9) -> 0.2891264648 | O9: =SUMIFS('Source Data'!$I$2:$I$366913,'Source Data'!$A$2:$A$366913,'Worst Day Profiles'!$C9,'Source Data'!$E$2:$E$366913,'Worst Day Profiles'!O$1,'Source Data'!$F$2:$F$366913,$B9,'Source Data'!$G$2:$G$366913,$A9) -> 0.3841162423 | P9: =SUMIFS('Source Data'!$I$2:$I$366913,'Source Data'!$A$2:$A$366913,'Worst Day Profiles'!$C9,'Source Data'!$E$2:$E$366913,'Worst Day Profiles'!P$1,'Source Data'!$F$2:$F$366913,$B9,'Source Data'!$G$2:$G$366913,$A9) -> 0.4933658472 | Q9: =SUMIFS('Source Data'!$I$2:$I$366913,'Source Data'!$A$2:$A$366913,'Worst Day Profiles'!$C9,'Source Data'!$E$2:$E$366913,'Worst Day Profiles'!Q$1,'Source Data'!$F$2:$F$366913,$B9,'Source Data'!$G$2:$G$366913,$A9) -> 0.6468866033 | R9: =SUMIFS('Source Data'!$I$2:$I$366913,'Source Data'!$A$2:$A$366913,'Worst Day Profiles'!$C9,'Source Data'!$E$2:$E$366913,'Worst Day Profiles'!R$1,'Source Data'!$F$2:$F$366913,$B9,'Source Data'!$G$2:$G$366913,$A9) -> 0.6953101196 | S9: =SUMIFS('Source Data'!$I$2:$I$366913,'Source Data'!$A$2:$A$366913,'Worst Day Profiles'!$C9,'Source Data'!$E$2:$E$366913,'Worst Day Profiles'!S$1,'Source Data'!$F$2:$F$366913,$B9,'Source Data'!$G$2:$G$366913,$A9) -> 0.5812224131 | T9: =SUMIFS('Source Data'!$I$2:$I$366913,'Source Data'!$A$2:$A$366913,'Worst Day Profiles'!$C9,'Source Data'!$E$2:$E$366913,'Worst Day Profiles'!T$1,'Source Data'!$F$2:$F$366913,$B9,'Source Data'!$G$2:$G$366913,$A9) -> 0.6430667602 | U9: =SUMIFS('Source Data'!$I$2:$I$366913,'Source Data'!$A$2:$A$366913,'Worst Day Profiles'!$C9,'Source Data'!$E$2:$E$366913,'Worst Day Profiles'!U$1,'Source Data'!$F$2:$F$366913,$B9,'Source Data'!$G$2:$G$366913,$A9) -> 0.4193138178 | V9: =SUMIFS('Source Data'!$I$2:$I$366913,'Source Data'!$A$2:$A$366913,'Worst Day Profiles'!$C9,'Source Data'!$E$2:$E$366913,'Worst Day Profiles'!V$1,'Source Data'!$F$2:$F$366913,$B9,'Source Data'!$G$2:$G$366913,$A9) -> 0.06122300223 | W9: =SUMIFS('Source Data'!$I$2:$I$366913,'Source Data'!$A$2:$A$366913,'Worst Day Profiles'!$C9,'Source Data'!$E$2:$E$366913,'Worst Day Profiles'!W$1,'Source Data'!$F$2:$F$366913,$B9,'Source Data'!$G$2:$G$366913,$A9) -> 1.304319467e-07 | X9: =SUMIFS('Source Data'!$I$2:$I$366913,'Source Data'!$A$2:$A$366913,'Worst Day Profiles'!$C9,'Source Data'!$E$2:$E$366913,'Worst Day Profiles'!X$1,'Source Data'!$F$2:$F$366913,$B9,'Source Data'!$G$2:$G$366913,$A9) -> 0 | Y9: =SUMIFS('Source Data'!$I$2:$I$366913,'Source Data'!$A$2:$A$366913,'Worst Day Profiles'!$C9,'Source Data'!$E$2:$E$366913,'Worst Day Profiles'!Y$1,'Source Data'!$F$2:$F$366913,$B9,'Source Data'!$G$2:$G$366913,$A9) -> 0 | Z9: =SUMIFS('Source Data'!$I$2:$I$366913,'Source Data'!$A$2:$A$366913,'Worst Day Profiles'!$C9,'Source Data'!$E$2:$E$366913,'Worst Day Profiles'!Z$1,'Source Data'!$F$2:$F$366913,$B9,'Source Data'!$G$2:$G$366913,$A9) -> 0 | AA9: =SUMIFS('Source Data'!$I$2:$I$366913,'Source Data'!$A$2:$A$366913,'Worst Day Profiles'!$C9,'Source Data'!$E$2:$E$366913,'Worst Day Profiles'!AA$1,'Source Data'!$F$2:$F$366913,$B9,'Source Data'!$G$2:$G$366913,$A9) -> 0 | AB9: =SUMIFS('Source Data'!$I$2:$I$366913,'Source Data'!$A$2:$A$366913,'Worst Day Profiles'!$C9,'Source Data'!$E$2:$E$366913,'Worst Day Profiles'!AB$1,'Source Data'!$F$2:$F$366913,$B9,'Source Data'!$G$2:$G$366913,$A9) -> 0
A10: Solar Fixed | B10: North | C10: 43150 | D10: 2 | E10: =SUMIFS('Source Data'!$I$2:$I$366913,'Source Data'!$A$2:$A$366913,'Worst Day Profiles'!$C10,'Source Data'!$E$2:$E$366913,'Worst Day Profiles'!E$1,'Source Data'!$F$2:$F$366913,$B10,'Source Data'!$G$2:$G$366913,$A10) -> 0 | F10: =SUMIFS('Source Data'!$I$2:$I$366913,'Source Data'!$A$2:$A$366913,'Worst Day Profiles'!$C10,'Source Data'!$E$2:$E$366913,'Worst Day Profiles'!F$1,'Source Data'!$F$2:$F$366913,$B10,'Source Data'!$G$2:$G$366913,$A10) -> 0 | G10: =SUMIFS('Source Data'!$I$2:$I$366913,'Source Data'!$A$2:$A$366913,'Worst Day Profiles'!$C10,'Source Data'!$E$2:$E$366913,'Worst Day Profiles'!G$1,'Source Data'!$F$2:$F$366913,$B10,'Source Data'!$G$2:$G$366913,$A10) -> 0 | H10: =SUMIFS('Source Data'!$I$2:$I$366913,'Source Data'!$A$2:$A$366913,'Worst Day Profiles'!$C10,'Source Data'!$E$2:$E$366913,'Worst Day Profiles'!H$1,'Source Data'!$F$2:$F$366913,$B10,'Source Data'!$G$2:$G$366913,$A10) -> 0 | I10: =SUMIFS('Source Data'!$I$2:$I$366913,'Source Data'!$A$2:$A$366913,'Worst Day Profiles'!$C10,'Source Data'!$E$2:$E$366913,'Worst Day Profiles'!I$1,'Source Data'!$F$2:$F$366913,$B10,'Source Data'!$G$2:$G$366913,$A10) -> 0 | J10: =SUMIFS('Source Data'!$I$2:$I$366913,'Source Data'!$A$2:$A$366913,'Worst Day Profiles'!$C10,'Source Data'!$E$2:$E$366913,'Worst Day Profiles'!J$1,'Source Data'!$F$2:$F$366913,$B10,'Source Data'!$G$2:$G$366913,$A10) -> 0 | K10: =SUMIFS('Source Data'!$I$2:$I$366913,'Source Data'!$A$2:$A$366913,'Worst Day Profiles'!$C10,'Source Data'!$E$2:$E$366913,'Worst Day Profiles'!K$1,'Source Data'!$F$2:$F$366913,$B10,'Source Data'!$G$2:$G$366913,$A10) -> 0.0024121723 | L10: =SUMIFS('Source Data'!$I$2:$I$366913,'Source Data'!$A$2:$A$366913,'Worst Day Profiles'!$C10,'Source Data'!$E$2:$E$366913,'Worst Day Profiles'!L$1,'Source Data'!$F$2:$F$366913,$B10,'Source Data'!$G$2:$G$366913,$A10) -> 0.1856114765 | M10: =SUMIFS('Source Data'!$I$2:$I$366913,'Source Data'!$A$2:$A$366913,'Worst Day Profiles'!$C10,'Source Data'!$E$2:$E$366913,'Worst Day Profiles'!M$1,'Source Data'!$F$2:$F$366913,$B10,'Source Data'!$G$2:$G$366913,$A10) -> 0.3399569383 | N10: =SUMIFS('Source Data'!$I$2:$I$366913,'Source Data'!$A$2:$A$366913,'Worst Day Profiles'!$C10,'Source Data'!$E$2:$E$366913,'Worst Day Profiles'!N$1,'Source Data'!$F$2:$F$366913,$B10,'Source Data'!$G$2:$G$366913,$A10) -> 0.4873780633 | O10: =SUMIFS('Source Data'!$I$2:$I$366913,'Source Data'!$A$2:$A$366913,'Worst Day Profiles'!$C10,'Source Data'!$E$2:$E$366913,'Worst Day Profiles'!O$1,'Source Data'!$F$2:$F$366913,$B10,'Source Data'!$G$2:$G$366913,$A10) -> 0.8354787402 | P10: =SUMIFS('Source Data'!$I$2:$I$366913,'Source Data'!$A$2:$A$366913,'Worst Day Profiles'!$C10,'Source Data'!$E$2:$E$366913,'Worst Day Profiles'!P$1,'Source Data'!$F$2:$F$366913,$B10,'Source Data'!$G$2:$G$366913,$A10) -> 0.8123170308 | Q10: =SUMIFS('Source Data'!$I$2:$I$366913,'Source Data'!$A$2:$A$366913,'Worst Day Profiles'!$C10,'Source Data'!$E$2:$E$366913,'Worst Day Profiles'!Q$1,'Source Data'!$F$2:$F$366913,$B10,'Source Data'!$G$2:$G$366913,$A10) -> 0.8185764652 | R10: =SUMIFS('Source Data'!$I$2:$I$366913,'Source Data'!$A$2:$A$366913,'Worst Day Profiles'!$C10,'Source Data'!$E$2:$E$366913,'Worst Day Profiles'!R$1,'Source Data'!$F$2:$F$366913,$B10,'Source Data'!$G$2:$G$366913,$A10) -> 0.6585556088 | S10: =SUMIFS('Source Data'!$I$2:$I$366913,'Source Data'!$A$2:$A$366913,'Worst Day Profiles'!$C10,'Source Data'!$E$2:$E$366913,'Worst Day Profiles'!S$1,'Source Data'!$F$2:$F$366913,$B10,'Source Data'!$G$2:$G$366913,$A10) -> 0.6108433517 | T10: =SUMIFS('Source Data'!$I$2:$I$366913,'Source Data'!$A$2:$A$366913,'Worst Day Profiles'!$C10,'Source Data'!$E$2:$E$366913,'Worst Day Profiles'!T$1,'Source Data'!$F$2:$F$366913,$B10,'Source Data'!$G$2:$G$366913,$A10) -> 0.6015744178 | U10: =SUMIFS('Source Data'!$I$2:$I$366913,'Source Data'!$A$2:$A$366913,'Worst Day Profiles'!$C10,'Source Data'!$E$2:$E$366913,'Worst Day Profiles'!U$1,'Source Data'!$F$2:$F$366913,$B10,'Source Data'!$G$2:$G$366913,$A10) -> 0.3013617807 | V10: =SUMIFS('Source Data'!$I$2:$I$366913,'Source Data'!$A$2:$A$366913,'Worst Day Profiles'!$C10,'Source Data'!$E$2:$E$366913,'Worst Day Profiles'!V$1,'Source Data'!$F$2:$F$366913,$B10,'Source Data'!$G$2:$G$366913,$A10) -> 0.0212758864 | W10: =SUMIFS('Source Data'!$I$2:$I$366913,'Source Data'!$A$2:$A$366913,'Worst Day Profiles'!$C10,'Source Data'!$E$2:$E$366913,'Worst Day Profiles'!W$1,'Source Data'!$F$2:$F$366913,$B10,'Source Data'!$G$2:$G$366913,$A10) -> 0 | X10: =SUMIFS('Source Data'!$I$2:$I$366913,'Source Data'!$A$2:$A$366913,'Worst Day Profiles'!$C10,'Source Data'!$E$2:$E$366913,'Worst Day Profiles'!X$1,'Source Data'!$F$2:$F$366913,$B10,'Source Data'!$G$2:$G$366913,$A10) -> 0 | Y10: =SUMIFS('Source Data'!$I$2:$I$366913,'Source Data'!$A$2:$A$366913,'Worst Day Profiles'!$C10,'Source Data'!$E$2:$E$366913,'Worst Day Profiles'!Y$1,'Source Data'!$F$2:$F$366913,$B10,'Source Data'!$G$2:$G$366913,$A10) -> 0 | Z10: =SUMIFS('Source Data'!$I$2:$I$366913,'Source Data'!$A$2:$A$366913,'Worst Day Profiles'!$C10,'Source Data'!$E$2:$E$366913,'Worst Day Profiles'!Z$1,'Source Data'!$F$2:$F$366913,$B10,'Source Data'!$G$2:$G$366913,$A10) -> 0 | AA10: =SUMIFS('Source Data'!$I$2:$I$366913,'Source Data'!$A$2:$A$366913,'Worst Day Profiles'!$C10,'Source Data'!$E$2:$E$366913,'Worst Day Profiles'!AA$1,'Source Data'!$F$2:$F$366913,$B10,'Source Data'!$G$2:$G$366913,$A10) -> 0 | AB10: =SUMIFS('Source Data'!$I$2:$I$366913,'Source Data'!$A$2:$A$366913,'Worst Day Profiles'!$C10,'Source Data'!$E$2:$E$366913,'Worst Day Profiles'!AB$1,'Source Data'!$F$2:$F$366913,$B10,'Source Data'!$G$2:$G$366913,$A10) -> 0
A11: Solar Fixed | B11: North | C11: 43152 | D11: 2 | E11: =SUMIFS('Source Data'!$I$2:$I$366913,'Source Data'!$A$2:$A$366913,'Worst Day Profiles'!$C11,'Source Data'!$E$2:$E$366913,'Worst Day Profiles'!E$1,'Source Data'!$F$2:$F$366913,$B11,'Source Data'!$G$2:$G$366913,$A11) -> 0 | F11: =SUMIFS('Source Data'!$I$2:$I$366913,'Source Data'!$A$2:$A$366913,'Worst Day Profiles'!$C11,'Source Data'!$E$2:$E$366913,'Worst Day Profiles'!F$1,'Source Data'!$F$2:$F$366913,$B11,'Source Data'!$G$2:$G$366913,$A11) -> 0 | G11: =SUMIFS('Source Data'!$I$2:$I$366913,'Source Data'!$A$2:$A$366913,'Worst Day Profiles'!$C11,'Source Data'!$E$2:$E$366913,'Worst Day Profiles'!G$1,'Source Data'!$F$2:$F$366913,$B11,'Source Data'!$G$2:$G$366913,$A11) -> 0 | H11: =SUMIFS('Source Data'!$I$2:$I$366913,'Source Data'!$A$2:$A$366913,'Worst Day Profiles'!$C11,'Source Data'!$E$2:$E$366913,'Worst Day Profiles'!H$1,'Source Data'!$F$2:$F$366913,$B11,'Source Data'!$G$2:$G$366913,$A11) -> 0 | I11: =SUMIFS('Source Data'!$I$2:$I$366913,'Source Data'!$A$2:$A$366913,'Worst Day Profiles'!$C11,'Source Data'!$E$2:$E$366913,'Worst Day Profiles'!I$1,'Source Data'!$F$2:$F$366913,$B11,'Source Data'!$G$2:$G$366913,$A11) -> 0 | J11: =SUMIFS('Source Data'!$I$2:$I$366913,'Source Data'!$A$2:$A$366913,'Worst Day Profiles'!$C11,'Source Data'!$E$2:$E$366913,'Worst Day Profiles'!J$1,'Source Data'!$F$2:$F$366913,$B11,'Source Data'!$G$2:$G$366913,$A11) -> 0 | K11: =SUMIFS('Source Data'!$I$2:$I$366913,'Source Data'!$A$2:$A$366913,'Worst Day Profiles'!$C11,'Source Data'!$E$2:$E$366913,'Worst Day Profiles'!K$1,'Source Data'!$F$2:$F$366913,$B11,'Source Data'!$G$2:$G$366913,$A11) -> 0.003709606004 | L11: =SUMIFS('Source Data'!$I$2:$I$366913,'Source Data'!$A$2:$A$366913,'Worst Day Profiles'!$C11,'Source Data'!$E$2:$E$366913,'Worst Day Profiles'!L$1,'Source Data'!$F$2:$F$366913,$B11,'Source Data'!$G$2:$G$366913,$A11) -> 0.2255194275 | M11: =SUMIFS('Source Data'!$I$2:$I$366913,'Source Data'!$A$2:$A$366913,'Worst Day Profiles'!$C11,'Source Data'!$E$2:$E$366913,'Worst Day Profiles'!M$1,'Source Data'!$F$2:$F$366913,$B11,'Source Data'!$G$2:$G$366913,$A11) -> 0.639579299 | N11: =SUMIFS('Source Data'!$I$2:$I$366913,'Source Data'!$A$2:$A$366913,'Worst Day Profiles'!$C11,'Source Data'!$E$2:$E$366913,'Worst Day Profiles'!N$1,'Source Data'!$F$2:$F$366913,$B11,'Source Data'!$G$2:$G$366913,$A11) -> 0.8338256291 | O11: =SUMIFS('Source Data'!$I$2:$I$366913,'Source Data'!$A$2:$A$366913,'Worst Day Profiles'!$C11,'Source Data'!$E$2:$E$366913,'Worst Day Profiles'!O$1,'Source Data'!$F$2:$F$366913,$B11,'Source Data'!$G$2:$G$366913,$A11) -> 0.8938192918 | P11: =SUMIFS('Source Data'!$I$2:$I$366913,'Source Data'!$A$2:$A$366913,'Worst Day Profiles'!$C11,'Source Data'!$E$2:$E$366913,'Worst Day Profiles'!P$1,'Source Data'!$F$2:$F$366913,$B11,'Source Data'!$G$2:$G$366913,$A11) -> 0.8856759386 | Q11: =SUMIFS('Source Data'!$I$2:$I$366913,'Source Data'!$A$2:$A$366913,'Worst Day Profiles'!$C11,'Source Data'!$E$2:$E$366913,'Worst Day Profiles'!Q$1,'Source Data'!$F$2:$F$366913,$B11,'Source Data'!$G$2:$G$366913,$A11) -> 0.8802645318 | R11: =SUMIFS('Source Data'!$I$2:$I$366913,'Source Data'!$A$2:$A$366913,'Worst Day Profiles'!$C11,'Source Data'!$E$2:$E$366913,'Worst Day Profiles'!R$1,'Source Data'!$F$2:$F$366913,$B11,'Source Data'!$G$2:$G$366913,$A11) -> 0.887941546 | S11: =SUMIFS('Source Data'!$I$2:$I$366913,'Source Data'!$A$2:$A$366913,'Worst Day Profiles'!$C11,'Source Data'!$E$2:$E$366913,'Worst Day Profiles'!S$1,'Source Data'!$F$2:$F$366913,$B11,'Source Data'!$G$2:$G$366913,$A11) -> 0.8680429745 | T11: =SUMIFS('Source Data'!$I$2:$I$366913,'Source Data'!$A$2:$A$366913,'Worst Day Profiles'!$C11,'Source Data'!$E$2:$E$366913,'Worst Day Profiles'!T$1,'Source Data'!$F$2:$F$366913,$B11,'Source Data'!$G$2:$G$366913,$A11) -> 0.727084218 | U11: =SUMIFS('Source Data'!$I$2:$I$366913,'Source Data'!$A$2:$A$366913,'Worst Day Profiles'!$C11,'Source Data'!$E$2:$E$366913,'Worst Day Profiles'!U$1,'Source Data'!$F$2:$F$366913,$B11,'Source Data'!$G$2:$G$366913,$A11) -> 0.386128066 | V11: =SUMIFS('Source Data'!$I$2:$I$366913,'Source Data'!$A$2:$A$366913,'Worst Day Profiles'!$C11,'Source Data'!$E$2:$E$366913,'Worst Day Profiles'!V$1,'Source Data'!$F$2:$F$366913,$B11,'Source Data'!$G$2:$G$366913,$A11) -> 0.04184768276 | W11: =SUMIFS('Source Data'!$I$2:$I$366913,'Source Data'!$A$2:$A$366913,'Worst Day Profiles'!$C11,'Source Data'!$E$2:$E$366913,'Worst Day Profiles'!W$1,'Source Data'!$F$2:$F$366913,$B11,'Source Data'!$G$2:$G$366913,$A11) -> 0 | X11: =SUMIFS('Source Data'!$I$2:$I$366913,'Source Data'!$A$2:$A$366913,'Worst Day Profiles'!$C11,'Source Data'!$E$2:$E$366913,'Worst Day Profiles'!X$1,'Source Data'!$F$2:$F$366913,$B11,'Source Data'!$G$2:$G$366913,$A11) -> 0 | Y11: =SUMIFS('Source Data'!$I$2:$I$366913,'Source Data'!$A$2:$A$366913,'Worst Day Profiles'!$C11,'Source Data'!$E$2:$E$366913,'Worst Day Profiles'!Y$1,'Source Data'!$F$2:$F$366913,$B11,'Source Data'!$G$2:$G$366913,$A11) -> 0 | Z11: =SUMIFS('Source Data'!$I$2:$I$366913,'Source Data'!$A$2:$A$366913,'Worst Day Profiles'!$C11,'Source Data'!$E$2:$E$366913,'Worst Day Profiles'!Z$1,'Source Data'!$F$2:$F$366913,$B11,'Source Data'!$G$2:$G$366913,$A11) -> 0 | AA11: =SUMIFS('Source Data'!$I$2:$I$366913,'Source Data'!$A$2:$A$366913,'Worst Day Profiles'!$C11,'Source Data'!$E$2:$E$366913,'Worst Day Profiles'!AA$1,'Source Data'!$F$2:$F$366913,$B11,'Source Data'!$G$2:$G$366913,$A11) -> 0 | AB11: =SUMIFS('Source Data'!$I$2:$I$366913,'Source Data'!$A$2:$A$366913,'Worst Day Profiles'!$C11,'Source Data'!$E$2:$E$366913,'Worst Day Profiles'!AB$1,'Source Data'!$F$2:$F$366913,$B11,'Source Data'!$G$2:$G$366913,$A11) -> 0
A12: Solar Fixed | B12: North | C12: 43160 | D12: 3 | E12: =SUMIFS('Source Data'!$I$2:$I$366913,'Source Data'!$A$2:$A$366913,'Worst Day Profiles'!$C12,'Source Data'!$E$2:$E$366913,'Worst Day Profiles'!E$1,'Source Data'!$F$2:$F$366913,$B12,'Source Data'!$G$2:$G$366913,$A12) -> 0 | F12: =SUMIFS('Source Data'!$I$2:$I$366913,'Source Data'!$A$2:$A$366913,'Worst Day Profiles'!$C12,'Source Data'!$E$2:$E$366913,'Worst Day Profiles'!F$1,'Source Data'!$F$2:$F$366913,$B12,'Source Data'!$G$2:$G$366913,$A12) -> 0 | G12: =SUMIFS('Source Data'!$I$2:$I$366913,'Source Data'!$A$2:$A$366913,'Worst Day Profiles'!$C12,'Source Data'!$E$2:$E$366913,'Worst Day Profiles'!G$1,'Source Data'!$F$2:$F$366913,$B12,'Source Data'!$G$2:$G$366913,$A12) -> 0 | H12: =SUMIFS('Source Data'!$I$2:$I$366913,'Source Data'!$A$2:$A$366913,'Worst Day Profiles'!$C12,'Source Data'!$E$2:$E$366913,'Worst Day Profiles'!H$1,'Source Data'!$F$2:$F$366913,$B12,'Source Data'!$G$2:$G$366913,$A12) -> 0 | I12: =SUMIFS('Source Data'!$I$2:$I$366913,'Source Data'!$A$2:$A$366913,'Worst Day Profiles'!$C12,'Source Data'!$E$2:$E$366913,'Worst Day Profiles'!I$1,'Source Data'!$F$2:$F$366913,$B12,'Source Data'!$G$2:$G$366913,$A12) -> 0 | J12: =SUMIFS('Source Data'!$I$2:$I$366913,'Source Data'!$A$2:$A$366913,'Worst Day Profiles'!$C12,'Source Data'!$E$2:$E$366913,'Worst Day Profiles'!J$1,'Source Data'!$F$2:$F$366913,$B12,'Source Data'!$G$2:$G$366913,$A12) -> 0 | K12: =SUMIFS('Source Data'!$I$2:$I$366913,'Source Data'!$A$2:$A$366913,'Worst Day Profiles'!$C12,'Source Data'!$E$2:$E$366913,'Worst Day Profiles'!K$1,'Source Data'!$F$2:$F$366913,$B12,'Source Data'!$G$2:$G$366913,$A12) -> 0.003192049778 | L12: =SUMIFS('Source Data'!$I$2:$I$366913,'Source Data'!$A$2:$A$366913,'Worst Day Profiles'!$C12,'Source Data'!$E$2:$E$366913,'Worst Day Profiles'!L$1,'Source Data'!$F$2:$F$366913,$B12,'Source Data'!$G$2:$G$366913,$A12) -> 0.0984271834 | M12: =SUMIFS('Source Data'!$I$2:$I$366913,'Source Data'!$A$2:$A$366913,'Worst Day Profiles'!$C12,'Source Data'!$E$2:$E$366913,'Worst Day Profiles'!M$1,'Source Data'!$F$2:$F$366913,$B12,'Source Data'!$G$2:$G$366913,$A12) -> 0.2224521549 | N12: =SUMIFS('Source Data'!$I$2:$I$366913,'Source Data'!$A$2:$A$366913,'Worst Day Profiles'!$C12,'Source Data'!$E$2:$E$366913,'Worst Day Profiles'!N$1,'Source Data'!$F$2:$F$366913,$B12,'Source Data'!$G$2:$G$366913,$A12) -> 0.3332681753 | O12: =SUMIFS('Source Data'!$I$2:$I$366913,'Source Data'!$A$2:$A$366913,'Worst Day Profiles'!$C12,'Source Data'!$E$2:$E$366913,'Worst Day Profiles'!O$1,'Source Data'!$F$2:$F$366913,$B12,'Source Data'!$G$2:$G$366913,$A12) -> 0.380694607 | P12: =SUMIFS('Source Data'!$I$2:$I$366913,'Source Data'!$A$2:$A$366913,'Worst Day Profiles'!$C12,'Source Data'!$E$2:$E$366913,'Worst Day Profiles'!P$1,'Source Data'!$F$2:$F$366913,$B12,'Source Data'!$G$2:$G$366913,$A12) -> 0.501624718 | Q12: =SUMIFS('Source Data'!$I$2:$I$366913,'Source Data'!$A$2:$A$366913,'Worst Day Profiles'!$C12,'Source Data'!$E$2:$E$366913,'Worst Day Profiles'!Q$1,'Source Data'!$F$2:$F$366913,$B12,'Source Data'!$G$2:$G$366913,$A12) -> 0.6369110906 | R12: =SUMIFS('Source Data'!$I$2:$I$366913,'Source Data'!$A$2:$A$366913,'Worst Day Profiles'!$C12,'Source Data'!$E$2:$E$366913,'Worst Day Profiles'!R$1,'Source Data'!$F$2:$F$366913,$B12,'Source Data'!$G$2:$G$366913,$A12) -> 0.4899779984 | S12: =SUMIFS('Source Data'!$I$2:$I$366913,'Source Data'!$A$2:$A$366913,'Worst Day Profiles'!$C12,'Source Data'!$E$2:$E$366913,'Worst Day Profiles'!S$1,'Source Data'!$F$2:$F$366913,$B12,'Source Data'!$G$2:$G$366913,$A12) -> 0.3811857489 | T12: =SUMIFS('Source Data'!$I$2:$I$366913,'Source Data'!$A$2:$A$366913,'Worst Day Profiles'!$C12,'Source Data'!$E$2:$E$366913,'Worst Day Profiles'!T$1,'Source Data'!$F$2:$F$366913,$B12,'Source Data'!$G$2:$G$366913,$A12) -> 0.2153259624 | U12: =SUMIFS('Source Data'!$I$2:$I$366913,'Source Data'!$A$2:$A$366913,'Worst Day Profiles'!$C12,'Source Data'!$E$2:$E$366913,'Worst Day Profiles'!U$1,'Source Data'!$F$2:$F$366913,$B12,'Source Data'!$G$2:$G$366913,$A12) -> 0.09188038613 | V12: =SUMIFS('Source Data'!$I$2:$I$366913,'Source Data'!$A$2:$A$366913,'Worst Day Profiles'!$C12,'Source Data'!$E$2:$E$366913,'Worst Day Profiles'!V$1,'Source Data'!$F$2:$F$366913,$B12,'Source Data'!$G$2:$G$366913,$A12) -> 0.01113255446 | W12: =SUMIFS('Source Data'!$I$2:$I$366913,'Source Data'!$A$2:$A$366913,'Worst Day Profiles'!$C12,'Source Data'!$E$2:$E$366913,'Worst Day Profiles'!W$1,'Source Data'!$F$2:$F$366913,$B12,'Source Data'!$G$2:$G$366913,$A12) -> 0 | X12: =SUMIFS('Source Data'!$I$2:$I$366913,'Source Data'!$A$2:$A$366913,'Worst Day Profiles'!$C12,'Source Data'!$E$2:$E$366913,'Worst Day Profiles'!X$1,'Source Data'!$F$2:$F$366913,$B12,'Source Data'!$G$2:$G$366913,$A12) -> 0 | Y12: =SUMIFS('Source Data'!$I$2:$I$366913,'Source Data'!$A$2:$A$366913,'Worst Day Profiles'!$C12,'Source Data'!$E$2:$E$366913,'Worst Day Profiles'!Y$1,'Source Data'!$F$2:$F$366913,$B12,'Source Data'!$G$2:$G$366913,$A12) -> 0 | Z12: =SUMIFS('Source Data'!$I$2:$I$366913,'Source Data'!$A$2:$A$366913,'Worst Day Profiles'!$C12,'Source Data'!$E$2:$E$366913,'Worst Day Profiles'!Z$1,'Source Data'!$F$2:$F$366913,$B12,'Source Data'!$G$2:$G$366913,$A12) -> 0 | AA12: =SUMIFS('Source Data'!$I$2:$I$366913,'Source Data'!$A$2:$A$366913,'Worst Day Profiles'!$C12,'Source Data'!$E$2:$E$366913,'Worst Day Profiles'!AA$1,'Source Data'!$F$2:$F$366913,$B12,'Source Data'!$G$2:$G$366913,$A12) -> 0 | AB12: =SUMIFS('Source Data'!$I$2:$I$366913,'Source Data'!$A$2:$A$366913,'Worst Day Profiles'!$C12,'Source Data'!$E$2:$E$366913,'Worst Day Profiles'!AB$1,'Source Data'!$F$2:$F$366913,$B12,'Source Data'!$G$2:$G$366913,$A12) -> 0
A13: Solar Fixed | B13: North | C13: 43164 | D13: 3 | E13: =SUMIFS('Source Data'!$I$2:$I$366913,'Source Data'!$A$2:$A$366913,'Worst Day Profiles'!$C13,'Source Data'!$E$2:$E$366913,'Worst Day Profiles'!E$1,'Source Data'!$F$2:$F$366913,$B13,'Source Data'!$G$2:$G$366913,$A13) -> 0 | F13: =SUMIFS('Source Data'!$I$2:$I$366913,'Source Data'!$A$2:$A$366913,'Worst Day Profiles'!$C13,'Source Data'!$E$2:$E$366913,'Worst Day Profiles'!F$1,'Source Data'!$F$2:$F$366913,$B13,'Source Data'!$G$2:$G$366913,$A13) -> 0 | G13: =SUMIFS('Source Data'!$I$2:$I$366913,'Source Data'!$A$2:$A$366913,'Worst Day Profiles'!$C13,'Source Data'!$E$2:$E$366913,'Worst Day Profiles'!G$1,'Source Data'!$F$2:$F$366913,$B13,'Source Data'!$G$2:$G$366913,$A13) -> 0 | H13: =SUMIFS('Source Data'!$I$2:$I$366913,'Source Data'!$A$2:$A$366913,'Worst Day Profiles'!$C13,'Source Data'!$E$2:$E$366913,'Worst Day Profiles'!H$1,'Source Data'!$F$2:$F$366913,$B13,'Source Data'!$G$2:$G$366913,$A13) -> 0 | I13: =SUMIFS('Source Data'!$I$2:$I$366913,'Source Data'!$A$2:$A$366913,'Worst Day Profiles'!$C13,'Source Data'!$E$2:$E$366913,'Worst Day Profiles'!I$1,'Source Data'!$F$2:$F$366913,$B13,'Source Data'!$G$2:$G$366913,$A13) -> 0 | J13: =SUMIFS('Source Data'!$I$2:$I$366913,'Source Data'!$A$2:$A$366913,'Worst Day Profiles'!$C13,'Source Data'!$E$2:$E$366913,'Worst Day Profiles'!J$1,'Source Data'!$F$2:$F$366913,$B13,'Source Data'!$G$2:$G$366913,$A13) -> 0 | K13: =SUMIFS('Source Data'!$I$2:$I$366913,'Source Data'!$A$2:$A$366913,'Worst Day Profiles'!$C13,'Source Data'!$E$2:$E$366913,'Worst Day Profiles'!K$1,'Source Data'!$F$2:$F$366913,$B13,'Source Data'!$G$2:$G$366913,$A13) -> 0.02495972122 | L13: =SUMIFS('Source Data'!$I$2:$I$366913,'Source Data'!$A$2:$A$366913,'Worst Day Profiles'!$C13,'Source Data'!$E$2:$E$366913,'Worst Day Profiles'!L$1,'Source Data'!$F$2:$F$366913,$B13,'Source Data'!$G$2:$G$366913,$A13) -> 0.368995127 | M13: =SUMIFS('Source Data'!$I$2:$I$366913,'Source Data'!$A$2:$A$366913,'Worst Day Profiles'!$C13,'Source Data'!$E$2:$E$366913,'Worst Day Profiles'!M$1,'Source Data'!$F$2:$F$366913,$B13,'Source Data'!$G$2:$G$366913,$A13) -> 0.7429702083 | N13: =SUMIFS('Source Data'!$I$2:$I$366913,'Source Data'!$A$2:$A$366913,'Worst Day Profiles'!$C13,'Source Data'!$E$2:$E$366913,'Worst Day Profiles'!N$1,'Source Data'!$F$2:$F$366913,$B13,'Source Data'!$G$2:$G$366913,$A13) -> 0.9133058475 | O13: =SUMIFS('Source Data'!$I$2:$I$366913,'Source Data'!$A$2:$A$366913,'Worst Day Profiles'!$C13,'Source Data'!$E$2:$E$366913,'Worst Day Profiles'!O$1,'Source Data'!$F$2:$F$366913,$B13,'Source Data'!$G$2:$G$366913,$A13) -> 0.9526620636 | P13: =SUMIFS('Source Data'!$I$2:$I$366913,'Source Data'!$A$2:$A$366913,'Worst Day Profiles'!$C13,'Source Data'!$E$2:$E$366913,'Worst Day Profiles'!P$1,'Source Data'!$F$2:$F$366913,$B13,'Source Data'!$G$2:$G$366913,$A13) -> 0.936054143 | Q13: =SUMIFS('Source Data'!$I$2:$I$366913,'Source Data'!$A$2:$A$366913,'Worst Day Profiles'!$C13,'Source Data'!$E$2:$E$366913,'Worst Day Profiles'!Q$1,'Source Data'!$F$2:$F$366913,$B13,'Source Data'!$G$2:$G$366913,$A13) -> 0.9340505188 | R13: =SUMIFS('Source Data'!$I$2:$I$366913,'Source Data'!$A$2:$A$366913,'Worst Day Profiles'!$C13,'Source Data'!$E$2:$E$366913,'Worst Day Profiles'!R$1,'Source Data'!$F$2:$F$366913,$B13,'Source Data'!$G$2:$G$366913,$A13) -> 0.9426098366 | S13: =SUMIFS('Source Data'!$I$2:$I$366913,'Source Data'!$A$2:$A$366913,'Worst Day Profiles'!$C13,'Source Data'!$E$2:$E$366913,'Worst Day Profiles'!S$1,'Source Data'!$F$2:$F$366913,$B13,'Source Data'!$G$2:$G$366913,$A13) -> 0.9203152439 | T13: =SUMIFS('Source Data'!$I$2:$I$366913,'Source Data'!$A$2:$A$366913,'Worst Day Profiles'!$C13,'Source Data'!$E$2:$E$366913,'Worst Day Profiles'!T$1,'Source Data'!$F$2:$F$366913,$B13,'Source Data'!$G$2:$G$366913,$A13) -> 0.7862581071 | U13: =SUMIFS('Source Data'!$I$2:$I$366913,'Source Data'!$A$2:$A$366913,'Worst Day Profiles'!$C13,'Source Data'!$E$2:$E$366913,'Worst Day Profiles'!U$1,'Source Data'!$F$2:$F$366913,$B13,'Source Data'!$G$2:$G$366913,$A13) -> 0.4462106016 | V13: =SUMIFS('Source Data'!$I$2:$I$366913,'Source Data'!$A$2:$A$366913,'Worst Day Profiles'!$C13,'Source Data'!$E$2:$E$366913,'Worst Day Profiles'!V$1,'Source Data'!$F$2:$F$366913,$B13,'Source Data'!$G$2:$G$366913,$A13) -> 0.06062416716 | W13: =SUMIFS('Source Data'!$I$2:$I$366913,'Source Data'!$A$2:$A$366913,'Worst Day Profiles'!$C13,'Source Data'!$E$2:$E$366913,'Worst Day Profiles'!W$1,'Source Data'!$F$2:$F$366913,$B13,'Source Data'!$G$2:$G$366913,$A13) -> 2.597770165e-07 | X13: =SUMIFS('Source Data'!$I$2:$I$366913,'Source Data'!$A$2:$A$366913,'Worst Day Profiles'!$C13,'Source Data'!$E$2:$E$366913,'Worst Day Profiles'!X$1,'Source Data'!$F$2:$F$366913,$B13,'Source Data'!$G$2:$G$366913,$A13) -> 0 | Y13: =SUMIFS('Source Data'!$I$2:$I$366913,'Source Data'!$A$2:$A$366913,'Worst Day Profiles'!$C13,'Source Data'!$E$2:$E$366913,'Worst Day Profiles'!Y$1,'Source Data'!$F$2:$F$366913,$B13,'Source Data'!$G$2:$G$366913,$A13) -> 0 | Z13: =SUMIFS('Source Data'!$I$2:$I$366913,'Source Data'!$A$2:$A$366913,'Worst Day Profiles'!$C13,'Source Data'!$E$2:$E$366913,'Worst Day Profiles'!Z$1,'Source Data'!$F$2:$F$366913,$B13,'Source Data'!$G$2:$G$366913,$A13) -> 0 | AA13: =SUMIFS('Source Data'!$I$2:$I$366913,'Source Data'!$A$2:$A$366913,'Worst Day Profiles'!$C13,'Source Data'!$E$2:$E$366913,'Worst Day Profiles'!AA$1,'Source Data'!$F$2:$F$366913,$B13,'Source Data'!$G$2:$G$366913,$A13) -> 0 | AB13: =SUMIFS('Source Data'!$I$2:$I$366913,'Source Data'!$A$2:$A$366913,'Worst Day Profiles'!$C13,'Source Data'!$E$2:$E$366913,'Worst Day Profiles'!AB$1,'Source Data'!$F$2:$F$366913,$B13,'Source Data'!$G$2:$G$366913,$A13) -> 0
A14: Solar Fixed | B14: North | C14: 43161 | D14: 3 | E14: =SUMIFS('Source Data'!$I$2:$I$366913,'Source Data'!$A$2:$A$366913,'Worst Day Profiles'!$C14,'Source Data'!$E$2:$E$366913,'Worst Day Profiles'!E$1,'Source Data'!$F$2:$F$366913,$B14,'Source Data'!$G$2:$G$366913,$A14) -> 0 | F14: =SUMIFS('Source Data'!$I$2:$I$366913,'Source Data'!$A$2:$A$366913,'Worst Day Profiles'!$C14,'Source Data'!$E$2:$E$366913,'Worst Day Profiles'!F$1,'Source Data'!$F$2:$F$366913,$B14,'Source Data'!$G$2:$G$366913,$A14) -> 0 | G14: =SUMIFS('Source Data'!$I$2:$I$366913,'Source Data'!$A$2:$A$366913,'Worst Day Profiles'!$C14,'Source Data'!$E$2:$E$366913,'Worst Day Profiles'!G$1,'Source Data'!$F$2:$F$366913,$B14,'Source Data'!$G$2:$G$366913,$A14) -> 0 | H14: =SUMIFS('Source Data'!$I$2:$I$366913,'Source Data'!$A$2:$A$366913,'Worst Day Profiles'!$C14,'Source Data'!$E$2:$E$366913,'Worst Day Profiles'!H$1,'Source Data'!$F$2:$F$366913,$B14,'Source Data'!$G$2:$G$366913,$A14) -> 0 | I14: =SUMIFS('Source Data'!$I$2:$I$366913,'Source Data'!$A$2:$A$366913,'Worst Day Profiles'!$C14,'Source Data'!$E$2:$E$366913,'Worst Day Profiles'!I$1,'Source Data'!$F$2:$F$366913,$B14,'Source Data'!$G$2:$G$366913,$A14) -> 0 | J14: =SUMIFS('Source Data'!$I$2:$I$366913,'Source Data'!$A$2:$A$366913,'Worst Day Profiles'!$C14,'Source Data'!$E$2:$E$366913,'Worst Day Profiles'!J$1,'Source Data'!$F$2:$F$366913,$B14,'Source Data'!$G$2:$G$366913,$A14) -> 0 | K14: =SUMIFS('Source Data'!$I$2:$I$366913,'Source Data'!$A$2:$A$366913,'Worst Day Profiles'!$C14,'Source Data'!$E$2:$E$366913,'Worst Day Profiles'!K$1,'Source Data'!$F$2:$F$366913,$B14,'Source Data'!$G$2:$G$366913,$A14) -> 0.002742506313 | L14: =SUMIFS('Source Data'!$I$2:$I$366913,'Source Data'!$A$2:$A$366913,'Worst Day Profiles'!$C14,'Source Data'!$E$2:$E$366913,'Worst Day Profiles'!L$1,'Source Data'!$F$2:$F$366913,$B14,'Source Data'!$G$2:$G$366913,$A14) -> 0.07493159249 | M14: =SUMIFS('Source Data'!$I$2:$I$366913,'Source Data'!$A$2:$A$366913,'Worst Day Profiles'!$C14,'Source Data'!$E$2:$E$366913,'Worst Day Profiles'!M$1,'Source Data'!$F$2:$F$366913,$B14,'Source Data'!$G$2:$G$366913,$A14) -> 0.2520492669 | N14: =SUMIFS('Source Data'!$I$2:$I$366913,'Source Data'!$A$2:$A$366913,'Worst Day Profiles'!$C14,'Source Data'!$E$2:$E$366913,'Worst Day Profiles'!N$1,'Source Data'!$F$2:$F$366913,$B14,'Source Data'!$G$2:$G$366913,$A14) -> 0.3221767484 | O14: =SUMIFS('Source Data'!$I$2:$I$366913,'Source Data'!$A$2:$A$366913,'Worst Day Profiles'!$C14,'Source Data'!$E$2:$E$366913,'Worst Day Profiles'!O$1,'Source Data'!$F$2:$F$366913,$B14,'Source Data'!$G$2:$G$366913,$A14) -> 0.4862767181 | P14: =SUMIFS('Source Data'!$I$2:$I$366913,'Source Data'!$A$2:$A$366913,'Worst Day Profiles'!$C14,'Source Data'!$E$2:$E$366913,'Worst Day Profiles'!P$1,'Source Data'!$F$2:$F$366913,$B14,'Source Data'!$G$2:$G$366913,$A14) -> 0.4997380158 | Q14: =SUMIFS('Source Data'!$I$2:$I$366913,'Source Data'!$A$2:$A$366913,'Worst Day Profiles'!$C14,'Source Data'!$E$2:$E$366913,'Worst Day Profiles'!Q$1,'Source Data'!$F$2:$F$366913,$B14,'Source Data'!$G$2:$G$366913,$A14) -> 0.4635544297 | R14: =SUMIFS('Source Data'!$I$2:$I$366913,'Source Data'!$A$2:$A$366913,'Worst Day Profiles'!$C14,'Source Data'!$E$2:$E$366913,'Worst Day Profiles'!R$1,'Source Data'!$F$2:$F$366913,$B14,'Source Data'!$G$2:$G$366913,$A14) -> 0.4066073244 | S14: =SUMIFS('Source Data'!$I$2:$I$366913,'Source Data'!$A$2:$A$366913,'Worst Day Profiles'!$C14,'Source Data'!$E$2:$E$366913,'Worst Day Profiles'!S$1,'Source Data'!$F$2:$F$366913,$B14,'Source Data'!$G$2:$G$366913,$A14) -> 0.3494123656 | T14: =SUMIFS('Source Data'!$I$2:$I$366913,'Source Data'!$A$2:$A$366913,'Worst Day Profiles'!$C14,'Source Data'!$E$2:$E$366913,'Worst Day Profiles'!T$1,'Source Data'!$F$2:$F$366913,$B14,'Source Data'!$G$2:$G$366913,$A14) -> 0.4174696859 | U14: =SUMIFS('Source Data'!$I$2:$I$366913,'Source Data'!$A$2:$A$366913,'Worst Day Profiles'!$C14,'Source Data'!$E$2:$E$366913,'Worst Day Profiles'!U$1,'Source Data'!$F$2:$F$366913,$B14,'Source Data'!$G$2:$G$366913,$A14) -> 0.1694671815 | V14: =SUMIFS('Source Data'!$I$2:$I$366913,'Source Data'!$A$2:$A$366913,'Worst Day Profiles'!$C14,'Source Data'!$E$2:$E$366913,'Worst Day Profiles'!V$1,'Source Data'!$F$2:$F$366913,$B14,'Source Data'!$G$2:$G$366913,$A14) -> 0.02518526018 | W14: =SUMIFS('Source Data'!$I$2:$I$366913,'Source Data'!$A$2:$A$366913,'Worst Day Profiles'!$C14,'Source Data'!$E$2:$E$366913,'Worst Day Profiles'!W$1,'Source Data'!$F$2:$F$366913,$B14,'Source Data'!$G$2:$G$366913,$A14) -> 0 | X14: =SUMIFS('Source Data'!$I$2:$I$366913,'Source Data'!$A$2:$A$366913,'Worst Day Profiles'!$C14,'Source Data'!$E$2:$E$366913,'Worst Day Profiles'!X$1,'Source Data'!$F$2:$F$366913,$B14,'Source Data'!$G$2:$G$366913,$A14) -> 0 | Y14: =SUMIFS('Source Data'!$I$2:$I$366913,'Source Data'!$A$2:$A$366913,'Worst Day Profiles'!$C14,'Source Data'!$E$2:$E$366913,'Worst Day Profiles'!Y$1,'Source Data'!$F$2:$F$366913,$B14,'Source Data'!$G$2:$G$366913,$A14) -> 0 | Z14: =SUMIFS('Source Data'!$I$2:$I$366913,'Source Data'!$A$2:$A$366913,'Worst Day Profiles'!$C14,'Source Data'!$E$2:$E$366913,'Worst Day Profiles'!Z$1,'Source Data'!$F$2:$F$366913,$B14,'Source Data'!$G$2:$G$366913,$A14) -> 0 | AA14: =SUMIFS('Source Data'!$I$2:$I$366913,'Source Data'!$A$2:$A$366913,'Worst Day Profiles'!$C14,'Source Data'!$E$2:$E$366913,'Worst Day Profiles'!AA$1,'Source Data'!$F$2:$F$366913,$B14,'Source Data'!$G$2:$G$366913,$A14) -> 0 | AB14: =SUMIFS('Source Data'!$I$2:$I$366913,'Source Data'!$A$2:$A$366913,'Worst Day Profiles'!$C14,'Source Data'!$E$2:$E$366913,'Worst Day Profiles'!AB$1,'Source Data'!$F$2:$F$366913,$B14,'Source Data'!$G$2:$G$366913,$A14) -> 0
A15: Solar Fixed | B15: North | C15: 43171 | D15: 3 | E15: =SUMIFS('Source Data'!$I$2:$I$366913,'Source Data'!$A$2:$A$366913,'Worst Day Profiles'!$C15,'Source Data'!$E$2:$E$366913,'Worst Day Profiles'!E$1,'Source Data'!$F$2:$F$366913,$B15,'Source Data'!$G$2:$G$366913,$A15) -> 0 | F15: =SUMIFS('Source Data'!$I$2:$I$366913,'Source Data'!$A$2:$A$366913,'Worst Day Profiles'!$C15,'Source Data'!$E$2:$E$366913,'Worst Day Profiles'!F$1,'Source Data'!$F$2:$F$366913,$B15,'Source Data'!$G$2:$G$366913,$A15) -> 0 | G15: =SUMIFS('Source Data'!$I$2:$I$366913,'Source Data'!$A$2:$A$366913,'Worst Day Profiles'!$C15,'Source Data'!$E$2:$E$366913,'Worst Day Profiles'!G$1,'Source Data'!$F$2:$F$366913,$B15,'Source Data'!$G$2:$G$366913,$A15) -> 0 | H15: =SUMIFS('Source Data'!$I$2:$I$366913,'Source Data'!$A$2:$A$366913,'Worst Day Profiles'!$C15,'Source Data'!$E$2:$E$366913,'Worst Day Profiles'!H$1,'Source Data'!$F$2:$F$366913,$B15,'Source Data'!$G$2:$G$366913,$A15) -> 0 | I15: =SUMIFS('Source Data'!$I$2:$I$366913,'Source Data'!$A$2:$A$366913,'Worst Day Profiles'!$C15,'Source Data'!$E$2:$E$366913,'Worst Day Profiles'!I$1,'Source Data'!$F$2:$F$366913,$B15,'Source Data'!$G$2:$G$366913,$A15) -> 0 | J15: =SUMIFS('Source Data'!$I$2:$I$366913,'Source Data'!$A$2:$A$366913,'Worst Day Profiles'!$C15,'Source Data'!$E$2:$E$366913,'Worst Day Profiles'!J$1,'Source Data'!$F$2:$F$366913,$B15,'Source Data'!$G$2:$G$366913,$A15) -> 0 | K15: =SUMIFS('Source Data'!$I$2:$I$366913,'Source Data'!$A$2:$A$366913,'Worst Day Profiles'!$C15,'Source Data'!$E$2:$E$366913,'Worst Day Profiles'!K$1,'Source Data'!$F$2:$F$366913,$B15,'Source Data'!$G$2:$G$366913,$A15) -> 0.03124604882 | L15: =SUMIFS('Source Data'!$I$2:$I$366913,'Source Data'!$A$2:$A$366913,'Worst Day Profiles'!$C15,'Source Data'!$E$2:$E$366913,'Worst Day Profiles'!L$1,'Source Data'!$F$2:$F$366913,$B15,'Source Data'!$G$2:$G$366913,$A15) -> 0.3333077527 | M15: =SUMIFS('Source Data'!$I$2:$I$366913,'Source Data'!$A$2:$A$366913,'Worst Day Profiles'!$C15,'Source Data'!$E$2:$E$366913,'Worst Day Profiles'!M$1,'Source Data'!$F$2:$F$366913,$B15,'Source Data'!$G$2:$G$366913,$A15) -> 0.4796195126 | N15: =SUMIFS('Source Data'!$I$2:$I$366913,'Source Data'!$A$2:$A$366913,'Worst Day Profiles'!$C15,'Source Data'!$E$2:$E$366913,'Worst Day Profiles'!N$1,'Source Data'!$F$2:$F$366913,$B15,'Source Data'!$G$2:$G$366913,$A15) -> 0.5617315983 | O15: =SUMIFS('Source Data'!$I$2:$I$366913,'Source Data'!$A$2:$A$366913,'Worst Day Profiles'!$C15,'Source Data'!$E$2:$E$366913,'Worst Day Profiles'!O$1,'Source Data'!$F$2:$F$366913,$B15,'Source Data'!$G$2:$G$366913,$A15) -> 0.7163888404 | P15: =SUMIFS('Source Data'!$I$2:$I$366913,'Source Data'!$A$2:$A$366913,'Worst Day Profiles'!$C15,'Source Data'!$E$2:$E$366913,'Worst Day Profiles'!P$1,'Source Data'!$F$2:$F$366913,$B15,'Source Data'!$G$2:$G$366913,$A15) -> 0.8317144779 | Q15: =SUMIFS('Source Data'!$I$2:$I$366913,'Source Data'!$A$2:$A$366913,'Worst Day Profiles'!$C15,'Source Data'!$E$2:$E$366913,'Worst Day Profiles'!Q$1,'Source Data'!$F$2:$F$366913,$B15,'Source Data'!$G$2:$G$366913,$A15) -> 0.7123092386 | R15: =SUMIFS('Source Data'!$I$2:$I$366913,'Source Data'!$A$2:$A$366913,'Worst Day Profiles'!$C15,'Source Data'!$E$2:$E$366913,'Worst Day Profiles'!R$1,'Source Data'!$F$2:$F$366913,$B15,'Source Data'!$G$2:$G$366913,$A15) -> 0.4705168297 | S15: =SUMIFS('Source Data'!$I$2:$I$366913,'Source Data'!$A$2:$A$366913,'Worst Day Profiles'!$C15,'Source Data'!$E$2:$E$366913,'Worst Day Profiles'!S$1,'Source Data'!$F$2:$F$366913,$B15,'Source Data'!$G$2:$G$366913,$A15) -> 0.3414149799 | T15: =SUMIFS('Source Data'!$I$2:$I$366913,'Source Data'!$A$2:$A$366913,'Worst Day Profiles'!$C15,'Source Data'!$E$2:$E$366913,'Worst Day Profiles'!T$1,'Source Data'!$F$2:$F$366913,$B15,'Source Data'!$G$2:$G$366913,$A15) -> 0.1645682255 | U15: =SUMIFS('Source Data'!$I$2:$I$366913,'Source Data'!$A$2:$A$366913,'Worst Day Profiles'!$C15,'Source Data'!$E$2:$E$366913,'Worst Day Profiles'!U$1,'Source Data'!$F$2:$F$366913,$B15,'Source Data'!$G$2:$G$366913,$A15) -> 0.08287588882 | V15: =SUMIFS('Source Data'!$I$2:$I$366913,'Source Data'!$A$2:$A$366913,'Worst Day Profiles'!$C15,'Source Data'!$E$2:$E$366913,'Worst Day Profiles'!V$1,'Source Data'!$F$2:$F$366913,$B15,'Source Data'!$G$2:$G$366913,$A15) -> 0.0142460912 | W15: =SUMIFS('Source Data'!$I$2:$I$366913,'Source Data'!$A$2:$A$366913,'Worst Day Profiles'!$C15,'Source Data'!$E$2:$E$366913,'Worst Day Profiles'!W$1,'Source Data'!$F$2:$F$366913,$B15,'Source Data'!$G$2:$G$366913,$A15) -> 1.050323381e-05 | X15: =SUMIFS('Source Data'!$I$2:$I$366913,'Source Data'!$A$2:$A$366913,'Worst Day Profiles'!$C15,'Source Data'!$E$2:$E$366913,'Worst Day Profiles'!X$1,'Source Data'!$F$2:$F$366913,$B15,'Source Data'!$G$2:$G$366913,$A15) -> 0 | Y15: =SUMIFS('Source Data'!$I$2:$I$366913,'Source Data'!$A$2:$A$366913,'Worst Day Profiles'!$C15,'Source Data'!$E$2:$E$366913,'Worst Day Profiles'!Y$1,'Source Data'!$F$2:$F$366913,$B15,'Source Data'!$G$2:$G$366913,$A15) -> 0 | Z15: =SUMIFS('Source Data'!$I$2:$I$366913,'Source Data'!$A$2:$A$366913,'Worst Day Profiles'!$C15,'Source Data'!$E$2:$E$366913,'Worst Day Profiles'!Z$1,'Source Data'!$F$2:$F$366913,$B15,'Source Data'!$G$2:$G$366913,$A15) -> 0 | AA15: =SUMIFS('Source Data'!$I$2:$I$366913,'Source Data'!$A$2:$A$366913,'Worst Day Profiles'!$C15,'Source Data'!$E$2:$E$366913,'Worst Day Profiles'!AA$1,'Source Data'!$F$2:$F$366913,$B15,'Source Data'!$G$2:$G$366913,$A15) -> 0 | AB15: =SUMIFS('Source Data'!$I$2:$I$366913,'Source Data'!$A$2:$A$366913,'Worst Day Profiles'!$C15,'Source Data'!$E$2:$E$366913,'Worst Day Profiles'!AB$1,'Source Data'!$F$2:$F$366913,$B15,'Source Data'!$G$2:$G$366913,$A15) -> 0
A16: Solar Fixed | B16: North | C16: 43188 | D16: 3 | E16: =SUMIFS('Source Data'!$I$2:$I$366913,'Source Data'!$A$2:$A$366913,'Worst Day Profiles'!$C16,'Source Data'!$E$2:$E$366913,'Worst Day Profiles'!E$1,'Source Data'!$F$2:$F$366913,$B16,'Source Data'!$G$2:$G$366913,$A16) -> 0 | F16: =SUMIFS('Source Data'!$I$2:$I$366913,'Source Data'!$A$2:$A$366913,'Worst Day Profiles'!$C16,'Source Data'!$E$2:$E$366913,'Worst Day Profiles'!F$1,'Source Data'!$F$2:$F$366913,$B16,'Source Data'!$G$2:$G$366913,$A16) -> 0 | G16: =SUMIFS('Source Data'!$I$2:$I$366913,'Source Data'!$A$2:$A$366913,'Worst Day Profiles'!$C16,'Source Data'!$E$2:$E$366913,'Worst Day Profiles'!G$1,'Source Data'!$F$2:$F$366913,$B16,'Source Data'!$G$2:$G$366913,$A16) -> 0 | H16: =SUMIFS('Source Data'!$I$2:$I$366913,'Source Data'!$A$2:$A$366913,'Worst Day Profiles'!$C16,'Source Data'!$E$2:$E$366913,'Worst Day Profiles'!H$1,'Source Data'!$F$2:$F$366913,$B16,'Source Data'!$G$2:$G$366913,$A16) -> 0 | I16: =SUMIFS('Source Data'!$I$2:$I$366913,'Source Data'!$A$2:$A$366913,'Worst Day Profiles'!$C16,'Source Data'!$E$2:$E$366913,'Worst Day Profiles'!I$1,'Source Data'!$F$2:$F$366913,$B16,'Source Data'!$G$2:$G$366913,$A16) -> 0 | J16: =SUMIFS('Source Data'!$I$2:$I$366913,'Source Data'!$A$2:$A$366913,'Worst Day Profiles'!$C16,'Source Data'!$E$2:$E$366913,'Worst Day Profiles'!J$1,'Source Data'!$F$2:$F$366913,$B16,'Source Data'!$G$2:$G$366913,$A16) -> 0.000167285372 | K16: =SUMIFS('Source Data'!$I$2:$I$366913,'Source Data'!$A$2:$A$366913,'Worst Day Profiles'!$C16,'Source Data'!$E$2:$E$366913,'Worst Day Profiles'!K$1,'Source Data'!$F$2:$F$366913,$B16,'Source Data'!$G$2:$G$366913,$A16) -> 0.1282427521 | L16: =SUMIFS('Source Data'!$I$2:$I$366913,'Source Data'!$A$2:$A$366913,'Worst Day Profiles'!$C16,'Source Data'!$E$2:$E$366913,'Worst Day Profiles'!L$1,'Source Data'!$F$2:$F$366913,$B16,'Source Data'!$G$2:$G$366913,$A16) -> 0.5275373105 | M16: =SUMIFS('Source Data'!$I$2:$I$366913,'Source Data'!$A$2:$A$366913,'Worst Day Profiles'!$C16,'Source Data'!$E$2:$E$366913,'Worst Day Profiles'!M$1,'Source Data'!$F$2:$F$366913,$B16,'Source Data'!$G$2:$G$366913,$A16) -> 0.7488435198 | N16: =SUMIFS('Source Data'!$I$2:$I$366913,'Source Data'!$A$2:$A$366913,'Worst Day Profiles'!$C16,'Source Data'!$E$2:$E$366913,'Worst Day Profiles'!N$1,'Source Data'!$F$2:$F$366913,$B16,'Source Data'!$G$2:$G$366913,$A16) -> 0.857315803 | O16: =SUMIFS('Source Data'!$I$2:$I$366913,'Source Data'!$A$2:$A$366913,'Worst Day Profiles'!$C16,'Source Data'!$E$2:$E$366913,'Worst Day Profiles'!O$1,'Source Data'!$F$2:$F$366913,$B16,'Source Data'!$G$2:$G$366913,$A16) -> 0.8752000907 | P16: =SUMIFS('Source Data'!$I$2:$I$366913,'Source Data'!$A$2:$A$366913,'Worst Day Profiles'!$C16,'Source Data'!$E$2:$E$366913,'Worst Day Profiles'!P$1,'Source Data'!$F$2:$F$366913,$B16,'Source Data'!$G$2:$G$366913,$A16) -> 0.728440868 | Q16: =SUMIFS('Source Data'!$I$2:$I$366913,'Source Data'!$A$2:$A$366913,'Worst Day Profiles'!$C16,'Source Data'!$E$2:$E$366913,'Worst Day Profiles'!Q$1,'Source Data'!$F$2:$F$366913,$B16,'Source Data'!$G$2:$G$366913,$A16) -> 0.80015932 | R16: =SUMIFS('Source Data'!$I$2:$I$366913,'Source Data'!$A$2:$A$366913,'Worst Day Profiles'!$C16,'Source Data'!$E$2:$E$366913,'Worst Day Profiles'!R$1,'Source Data'!$F$2:$F$366913,$B16,'Source Data'!$G$2:$G$366913,$A16) -> 0.920279153 | S16: =SUMIFS('Source Data'!$I$2:$I$366913,'Source Data'!$A$2:$A$366913,'Worst Day Profiles'!$C16,'Source Data'!$E$2:$E$366913,'Worst Day Profiles'!S$1,'Source Data'!$F$2:$F$366913,$B16,'Source Data'!$G$2:$G$366913,$A16) -> 0.9138618837 | T16: =SUMIFS('Source Data'!$I$2:$I$366913,'Source Data'!$A$2:$A$366913,'Worst Day Profiles'!$C16,'Source Data'!$E$2:$E$366913,'Worst Day Profiles'!T$1,'Source Data'!$F$2:$F$366913,$B16,'Source Data'!$G$2:$G$366913,$A16) -> 0.8002762964 | U16: =SUMIFS('Source Data'!$I$2:$I$366913,'Source Data'!$A$2:$A$366913,'Worst Day Profiles'!$C16,'Source Data'!$E$2:$E$366913,'Worst Day Profiles'!U$1,'Source Data'!$F$2:$F$366913,$B16,'Source Data'!$G$2:$G$366913,$A16) -> 0.5388416735 | V16: =SUMIFS('Source Data'!$I$2:$I$366913,'Source Data'!$A$2:$A$366913,'Worst Day Profiles'!$C16,'Source Data'!$E$2:$E$366913,'Worst Day Profiles'!V$1,'Source Data'!$F$2:$F$366913,$B16,'Source Data'!$G$2:$G$366913,$A16) -> 0.1911204429 | W16: =SUMIFS('Source Data'!$I$2:$I$366913,'Source Data'!$A$2:$A$366913,'Worst Day Profiles'!$C16,'Source Data'!$E$2:$E$366913,'Worst Day Profiles'!W$1,'Source Data'!$F$2:$F$366913,$B16,'Source Data'!$G$2:$G$366913,$A16) -> 0.00450710286 | X16: =SUMIFS('Source Data'!$I$2:$I$366913,'Source Data'!$A$2:$A$366913,'Worst Day Profiles'!$C16,'Source Data'!$E$2:$E$366913,'Worst Day Profiles'!X$1,'Source Data'!$F$2:$F$366913,$B16,'Source Data'!$G$2:$G$366913,$A16) -> 0 | Y16: =SUMIFS('Source Data'!$I$2:$I$366913,'Source Data'!$A$2:$A$366913,'Worst Day Profiles'!$C16,'Source Data'!$E$2:$E$366913,'Worst Day Profiles'!Y$1,'Source Data'!$F$2:$F$366913,$B16,'Source Data'!$G$2:$G$366913,$A16) -> 0 | Z16: =SUMIFS('Source Data'!$I$2:$I$366913,'Source Data'!$A$2:$A$366913,'Worst Day Profiles'!$C16,'Source Data'!$E$2:$E$366913,'Worst Day Profiles'!Z$1,'Source Data'!$F$2:$F$366913,$B16,'Source Data'!$G$2:$G$366913,$A16) -> 0 | AA16: =SUMIFS('Source Data'!$I$2:$I$366913,'Source Data'!$A$2:$A$366913,'Worst Day Profiles'!$C16,'Source Data'!$E$2:$E$366913,'Worst Day Profiles'!AA$1,'Source Data'!$F$2:$F$366913,$B16,'Source Data'!$G$2:$G$366913,$A16) -> 0 | AB16: =SUMIFS('Source Data'!$I$2:$I$366913,'Source Data'!$A$2:$A$366913,'Worst Day Profiles'!$C16,'Source Data'!$E$2:$E$366913,'Worst Day Profiles'!AB$1,'Source Data'!$F$2:$F$366913,$B16,'Source Data'!$G$2:$G$366913,$A16) -> 0
A17: Solar Fixed | B17: North | C17: 43199 | D17: 4 | E17: =SUMIFS('Source Data'!$I$2:$I$366913,'Source Data'!$A$2:$A$366913,'Worst Day Profiles'!$C17,'Source Data'!$E$2:$E$366913,'Worst Day Profiles'!E$1,'Source Data'!$F$2:$F$366913,$B17,'Source Data'!$G$2:$G$366913,$A17) -> 0 | F17: =SUMIFS('Source Data'!$I$2:$I$366913,'Source Data'!$A$2:$A$366913,'Worst Day Profiles'!$C17,'Source Data'!$E$2:$E$366913,'Worst Day Profiles'!F$1,'Source Data'!$F$2:$F$366913,$B17,'Source Data'!$G$2:$G$366913,$A17) -> 0 | G17: =SUMIFS('Source Data'!$I$2:$I$366913,'Source Data'!$A$2:$A$366913,'Worst Day Profiles'!$C17,'Source Data'!$E$2:$E$366913,'Worst Day Profiles'!G$1,'Source Data'!$F$2:$F$366913,$B17,'Source Data'!$G$2:$G$366913,$A17) -> 0 | H17: =SUMIFS('Source Data'!$I$2:$I$366913,'Source Data'!$A$2:$A$366913,'Worst Day Profiles'!$C17,'Source Data'!$E$2:$E$366913,'Worst Day Profiles'!H$1,'Source Data'!$F$2:$F$366913,$B17,'Source Data'!$G$2:$G$366913,$A17) -> 0 | I17: =SUMIFS('Source Data'!$I$2:$I$366913,'Source Data'!$A$2:$A$366913,'Worst Day Profiles'!$C17,'Source Data'!$E$2:$E$366913,'Worst Day Profiles'!I$1,'Source Data'!$F$2:$F$366913,$B17,'Source Data'!$G$2:$G$366913,$A17) -> 0 | J17: =SUMIFS('Source Data'!$I$2:$I$366913,'Source Data'!$A$2:$A$366913,'Worst Day Profiles'!$C17,'Source Data'!$E$2:$E$366913,'Worst Day Profiles'!J$1,'Source Data'!$F$2:$F$366913,$B17,'Source Data'!$G$2:$G$366913,$A17) -> 0.005648052513 | K17: =SUMIFS('Source Data'!$I$2:$I$366913,'Source Data'!$A$2:$A$366913,'Worst Day Profiles'!$C17,'Source Data'!$E$2:$E$366913,'Worst Day Profiles'!K$1,'Source Data'!$F$2:$F$366913,$B17,'Source Data'!$G$2:$G$366913,$A17) -> 0.2032577929 | L17: =SUMIFS('Source Data'!$I$2:$I$366913,'Source Data'!$A$2:$A$366913,'Worst Day Profiles'!$C17,'Source Data'!$E$2:$E$366913,'Worst Day Profiles'!L$1,'Source Data'!$F$2:$F$366913,$B17,'Source Data'!$G$2:$G$366913,$A17) -> 0.5489685049 | M17: =SUMIFS('Source Data'!$I$2:$I$366913,'Source Data'!$A$2:$A$366913,'Worst Day Profiles'!$C17,'Source Data'!$E$2:$E$366913,'Worst Day Profiles'!M$1,'Source Data'!$F$2:$F$366913,$B17,'Source Data'!$G$2:$G$366913,$A17) -> 0.6759247184 | N17: =SUMIFS('Source Data'!$I$2:$I$366913,'Source Data'!$A$2:$A$366913,'Worst Day Profiles'!$C17,'Source Data'!$E$2:$E$366913,'Worst Day Profiles'!N$1,'Source Data'!$F$2:$F$366913,$B17,'Source Data'!$G$2:$G$366913,$A17) -> 0.8107539241 | O17: =SUMIFS('Source Data'!$I$2:$I$366913,'Source Data'!$A$2:$A$366913,'Worst Day Profiles'!$C17,'Source Data'!$E$2:$E$366913,'Worst Day Profiles'!O$1,'Source Data'!$F$2:$F$366913,$B17,'Source Data'!$G$2:$G$366913,$A17) -> 0.9328798184 | P17: =SUMIFS('Source Data'!$I$2:$I$366913,'Source Data'!$A$2:$A$366913,'Worst Day Profiles'!$C17,'Source Data'!$E$2:$E$366913,'Worst Day Profiles'!P$1,'Source Data'!$F$2:$F$366913,$B17,'Source Data'!$G$2:$G$366913,$A17) -> 0.9336372374 | Q17: =SUMIFS('Source Data'!$I$2:$I$366913,'Source Data'!$A$2:$A$366913,'Worst Day Profiles'!$C17,'Source Data'!$E$2:$E$366913,'Worst Day Profiles'!Q$1,'Source Data'!$F$2:$F$366913,$B17,'Source Data'!$G$2:$G$366913,$A17) -> 0.9430303534 | R17: =SUMIFS('Source Data'!$I$2:$I$366913,'Source Data'!$A$2:$A$366913,'Worst Day Profiles'!$C17,'Source Data'!$E$2:$E$366913,'Worst Day Profiles'!R$1,'Source Data'!$F$2:$F$366913,$B17,'Source Data'!$G$2:$G$366913,$A17) -> 0.9428522475 | S17: =SUMIFS('Source Data'!$I$2:$I$366913,'Source Data'!$A$2:$A$366913,'Worst Day Profiles'!$C17,'Source Data'!$E$2:$E$366913,'Worst Day Profiles'!S$1,'Source Data'!$F$2:$F$366913,$B17,'Source Data'!$G$2:$G$366913,$A17) -> 0.9119444451 | T17: =SUMIFS('Source Data'!$I$2:$I$366913,'Source Data'!$A$2:$A$366913,'Worst Day Profiles'!$C17,'Source Data'!$E$2:$E$366913,'Worst Day Profiles'!T$1,'Source Data'!$F$2:$F$366913,$B17,'Source Data'!$G$2:$G$366913,$A17) -> 0.8064293315 | U17: =SUMIFS('Source Data'!$I$2:$I$366913,'Source Data'!$A$2:$A$366913,'Worst Day Profiles'!$C17,'Source Data'!$E$2:$E$366913,'Worst Day Profiles'!U$1,'Source Data'!$F$2:$F$366913,$B17,'Source Data'!$G$2:$G$366913,$A17) -> 0.4771049483 | V17: =SUMIFS('Source Data'!$I$2:$I$366913,'Source Data'!$A$2:$A$366913,'Worst Day Profiles'!$C17,'Source Data'!$E$2:$E$366913,'Worst Day Profiles'!V$1,'Source Data'!$F$2:$F$366913,$B17,'Source Data'!$G$2:$G$366913,$A17) -> 0.1614738374 | W17: =SUMIFS('Source Data'!$I$2:$I$366913,'Source Data'!$A$2:$A$366913,'Worst Day Profiles'!$C17,'Source Data'!$E$2:$E$366913,'Worst Day Profiles'!W$1,'Source Data'!$F$2:$F$366913,$B17,'Source Data'!$G$2:$G$366913,$A17) -> 0.00752269777 | X17: =SUMIFS('Source Data'!$I$2:$I$366913,'Source Data'!$A$2:$A$366913,'Worst Day Profiles'!$C17,'Source Data'!$E$2:$E$366913,'Worst Day Profiles'!X$1,'Source Data'!$F$2:$F$366913,$B17,'Source Data'!$G$2:$G$366913,$A17) -> 0 | Y17: =SUMIFS('Source Data'!$I$2:$I$366913,'Source Data'!$A$2:$A$366913,'Worst Day Profiles'!$C17,'Source Data'!$E$2:$E$366913,'Worst Day Profiles'!Y$1,'Source Data'!$F$2:$F$366913,$B17,'Source Data'!$G$2:$G$366913,$A17) -> 0 | Z17: =SUMIFS('Source Data'!$I$2:$I$366913,'Source Data'!$A$2:$A$366913,'Worst Day Profiles'!$C17,'Source Data'!$E$2:$E$366913,'Worst Day Profiles'!Z$1,'Source Data'!$F$2:$F$366913,$B17,'Source Data'!$G$2:$G$366913,$A17) -> 0 | AA17: =SUMIFS('Source Data'!$I$2:$I$366913,'Source Data'!$A$2:$A$366913,'Worst Day Profiles'!$C17,'Source Data'!$E$2:$E$366913,'Worst Day Profiles'!AA$1,'Source Data'!$F$2:$F$366913,$B17,'Source Data'!$G$2:$G$366913,$A17) -> 0 | AB17: =SUMIFS('Source Data'!$I$2:$I$366913,'Source Data'!$A$2:$A$366913,'Worst Day Profiles'!$C17,'Source Data'!$E$2:$E$366913,'Worst Day Profiles'!AB$1,'Source Data'!$F$2:$F$366913,$B17,'Source Data'!$G$2:$G$366913,$A17) -> 0
A18: Solar Fixed | B18: North | C18: 43213 | D18: 4 | E18: =SUMIFS('Source Data'!$I$2:$I$366913,'Source Data'!$A$2:$A$366913,'Worst Day Profiles'!$C18,'Source Data'!$E$2:$E$366913,'Worst Day Profiles'!E$1,'Source Data'!$F$2:$F$366913,$B18,'Source Data'!$G$2:$G$366913,$A18) -> 0 | F18: =SUMIFS('Source Data'!$I$2:$I$366913,'Source Data'!$A$2:$A$366913,'Worst Day Profiles'!$C18,'Source Data'!$E$2:$E$366913,'Worst Day Profiles'!F$1,'Source Data'!$F$2:$F$366913,$B18,'Source Data'!$G$2:$G$366913,$A18) -> 0 | G18: =SUMIFS('Source Data'!$I$2:$I$366913,'Source Data'!$A$2:$A$366913,'Worst Day Profiles'!$C18,'Source Data'!$E$2:$E$366913,'Worst Day Profiles'!G$1,'Source Data'!$F$2:$F$366913,$B18,'Source Data'!$G$2:$G$366913,$A18) -> 0 | H18: =SUMIFS('Source Data'!$I$2:$I$366913,'Source Data'!$A$2:$A$366913,'Worst Day Profiles'!$C18,'Source Data'!$E$2:$E$366913,'Worst Day Profiles'!H$1,'Source Data'!$F$2:$F$366913,$B18,'Source Data'!$G$2:$G$366913,$A18) -> 0 | I18: =SUMIFS('Source Data'!$I$2:$I$366913,'Source Data'!$A$2:$A$366913,'Worst Day Profiles'!$C18,'Source Data'!$E$2:$E$366913,'Worst Day Profiles'!I$1,'Source Data'!$F$2:$F$366913,$B18,'Source Data'!$G$2:$G$366913,$A18) -> 0 | J18: =SUMIFS('Source Data'!$I$2:$I$366913,'Source Data'!$A$2:$A$366913,'Worst Day Profiles'!$C18,'Source Data'!$E$2:$E$366913,'Worst Day Profiles'!J$1,'Source Data'!$F$2:$F$366913,$B18,'Source Data'!$G$2:$G$366913,$A18) -> 0.02312208382 | K18: =SUMIFS('Source Data'!$I$2:$I$366913,'Source Data'!$A$2:$A$366913,'Worst Day Profiles'!$C18,'Source Data'!$E$2:$E$366913,'Worst Day Profiles'!K$1,'Source Data'!$F$2:$F$366913,$B18,'Source Data'!$G$2:$G$366913,$A18) -> 0.3034014688 | L18: =SUMIFS('Source Data'!$I$2:$I$366913,'Source Data'!$A$2:$A$366913,'Worst Day Profiles'!$C18,'Source Data'!$E$2:$E$366913,'Worst Day Profiles'!L$1,'Source Data'!$F$2:$F$366913,$B18,'Source Data'!$G$2:$G$366913,$A18) -> 0.6540987655 | M18: =SUMIFS('Source Data'!$I$2:$I$366913,'Source Data'!$A$2:$A$366913,'Worst Day Profiles'!$C18,'Source Data'!$E$2:$E$366913,'Worst Day Profiles'!M$1,'Source Data'!$F$2:$F$366913,$B18,'Source Data'!$G$2:$G$366913,$A18) -> 0.8308156705 | N18: =SUMIFS('Source Data'!$I$2:$I$366913,'Source Data'!$A$2:$A$366913,'Worst Day Profiles'!$C18,'Source Data'!$E$2:$E$366913,'Worst Day Profiles'!N$1,'Source Data'!$F$2:$F$366913,$B18,'Source Data'!$G$2:$G$366913,$A18) -> 0.9095759251 | O18: =SUMIFS('Source Data'!$I$2:$I$366913,'Source Data'!$A$2:$A$366913,'Worst Day Profiles'!$C18,'Source Data'!$E$2:$E$366913,'Worst Day Profiles'!O$1,'Source Data'!$F$2:$F$366913,$B18,'Source Data'!$G$2:$G$366913,$A18) -> 0.8950670248 | P18: =SUMIFS('Source Data'!$I$2:$I$366913,'Source Data'!$A$2:$A$366913,'Worst Day Profiles'!$C18,'Source Data'!$E$2:$E$366913,'Worst Day Profiles'!P$1,'Source Data'!$F$2:$F$366913,$B18,'Source Data'!$G$2:$G$366913,$A18) -> 0.9064852769 | Q18: =SUMIFS('Source Data'!$I$2:$I$366913,'Source Data'!$A$2:$A$366913,'Worst Day Profiles'!$C18,'Source Data'!$E$2:$E$366913,'Worst Day Profiles'!Q$1,'Source Data'!$F$2:$F$366913,$B18,'Source Data'!$G$2:$G$366913,$A18) -> 0.9068512756 | R18: =SUMIFS('Source Data'!$I$2:$I$366913,'Source Data'!$A$2:$A$366913,'Worst Day Profiles'!$C18,'Source Data'!$E$2:$E$366913,'Worst Day Profiles'!R$1,'Source Data'!$F$2:$F$366913,$B18,'Source Data'!$G$2:$G$366913,$A18) -> 0.9012542658 | S18: =SUMIFS('Source Data'!$I$2:$I$366913,'Source Data'!$A$2:$A$366913,'Worst Day Profiles'!$C18,'Source Data'!$E$2:$E$366913,'Worst Day Profiles'!S$1,'Source Data'!$F$2:$F$366913,$B18,'Source Data'!$G$2:$G$366913,$A18) -> 0.8610995812 | T18: =SUMIFS('Source Data'!$I$2:$I$366913,'Source Data'!$A$2:$A$366913,'Worst Day Profiles'!$C18,'Source Data'!$E$2:$E$366913,'Worst Day Profiles'!T$1,'Source Data'!$F$2:$F$366913,$B18,'Source Data'!$G$2:$G$366913,$A18) -> 0.7620207453 | U18: =SUMIFS('Source Data'!$I$2:$I$366913,'Source Data'!$A$2:$A$366913,'Worst Day Profiles'!$C18,'Source Data'!$E$2:$E$366913,'Worst Day Profiles'!U$1,'Source Data'!$F$2:$F$366913,$B18,'Source Data'!$G$2:$G$366913,$A18) -> 0.580859109 | V18: =SUMIFS('Source Data'!$I$2:$I$366913,'Source Data'!$A$2:$A$366913,'Worst Day Profiles'!$C18,'Source Data'!$E$2:$E$366913,'Worst Day Profiles'!V$1,'Source Data'!$F$2:$F$366913,$B18,'Source Data'!$G$2:$G$366913,$A18) -> 0.2653878313 | W18: =SUMIFS('Source Data'!$I$2:$I$366913,'Source Data'!$A$2:$A$366913,'Worst Day Profiles'!$C18,'Source Data'!$E$2:$E$366913,'Worst Day Profiles'!W$1,'Source Data'!$F$2:$F$366913,$B18,'Source Data'!$G$2:$G$366913,$A18) -> 0.01847494559 | X18: =SUMIFS('Source Data'!$I$2:$I$366913,'Source Data'!$A$2:$A$366913,'Worst Day Profiles'!$C18,'Source Data'!$E$2:$E$366913,'Worst Day Profiles'!X$1,'Source Data'!$F$2:$F$366913,$B18,'Source Data'!$G$2:$G$366913,$A18) -> 0 | Y18: =SUMIFS('Source Data'!$I$2:$I$366913,'Source Data'!$A$2:$A$366913,'Worst Day Profiles'!$C18,'Source Data'!$E$2:$E$366913,'Worst Day Profiles'!Y$1,'Source Data'!$F$2:$F$366913,$B18,'Source Data'!$G$2:$G$366913,$A18) -> 0 | Z18: =SUMIFS('Source Data'!$I$2:$I$366913,'Source Data'!$A$2:$A$366913,'Worst Day Profiles'!$C18,'Source Data'!$E$2:$E$366913,'Worst Day Profiles'!Z$1,'Source Data'!$F$2:$F$366913,$B18,'Source Data'!$G$2:$G$366913,$A18) -> 0 | AA18: =SUMIFS('Source Data'!$I$2:$I$366913,'Source Data'!$A$2:$A$366913,'Worst Day Profiles'!$C18,'Source Data'!$E$2:$E$366913,'Worst Day Profiles'!AA$1,'Source Data'!$F$2:$F$366913,$B18,'Source Data'!$G$2:$G$366913,$A18) -> 0 | AB18: =SUMIFS('Source Data'!$I$2:$I$366913,'Source Data'!$A$2:$A$366913,'Worst Day Profiles'!$C18,'Source Data'!$E$2:$E$366913,'Worst Day Profiles'!AB$1,'Source Data'!$F$2:$F$366913,$B18,'Source Data'!$G$2:$G$366913,$A18) -> 0
A19: Solar Fixed | B19: North | C19: 43200 | D19: 4 | E19: =SUMIFS('Source Data'!$I$2:$I$366913,'Source Data'!$A$2:$A$366913,'Worst Day Profiles'!$C19,'Source Data'!$E$2:$E$366913,'Worst Day Profiles'!E$1,'Source Data'!$F$2:$F$366913,$B19,'Source Data'!$G$2:$G$366913,$A19) -> 0 | F19: =SUMIFS('Source Data'!$I$2:$I$366913,'Source Data'!$A$2:$A$366913,'Worst Day Profiles'!$C19,'Source Data'!$E$2:$E$366913,'Worst Day Profiles'!F$1,'Source Data'!$F$2:$F$366913,$B19,'Source Data'!$G$2:$G$366913,$A19) -> 0 | G19: =SUMIFS('Source Data'!$I$2:$I$366913,'Source Data'!$A$2:$A$366913,'Worst Day Profiles'!$C19,'Source Data'!$E$2:$E$366913,'Worst Day Profiles'!G$1,'Source Data'!$F$2:$F$366913,$B19,'Source Data'!$G$2:$G$366913,$A19) -> 0 | H19: =SUMIFS('Source Data'!$I$2:$I$366913,'Source Data'!$A$2:$A$366913,'Worst Day Profiles'!$C19,'Source Data'!$E$2:$E$366913,'Worst Day Profiles'!H$1,'Source Data'!$F$2:$F$366913,$B19,'Source Data'!$G$2:$G$366913,$A19) -> 0 | I19: =SUMIFS('Source Data'!$I$2:$I$366913,'Source Data'!$A$2:$A$366913,'Worst Day Profiles'!$C19,'Source Data'!$E$2:$E$366913,'Worst Day Profiles'!I$1,'Source Data'!$F$2:$F$366913,$B19,'Source Data'!$G$2:$G$366913,$A19) -> 0 | J19: =SUMIFS('Source Data'!$I$2:$I$366913,'Source Data'!$A$2:$A$366913,'Worst Day Profiles'!$C19,'Source Data'!$E$2:$E$366913,'Worst Day Profiles'!J$1,'Source Data'!$F$2:$F$366913,$B19,'Source Data'!$G$2:$G$366913,$A19) -> 0.004304973907 | K19: =SUMIFS('Source Data'!$I$2:$I$366913,'Source Data'!$A$2:$A$366913,'Worst Day Profiles'!$C19,'Source Data'!$E$2:$E$366913,'Worst Day Profiles'!K$1,'Source Data'!$F$2:$F$366913,$B19,'Source Data'!$G$2:$G$366913,$A19) -> 0.1760792137 | L19: =SUMIFS('Source Data'!$I$2:$I$366913,'Source Data'!$A$2:$A$366913,'Worst Day Profiles'!$C19,'Source Data'!$E$2:$E$366913,'Worst Day Profiles'!L$1,'Source Data'!$F$2:$F$366913,$B19,'Source Data'!$G$2:$G$366913,$A19) -> 0.5222012919 | M19: =SUMIFS('Source Data'!$I$2:$I$366913,'Source Data'!$A$2:$A$366913,'Worst Day Profiles'!$C19,'Source Data'!$E$2:$E$366913,'Worst Day Profiles'!M$1,'Source Data'!$F$2:$F$366913,$B19,'Source Data'!$G$2:$G$366913,$A19) -> 0.7209978518 | N19: =SUMIFS('Source Data'!$I$2:$I$366913,'Source Data'!$A$2:$A$366913,'Worst Day Profiles'!$C19,'Source Data'!$E$2:$E$366913,'Worst Day Profiles'!N$1,'Source Data'!$F$2:$F$366913,$B19,'Source Data'!$G$2:$G$366913,$A19) -> 0.8780277509 | O19: =SUMIFS('Source Data'!$I$2:$I$366913,'Source Data'!$A$2:$A$366913,'Worst Day Profiles'!$C19,'Source Data'!$E$2:$E$366913,'Worst Day Profiles'!O$1,'Source Data'!$F$2:$F$366913,$B19,'Source Data'!$G$2:$G$366913,$A19) -> 0.9206085038 | P19: =SUMIFS('Source Data'!$I$2:$I$366913,'Source Data'!$A$2:$A$366913,'Worst Day Profiles'!$C19,'Source Data'!$E$2:$E$366913,'Worst Day Profiles'!P$1,'Source Data'!$F$2:$F$366913,$B19,'Source Data'!$G$2:$G$366913,$A19) -> 0.8874426876 | Q19: =SUMIFS('Source Data'!$I$2:$I$366913,'Source Data'!$A$2:$A$366913,'Worst Day Profiles'!$C19,'Source Data'!$E$2:$E$366913,'Worst Day Profiles'!Q$1,'Source Data'!$F$2:$F$366913,$B19,'Source Data'!$G$2:$G$366913,$A19) -> 0.8971226194 | R19: =SUMIFS('Source Data'!$I$2:$I$366913,'Source Data'!$A$2:$A$366913,'Worst Day Profiles'!$C19,'Source Data'!$E$2:$E$366913,'Worst Day Profiles'!R$1,'Source Data'!$F$2:$F$366913,$B19,'Source Data'!$G$2:$G$366913,$A19) -> 0.8977942285 | S19: =SUMIFS('Source Data'!$I$2:$I$366913,'Source Data'!$A$2:$A$366913,'Worst Day Profiles'!$C19,'Source Data'!$E$2:$E$366913,'Worst Day Profiles'!S$1,'Source Data'!$F$2:$F$366913,$B19,'Source Data'!$G$2:$G$366913,$A19) -> 0.8300191146 | T19: =SUMIFS('Source Data'!$I$2:$I$366913,'Source Data'!$A$2:$A$366913,'Worst Day Profiles'!$C19,'Source Data'!$E$2:$E$366913,'Worst Day Profiles'!T$1,'Source Data'!$F$2:$F$366913,$B19,'Source Data'!$G$2:$G$366913,$A19) -> 0.5912664721 | U19: =SUMIFS('Source Data'!$I$2:$I$366913,'Source Data'!$A$2:$A$366913,'Worst Day Profiles'!$C19,'Source Data'!$E$2:$E$366913,'Worst Day Profiles'!U$1,'Source Data'!$F$2:$F$366913,$B19,'Source Data'!$G$2:$G$366913,$A19) -> 0.4552828289 | V19: =SUMIFS('Source Data'!$I$2:$I$366913,'Source Data'!$A$2:$A$366913,'Worst Day Profiles'!$C19,'Source Data'!$E$2:$E$366913,'Worst Day Profiles'!V$1,'Source Data'!$F$2:$F$366913,$B19,'Source Data'!$G$2:$G$366913,$A19) -> 0.1371466556 | W19: =SUMIFS('Source Data'!$I$2:$I$366913,'Source Data'!$A$2:$A$366913,'Worst Day Profiles'!$C19,'Source Data'!$E$2:$E$366913,'Worst Day Profiles'!W$1,'Source Data'!$F$2:$F$366913,$B19,'Source Data'!$G$2:$G$366913,$A19) -> 0.005366247907 | X19: =SUMIFS('Source Data'!$I$2:$I$366913,'Source Data'!$A$2:$A$366913,'Worst Day Profiles'!$C19,'Source Data'!$E$2:$E$366913,'Worst Day Profiles'!X$1,'Source Data'!$F$2:$F$366913,$B19,'Source Data'!$G$2:$G$366913,$A19) -> 0 | Y19: =SUMIFS('Source Data'!$I$2:$I$366913,'Source Data'!$A$2:$A$366913,'Worst Day Profiles'!$C19,'Source Data'!$E$2:$E$366913,'Worst Day Profiles'!Y$1,'Source Data'!$F$2:$F$366913,$B19,'Source Data'!$G$2:$G$366913,$A19) -> 0 | Z19: =SUMIFS('Source Data'!$I$2:$I$366913,'Source Data'!$A$2:$A$366913,'Worst Day Profiles'!$C19,'Source Data'!$E$2:$E$366913,'Worst Day Profiles'!Z$1,'Source Data'!$F$2:$F$366913,$B19,'Source Data'!$G$2:$G$366913,$A19) -> 0 | AA19: =SUMIFS('Source Data'!$I$2:$I$366913,'Source Data'!$A$2:$A$366913,'Worst Day Profiles'!$C19,'Source Data'!$E$2:$E$366913,'Worst Day Profiles'!AA$1,'Source Data'!$F$2:$F$366913,$B19,'Source Data'!$G$2:$G$366913,$A19) -> 0 | AB19: =SUMIFS('Source Data'!$I$2:$I$366913,'Source Data'!$A$2:$A$366913,'Worst Day Profiles'!$C19,'Source Data'!$E$2:$E$366913,'Worst Day Profiles'!AB$1,'Source Data'!$F$2:$F$366913,$B19,'Source Data'!$G$2:$G$366913,$A19) -> 0
A20: Solar Fixed | B20: North | C20: 43215 | D20: 4 | E20: =SUMIFS('Source Data'!$I$2:$I$366913,'Source Data'!$A$2:$A$366913,'Worst Day Profiles'!$C20,'Source Data'!$E$2:$E$366913,'Worst Day Profiles'!E$1,'Source Data'!$F$2:$F$366913,$B20,'Source Data'!$G$2:$G$366913,$A20) -> 0 | F20: =SUMIFS('Source Data'!$I$2:$I$366913,'Source Data'!$A$2:$A$366913,'Worst Day Profiles'!$C20,'Source Data'!$E$2:$E$366913,'Worst Day Profiles'!F$1,'Source Data'!$F$2:$F$366913,$B20,'Source Data'!$G$2:$G$366913,$A20) -> 0 | G20: =SUMIFS('Source Data'!$I$2:$I$366913,'Source Data'!$A$2:$A$366913,'Worst Day Profiles'!$C20,'Source Data'!$E$2:$E$366913,'Worst Day Profiles'!G$1,'Source Data'!$F$2:$F$366913,$B20,'Source Data'!$G$2:$G$366913,$A20) -> 0 | H20: =SUMIFS('Source Data'!$I$2:$I$366913,'Source Data'!$A$2:$A$366913,'Worst Day Profiles'!$C20,'Source Data'!$E$2:$E$366913,'Worst Day Profiles'!H$1,'Source Data'!$F$2:$F$366913,$B20,'Source Data'!$G$2:$G$366913,$A20) -> 0 | I20: =SUMIFS('Source Data'!$I$2:$I$366913,'Source Data'!$A$2:$A$366913,'Worst Day Profiles'!$C20,'Source Data'!$E$2:$E$366913,'Worst Day Profiles'!I$1,'Source Data'!$F$2:$F$366913,$B20,'Source Data'!$G$2:$G$366913,$A20) -> 0 | J20: =SUMIFS('Source Data'!$I$2:$I$366913,'Source Data'!$A$2:$A$366913,'Worst Day Profiles'!$C20,'Source Data'!$E$2:$E$366913,'Worst Day Profiles'!J$1,'Source Data'!$F$2:$F$366913,$B20,'Source Data'!$G$2:$G$366913,$A20) -> 0.02043414361 | K20: =SUMIFS('Source Data'!$I$2:$I$366913,'Source Data'!$A$2:$A$366913,'Worst Day Profiles'!$C20,'Source Data'!$E$2:$E$366913,'Worst Day Profiles'!K$1,'Source Data'!$F$2:$F$366913,$B20,'Source Data'!$G$2:$G$366913,$A20) -> 0.2936903242 | L20: =SUMIFS('Source Data'!$I$2:$I$366913,'Source Data'!$A$2:$A$366913,'Worst Day Profiles'!$C20,'Source Data'!$E$2:$E$366913,'Worst Day Profiles'!L$1,'Source Data'!$F$2:$F$366913,$B20,'Source Data'!$G$2:$G$366913,$A20) -> 0.6481956727 | M20: =SUMIFS('Source Data'!$I$2:$I$366913,'Source Data'!$A$2:$A$366913,'Worst Day Profiles'!$C20,'Source Data'!$E$2:$E$366913,'Worst Day Profiles'!M$1,'Source Data'!$F$2:$F$366913,$B20,'Source Data'!$G$2:$G$366913,$A20) -> 0.8285628978 | N20: =SUMIFS('Source Data'!$I$2:$I$366913,'Source Data'!$A$2:$A$366913,'Worst Day Profiles'!$C20,'Source Data'!$E$2:$E$366913,'Worst Day Profiles'!N$1,'Source Data'!$F$2:$F$366913,$B20,'Source Data'!$G$2:$G$366913,$A20) -> 0.9205515647 | O20: =SUMIFS('Source Data'!$I$2:$I$366913,'Source Data'!$A$2:$A$366913,'Worst Day Profiles'!$C20,'Source Data'!$E$2:$E$366913,'Worst Day Profiles'!O$1,'Source Data'!$F$2:$F$366913,$B20,'Source Data'!$G$2:$G$366913,$A20) -> 0.9578922748 | P20: =SUMIFS('Source Data'!$I$2:$I$366913,'Source Data'!$A$2:$A$366913,'Worst Day Profiles'!$C20,'Source Data'!$E$2:$E$366913,'Worst Day Profiles'!P$1,'Source Data'!$F$2:$F$366913,$B20,'Source Data'!$G$2:$G$366913,$A20) -> 0.9146925536 | Q20: =SUMIFS('Source Data'!$I$2:$I$366913,'Source Data'!$A$2:$A$366913,'Worst Day Profiles'!$C20,'Source Data'!$E$2:$E$366913,'Worst Day Profiles'!Q$1,'Source Data'!$F$2:$F$366913,$B20,'Source Data'!$G$2:$G$366913,$A20) -> 0.9411249231 | R20: =SUMIFS('Source Data'!$I$2:$I$366913,'Source Data'!$A$2:$A$366913,'Worst Day Profiles'!$C20,'Source Data'!$E$2:$E$366913,'Worst Day Profiles'!R$1,'Source Data'!$F$2:$F$366913,$B20,'Source Data'!$G$2:$G$366913,$A20) -> 0.9657300916 | S20: =SUMIFS('Source Data'!$I$2:$I$366913,'Source Data'!$A$2:$A$366913,'Worst Day Profiles'!$C20,'Source Data'!$E$2:$E$366913,'Worst Day Profiles'!S$1,'Source Data'!$F$2:$F$366913,$B20,'Source Data'!$G$2:$G$366913,$A20) -> 0.9084423357 | T20: =SUMIFS('Source Data'!$I$2:$I$366913,'Source Data'!$A$2:$A$366913,'Worst Day Profiles'!$C20,'Source Data'!$E$2:$E$366913,'Worst Day Profiles'!T$1,'Source Data'!$F$2:$F$366913,$B20,'Source Data'!$G$2:$G$366913,$A20) -> 0.7412717965 | U20: =SUMIFS('Source Data'!$I$2:$I$366913,'Source Data'!$A$2:$A$366913,'Worst Day Profiles'!$C20,'Source Data'!$E$2:$E$366913,'Worst Day Profiles'!U$1,'Source Data'!$F$2:$F$366913,$B20,'Source Data'!$G$2:$G$366913,$A20) -> 0.5942519094 | V20: =SUMIFS('Source Data'!$I$2:$I$366913,'Source Data'!$A$2:$A$366913,'Worst Day Profiles'!$C20,'Source Data'!$E$2:$E$366913,'Worst Day Profiles'!V$1,'Source Data'!$F$2:$F$366913,$B20,'Source Data'!$G$2:$G$366913,$A20) -> 0.2668964273 | W20: =SUMIFS('Source Data'!$I$2:$I$366913,'Source Data'!$A$2:$A$366913,'Worst Day Profiles'!$C20,'Source Data'!$E$2:$E$366913,'Worst Day Profiles'!W$1,'Source Data'!$F$2:$F$366913,$B20,'Source Data'!$G$2:$G$366913,$A20) -> 0.02181567183 | X20: =SUMIFS('Source Data'!$I$2:$I$366913,'Source Data'!$A$2:$A$366913,'Worst Day Profiles'!$C20,'Source Data'!$E$2:$E$366913,'Worst Day Profiles'!X$1,'Source Data'!$F$2:$F$366913,$B20,'Source Data'!$G$2:$G$366913,$A20) -> 0 | Y20: =SUMIFS('Source Data'!$I$2:$I$366913,'Source Data'!$A$2:$A$366913,'Worst Day Profiles'!$C20,'Source Data'!$E$2:$E$366913,'Worst Day Profiles'!Y$1,'Source Data'!$F$2:$F$366913,$B20,'Source Data'!$G$2:$G$366913,$A20) -> 0 | Z20: =SUMIFS('Source Data'!$I$2:$I$366913,'Source Data'!$A$2:$A$366913,'Worst Day Profiles'!$C20,'Source Data'!$E$2:$E$366913,'Worst Day Profiles'!Z$1,'Source Data'!$F$2:$F$366913,$B20,'Source Data'!$G$2:$G$366913,$A20) -> 0 | AA20: =SUMIFS('Source Data'!$I$2:$I$366913,'Source Data'!$A$2:$A$366913,'Worst Day Profiles'!$C20,'Source Data'!$E$2:$E$366913,'Worst Day Profiles'!AA$1,'Source Data'!$F$2:$F$366913,$B20,'Source Data'!$G$2:$G$366913,$A20) -> 0 | AB20: =SUMIFS('Source Data'!$I$2:$I$366913,'Source Data'!$A$2:$A$366913,'Worst Day Profiles'!$C20,'Source Data'!$E$2:$E$366913,'Worst Day Profiles'!AB$1,'Source Data'!$F$2:$F$366913,$B20,'Source Data'!$G$2:$G$366913,$A20) -> 0
A21: Solar Fixed | B21: North | C21: 43214 | D21: 4 | E21: =SUMIFS('Source Data'!$I$2:$I$366913,'Source Data'!$A$2:$A$366913,'Worst Day Profiles'!$C21,'Source Data'!$E$2:$E$366913,'Worst Day Profiles'!E$1,'Source Data'!$F$2:$F$366913,$B21,'Source Data'!$G$2:$G$366913,$A21) -> 0 | F21: =SUMIFS('Source Data'!$I$2:$I$366913,'Source Data'!$A$2:$A$366913,'Worst Day Profiles'!$C21,'Source Data'!$E$2:$E$366913,'Worst Day Profiles'!F$1,'Source Data'!$F$2:$F$366913,$B21,'Source Data'!$G$2:$G$366913,$A21) -> 0 | G21: =SUMIFS('Source Data'!$I$2:$I$366913,'Source Data'!$A$2:$A$366913,'Worst Day Profiles'!$C21,'Source Data'!$E$2:$E$366913,'Worst Day Profiles'!G$1,'Source Data'!$F$2:$F$366913,$B21,'Source Data'!$G$2:$G$366913,$A21) -> 0 | H21: =SUMIFS('Source Data'!$I$2:$I$366913,'Source Data'!$A$2:$A$366913,'Worst Day Profiles'!$C21,'Source Data'!$E$2:$E$366913,'Worst Day Profiles'!H$1,'Source Data'!$F$2:$F$366913,$B21,'Source Data'!$G$2:$G$366913,$A21) -> 0 | I21: =SUMIFS('Source Data'!$I$2:$I$366913,'Source Data'!$A$2:$A$366913,'Worst Day Profiles'!$C21,'Source Data'!$E$2:$E$366913,'Worst Day Profiles'!I$1,'Source Data'!$F$2:$F$366913,$B21,'Source Data'!$G$2:$G$366913,$A21) -> 0 | J21: =SUMIFS('Source Data'!$I$2:$I$366913,'Source Data'!$A$2:$A$366913,'Worst Day Profiles'!$C21,'Source Data'!$E$2:$E$366913,'Worst Day Profiles'!J$1,'Source Data'!$F$2:$F$366913,$B21,'Source Data'!$G$2:$G$366913,$A21) -> 0.02421697461 | K21: =SUMIFS('Source Data'!$I$2:$I$366913,'Source Data'!$A$2:$A$366913,'Worst Day Profiles'!$C21,'Source Data'!$E$2:$E$366913,'Worst Day Profiles'!K$1,'Source Data'!$F$2:$F$366913,$B21,'Source Data'!$G$2:$G$366913,$A21) -> 0.2927042849 | L21: =SUMIFS('Source Data'!$I$2:$I$366913,'Source Data'!$A$2:$A$366913,'Worst Day Profiles'!$C21,'Source Data'!$E$2:$E$366913,'Worst Day Profiles'!L$1,'Source Data'!$F$2:$F$366913,$B21,'Source Data'!$G$2:$G$366913,$A21) -> 0.5994262902 | M21: =SUMIFS('Source Data'!$I$2:$I$366913,'Source Data'!$A$2:$A$366913,'Worst Day Profiles'!$C21,'Source Data'!$E$2:$E$366913,'Worst Day Profiles'!M$1,'Source Data'!$F$2:$F$366913,$B21,'Source Data'!$G$2:$G$366913,$A21) -> 0.8007782036 | N21: =SUMIFS('Source Data'!$I$2:$I$366913,'Source Data'!$A$2:$A$366913,'Worst Day Profiles'!$C21,'Source Data'!$E$2:$E$366913,'Worst Day Profiles'!N$1,'Source Data'!$F$2:$F$366913,$B21,'Source Data'!$G$2:$G$366913,$A21) -> 0.8942411362 | O21: =SUMIFS('Source Data'!$I$2:$I$366913,'Source Data'!$A$2:$A$366913,'Worst Day Profiles'!$C21,'Source Data'!$E$2:$E$366913,'Worst Day Profiles'!O$1,'Source Data'!$F$2:$F$366913,$B21,'Source Data'!$G$2:$G$366913,$A21) -> 0.9286550997 | P21: =SUMIFS('Source Data'!$I$2:$I$366913,'Source Data'!$A$2:$A$366913,'Worst Day Profiles'!$C21,'Source Data'!$E$2:$E$366913,'Worst Day Profiles'!P$1,'Source Data'!$F$2:$F$366913,$B21,'Source Data'!$G$2:$G$366913,$A21) -> 0.9461195464 | Q21: =SUMIFS('Source Data'!$I$2:$I$366913,'Source Data'!$A$2:$A$366913,'Worst Day Profiles'!$C21,'Source Data'!$E$2:$E$366913,'Worst Day Profiles'!Q$1,'Source Data'!$F$2:$F$366913,$B21,'Source Data'!$G$2:$G$366913,$A21) -> 0.8927615111 | R21: =SUMIFS('Source Data'!$I$2:$I$366913,'Source Data'!$A$2:$A$366913,'Worst Day Profiles'!$C21,'Source Data'!$E$2:$E$366913,'Worst Day Profiles'!R$1,'Source Data'!$F$2:$F$366913,$B21,'Source Data'!$G$2:$G$366913,$A21) -> 0.8904955037 | S21: =SUMIFS('Source Data'!$I$2:$I$366913,'Source Data'!$A$2:$A$366913,'Worst Day Profiles'!$C21,'Source Data'!$E$2:$E$366913,'Worst Day Profiles'!S$1,'Source Data'!$F$2:$F$366913,$B21,'Source Data'!$G$2:$G$366913,$A21) -> 0.8614217865 | T21: =SUMIFS('Source Data'!$I$2:$I$366913,'Source Data'!$A$2:$A$366913,'Worst Day Profiles'!$C21,'Source Data'!$E$2:$E$366913,'Worst Day Profiles'!T$1,'Source Data'!$F$2:$F$366913,$B21,'Source Data'!$G$2:$G$366913,$A21) -> 0.7868983011 | U21: =SUMIFS('Source Data'!$I$2:$I$366913,'Source Data'!$A$2:$A$366913,'Worst Day Profiles'!$C21,'Source Data'!$E$2:$E$366913,'Worst Day Profiles'!U$1,'Source Data'!$F$2:$F$366913,$B21,'Source Data'!$G$2:$G$366913,$A21) -> 0.609897968 | V21: =SUMIFS('Source Data'!$I$2:$I$366913,'Source Data'!$A$2:$A$366913,'Worst Day Profiles'!$C21,'Source Data'!$E$2:$E$366913,'Worst Day Profiles'!V$1,'Source Data'!$F$2:$F$366913,$B21,'Source Data'!$G$2:$G$366913,$A21) -> 0.2542046224 | W21: =SUMIFS('Source Data'!$I$2:$I$366913,'Source Data'!$A$2:$A$366913,'Worst Day Profiles'!$C21,'Source Data'!$E$2:$E$366913,'Worst Day Profiles'!W$1,'Source Data'!$F$2:$F$366913,$B21,'Source Data'!$G$2:$G$366913,$A21) -> 0.01645570774 | X21: =SUMIFS('Source Data'!$I$2:$I$366913,'Source Data'!$A$2:$A$366913,'Worst Day Profiles'!$C21,'Source Data'!$E$2:$E$366913,'Worst Day Profiles'!X$1,'Source Data'!$F$2:$F$366913,$B21,'Source Data'!$G$2:$G$366913,$A21) -> 0 | Y21: =SUMIFS('Source Data'!$I$2:$I$366913,'Source Data'!$A$2:$A$366913,'Worst Day Profiles'!$C21,'Source Data'!$E$2:$E$366913,'Worst Day Profiles'!Y$1,'Source Data'!$F$2:$F$366913,$B21,'Source Data'!$G$2:$G$366913,$A21) -> 0 | Z21: =SUMIFS('Source Data'!$I$2:$I$366913,'Source Data'!$A$2:$A$366913,'Worst Day Profiles'!$C21,'Source Data'!$E$2:$E$366913,'Worst Day Profiles'!Z$1,'Source Data'!$F$2:$F$366913,$B21,'Source Data'!$G$2:$G$366913,$A21) -> 0 | AA21: =SUMIFS('Source Data'!$I$2:$I$366913,'Source Data'!$A$2:$A$366913,'Worst Day Profiles'!$C21,'Source Data'!$E$2:$E$366913,'Worst Day Profiles'!AA$1,'Source Data'!$F$2:$F$366913,$B21,'Source Data'!$G$2:$G$366913,$A21) -> 0 | AB21: =SUMIFS('Source Data'!$I$2:$I$366913,'Source Data'!$A$2:$A$366913,'Worst Day Profiles'!$C21,'Source Data'!$E$2:$E$366913,'Worst Day Profiles'!AB$1,'Source Data'!$F$2:$F$366913,$B21,'Source Data'!$G$2:$G$366913,$A21) -> 0
A22: Solar Fixed | B22: North | C22: 43249 | D22: 5 | E22: =SUMIFS('Source Data'!$I$2:$I$366913,'Source Data'!$A$2:$A$366913,'Worst Day Profiles'!$C22,'Source Data'!$E$2:$E$366913,'Worst Day Profiles'!E$1,'Source Data'!$F$2:$F$366913,$B22,'Source Data'!$G$2:$G$366913,$A22) -> 0 | F22: =SUMIFS('Source Data'!$I$2:$I$366913,'Source Data'!$A$2:$A$366913,'Worst Day Profiles'!$C22,'Source Data'!$E$2:$E$366913,'Worst Day Profiles'!F$1,'Source Data'!$F$2:$F$366913,$B22,'Source Data'!$G$2:$G$366913,$A22) -> 0 | G22: =SUMIFS('Source Data'!$I$2:$I$366913,'Source Data'!$A$2:$A$366913,'Worst Day Profiles'!$C22,'Source Data'!$E$2:$E$366913,'Worst Day Profiles'!G$1,'Source Data'!$F$2:$F$366913,$B22,'Source Data'!$G$2:$G$366913,$A22) -> 0 | H22: =SUMIFS('Source Data'!$I$2:$I$366913,'Source Data'!$A$2:$A$366913,'Worst Day Profiles'!$C22,'Source Data'!$E$2:$E$366913,'Worst Day Profiles'!H$1,'Source Data'!$F$2:$F$366913,$B22,'Source Data'!$G$2:$G$366913,$A22) -> 0 | I22: =SUMIFS('Source Data'!$I$2:$I$366913,'Source Data'!$A$2:$A$366913,'Worst Day Profiles'!$C22,'Source Data'!$E$2:$E$366913,'Worst Day Profiles'!I$1,'Source Data'!$F$2:$F$366913,$B22,'Source Data'!$G$2:$G$366913,$A22) -> 0.0003500090705 | J22: =SUMIFS('Source Data'!$I$2:$I$366913,'Source Data'!$A$2:$A$366913,'Worst Day Profiles'!$C22,'Source Data'!$E$2:$E$366913,'Worst Day Profiles'!J$1,'Source Data'!$F$2:$F$366913,$B22,'Source Data'!$G$2:$G$366913,$A22) -> 0.09104180739 | K22: =SUMIFS('Source Data'!$I$2:$I$366913,'Source Data'!$A$2:$A$366913,'Worst Day Profiles'!$C22,'Source Data'!$E$2:$E$366913,'Worst Day Profiles'!K$1,'Source Data'!$F$2:$F$366913,$B22,'Source Data'!$G$2:$G$366913,$A22) -> 0.4021284749 | L22: =SUMIFS('Source Data'!$I$2:$I$366913,'Source Data'!$A$2:$A$366913,'Worst Day Profiles'!$C22,'Source Data'!$E$2:$E$366913,'Worst Day Profiles'!L$1,'Source Data'!$F$2:$F$366913,$B22,'Source Data'!$G$2:$G$366913,$A22) -> 0.6556291383 | M22: =SUMIFS('Source Data'!$I$2:$I$366913,'Source Data'!$A$2:$A$366913,'Worst Day Profiles'!$C22,'Source Data'!$E$2:$E$366913,'Worst Day Profiles'!M$1,'Source Data'!$F$2:$F$366913,$B22,'Source Data'!$G$2:$G$366913,$A22) -> 0.8014479805 | N22: =SUMIFS('Source Data'!$I$2:$I$366913,'Source Data'!$A$2:$A$366913,'Worst Day Profiles'!$C22,'Source Data'!$E$2:$E$366913,'Worst Day Profiles'!N$1,'Source Data'!$F$2:$F$366913,$B22,'Source Data'!$G$2:$G$366913,$A22) -> 0.894974075 | O22: =SUMIFS('Source Data'!$I$2:$I$366913,'Source Data'!$A$2:$A$366913,'Worst Day Profiles'!$C22,'Source Data'!$E$2:$E$366913,'Worst Day Profiles'!O$1,'Source Data'!$F$2:$F$366913,$B22,'Source Data'!$G$2:$G$366913,$A22) -> 0.9482927152 | P22: =SUMIFS('Source Data'!$I$2:$I$366913,'Source Data'!$A$2:$A$366913,'Worst Day Profiles'!$C22,'Source Data'!$E$2:$E$366913,'Worst Day Profiles'!P$1,'Source Data'!$F$2:$F$366913,$B22,'Source Data'!$G$2:$G$366913,$A22) -> 0.9511301069 | Q22: =SUMIFS('Source Data'!$I$2:$I$366913,'Source Data'!$A$2:$A$366913,'Worst Day Profiles'!$C22,'Source Data'!$E$2:$E$366913,'Worst Day Profiles'!Q$1,'Source Data'!$F$2:$F$366913,$B22,'Source Data'!$G$2:$G$366913,$A22) -> 0.9487244171 | R22: =SUMIFS('Source Data'!$I$2:$I$366913,'Source Data'!$A$2:$A$366913,'Worst Day Profiles'!$C22,'Source Data'!$E$2:$E$366913,'Worst Day Profiles'!R$1,'Source Data'!$F$2:$F$366913,$B22,'Source Data'!$G$2:$G$366913,$A22) -> 0.9365038117 | S22: =SUMIFS('Source Data'!$I$2:$I$366913,'Source Data'!$A$2:$A$366913,'Worst Day Profiles'!$C22,'Source Data'!$E$2:$E$366913,'Worst Day Profiles'!S$1,'Source Data'!$F$2:$F$366913,$B22,'Source Data'!$G$2:$G$366913,$A22) -> 0.7825888513 | T22: =SUMIFS('Source Data'!$I$2:$I$366913,'Source Data'!$A$2:$A$366913,'Worst Day Profiles'!$C22,'Source Data'!$E$2:$E$366913,'Worst Day Profiles'!T$1,'Source Data'!$F$2:$F$366913,$B22,'Source Data'!$G$2:$G$366913,$A22) -> 0.7580236032 | U22: =SUMIFS('Source Data'!$I$2:$I$366913,'Source Data'!$A$2:$A$366913,'Worst Day Profiles'!$C22,'Source Data'!$E$2:$E$366913,'Worst Day Profiles'!U$1,'Source Data'!$F$2:$F$366913,$B22,'Source Data'!$G$2:$G$366913,$A22) -> 0.5846345482 | V22: =SUMIFS('Source Data'!$I$2:$I$366913,'Source Data'!$A$2:$A$366913,'Worst Day Profiles'!$C22,'Source Data'!$E$2:$E$366913,'Worst Day Profiles'!V$1,'Source Data'!$F$2:$F$366913,$B22,'Source Data'!$G$2:$G$366913,$A22) -> 0.3311264499 | W22: =SUMIFS('Source Data'!$I$2:$I$366913,'Source Data'!$A$2:$A$366913,'Worst Day Profiles'!$C22,'Source Data'!$E$2:$E$366913,'Worst Day Profiles'!W$1,'Source Data'!$F$2:$F$366913,$B22,'Source Data'!$G$2:$G$366913,$A22) -> 0.07510619745 | X22: =SUMIFS('Source Data'!$I$2:$I$366913,'Source Data'!$A$2:$A$366913,'Worst Day Profiles'!$C22,'Source Data'!$E$2:$E$366913,'Worst Day Profiles'!X$1,'Source Data'!$F$2:$F$366913,$B22,'Source Data'!$G$2:$G$366913,$A22) -> 0.0003289531277 | Y22: =SUMIFS('Source Data'!$I$2:$I$366913,'Source Data'!$A$2:$A$366913,'Worst Day Profiles'!$C22,'Source Data'!$E$2:$E$366913,'Worst Day Profiles'!Y$1,'Source Data'!$F$2:$F$366913,$B22,'Source Data'!$G$2:$G$366913,$A22) -> 0 | Z22: =SUMIFS('Source Data'!$I$2:$I$366913,'Source Data'!$A$2:$A$366913,'Worst Day Profiles'!$C22,'Source Data'!$E$2:$E$366913,'Worst Day Profiles'!Z$1,'Source Data'!$F$2:$F$366913,$B22,'Source Data'!$G$2:$G$366913,$A22) -> 0 | AA22: =SUMIFS('Source Data'!$I$2:$I$366913,'Source Data'!$A$2:$A$366913,'Worst Day Profiles'!$C22,'Source Data'!$E$2:$E$366913,'Worst Day Profiles'!AA$1,'Source Data'!$F$2:$F$366913,$B22,'Source Data'!$G$2:$G$366913,$A22) -> 0 | AB22: =SUMIFS('Source Data'!$I$2:$I$366913,'Source Data'!$A$2:$A$366913,'Worst Day Profiles'!$C22,'Source Data'!$E$2:$E$366913,'Worst Day Profiles'!AB$1,'Source Data'!$F$2:$F$366913,$B22,'Source Data'!$G$2:$G$366913,$A22) -> 0
A23: Solar Fixed | B23: North | C23: 43228 | D23: 5 | E23: =SUMIFS('Source Data'!$I$2:$I$366913,'Source Data'!$A$2:$A$366913,'Worst Day Profiles'!$C23,'Source Data'!$E$2:$E$366913,'Worst Day Profiles'!E$1,'Source Data'!$F$2:$F$366913,$B23,'Source Data'!$G$2:$G$366913,$A23) -> 0 | F23: =SUMIFS('Source Data'!$I$2:$I$366913,'Source Data'!$A$2:$A$366913,'Worst Day Profiles'!$C23,'Source Data'!$E$2:$E$366913,'Worst Day Profiles'!F$1,'Source Data'!$F$2:$F$366913,$B23,'Source Data'!$G$2:$G$366913,$A23) -> 0 | G23: =SUMIFS('Source Data'!$I$2:$I$366913,'Source Data'!$A$2:$A$366913,'Worst Day Profiles'!$C23,'Source Data'!$E$2:$E$366913,'Worst Day Profiles'!G$1,'Source Data'!$F$2:$F$366913,$B23,'Source Data'!$G$2:$G$366913,$A23) -> 0 | H23: =SUMIFS('Source Data'!$I$2:$I$366913,'Source Data'!$A$2:$A$366913,'Worst Day Profiles'!$C23,'Source Data'!$E$2:$E$366913,'Worst Day Profiles'!H$1,'Source Data'!$F$2:$F$366913,$B23,'Source Data'!$G$2:$G$366913,$A23) -> 0 | I23: =SUMIFS('Source Data'!$I$2:$I$366913,'Source Data'!$A$2:$A$366913,'Worst Day Profiles'!$C23,'Source Data'!$E$2:$E$366913,'Worst Day Profiles'!I$1,'Source Data'!$F$2:$F$366913,$B23,'Source Data'!$G$2:$G$366913,$A23) -> 2.292889886e-07 | J23: =SUMIFS('Source Data'!$I$2:$I$366913,'Source Data'!$A$2:$A$366913,'Worst Day Profiles'!$C23,'Source Data'!$E$2:$E$366913,'Worst Day Profiles'!J$1,'Source Data'!$F$2:$F$366913,$B23,'Source Data'!$G$2:$G$366913,$A23) -> 0.05727093121 | K23: =SUMIFS('Source Data'!$I$2:$I$366913,'Source Data'!$A$2:$A$366913,'Worst Day Profiles'!$C23,'Source Data'!$E$2:$E$366913,'Worst Day Profiles'!K$1,'Source Data'!$F$2:$F$366913,$B23,'Source Data'!$G$2:$G$366913,$A23) -> 0.388147809 | L23: =SUMIFS('Source Data'!$I$2:$I$366913,'Source Data'!$A$2:$A$366913,'Worst Day Profiles'!$C23,'Source Data'!$E$2:$E$366913,'Worst Day Profiles'!L$1,'Source Data'!$F$2:$F$366913,$B23,'Source Data'!$G$2:$G$366913,$A23) -> 0.6585966408 | M23: =SUMIFS('Source Data'!$I$2:$I$366913,'Source Data'!$A$2:$A$366913,'Worst Day Profiles'!$C23,'Source Data'!$E$2:$E$366913,'Worst Day Profiles'!M$1,'Source Data'!$F$2:$F$366913,$B23,'Source Data'!$G$2:$G$366913,$A23) -> 0.8297674847 | N23: =SUMIFS('Source Data'!$I$2:$I$366913,'Source Data'!$A$2:$A$366913,'Worst Day Profiles'!$C23,'Source Data'!$E$2:$E$366913,'Worst Day Profiles'!N$1,'Source Data'!$F$2:$F$366913,$B23,'Source Data'!$G$2:$G$366913,$A23) -> 0.8609627553 | O23: =SUMIFS('Source Data'!$I$2:$I$366913,'Source Data'!$A$2:$A$366913,'Worst Day Profiles'!$C23,'Source Data'!$E$2:$E$366913,'Worst Day Profiles'!O$1,'Source Data'!$F$2:$F$366913,$B23,'Source Data'!$G$2:$G$366913,$A23) -> 0.9073064532 | P23: =SUMIFS('Source Data'!$I$2:$I$366913,'Source Data'!$A$2:$A$366913,'Worst Day Profiles'!$C23,'Source Data'!$E$2:$E$366913,'Worst Day Profiles'!P$1,'Source Data'!$F$2:$F$366913,$B23,'Source Data'!$G$2:$G$366913,$A23) -> 0.8433815955 | Q23: =SUMIFS('Source Data'!$I$2:$I$366913,'Source Data'!$A$2:$A$366913,'Worst Day Profiles'!$C23,'Source Data'!$E$2:$E$366913,'Worst Day Profiles'!Q$1,'Source Data'!$F$2:$F$366913,$B23,'Source Data'!$G$2:$G$366913,$A23) -> 0.8105401495 | R23: =SUMIFS('Source Data'!$I$2:$I$366913,'Source Data'!$A$2:$A$366913,'Worst Day Profiles'!$C23,'Source Data'!$E$2:$E$366913,'Worst Day Profiles'!R$1,'Source Data'!$F$2:$F$366913,$B23,'Source Data'!$G$2:$G$366913,$A23) -> 0.8514527772 | S23: =SUMIFS('Source Data'!$I$2:$I$366913,'Source Data'!$A$2:$A$366913,'Worst Day Profiles'!$C23,'Source Data'!$E$2:$E$366913,'Worst Day Profiles'!S$1,'Source Data'!$F$2:$F$366913,$B23,'Source Data'!$G$2:$G$366913,$A23) -> 0.7629130262 | T23: =SUMIFS('Source Data'!$I$2:$I$366913,'Source Data'!$A$2:$A$366913,'Worst Day Profiles'!$C23,'Source Data'!$E$2:$E$366913,'Worst Day Profiles'!T$1,'Source Data'!$F$2:$F$366913,$B23,'Source Data'!$G$2:$G$366913,$A23) -> 0.7314822161 | U23: =SUMIFS('Source Data'!$I$2:$I$366913,'Source Data'!$A$2:$A$366913,'Worst Day Profiles'!$C23,'Source Data'!$E$2:$E$366913,'Worst Day Profiles'!U$1,'Source Data'!$F$2:$F$366913,$B23,'Source Data'!$G$2:$G$366913,$A23) -> 0.5950644059 | V23: =SUMIFS('Source Data'!$I$2:$I$366913,'Source Data'!$A$2:$A$366913,'Worst Day Profiles'!$C23,'Source Data'!$E$2:$E$366913,'Worst Day Profiles'!V$1,'Source Data'!$F$2:$F$366913,$B23,'Source Data'!$G$2:$G$366913,$A23) -> 0.2750547911 | W23: =SUMIFS('Source Data'!$I$2:$I$366913,'Source Data'!$A$2:$A$366913,'Worst Day Profiles'!$C23,'Source Data'!$E$2:$E$366913,'Worst Day Profiles'!W$1,'Source Data'!$F$2:$F$366913,$B23,'Source Data'!$G$2:$G$366913,$A23) -> 0.0316650389 | X23: =SUMIFS('Source Data'!$I$2:$I$366913,'Source Data'!$A$2:$A$366913,'Worst Day Profiles'!$C23,'Source Data'!$E$2:$E$366913,'Worst Day Profiles'!X$1,'Source Data'!$F$2:$F$366913,$B23,'Source Data'!$G$2:$G$366913,$A23) -> 2.818290988e-07 | Y23: =SUMIFS('Source Data'!$I$2:$I$366913,'Source Data'!$A$2:$A$366913,'Worst Day Profiles'!$C23,'Source Data'!$E$2:$E$366913,'Worst Day Profiles'!Y$1,'Source Data'!$F$2:$F$366913,$B23,'Source Data'!$G$2:$G$366913,$A23) -> 0 | Z23: =SUMIFS('Source Data'!$I$2:$I$366913,'Source Data'!$A$2:$A$366913,'Worst Day Profiles'!$C23,'Source Data'!$E$2:$E$366913,'Worst Day Profiles'!Z$1,'Source Data'!$F$2:$F$366913,$B23,'Source Data'!$G$2:$G$366913,$A23) -> 0 | AA23: =SUMIFS('Source Data'!$I$2:$I$366913,'Source Data'!$A$2:$A$366913,'Worst Day Profiles'!$C23,'Source Data'!$E$2:$E$366913,'Worst Day Profiles'!AA$1,'Source Data'!$F$2:$F$366913,$B23,'Source Data'!$G$2:$G$366913,$A23) -> 0 | AB23: =SUMIFS('Source Data'!$I$2:$I$366913,'Source Data'!$A$2:$A$366913,'Worst Day Profiles'!$C23,'Source Data'!$E$2:$E$366913,'Worst Day Profiles'!AB$1,'Source Data'!$F$2:$F$366913,$B23,'Source Data'!$G$2:$G$366913,$A23) -> 0
A24: Solar Fixed | B24: North | C24: 43229 | D24: 5 | E24: =SUMIFS('Source Data'!$I$2:$I$366913,'Source Data'!$A$2:$A$366913,'Worst Day Profiles'!$C24,'Source Data'!$E$2:$E$366913,'Worst Day Profiles'!E$1,'Source Data'!$F$2:$F$366913,$B24,'Source Data'!$G$2:$G$366913,$A24) -> 0 | F24: =SUMIFS('Source Data'!$I$2:$I$366913,'Source Data'!$A$2:$A$366913,'Worst Day Profiles'!$C24,'Source Data'!$E$2:$E$366913,'Worst Day Profiles'!F$1,'Source Data'!$F$2:$F$366913,$B24,'Source Data'!$G$2:$G$366913,$A24) -> 0 | G24: =SUMIFS('Source Data'!$I$2:$I$366913,'Source Data'!$A$2:$A$366913,'Worst Day Profiles'!$C24,'Source Data'!$E$2:$E$366913,'Worst Day Profiles'!G$1,'Source Data'!$F$2:$F$366913,$B24,'Source Data'!$G$2:$G$366913,$A24) -> 0 | H24: =SUMIFS('Source Data'!$I$2:$I$366913,'Source Data'!$A$2:$A$366913,'Worst Day Profiles'!$C24,'Source Data'!$E$2:$E$366913,'Worst Day Profiles'!H$1,'Source Data'!$F$2:$F$366913,$B24,'Source Data'!$G$2:$G$366913,$A24) -> 0 | I24: =SUMIFS('Source Data'!$I$2:$I$366913,'Source Data'!$A$2:$A$366913,'Worst Day Profiles'!$C24,'Source Data'!$E$2:$E$366913,'Worst Day Profiles'!I$1,'Source Data'!$F$2:$F$366913,$B24,'Source Data'!$G$2:$G$366913,$A24) -> 1.866941383e-07 | J24: =SUMIFS('Source Data'!$I$2:$I$366913,'Source Data'!$A$2:$A$366913,'Worst Day Profiles'!$C24,'Source Data'!$E$2:$E$366913,'Worst Day Profiles'!J$1,'Source Data'!$F$2:$F$366913,$B24,'Source Data'!$G$2:$G$366913,$A24) -> 0.05850021736 | K24: =SUMIFS('Source Data'!$I$2:$I$366913,'Source Data'!$A$2:$A$366913,'Worst Day Profiles'!$C24,'Source Data'!$E$2:$E$366913,'Worst Day Profiles'!K$1,'Source Data'!$F$2:$F$366913,$B24,'Source Data'!$G$2:$G$366913,$A24) -> 0.3627113265 | L24: =SUMIFS('Source Data'!$I$2:$I$366913,'Source Data'!$A$2:$A$366913,'Worst Day Profiles'!$C24,'Source Data'!$E$2:$E$366913,'Worst Day Profiles'!L$1,'Source Data'!$F$2:$F$366913,$B24,'Source Data'!$G$2:$G$366913,$A24) -> 0.6230459076 | M24: =SUMIFS('Source Data'!$I$2:$I$366913,'Source Data'!$A$2:$A$366913,'Worst Day Profiles'!$C24,'Source Data'!$E$2:$E$366913,'Worst Day Profiles'!M$1,'Source Data'!$F$2:$F$366913,$B24,'Source Data'!$G$2:$G$366913,$A24) -> 0.7793570488 | N24: =SUMIFS('Source Data'!$I$2:$I$366913,'Source Data'!$A$2:$A$366913,'Worst Day Profiles'!$C24,'Source Data'!$E$2:$E$366913,'Worst Day Profiles'!N$1,'Source Data'!$F$2:$F$366913,$B24,'Source Data'!$G$2:$G$366913,$A24) -> 0.9419668433 | O24: =SUMIFS('Source Data'!$I$2:$I$366913,'Source Data'!$A$2:$A$366913,'Worst Day Profiles'!$C24,'Source Data'!$E$2:$E$366913,'Worst Day Profiles'!O$1,'Source Data'!$F$2:$F$366913,$B24,'Source Data'!$G$2:$G$366913,$A24) -> 0.9606026442 | P24: =SUMIFS('Source Data'!$I$2:$I$366913,'Source Data'!$A$2:$A$366913,'Worst Day Profiles'!$C24,'Source Data'!$E$2:$E$366913,'Worst Day Profiles'!P$1,'Source Data'!$F$2:$F$366913,$B24,'Source Data'!$G$2:$G$366913,$A24) -> 0.9229697327 | Q24: =SUMIFS('Source Data'!$I$2:$I$366913,'Source Data'!$A$2:$A$366913,'Worst Day Profiles'!$C24,'Source Data'!$E$2:$E$366913,'Worst Day Profiles'!Q$1,'Source Data'!$F$2:$F$366913,$B24,'Source Data'!$G$2:$G$366913,$A24) -> 0.9014425922 | R24: =SUMIFS('Source Data'!$I$2:$I$366913,'Source Data'!$A$2:$A$366913,'Worst Day Profiles'!$C24,'Source Data'!$E$2:$E$366913,'Worst Day Profiles'!R$1,'Source Data'!$F$2:$F$366913,$B24,'Source Data'!$G$2:$G$366913,$A24) -> 0.9009623584 | S24: =SUMIFS('Source Data'!$I$2:$I$366913,'Source Data'!$A$2:$A$366913,'Worst Day Profiles'!$C24,'Source Data'!$E$2:$E$366913,'Worst Day Profiles'!S$1,'Source Data'!$F$2:$F$366913,$B24,'Source Data'!$G$2:$G$366913,$A24) -> 0.8600874014 | T24: =SUMIFS('Source Data'!$I$2:$I$366913,'Source Data'!$A$2:$A$366913,'Worst Day Profiles'!$C24,'Source Data'!$E$2:$E$366913,'Worst Day Profiles'!T$1,'Source Data'!$F$2:$F$366913,$B24,'Source Data'!$G$2:$G$366913,$A24) -> 0.7518772347 | U24: =SUMIFS('Source Data'!$I$2:$I$366913,'Source Data'!$A$2:$A$366913,'Worst Day Profiles'!$C24,'Source Data'!$E$2:$E$366913,'Worst Day Profiles'!U$1,'Source Data'!$F$2:$F$366913,$B24,'Source Data'!$G$2:$G$366913,$A24) -> 0.5855139812 | V24: =SUMIFS('Source Data'!$I$2:$I$366913,'Source Data'!$A$2:$A$366913,'Worst Day Profiles'!$C24,'Source Data'!$E$2:$E$366913,'Worst Day Profiles'!V$1,'Source Data'!$F$2:$F$366913,$B24,'Source Data'!$G$2:$G$366913,$A24) -> 0.2914897195 | W24: =SUMIFS('Source Data'!$I$2:$I$366913,'Source Data'!$A$2:$A$366913,'Worst Day Profiles'!$C24,'Source Data'!$E$2:$E$366913,'Worst Day Profiles'!W$1,'Source Data'!$F$2:$F$366913,$B24,'Source Data'!$G$2:$G$366913,$A24) -> 0.0385777411 | X24: =SUMIFS('Source Data'!$I$2:$I$366913,'Source Data'!$A$2:$A$366913,'Worst Day Profiles'!$C24,'Source Data'!$E$2:$E$366913,'Worst Day Profiles'!X$1,'Source Data'!$F$2:$F$366913,$B24,'Source Data'!$G$2:$G$366913,$A24) -> 1.212019043e-06 | Y24: =SUMIFS('Source Data'!$I$2:$I$366913,'Source Data'!$A$2:$A$366913,'Worst Day Profiles'!$C24,'Source Data'!$E$2:$E$366913,'Worst Day Profiles'!Y$1,'Source Data'!$F$2:$F$366913,$B24,'Source Data'!$G$2:$G$366913,$A24) -> 0 | Z24: =SUMIFS('Source Data'!$I$2:$I$366913,'Source Data'!$A$2:$A$366913,'Worst Day Profiles'!$C24,'Source Data'!$E$2:$E$366913,'Worst Day Profiles'!Z$1,'Source Data'!$F$2:$F$366913,$B24,'Source Data'!$G$2:$G$366913,$A24) -> 0 | AA24: =SUMIFS('Source Data'!$I$2:$I$366913,'Source Data'!$A$2:$A$366913,'Worst Day Profiles'!$C24,'Source Data'!$E$2:$E$366913,'Worst Day Profiles'!AA$1,'Source Data'!$F$2:$F$366913,$B24,'Source Data'!$G$2:$G$366913,$A24) -> 0 | AB24: =SUMIFS('Source Data'!$I$2:$I$366913,'Source Data'!$A$2:$A$366913,'Worst Day Profiles'!$C24,'Source Data'!$E$2:$E$366913,'Worst Day Profiles'!AB$1,'Source Data'!$F$2:$F$366913,$B24,'Source Data'!$G$2:$G$366913,$A24) -> 0
A25: Solar Fixed | B25: North | C25: 43227 | D25: 5 | E25: =SUMIFS('Source Data'!$I$2:$I$366913,'Source Data'!$A$2:$A$366913,'Worst Day Profiles'!$C25,'Source Data'!$E$2:$E$366913,'Worst Day Profiles'!E$1,'Source Data'!$F$2:$F$366913,$B25,'Source Data'!$G$2:$G$366913,$A25) -> 0 | F25: =SUMIFS('Source Data'!$I$2:$I$366913,'Source Data'!$A$2:$A$366913,'Worst Day Profiles'!$C25,'Source Data'!$E$2:$E$366913,'Worst Day Profiles'!F$1,'Source Data'!$F$2:$F$366913,$B25,'Source Data'!$G$2:$G$366913,$A25) -> 0 | G25: =SUMIFS('Source Data'!$I$2:$I$366913,'Source Data'!$A$2:$A$366913,'Worst Day Profiles'!$C25,'Source Data'!$E$2:$E$366913,'Worst Day Profiles'!G$1,'Source Data'!$F$2:$F$366913,$B25,'Source Data'!$G$2:$G$366913,$A25) -> 0 | H25: =SUMIFS('Source Data'!$I$2:$I$366913,'Source Data'!$A$2:$A$366913,'Worst Day Profiles'!$C25,'Source Data'!$E$2:$E$366913,'Worst Day Profiles'!H$1,'Source Data'!$F$2:$F$366913,$B25,'Source Data'!$G$2:$G$366913,$A25) -> 0 | I25: =SUMIFS('Source Data'!$I$2:$I$366913,'Source Data'!$A$2:$A$366913,'Worst Day Profiles'!$C25,'Source Data'!$E$2:$E$366913,'Worst Day Profiles'!I$1,'Source Data'!$F$2:$F$366913,$B25,'Source Data'!$G$2:$G$366913,$A25) -> 0 | J25: =SUMIFS('Source Data'!$I$2:$I$366913,'Source Data'!$A$2:$A$366913,'Worst Day Profiles'!$C25,'Source Data'!$E$2:$E$366913,'Worst Day Profiles'!J$1,'Source Data'!$F$2:$F$366913,$B25,'Source Data'!$G$2:$G$366913,$A25) -> 0.05690469603 | K25: =SUMIFS('Source Data'!$I$2:$I$366913,'Source Data'!$A$2:$A$366913,'Worst Day Profiles'!$C25,'Source Data'!$E$2:$E$366913,'Worst Day Profiles'!K$1,'Source Data'!$F$2:$F$366913,$B25,'Source Data'!$G$2:$G$366913,$A25) -> 0.38459345 | L25: =SUMIFS('Source Data'!$I$2:$I$366913,'Source Data'!$A$2:$A$366913,'Worst Day Profiles'!$C25,'Source Data'!$E$2:$E$366913,'Worst Day Profiles'!L$1,'Source Data'!$F$2:$F$366913,$B25,'Source Data'!$G$2:$G$366913,$A25) -> 0.7020517162 | M25: =SUMIFS('Source Data'!$I$2:$I$366913,'Source Data'!$A$2:$A$366913,'Worst Day Profiles'!$C25,'Source Data'!$E$2:$E$366913,'Worst Day Profiles'!M$1,'Source Data'!$F$2:$F$366913,$B25,'Source Data'!$G$2:$G$366913,$A25) -> 0.8512453219 | N25: =SUMIFS('Source Data'!$I$2:$I$366913,'Source Data'!$A$2:$A$366913,'Worst Day Profiles'!$C25,'Source Data'!$E$2:$E$366913,'Worst Day Profiles'!N$1,'Source Data'!$F$2:$F$366913,$B25,'Source Data'!$G$2:$G$366913,$A25) -> 0.9425969516 | O25: =SUMIFS('Source Data'!$I$2:$I$366913,'Source Data'!$A$2:$A$366913,'Worst Day Profiles'!$C25,'Source Data'!$E$2:$E$366913,'Worst Day Profiles'!O$1,'Source Data'!$F$2:$F$366913,$B25,'Source Data'!$G$2:$G$366913,$A25) -> 0.9561094376 | P25: =SUMIFS('Source Data'!$I$2:$I$366913,'Source Data'!$A$2:$A$366913,'Worst Day Profiles'!$C25,'Source Data'!$E$2:$E$366913,'Worst Day Profiles'!P$1,'Source Data'!$F$2:$F$366913,$B25,'Source Data'!$G$2:$G$366913,$A25) -> 0.9668446497 | Q25: =SUMIFS('Source Data'!$I$2:$I$366913,'Source Data'!$A$2:$A$366913,'Worst Day Profiles'!$C25,'Source Data'!$E$2:$E$366913,'Worst Day Profiles'!Q$1,'Source Data'!$F$2:$F$366913,$B25,'Source Data'!$G$2:$G$366913,$A25) -> 0.969262766 | R25: =SUMIFS('Source Data'!$I$2:$I$366913,'Source Data'!$A$2:$A$366913,'Worst Day Profiles'!$C25,'Source Data'!$E$2:$E$366913,'Worst Day Profiles'!R$1,'Source Data'!$F$2:$F$366913,$B25,'Source Data'!$G$2:$G$366913,$A25) -> 0.9682457412 | S25: =SUMIFS('Source Data'!$I$2:$I$366913,'Source Data'!$A$2:$A$366913,'Worst Day Profiles'!$C25,'Source Data'!$E$2:$E$366913,'Worst Day Profiles'!S$1,'Source Data'!$F$2:$F$366913,$B25,'Source Data'!$G$2:$G$366913,$A25) -> 0.9279486605 | T25: =SUMIFS('Source Data'!$I$2:$I$366913,'Source Data'!$A$2:$A$366913,'Worst Day Profiles'!$C25,'Source Data'!$E$2:$E$366913,'Worst Day Profiles'!T$1,'Source Data'!$F$2:$F$366913,$B25,'Source Data'!$G$2:$G$366913,$A25) -> 0.8321505461 | U25: =SUMIFS('Source Data'!$I$2:$I$366913,'Source Data'!$A$2:$A$366913,'Worst Day Profiles'!$C25,'Source Data'!$E$2:$E$366913,'Worst Day Profiles'!U$1,'Source Data'!$F$2:$F$366913,$B25,'Source Data'!$G$2:$G$366913,$A25) -> 0.659338545 | V25: =SUMIFS('Source Data'!$I$2:$I$366913,'Source Data'!$A$2:$A$366913,'Worst Day Profiles'!$C25,'Source Data'!$E$2:$E$366913,'Worst Day Profiles'!V$1,'Source Data'!$F$2:$F$366913,$B25,'Source Data'!$G$2:$G$366913,$A25) -> 0.3318865227 | W25: =SUMIFS('Source Data'!$I$2:$I$366913,'Source Data'!$A$2:$A$366913,'Worst Day Profiles'!$C25,'Source Data'!$E$2:$E$366913,'Worst Day Profiles'!W$1,'Source Data'!$F$2:$F$366913,$B25,'Source Data'!$G$2:$G$366913,$A25) -> 0.04012763518 | X25: =SUMIFS('Source Data'!$I$2:$I$366913,'Source Data'!$A$2:$A$366913,'Worst Day Profiles'!$C25,'Source Data'!$E$2:$E$366913,'Worst Day Profiles'!X$1,'Source Data'!$F$2:$F$366913,$B25,'Source Data'!$G$2:$G$366913,$A25) -> 1.711730713e-07 | Y25: =SUMIFS('Source Data'!$I$2:$I$366913,'Source Data'!$A$2:$A$366913,'Worst Day Profiles'!$C25,'Source Data'!$E$2:$E$366913,'Worst Day Profiles'!Y$1,'Source Data'!$F$2:$F$366913,$B25,'Source Data'!$G$2:$G$366913,$A25) -> 0 | Z25: =SUMIFS('Source Data'!$I$2:$I$366913,'Source Data'!$A$2:$A$366913,'Worst Day Profiles'!$C25,'Source Data'!$E$2:$E$366913,'Worst Day Profiles'!Z$1,'Source Data'!$F$2:$F$366913,$B25,'Source Data'!$G$2:$G$366913,$A25) -> 0 | AA25: =SUMIFS('Source Data'!$I$2:$I$366913,'Source Data'!$A$2:$A$366913,'Worst Day Profiles'!$C25,'Source Data'!$E$2:$E$366913,'Worst Day Profiles'!AA$1,'Source Data'!$F$2:$F$366913,$B25,'Source Data'!$G$2:$G$366913,$A25) -> 0 | AB25: =SUMIFS('Source Data'!$I$2:$I$366913,'Source Data'!$A$2:$A$366913,'Worst Day Profiles'!$C25,'Source Data'!$E$2:$E$366913,'Worst Day Profiles'!AB$1,'Source Data'!$F$2:$F$366913,$B25,'Source Data'!$G$2:$G$366913,$A25) -> 0
A26: Solar Fixed | B26: North | C26: 43248 | D26: 5 | E26: =SUMIFS('Source Data'!$I$2:$I$366913,'Source Data'!$A$2:$A$366913,'Worst Day Profiles'!$C26,'Source Data'!$E$2:$E$366913,'Worst Day Profiles'!E$1,'Source Data'!$F$2:$F$366913,$B26,'Source Data'!$G$2:$G$366913,$A26) -> 0 | F26: =SUMIFS('Source Data'!$I$2:$I$366913,'Source Data'!$A$2:$A$366913,'Worst Day Profiles'!$C26,'Source Data'!$E$2:$E$366913,'Worst Day Profiles'!F$1,'Source Data'!$F$2:$F$366913,$B26,'Source Data'!$G$2:$G$366913,$A26) -> 0 | G26: =SUMIFS('Source Data'!$I$2:$I$366913,'Source Data'!$A$2:$A$366913,'Worst Day Profiles'!$C26,'Source Data'!$E$2:$E$366913,'Worst Day Profiles'!G$1,'Source Data'!$F$2:$F$366913,$B26,'Source Data'!$G$2:$G$366913,$A26) -> 0 | H26: =SUMIFS('Source Data'!$I$2:$I$366913,'Source Data'!$A$2:$A$366913,'Worst Day Profiles'!$C26,'Source Data'!$E$2:$E$366913,'Worst Day Profiles'!H$1,'Source Data'!$F$2:$F$366913,$B26,'Source Data'!$G$2:$G$366913,$A26) -> 0 | I26: =SUMIFS('Source Data'!$I$2:$I$366913,'Source Data'!$A$2:$A$366913,'Worst Day Profiles'!$C26,'Source Data'!$E$2:$E$366913,'Worst Day Profiles'!I$1,'Source Data'!$F$2:$F$366913,$B26,'Source Data'!$G$2:$G$366913,$A26) -> 0.0002848523664 | J26: =SUMIFS('Source Data'!$I$2:$I$366913,'Source Data'!$A$2:$A$366913,'Worst Day Profiles'!$C26,'Source Data'!$E$2:$E$366913,'Worst Day Profiles'!J$1,'Source Data'!$F$2:$F$366913,$B26,'Source Data'!$G$2:$G$366913,$A26) -> 0.09216372271 | K26: =SUMIFS('Source Data'!$I$2:$I$366913,'Source Data'!$A$2:$A$366913,'Worst Day Profiles'!$C26,'Source Data'!$E$2:$E$366913,'Worst Day Profiles'!K$1,'Source Data'!$F$2:$F$366913,$B26,'Source Data'!$G$2:$G$366913,$A26) -> 0.4088835695 | L26: =SUMIFS('Source Data'!$I$2:$I$366913,'Source Data'!$A$2:$A$366913,'Worst Day Profiles'!$C26,'Source Data'!$E$2:$E$366913,'Worst Day Profiles'!L$1,'Source Data'!$F$2:$F$366913,$B26,'Source Data'!$G$2:$G$366913,$A26) -> 0.6760360092 | M26: =SUMIFS('Source Data'!$I$2:$I$366913,'Source Data'!$A$2:$A$366913,'Worst Day Profiles'!$C26,'Source Data'!$E$2:$E$366913,'Worst Day Profiles'!M$1,'Source Data'!$F$2:$F$366913,$B26,'Source Data'!$G$2:$G$366913,$A26) -> 0.8287204423 | N26: =SUMIFS('Source Data'!$I$2:$I$366913,'Source Data'!$A$2:$A$366913,'Worst Day Profiles'!$C26,'Source Data'!$E$2:$E$366913,'Worst Day Profiles'!N$1,'Source Data'!$F$2:$F$366913,$B26,'Source Data'!$G$2:$G$366913,$A26) -> 0.9181545934 | O26: =SUMIFS('Source Data'!$I$2:$I$366913,'Source Data'!$A$2:$A$366913,'Worst Day Profiles'!$C26,'Source Data'!$E$2:$E$366913,'Worst Day Profiles'!O$1,'Source Data'!$F$2:$F$366913,$B26,'Source Data'!$G$2:$G$366913,$A26) -> 0.9615471872 | P26: =SUMIFS('Source Data'!$I$2:$I$366913,'Source Data'!$A$2:$A$366913,'Worst Day Profiles'!$C26,'Source Data'!$E$2:$E$366913,'Worst Day Profiles'!P$1,'Source Data'!$F$2:$F$366913,$B26,'Source Data'!$G$2:$G$366913,$A26) -> 0.962248329 | Q26: =SUMIFS('Source Data'!$I$2:$I$366913,'Source Data'!$A$2:$A$366913,'Worst Day Profiles'!$C26,'Source Data'!$E$2:$E$366913,'Worst Day Profiles'!Q$1,'Source Data'!$F$2:$F$366913,$B26,'Source Data'!$G$2:$G$366913,$A26) -> 0.961184995 | R26: =SUMIFS('Source Data'!$I$2:$I$366913,'Source Data'!$A$2:$A$366913,'Worst Day Profiles'!$C26,'Source Data'!$E$2:$E$366913,'Worst Day Profiles'!R$1,'Source Data'!$F$2:$F$366913,$B26,'Source Data'!$G$2:$G$366913,$A26) -> 0.9515673318 | S26: =SUMIFS('Source Data'!$I$2:$I$366913,'Source Data'!$A$2:$A$366913,'Worst Day Profiles'!$C26,'Source Data'!$E$2:$E$366913,'Worst Day Profiles'!S$1,'Source Data'!$F$2:$F$366913,$B26,'Source Data'!$G$2:$G$366913,$A26) -> 0.9061078102 | T26: =SUMIFS('Source Data'!$I$2:$I$366913,'Source Data'!$A$2:$A$366913,'Worst Day Profiles'!$C26,'Source Data'!$E$2:$E$366913,'Worst Day Profiles'!T$1,'Source Data'!$F$2:$F$366913,$B26,'Source Data'!$G$2:$G$366913,$A26) -> 0.8094075979 | U26: =SUMIFS('Source Data'!$I$2:$I$366913,'Source Data'!$A$2:$A$366913,'Worst Day Profiles'!$C26,'Source Data'!$E$2:$E$366913,'Worst Day Profiles'!U$1,'Source Data'!$F$2:$F$366913,$B26,'Source Data'!$G$2:$G$366913,$A26) -> 0.6437238887 | V26: =SUMIFS('Source Data'!$I$2:$I$366913,'Source Data'!$A$2:$A$366913,'Worst Day Profiles'!$C26,'Source Data'!$E$2:$E$366913,'Worst Day Profiles'!V$1,'Source Data'!$F$2:$F$366913,$B26,'Source Data'!$G$2:$G$366913,$A26) -> 0.3694211763 | W26: =SUMIFS('Source Data'!$I$2:$I$366913,'Source Data'!$A$2:$A$366913,'Worst Day Profiles'!$C26,'Source Data'!$E$2:$E$366913,'Worst Day Profiles'!W$1,'Source Data'!$F$2:$F$366913,$B26,'Source Data'!$G$2:$G$366913,$A26) -> 0.07703185606 | X26: =SUMIFS('Source Data'!$I$2:$I$366913,'Source Data'!$A$2:$A$366913,'Worst Day Profiles'!$C26,'Source Data'!$E$2:$E$366913,'Worst Day Profiles'!X$1,'Source Data'!$F$2:$F$366913,$B26,'Source Data'!$G$2:$G$366913,$A26) -> 0.0001144306813 | Y26: =SUMIFS('Source Data'!$I$2:$I$366913,'Source Data'!$A$2:$A$366913,'Worst Day Profiles'!$C26,'Source Data'!$E$2:$E$366913,'Worst Day Profiles'!Y$1,'Source Data'!$F$2:$F$366913,$B26,'Source Data'!$G$2:$G$366913,$A26) -> 0 | Z26: =SUMIFS('Source Data'!$I$2:$I$366913,'Source Data'!$A$2:$A$366913,'Worst Day Profiles'!$C26,'Source Data'!$E$2:$E$366913,'Worst Day Profiles'!Z$1,'Source Data'!$F$2:$F$366913,$B26,'Source Data'!$G$2:$G$366913,$A26) -> 0 | AA26: =SUMIFS('Source Data'!$I$2:$I$366913,'Source Data'!$A$2:$A$366913,'Worst Day Profiles'!$C26,'Source Data'!$E$2:$E$366913,'Worst Day Profiles'!AA$1,'Source Data'!$F$2:$F$366913,$B26,'Source Data'!$G$2:$G$366913,$A26) -> 0 | AB26: =SUMIFS('Source Data'!$I$2:$I$366913,'Source Data'!$A$2:$A$366913,'Worst Day Profiles'!$C26,'Source Data'!$E$2:$E$366913,'Worst Day Profiles'!AB$1,'Source Data'!$F$2:$F$366913,$B26,'Source Data'!$G$2:$G$366913,$A26) -> 0
A27: Solar Fixed | B27: North | C27: 43273 | D27: 6 | E27: =SUMIFS('Source Data'!$I$2:$I$366913,'Source Data'!$A$2:$A$366913,'Worst Day Profiles'!$C27,'Source Data'!$E$2:$E$366913,'Worst Day Profiles'!E$1,'Source Data'!$F$2:$F$366913,$B27,'Source Data'!$G$2:$G$366913,$A27) -> 0 | F27: =SUMIFS('Source Data'!$I$2:$I$366913,'Source Data'!$A$2:$A$366913,'Worst Day Profiles'!$C27,'Source Data'!$E$2:$E$366913,'Worst Day Profiles'!F$1,'Source Data'!$F$2:$F$366913,$B27,'Source Data'!$G$2:$G$366913,$A27) -> 0 | G27: =SUMIFS('Source Data'!$I$2:$I$366913,'Source Data'!$A$2:$A$366913,'Worst Day Profiles'!$C27,'Source Data'!$E$2:$E$366913,'Worst Day Profiles'!G$1,'Source Data'!$F$2:$F$366913,$B27,'Source Data'!$G$2:$G$366913,$A27) -> 0 | H27: =SUMIFS('Source Data'!$I$2:$I$366913,'Source Data'!$A$2:$A$366913,'Worst Day Profiles'!$C27,'Source Data'!$E$2:$E$366913,'Worst Day Profiles'!H$1,'Source Data'!$F$2:$F$366913,$B27,'Source Data'!$G$2:$G$366913,$A27) -> 0 | I27: =SUMIFS('Source Data'!$I$2:$I$366913,'Source Data'!$A$2:$A$366913,'Worst Day Profiles'!$C27,'Source Data'!$E$2:$E$366913,'Worst Day Profiles'!I$1,'Source Data'!$F$2:$F$366913,$B27,'Source Data'!$G$2:$G$366913,$A27) -> 0.0004722713017 | J27: =SUMIFS('Source Data'!$I$2:$I$366913,'Source Data'!$A$2:$A$366913,'Worst Day Profiles'!$C27,'Source Data'!$E$2:$E$366913,'Worst Day Profiles'!J$1,'Source Data'!$F$2:$F$366913,$B27,'Source Data'!$G$2:$G$366913,$A27) -> 0.1031762848 | K27: =SUMIFS('Source Data'!$I$2:$I$366913,'Source Data'!$A$2:$A$366913,'Worst Day Profiles'!$C27,'Source Data'!$E$2:$E$366913,'Worst Day Profiles'!K$1,'Source Data'!$F$2:$F$366913,$B27,'Source Data'!$G$2:$G$366913,$A27) -> 0.4184396429 | L27: =SUMIFS('Source Data'!$I$2:$I$366913,'Source Data'!$A$2:$A$366913,'Worst Day Profiles'!$C27,'Source Data'!$E$2:$E$366913,'Worst Day Profiles'!L$1,'Source Data'!$F$2:$F$366913,$B27,'Source Data'!$G$2:$G$366913,$A27) -> 0.6784964257 | M27: =SUMIFS('Source Data'!$I$2:$I$366913,'Source Data'!$A$2:$A$366913,'Worst Day Profiles'!$C27,'Source Data'!$E$2:$E$366913,'Worst Day Profiles'!M$1,'Source Data'!$F$2:$F$366913,$B27,'Source Data'!$G$2:$G$366913,$A27) -> 0.8231194609 | N27: =SUMIFS('Source Data'!$I$2:$I$366913,'Source Data'!$A$2:$A$366913,'Worst Day Profiles'!$C27,'Source Data'!$E$2:$E$366913,'Worst Day Profiles'!N$1,'Source Data'!$F$2:$F$366913,$B27,'Source Data'!$G$2:$G$366913,$A27) -> 0.9135371226 | O27: =SUMIFS('Source Data'!$I$2:$I$366913,'Source Data'!$A$2:$A$366913,'Worst Day Profiles'!$C27,'Source Data'!$E$2:$E$366913,'Worst Day Profiles'!O$1,'Source Data'!$F$2:$F$366913,$B27,'Source Data'!$G$2:$G$366913,$A27) -> 0.9614889055 | P27: =SUMIFS('Source Data'!$I$2:$I$366913,'Source Data'!$A$2:$A$366913,'Worst Day Profiles'!$C27,'Source Data'!$E$2:$E$366913,'Worst Day Profiles'!P$1,'Source Data'!$F$2:$F$366913,$B27,'Source Data'!$G$2:$G$366913,$A27) -> 0.9663998473 | Q27: =SUMIFS('Source Data'!$I$2:$I$366913,'Source Data'!$A$2:$A$366913,'Worst Day Profiles'!$C27,'Source Data'!$E$2:$E$366913,'Worst Day Profiles'!Q$1,'Source Data'!$F$2:$F$366913,$B27,'Source Data'!$G$2:$G$366913,$A27) -> 0.964520458 | R27: =SUMIFS('Source Data'!$I$2:$I$366913,'Source Data'!$A$2:$A$366913,'Worst Day Profiles'!$C27,'Source Data'!$E$2:$E$366913,'Worst Day Profiles'!R$1,'Source Data'!$F$2:$F$366913,$B27,'Source Data'!$G$2:$G$366913,$A27) -> 0.9562973119 | S27: =SUMIFS('Source Data'!$I$2:$I$366913,'Source Data'!$A$2:$A$366913,'Worst Day Profiles'!$C27,'Source Data'!$E$2:$E$366913,'Worst Day Profiles'!S$1,'Source Data'!$F$2:$F$366913,$B27,'Source Data'!$G$2:$G$366913,$A27) -> 0.9089668237 | T27: =SUMIFS('Source Data'!$I$2:$I$366913,'Source Data'!$A$2:$A$366913,'Worst Day Profiles'!$C27,'Source Data'!$E$2:$E$366913,'Worst Day Profiles'!T$1,'Source Data'!$F$2:$F$366913,$B27,'Source Data'!$G$2:$G$366913,$A27) -> 0.8193014994 | U27: =SUMIFS('Source Data'!$I$2:$I$366913,'Source Data'!$A$2:$A$366913,'Worst Day Profiles'!$C27,'Source Data'!$E$2:$E$366913,'Worst Day Profiles'!U$1,'Source Data'!$F$2:$F$366913,$B27,'Source Data'!$G$2:$G$366913,$A27) -> 0.6769778791 | V27: =SUMIFS('Source Data'!$I$2:$I$366913,'Source Data'!$A$2:$A$366913,'Worst Day Profiles'!$C27,'Source Data'!$E$2:$E$366913,'Worst Day Profiles'!V$1,'Source Data'!$F$2:$F$366913,$B27,'Source Data'!$G$2:$G$366913,$A27) -> 0.4289349451 | W27: =SUMIFS('Source Data'!$I$2:$I$366913,'Source Data'!$A$2:$A$366913,'Worst Day Profiles'!$C27,'Source Data'!$E$2:$E$366913,'Worst Day Profiles'!W$1,'Source Data'!$F$2:$F$366913,$B27,'Source Data'!$G$2:$G$366913,$A27) -> 0.1191473248 | X27: =SUMIFS('Source Data'!$I$2:$I$366913,'Source Data'!$A$2:$A$366913,'Worst Day Profiles'!$C27,'Source Data'!$E$2:$E$366913,'Worst Day Profiles'!X$1,'Source Data'!$F$2:$F$366913,$B27,'Source Data'!$G$2:$G$366913,$A27) -> 0.001442325914 | Y27: =SUMIFS('Source Data'!$I$2:$I$366913,'Source Data'!$A$2:$A$366913,'Worst Day Profiles'!$C27,'Source Data'!$E$2:$E$366913,'Worst Day Profiles'!Y$1,'Source Data'!$F$2:$F$366913,$B27,'Source Data'!$G$2:$G$366913,$A27) -> 0 | Z27: =SUMIFS('Source Data'!$I$2:$I$366913,'Source Data'!$A$2:$A$366913,'Worst Day Profiles'!$C27,'Source Data'!$E$2:$E$366913,'Worst Day Profiles'!Z$1,'Source Data'!$F$2:$F$366913,$B27,'Source Data'!$G$2:$G$366913,$A27) -> 0 | AA27: =SUMIFS('Source Data'!$I$2:$I$366913,'Source Data'!$A$2:$A$366913,'Worst Day Profiles'!$C27,'Source Data'!$E$2:$E$366913,'Worst Day Profiles'!AA$1,'Source Data'!$F$2:$F$366913,$B27,'Source Data'!$G$2:$G$366913,$A27) -> 0 | AB27: =SUMIFS('Source Data'!$I$2:$I$366913,'Source Data'!$A$2:$A$366913,'Worst Day Profiles'!$C27,'Source Data'!$E$2:$E$366913,'Worst Day Profiles'!AB$1,'Source Data'!$F$2:$F$366913,$B27,'Source Data'!$G$2:$G$366913,$A27) -> 0
A28: Solar Fixed | B28: North | C28: 43264 | D28: 6 | E28: =SUMIFS('Source Data'!$I$2:$I$366913,'Source Data'!$A$2:$A$366913,'Worst Day Profiles'!$C28,'Source Data'!$E$2:$E$366913,'Worst Day Profiles'!E$1,'Source Data'!$F$2:$F$366913,$B28,'Source Data'!$G$2:$G$366913,$A28) -> 0 | F28: =SUMIFS('Source Data'!$I$2:$I$366913,'Source Data'!$A$2:$A$366913,'Worst Day Profiles'!$C28,'Source Data'!$E$2:$E$366913,'Worst Day Profiles'!F$1,'Source Data'!$F$2:$F$366913,$B28,'Source Data'!$G$2:$G$366913,$A28) -> 0 | G28: =SUMIFS('Source Data'!$I$2:$I$366913,'Source Data'!$A$2:$A$366913,'Worst Day Profiles'!$C28,'Source Data'!$E$2:$E$366913,'Worst Day Profiles'!G$1,'Source Data'!$F$2:$F$366913,$B28,'Source Data'!$G$2:$G$366913,$A28) -> 0 | H28: =SUMIFS('Source Data'!$I$2:$I$366913,'Source Data'!$A$2:$A$366913,'Worst Day Profiles'!$C28,'Source Data'!$E$2:$E$366913,'Worst Day Profiles'!H$1,'Source Data'!$F$2:$F$366913,$B28,'Source Data'!$G$2:$G$366913,$A28) -> 0 | I28: =SUMIFS('Source Data'!$I$2:$I$366913,'Source Data'!$A$2:$A$366913,'Worst Day Profiles'!$C28,'Source Data'!$E$2:$E$366913,'Worst Day Profiles'!I$1,'Source Data'!$F$2:$F$366913,$B28,'Source Data'!$G$2:$G$366913,$A28) -> 0.0005262532186 | J28: =SUMIFS('Source Data'!$I$2:$I$366913,'Source Data'!$A$2:$A$366913,'Worst Day Profiles'!$C28,'Source Data'!$E$2:$E$366913,'Worst Day Profiles'!J$1,'Source Data'!$F$2:$F$366913,$B28,'Source Data'!$G$2:$G$366913,$A28) -> 0.1002666574 | K28: =SUMIFS('Source Data'!$I$2:$I$366913,'Source Data'!$A$2:$A$366913,'Worst Day Profiles'!$C28,'Source Data'!$E$2:$E$366913,'Worst Day Profiles'!K$1,'Source Data'!$F$2:$F$366913,$B28,'Source Data'!$G$2:$G$366913,$A28) -> 0.4065138519 | L28: =SUMIFS('Source Data'!$I$2:$I$366913,'Source Data'!$A$2:$A$366913,'Worst Day Profiles'!$C28,'Source Data'!$E$2:$E$366913,'Worst Day Profiles'!L$1,'Source Data'!$F$2:$F$366913,$B28,'Source Data'!$G$2:$G$366913,$A28) -> 0.65999514 | M28: =SUMIFS('Source Data'!$I$2:$I$366913,'Source Data'!$A$2:$A$366913,'Worst Day Profiles'!$C28,'Source Data'!$E$2:$E$366913,'Worst Day Profiles'!M$1,'Source Data'!$F$2:$F$366913,$B28,'Source Data'!$G$2:$G$366913,$A28) -> 0.8017974719 | N28: =SUMIFS('Source Data'!$I$2:$I$366913,'Source Data'!$A$2:$A$366913,'Worst Day Profiles'!$C28,'Source Data'!$E$2:$E$366913,'Worst Day Profiles'!N$1,'Source Data'!$F$2:$F$366913,$B28,'Source Data'!$G$2:$G$366913,$A28) -> 0.8900267385 | O28: =SUMIFS('Source Data'!$I$2:$I$366913,'Source Data'!$A$2:$A$366913,'Worst Day Profiles'!$C28,'Source Data'!$E$2:$E$366913,'Worst Day Profiles'!O$1,'Source Data'!$F$2:$F$366913,$B28,'Source Data'!$G$2:$G$366913,$A28) -> 0.9404038012 | P28: =SUMIFS('Source Data'!$I$2:$I$366913,'Source Data'!$A$2:$A$366913,'Worst Day Profiles'!$C28,'Source Data'!$E$2:$E$366913,'Worst Day Profiles'!P$1,'Source Data'!$F$2:$F$366913,$B28,'Source Data'!$G$2:$G$366913,$A28) -> 0.9502508554 | Q28: =SUMIFS('Source Data'!$I$2:$I$366913,'Source Data'!$A$2:$A$366913,'Worst Day Profiles'!$C28,'Source Data'!$E$2:$E$366913,'Worst Day Profiles'!Q$1,'Source Data'!$F$2:$F$366913,$B28,'Source Data'!$G$2:$G$366913,$A28) -> 0.9435551392 | R28: =SUMIFS('Source Data'!$I$2:$I$366913,'Source Data'!$A$2:$A$366913,'Worst Day Profiles'!$C28,'Source Data'!$E$2:$E$366913,'Worst Day Profiles'!R$1,'Source Data'!$F$2:$F$366913,$B28,'Source Data'!$G$2:$G$366913,$A28) -> 0.9276789506 | S28: =SUMIFS('Source Data'!$I$2:$I$366913,'Source Data'!$A$2:$A$366913,'Worst Day Profiles'!$C28,'Source Data'!$E$2:$E$366913,'Worst Day Profiles'!S$1,'Source Data'!$F$2:$F$366913,$B28,'Source Data'!$G$2:$G$366913,$A28) -> 0.8787340333 | T28: =SUMIFS('Source Data'!$I$2:$I$366913,'Source Data'!$A$2:$A$366913,'Worst Day Profiles'!$C28,'Source Data'!$E$2:$E$366913,'Worst Day Profiles'!T$1,'Source Data'!$F$2:$F$366913,$B28,'Source Data'!$G$2:$G$366913,$A28) -> 0.7825409872 | U28: =SUMIFS('Source Data'!$I$2:$I$366913,'Source Data'!$A$2:$A$366913,'Worst Day Profiles'!$C28,'Source Data'!$E$2:$E$366913,'Worst Day Profiles'!U$1,'Source Data'!$F$2:$F$366913,$B28,'Source Data'!$G$2:$G$366913,$A28) -> 0.6346018257 | V28: =SUMIFS('Source Data'!$I$2:$I$366913,'Source Data'!$A$2:$A$366913,'Worst Day Profiles'!$C28,'Source Data'!$E$2:$E$366913,'Worst Day Profiles'!V$1,'Source Data'!$F$2:$F$366913,$B28,'Source Data'!$G$2:$G$366913,$A28) -> 0.3842247951 | W28: =SUMIFS('Source Data'!$I$2:$I$366913,'Source Data'!$A$2:$A$366913,'Worst Day Profiles'!$C28,'Source Data'!$E$2:$E$366913,'Worst Day Profiles'!W$1,'Source Data'!$F$2:$F$366913,$B28,'Source Data'!$G$2:$G$366913,$A28) -> 0.09733855569 | X28: =SUMIFS('Source Data'!$I$2:$I$366913,'Source Data'!$A$2:$A$366913,'Worst Day Profiles'!$C28,'Source Data'!$E$2:$E$366913,'Worst Day Profiles'!X$1,'Source Data'!$F$2:$F$366913,$B28,'Source Data'!$G$2:$G$366913,$A28) -> 0.000995465418 | Y28: =SUMIFS('Source Data'!$I$2:$I$366913,'Source Data'!$A$2:$A$366913,'Worst Day Profiles'!$C28,'Source Data'!$E$2:$E$366913,'Worst Day Profiles'!Y$1,'Source Data'!$F$2:$F$366913,$B28,'Source Data'!$G$2:$G$366913,$A28) -> 0 | Z28: =SUMIFS('Source Data'!$I$2:$I$366913,'Source Data'!$A$2:$A$366913,'Worst Day Profiles'!$C28,'Source Data'!$E$2:$E$366913,'Worst Day Profiles'!Z$1,'Source Data'!$F$2:$F$366913,$B28,'Source Data'!$G$2:$G$366913,$A28) -> 0 | AA28: =SUMIFS('Source Data'!$I$2:$I$366913,'Source Data'!$A$2:$A$366913,'Worst Day Profiles'!$C28,'Source Data'!$E$2:$E$366913,'Worst Day Profiles'!AA$1,'Source Data'!$F$2:$F$366913,$B28,'Source Data'!$G$2:$G$366913,$A28) -> 0 | AB28: =SUMIFS('Source Data'!$I$2:$I$366913,'Source Data'!$A$2:$A$366913,'Worst Day Profiles'!$C28,'Source Data'!$E$2:$E$366913,'Worst Day Profiles'!AB$1,'Source Data'!$F$2:$F$366913,$B28,'Source Data'!$G$2:$G$366913,$A28) -> 0
A29: Solar Fixed | B29: North | C29: 43263 | D29: 6 | E29: =SUMIFS('Source Data'!$I$2:$I$366913,'Source Data'!$A$2:$A$366913,'Worst Day Profiles'!$C29,'Source Data'!$E$2:$E$366913,'Worst Day Profiles'!E$1,'Source Data'!$F$2:$F$366913,$B29,'Source Data'!$G$2:$G$366913,$A29) -> 0 | F29: =SUMIFS('Source Data'!$I$2:$I$366913,'Source Data'!$A$2:$A$366913,'Worst Day Profiles'!$C29,'Source Data'!$E$2:$E$366913,'Worst Day Profiles'!F$1,'Source Data'!$F$2:$F$366913,$B29,'Source Data'!$G$2:$G$366913,$A29) -> 0 | G29: =SUMIFS('Source Data'!$I$2:$I$366913,'Source Data'!$A$2:$A$366913,'Worst Day Profiles'!$C29,'Source Data'!$E$2:$E$366913,'Worst Day Profiles'!G$1,'Source Data'!$F$2:$F$366913,$B29,'Source Data'!$G$2:$G$366913,$A29) -> 0 | H29: =SUMIFS('Source Data'!$I$2:$I$366913,'Source Data'!$A$2:$A$366913,'Worst Day Profiles'!$C29,'Source Data'!$E$2:$E$366913,'Worst Day Profiles'!H$1,'Source Data'!$F$2:$F$366913,$B29,'Source Data'!$G$2:$G$366913,$A29) -> 0 | I29: =SUMIFS('Source Data'!$I$2:$I$366913,'Source Data'!$A$2:$A$366913,'Worst Day Profiles'!$C29,'Source Data'!$E$2:$E$366913,'Worst Day Profiles'!I$1,'Source Data'!$F$2:$F$366913,$B29,'Source Data'!$G$2:$G$366913,$A29) -> 0.0005862304393 | J29: =SUMIFS('Source Data'!$I$2:$I$366913,'Source Data'!$A$2:$A$366913,'Worst Day Profiles'!$C29,'Source Data'!$E$2:$E$366913,'Worst Day Profiles'!J$1,'Source Data'!$F$2:$F$366913,$B29,'Source Data'!$G$2:$G$366913,$A29) -> 0.1028061296 | K29: =SUMIFS('Source Data'!$I$2:$I$366913,'Source Data'!$A$2:$A$366913,'Worst Day Profiles'!$C29,'Source Data'!$E$2:$E$366913,'Worst Day Profiles'!K$1,'Source Data'!$F$2:$F$366913,$B29,'Source Data'!$G$2:$G$366913,$A29) -> 0.4138368893 | L29: =SUMIFS('Source Data'!$I$2:$I$366913,'Source Data'!$A$2:$A$366913,'Worst Day Profiles'!$C29,'Source Data'!$E$2:$E$366913,'Worst Day Profiles'!L$1,'Source Data'!$F$2:$F$366913,$B29,'Source Data'!$G$2:$G$366913,$A29) -> 0.670645375 | M29: =SUMIFS('Source Data'!$I$2:$I$366913,'Source Data'!$A$2:$A$366913,'Worst Day Profiles'!$C29,'Source Data'!$E$2:$E$366913,'Worst Day Profiles'!M$1,'Source Data'!$F$2:$F$366913,$B29,'Source Data'!$G$2:$G$366913,$A29) -> 0.8147180027 | N29: =SUMIFS('Source Data'!$I$2:$I$366913,'Source Data'!$A$2:$A$366913,'Worst Day Profiles'!$C29,'Source Data'!$E$2:$E$366913,'Worst Day Profiles'!N$1,'Source Data'!$F$2:$F$366913,$B29,'Source Data'!$G$2:$G$366913,$A29) -> 0.9055308272 | O29: =SUMIFS('Source Data'!$I$2:$I$366913,'Source Data'!$A$2:$A$366913,'Worst Day Profiles'!$C29,'Source Data'!$E$2:$E$366913,'Worst Day Profiles'!O$1,'Source Data'!$F$2:$F$366913,$B29,'Source Data'!$G$2:$G$366913,$A29) -> 0.9529395832 | P29: =SUMIFS('Source Data'!$I$2:$I$366913,'Source Data'!$A$2:$A$366913,'Worst Day Profiles'!$C29,'Source Data'!$E$2:$E$366913,'Worst Day Profiles'!P$1,'Source Data'!$F$2:$F$366913,$B29,'Source Data'!$G$2:$G$366913,$A29) -> 0.9593324564 | Q29: =SUMIFS('Source Data'!$I$2:$I$366913,'Source Data'!$A$2:$A$366913,'Worst Day Profiles'!$C29,'Source Data'!$E$2:$E$366913,'Worst Day Profiles'!Q$1,'Source Data'!$F$2:$F$366913,$B29,'Source Data'!$G$2:$G$366913,$A29) -> 0.9516240035 | R29: =SUMIFS('Source Data'!$I$2:$I$366913,'Source Data'!$A$2:$A$366913,'Worst Day Profiles'!$C29,'Source Data'!$E$2:$E$366913,'Worst Day Profiles'!R$1,'Source Data'!$F$2:$F$366913,$B29,'Source Data'!$G$2:$G$366913,$A29) -> 0.9441185229 | S29: =SUMIFS('Source Data'!$I$2:$I$366913,'Source Data'!$A$2:$A$366913,'Worst Day Profiles'!$C29,'Source Data'!$E$2:$E$366913,'Worst Day Profiles'!S$1,'Source Data'!$F$2:$F$366913,$B29,'Source Data'!$G$2:$G$366913,$A29) -> 0.8905848474 | T29: =SUMIFS('Source Data'!$I$2:$I$366913,'Source Data'!$A$2:$A$366913,'Worst Day Profiles'!$C29,'Source Data'!$E$2:$E$366913,'Worst Day Profiles'!T$1,'Source Data'!$F$2:$F$366913,$B29,'Source Data'!$G$2:$G$366913,$A29) -> 0.7980800226 | U29: =SUMIFS('Source Data'!$I$2:$I$366913,'Source Data'!$A$2:$A$366913,'Worst Day Profiles'!$C29,'Source Data'!$E$2:$E$366913,'Worst Day Profiles'!U$1,'Source Data'!$F$2:$F$366913,$B29,'Source Data'!$G$2:$G$366913,$A29) -> 0.648427364 | V29: =SUMIFS('Source Data'!$I$2:$I$366913,'Source Data'!$A$2:$A$366913,'Worst Day Profiles'!$C29,'Source Data'!$E$2:$E$366913,'Worst Day Profiles'!V$1,'Source Data'!$F$2:$F$366913,$B29,'Source Data'!$G$2:$G$366913,$A29) -> 0.3961446335 | W29: =SUMIFS('Source Data'!$I$2:$I$366913,'Source Data'!$A$2:$A$366913,'Worst Day Profiles'!$C29,'Source Data'!$E$2:$E$366913,'Worst Day Profiles'!W$1,'Source Data'!$F$2:$F$366913,$B29,'Source Data'!$G$2:$G$366913,$A29) -> 0.09921617257 | X29: =SUMIFS('Source Data'!$I$2:$I$366913,'Source Data'!$A$2:$A$366913,'Worst Day Profiles'!$C29,'Source Data'!$E$2:$E$366913,'Worst Day Profiles'!X$1,'Source Data'!$F$2:$F$366913,$B29,'Source Data'!$G$2:$G$366913,$A29) -> 0.0007909485882 | Y29: =SUMIFS('Source Data'!$I$2:$I$366913,'Source Data'!$A$2:$A$366913,'Worst Day Profiles'!$C29,'Source Data'!$E$2:$E$366913,'Worst Day Profiles'!Y$1,'Source Data'!$F$2:$F$366913,$B29,'Source Data'!$G$2:$G$366913,$A29) -> 0 | Z29: =SUMIFS('Source Data'!$I$2:$I$366913,'Source Data'!$A$2:$A$366913,'Worst Day Profiles'!$C29,'Source Data'!$E$2:$E$366913,'Worst Day Profiles'!Z$1,'Source Data'!$F$2:$F$366913,$B29,'Source Data'!$G$2:$G$366913,$A29) -> 0 | AA29: =SUMIFS('Source Data'!$I$2:$I$366913,'Source Data'!$A$2:$A$366913,'Worst Day Profiles'!$C29,'Source Data'!$E$2:$E$366913,'Worst Day Profiles'!AA$1,'Source Data'!$F$2:$F$366913,$B29,'Source Data'!$G$2:$G$366913,$A29) -> 0 | AB29: =SUMIFS('Source Data'!$I$2:$I$366913,'Source Data'!$A$2:$A$366913,'Worst Day Profiles'!$C29,'Source Data'!$E$2:$E$366913,'Worst Day Profiles'!AB$1,'Source Data'!$F$2:$F$366913,$B29,'Source Data'!$G$2:$G$366913,$A29) -> 0
A30: Solar Fixed | B30: North | C30: 43265 | D30: 6 | E30: =SUMIFS('Source Data'!$I$2:$I$366913,'Source Data'!$A$2:$A$366913,'Worst Day Profiles'!$C30,'Source Data'!$E$2:$E$366913,'Worst Day Profiles'!E$1,'Source Data'!$F$2:$F$366913,$B30,'Source Data'!$G$2:$G$366913,$A30) -> 0 | F30: =SUMIFS('Source Data'!$I$2:$I$366913,'Source Data'!$A$2:$A$366913,'Worst Day Profiles'!$C30,'Source Data'!$E$2:$E$366913,'Worst Day Profiles'!F$1,'Source Data'!$F$2:$F$366913,$B30,'Source Data'!$G$2:$G$366913,$A30) -> 0 | G30: =SUMIFS('Source Data'!$I$2:$I$366913,'Source Data'!$A$2:$A$366913,'Worst Day Profiles'!$C30,'Source Data'!$E$2:$E$366913,'Worst Day Profiles'!G$1,'Source Data'!$F$2:$F$366913,$B30,'Source Data'!$G$2:$G$366913,$A30) -> 0 | H30: =SUMIFS('Source Data'!$I$2:$I$366913,'Source Data'!$A$2:$A$366913,'Worst Day Profiles'!$C30,'Source Data'!$E$2:$E$366913,'Worst Day Profiles'!H$1,'Source Data'!$F$2:$F$366913,$B30,'Source Data'!$G$2:$G$366913,$A30) -> 0 | I30: =SUMIFS('Source Data'!$I$2:$I$366913,'Source Data'!$A$2:$A$366913,'Worst Day Profiles'!$C30,'Source Data'!$E$2:$E$366913,'Worst Day Profiles'!I$1,'Source Data'!$F$2:$F$366913,$B30,'Source Data'!$G$2:$G$366913,$A30) -> 0.0005427255273 | J30: =SUMIFS('Source Data'!$I$2:$I$366913,'Source Data'!$A$2:$A$366913,'Worst Day Profiles'!$C30,'Source Data'!$E$2:$E$366913,'Worst Day Profiles'!J$1,'Source Data'!$F$2:$F$366913,$B30,'Source Data'!$G$2:$G$366913,$A30) -> 0.09972837997 | K30: =SUMIFS('Source Data'!$I$2:$I$366913,'Source Data'!$A$2:$A$366913,'Worst Day Profiles'!$C30,'Source Data'!$E$2:$E$366913,'Worst Day Profiles'!K$1,'Source Data'!$F$2:$F$366913,$B30,'Source Data'!$G$2:$G$366913,$A30) -> 0.4098673339 | L30: =SUMIFS('Source Data'!$I$2:$I$366913,'Source Data'!$A$2:$A$366913,'Worst Day Profiles'!$C30,'Source Data'!$E$2:$E$366913,'Worst Day Profiles'!L$1,'Source Data'!$F$2:$F$366913,$B30,'Source Data'!$G$2:$G$366913,$A30) -> 0.6715149111 | M30: =SUMIFS('Source Data'!$I$2:$I$366913,'Source Data'!$A$2:$A$366913,'Worst Day Profiles'!$C30,'Source Data'!$E$2:$E$366913,'Worst Day Profiles'!M$1,'Source Data'!$F$2:$F$366913,$B30,'Source Data'!$G$2:$G$366913,$A30) -> 0.8086779042 | N30: =SUMIFS('Source Data'!$I$2:$I$366913,'Source Data'!$A$2:$A$366913,'Worst Day Profiles'!$C30,'Source Data'!$E$2:$E$366913,'Worst Day Profiles'!N$1,'Source Data'!$F$2:$F$366913,$B30,'Source Data'!$G$2:$G$366913,$A30) -> 0.8982361721 | O30: =SUMIFS('Source Data'!$I$2:$I$366913,'Source Data'!$A$2:$A$366913,'Worst Day Profiles'!$C30,'Source Data'!$E$2:$E$366913,'Worst Day Profiles'!O$1,'Source Data'!$F$2:$F$366913,$B30,'Source Data'!$G$2:$G$366913,$A30) -> 0.9372322029 | P30: =SUMIFS('Source Data'!$I$2:$I$366913,'Source Data'!$A$2:$A$366913,'Worst Day Profiles'!$C30,'Source Data'!$E$2:$E$366913,'Worst Day Profiles'!P$1,'Source Data'!$F$2:$F$366913,$B30,'Source Data'!$G$2:$G$366913,$A30) -> 0.951096836 | Q30: =SUMIFS('Source Data'!$I$2:$I$366913,'Source Data'!$A$2:$A$366913,'Worst Day Profiles'!$C30,'Source Data'!$E$2:$E$366913,'Worst Day Profiles'!Q$1,'Source Data'!$F$2:$F$366913,$B30,'Source Data'!$G$2:$G$366913,$A30) -> 0.9475044111 | R30: =SUMIFS('Source Data'!$I$2:$I$366913,'Source Data'!$A$2:$A$366913,'Worst Day Profiles'!$C30,'Source Data'!$E$2:$E$366913,'Worst Day Profiles'!R$1,'Source Data'!$F$2:$F$366913,$B30,'Source Data'!$G$2:$G$366913,$A30) -> 0.9407159149 | S30: =SUMIFS('Source Data'!$I$2:$I$366913,'Source Data'!$A$2:$A$366913,'Worst Day Profiles'!$C30,'Source Data'!$E$2:$E$366913,'Worst Day Profiles'!S$1,'Source Data'!$F$2:$F$366913,$B30,'Source Data'!$G$2:$G$366913,$A30) -> 0.9009995318 | T30: =SUMIFS('Source Data'!$I$2:$I$366913,'Source Data'!$A$2:$A$366913,'Worst Day Profiles'!$C30,'Source Data'!$E$2:$E$366913,'Worst Day Profiles'!T$1,'Source Data'!$F$2:$F$366913,$B30,'Source Data'!$G$2:$G$366913,$A30) -> 0.8085397141 | U30: =SUMIFS('Source Data'!$I$2:$I$366913,'Source Data'!$A$2:$A$366913,'Worst Day Profiles'!$C30,'Source Data'!$E$2:$E$366913,'Worst Day Profiles'!U$1,'Source Data'!$F$2:$F$366913,$B30,'Source Data'!$G$2:$G$366913,$A30) -> 0.6607851074 | V30: =SUMIFS('Source Data'!$I$2:$I$366913,'Source Data'!$A$2:$A$366913,'Worst Day Profiles'!$C30,'Source Data'!$E$2:$E$366913,'Worst Day Profiles'!V$1,'Source Data'!$F$2:$F$366913,$B30,'Source Data'!$G$2:$G$366913,$A30) -> 0.408473051 | W30: =SUMIFS('Source Data'!$I$2:$I$366913,'Source Data'!$A$2:$A$366913,'Worst Day Profiles'!$C30,'Source Data'!$E$2:$E$366913,'Worst Day Profiles'!W$1,'Source Data'!$F$2:$F$366913,$B30,'Source Data'!$G$2:$G$366913,$A30) -> 0.1084028348 | X30: =SUMIFS('Source Data'!$I$2:$I$366913,'Source Data'!$A$2:$A$366913,'Worst Day Profiles'!$C30,'Source Data'!$E$2:$E$366913,'Worst Day Profiles'!X$1,'Source Data'!$F$2:$F$366913,$B30,'Source Data'!$G$2:$G$366913,$A30) -> 0.001300504023 | Y30: =SUMIFS('Source Data'!$I$2:$I$366913,'Source Data'!$A$2:$A$366913,'Worst Day Profiles'!$C30,'Source Data'!$E$2:$E$366913,'Worst Day Profiles'!Y$1,'Source Data'!$F$2:$F$366913,$B30,'Source Data'!$G$2:$G$366913,$A30) -> 0 | Z30: =SUMIFS('Source Data'!$I$2:$I$366913,'Source Data'!$A$2:$A$366913,'Worst Day Profiles'!$C30,'Source Data'!$E$2:$E$366913,'Worst Day Profiles'!Z$1,'Source Data'!$F$2:$F$366913,$B30,'Source Data'!$G$2:$G$366913,$A30) -> 0 | AA30: =SUMIFS('Source Data'!$I$2:$I$366913,'Source Data'!$A$2:$A$366913,'Worst Day Profiles'!$C30,'Source Data'!$E$2:$E$366913,'Worst Day Profiles'!AA$1,'Source Data'!$F$2:$F$366913,$B30,'Source Data'!$G$2:$G$366913,$A30) -> 0 | AB30: =SUMIFS('Source Data'!$I$2:$I$366913,'Source Data'!$A$2:$A$366913,'Worst Day Profiles'!$C30,'Source Data'!$E$2:$E$366913,'Worst Day Profiles'!AB$1,'Source Data'!$F$2:$F$366913,$B30,'Source Data'!$G$2:$G$366913,$A30) -> 0
A31: Solar Fixed | B31: North | C31: 43277 | D31: 6 | E31: =SUMIFS('Source Data'!$I$2:$I$366913,'Source Data'!$A$2:$A$366913,'Worst Day Profiles'!$C31,'Source Data'!$E$2:$E$366913,'Worst Day Profiles'!E$1,'Source Data'!$F$2:$F$366913,$B31,'Source Data'!$G$2:$G$366913,$A31) -> 0 | F31: =SUMIFS('Source Data'!$I$2:$I$366913,'Source Data'!$A$2:$A$366913,'Worst Day Profiles'!$C31,'Source Data'!$E$2:$E$366913,'Worst Day Profiles'!F$1,'Source Data'!$F$2:$F$366913,$B31,'Source Data'!$G$2:$G$366913,$A31) -> 0 | G31: =SUMIFS('Source Data'!$I$2:$I$366913,'Source Data'!$A$2:$A$366913,'Worst Day Profiles'!$C31,'Source Data'!$E$2:$E$366913,'Worst Day Profiles'!G$1,'Source Data'!$F$2:$F$366913,$B31,'Source Data'!$G$2:$G$366913,$A31) -> 0 | H31: =SUMIFS('Source Data'!$I$2:$I$366913,'Source Data'!$A$2:$A$366913,'Worst Day Profiles'!$C31,'Source Data'!$E$2:$E$366913,'Worst Day Profiles'!H$1,'Source Data'!$F$2:$F$366913,$B31,'Source Data'!$G$2:$G$366913,$A31) -> 0 | I31: =SUMIFS('Source Data'!$I$2:$I$366913,'Source Data'!$A$2:$A$366913,'Worst Day Profiles'!$C31,'Source Data'!$E$2:$E$366913,'Worst Day Profiles'!I$1,'Source Data'!$F$2:$F$366913,$B31,'Source Data'!$G$2:$G$366913,$A31) -> 0.0002507962255 | J31: =SUMIFS('Source Data'!$I$2:$I$366913,'Source Data'!$A$2:$A$366913,'Worst Day Profiles'!$C31,'Source Data'!$E$2:$E$366913,'Worst Day Profiles'!J$1,'Source Data'!$F$2:$F$366913,$B31,'Source Data'!$G$2:$G$366913,$A31) -> 0.08370060953 | K31: =SUMIFS('Source Data'!$I$2:$I$366913,'Source Data'!$A$2:$A$366913,'Worst Day Profiles'!$C31,'Source Data'!$E$2:$E$366913,'Worst Day Profiles'!K$1,'Source Data'!$F$2:$F$366913,$B31,'Source Data'!$G$2:$G$366913,$A31) -> 0.3687883626 | L31: =SUMIFS('Source Data'!$I$2:$I$366913,'Source Data'!$A$2:$A$366913,'Worst Day Profiles'!$C31,'Source Data'!$E$2:$E$366913,'Worst Day Profiles'!L$1,'Source Data'!$F$2:$F$366913,$B31,'Source Data'!$G$2:$G$366913,$A31) -> 0.622768437 | M31: =SUMIFS('Source Data'!$I$2:$I$366913,'Source Data'!$A$2:$A$366913,'Worst Day Profiles'!$C31,'Source Data'!$E$2:$E$366913,'Worst Day Profiles'!M$1,'Source Data'!$F$2:$F$366913,$B31,'Source Data'!$G$2:$G$366913,$A31) -> 0.7832285275 | N31: =SUMIFS('Source Data'!$I$2:$I$366913,'Source Data'!$A$2:$A$366913,'Worst Day Profiles'!$C31,'Source Data'!$E$2:$E$366913,'Worst Day Profiles'!N$1,'Source Data'!$F$2:$F$366913,$B31,'Source Data'!$G$2:$G$366913,$A31) -> 0.8947194064 | O31: =SUMIFS('Source Data'!$I$2:$I$366913,'Source Data'!$A$2:$A$366913,'Worst Day Profiles'!$C31,'Source Data'!$E$2:$E$366913,'Worst Day Profiles'!O$1,'Source Data'!$F$2:$F$366913,$B31,'Source Data'!$G$2:$G$366913,$A31) -> 0.9496823258 | P31: =SUMIFS('Source Data'!$I$2:$I$366913,'Source Data'!$A$2:$A$366913,'Worst Day Profiles'!$C31,'Source Data'!$E$2:$E$366913,'Worst Day Profiles'!P$1,'Source Data'!$F$2:$F$366913,$B31,'Source Data'!$G$2:$G$366913,$A31) -> 0.960346968 | Q31: =SUMIFS('Source Data'!$I$2:$I$366913,'Source Data'!$A$2:$A$366913,'Worst Day Profiles'!$C31,'Source Data'!$E$2:$E$366913,'Worst Day Profiles'!Q$1,'Source Data'!$F$2:$F$366913,$B31,'Source Data'!$G$2:$G$366913,$A31) -> 0.9539161159 | R31: =SUMIFS('Source Data'!$I$2:$I$366913,'Source Data'!$A$2:$A$366913,'Worst Day Profiles'!$C31,'Source Data'!$E$2:$E$366913,'Worst Day Profiles'!R$1,'Source Data'!$F$2:$F$366913,$B31,'Source Data'!$G$2:$G$366913,$A31) -> 0.9368896709 | S31: =SUMIFS('Source Data'!$I$2:$I$366913,'Source Data'!$A$2:$A$366913,'Worst Day Profiles'!$C31,'Source Data'!$E$2:$E$366913,'Worst Day Profiles'!S$1,'Source Data'!$F$2:$F$366913,$B31,'Source Data'!$G$2:$G$366913,$A31) -> 0.8880244146 | T31: =SUMIFS('Source Data'!$I$2:$I$366913,'Source Data'!$A$2:$A$366913,'Worst Day Profiles'!$C31,'Source Data'!$E$2:$E$366913,'Worst Day Profiles'!T$1,'Source Data'!$F$2:$F$366913,$B31,'Source Data'!$G$2:$G$366913,$A31) -> 0.7972199177 | U31: =SUMIFS('Source Data'!$I$2:$I$366913,'Source Data'!$A$2:$A$366913,'Worst Day Profiles'!$C31,'Source Data'!$E$2:$E$366913,'Worst Day Profiles'!U$1,'Source Data'!$F$2:$F$366913,$B31,'Source Data'!$G$2:$G$366913,$A31) -> 0.6539181412 | V31: =SUMIFS('Source Data'!$I$2:$I$366913,'Source Data'!$A$2:$A$366913,'Worst Day Profiles'!$C31,'Source Data'!$E$2:$E$366913,'Worst Day Profiles'!V$1,'Source Data'!$F$2:$F$366913,$B31,'Source Data'!$G$2:$G$366913,$A31) -> 0.4144177124 | W31: =SUMIFS('Source Data'!$I$2:$I$366913,'Source Data'!$A$2:$A$366913,'Worst Day Profiles'!$C31,'Source Data'!$E$2:$E$366913,'Worst Day Profiles'!W$1,'Source Data'!$F$2:$F$366913,$B31,'Source Data'!$G$2:$G$366913,$A31) -> 0.1150090107 | X31: =SUMIFS('Source Data'!$I$2:$I$366913,'Source Data'!$A$2:$A$366913,'Worst Day Profiles'!$C31,'Source Data'!$E$2:$E$366913,'Worst Day Profiles'!X$1,'Source Data'!$F$2:$F$366913,$B31,'Source Data'!$G$2:$G$366913,$A31) -> 0.00133100125 | Y31: =SUMIFS('Source Data'!$I$2:$I$366913,'Source Data'!$A$2:$A$366913,'Worst Day Profiles'!$C31,'Source Data'!$E$2:$E$366913,'Worst Day Profiles'!Y$1,'Source Data'!$F$2:$F$366913,$B31,'Source Data'!$G$2:$G$366913,$A31) -> 0 | Z31: =SUMIFS('Source Data'!$I$2:$I$366913,'Source Data'!$A$2:$A$366913,'Worst Day Profiles'!$C31,'Source Data'!$E$2:$E$366913,'Worst Day Profiles'!Z$1,'Source Data'!$F$2:$F$366913,$B31,'Source Data'!$G$2:$G$366913,$A31) -> 0 | AA31: =SUMIFS('Source Data'!$I$2:$I$366913,'Source Data'!$A$2:$A$366913,'Worst Day Profiles'!$C31,'Source Data'!$E$2:$E$366913,'Worst Day Profiles'!AA$1,'Source Data'!$F$2:$F$366913,$B31,'Source Data'!$G$2:$G$366913,$A31) -> 0 | AB31: =SUMIFS('Source Data'!$I$2:$I$366913,'Source Data'!$A$2:$A$366913,'Worst Day Profiles'!$C31,'Source Data'!$E$2:$E$366913,'Worst Day Profiles'!AB$1,'Source Data'!$F$2:$F$366913,$B31,'Source Data'!$G$2:$G$366913,$A31) -> 0
A32: Solar Fixed | B32: North | C32: 43306 | D32: 7 | E32: =SUMIFS('Source Data'!$I$2:$I$366913,'Source Data'!$A$2:$A$366913,'Worst Day Profiles'!$C32,'Source Data'!$E$2:$E$366913,'Worst Day Profiles'!E$1,'Source Data'!$F$2:$F$366913,$B32,'Source Data'!$G$2:$G$366913,$A32) -> 0 | F32: =SUMIFS('Source Data'!$I$2:$I$366913,'Source Data'!$A$2:$A$366913,'Worst Day Profiles'!$C32,'Source Data'!$E$2:$E$366913,'Worst Day Profiles'!F$1,'Source Data'!$F$2:$F$366913,$B32,'Source Data'!$G$2:$G$366913,$A32) -> 0 | G32: =SUMIFS('Source Data'!$I$2:$I$366913,'Source Data'!$A$2:$A$366913,'Worst Day Profiles'!$C32,'Source Data'!$E$2:$E$366913,'Worst Day Profiles'!G$1,'Source Data'!$F$2:$F$366913,$B32,'Source Data'!$G$2:$G$366913,$A32) -> 0 | H32: =SUMIFS('Source Data'!$I$2:$I$366913,'Source Data'!$A$2:$A$366913,'Worst Day Profiles'!$C32,'Source Data'!$E$2:$E$366913,'Worst Day Profiles'!H$1,'Source Data'!$F$2:$F$366913,$B32,'Source Data'!$G$2:$G$366913,$A32) -> 0 | I32: =SUMIFS('Source Data'!$I$2:$I$366913,'Source Data'!$A$2:$A$366913,'Worst Day Profiles'!$C32,'Source Data'!$E$2:$E$366913,'Worst Day Profiles'!I$1,'Source Data'!$F$2:$F$366913,$B32,'Source Data'!$G$2:$G$366913,$A32) -> 0 | J32: =SUMIFS('Source Data'!$I$2:$I$366913,'Source Data'!$A$2:$A$366913,'Worst Day Profiles'!$C32,'Source Data'!$E$2:$E$366913,'Worst Day Profiles'!J$1,'Source Data'!$F$2:$F$366913,$B32,'Source Data'!$G$2:$G$366913,$A32) -> 0.04083296264 | K32: =SUMIFS('Source Data'!$I$2:$I$366913,'Source Data'!$A$2:$A$366913,'Worst Day Profiles'!$C32,'Source Data'!$E$2:$E$366913,'Worst Day Profiles'!K$1,'Source Data'!$F$2:$F$366913,$B32,'Source Data'!$G$2:$G$366913,$A32) -> 0.309654787 | L32: =SUMIFS('Source Data'!$I$2:$I$366913,'Source Data'!$A$2:$A$366913,'Worst Day Profiles'!$C32,'Source Data'!$E$2:$E$366913,'Worst Day Profiles'!L$1,'Source Data'!$F$2:$F$366913,$B32,'Source Data'!$G$2:$G$366913,$A32) -> 0.6024575243 | M32: =SUMIFS('Source Data'!$I$2:$I$366913,'Source Data'!$A$2:$A$366913,'Worst Day Profiles'!$C32,'Source Data'!$E$2:$E$366913,'Worst Day Profiles'!M$1,'Source Data'!$F$2:$F$366913,$B32,'Source Data'!$G$2:$G$366913,$A32) -> 0.7747575171 | N32: =SUMIFS('Source Data'!$I$2:$I$366913,'Source Data'!$A$2:$A$366913,'Worst Day Profiles'!$C32,'Source Data'!$E$2:$E$366913,'Worst Day Profiles'!N$1,'Source Data'!$F$2:$F$366913,$B32,'Source Data'!$G$2:$G$366913,$A32) -> 0.8827996655 | O32: =SUMIFS('Source Data'!$I$2:$I$366913,'Source Data'!$A$2:$A$366913,'Worst Day Profiles'!$C32,'Source Data'!$E$2:$E$366913,'Worst Day Profiles'!O$1,'Source Data'!$F$2:$F$366913,$B32,'Source Data'!$G$2:$G$366913,$A32) -> 0.9397614579 | P32: =SUMIFS('Source Data'!$I$2:$I$366913,'Source Data'!$A$2:$A$366913,'Worst Day Profiles'!$C32,'Source Data'!$E$2:$E$366913,'Worst Day Profiles'!P$1,'Source Data'!$F$2:$F$366913,$B32,'Source Data'!$G$2:$G$366913,$A32) -> 0.94520289 | Q32: =SUMIFS('Source Data'!$I$2:$I$366913,'Source Data'!$A$2:$A$366913,'Worst Day Profiles'!$C32,'Source Data'!$E$2:$E$366913,'Worst Day Profiles'!Q$1,'Source Data'!$F$2:$F$366913,$B32,'Source Data'!$G$2:$G$366913,$A32) -> 0.9383457852 | R32: =SUMIFS('Source Data'!$I$2:$I$366913,'Source Data'!$A$2:$A$366913,'Worst Day Profiles'!$C32,'Source Data'!$E$2:$E$366913,'Worst Day Profiles'!R$1,'Source Data'!$F$2:$F$366913,$B32,'Source Data'!$G$2:$G$366913,$A32) -> 0.9253523096 | S32: =SUMIFS('Source Data'!$I$2:$I$366913,'Source Data'!$A$2:$A$366913,'Worst Day Profiles'!$C32,'Source Data'!$E$2:$E$366913,'Worst Day Profiles'!S$1,'Source Data'!$F$2:$F$366913,$B32,'Source Data'!$G$2:$G$366913,$A32) -> 0.8519315282 | T32: =SUMIFS('Source Data'!$I$2:$I$366913,'Source Data'!$A$2:$A$366913,'Worst Day Profiles'!$C32,'Source Data'!$E$2:$E$366913,'Worst Day Profiles'!T$1,'Source Data'!$F$2:$F$366913,$B32,'Source Data'!$G$2:$G$366913,$A32) -> 0.7260081317 | U32: =SUMIFS('Source Data'!$I$2:$I$366913,'Source Data'!$A$2:$A$366913,'Worst Day Profiles'!$C32,'Source Data'!$E$2:$E$366913,'Worst Day Profiles'!U$1,'Source Data'!$F$2:$F$366913,$B32,'Source Data'!$G$2:$G$366913,$A32) -> 0.5021398787 | V32: =SUMIFS('Source Data'!$I$2:$I$366913,'Source Data'!$A$2:$A$366913,'Worst Day Profiles'!$C32,'Source Data'!$E$2:$E$366913,'Worst Day Profiles'!V$1,'Source Data'!$F$2:$F$366913,$B32,'Source Data'!$G$2:$G$366913,$A32) -> 0.2920175359 | W32: =SUMIFS('Source Data'!$I$2:$I$366913,'Source Data'!$A$2:$A$366913,'Worst Day Profiles'!$C32,'Source Data'!$E$2:$E$366913,'Worst Day Profiles'!W$1,'Source Data'!$F$2:$F$366913,$B32,'Source Data'!$G$2:$G$366913,$A32) -> 0.05823178501 | X32: =SUMIFS('Source Data'!$I$2:$I$366913,'Source Data'!$A$2:$A$366913,'Worst Day Profiles'!$C32,'Source Data'!$E$2:$E$366913,'Worst Day Profiles'!X$1,'Source Data'!$F$2:$F$366913,$B32,'Source Data'!$G$2:$G$366913,$A32) -> 8.569241015e-05 | Y32: =SUMIFS('Source Data'!$I$2:$I$366913,'Source Data'!$A$2:$A$366913,'Worst Day Profiles'!$C32,'Source Data'!$E$2:$E$366913,'Worst Day Profiles'!Y$1,'Source Data'!$F$2:$F$366913,$B32,'Source Data'!$G$2:$G$366913,$A32) -> 0 | Z32: =SUMIFS('Source Data'!$I$2:$I$366913,'Source Data'!$A$2:$A$366913,'Worst Day Profiles'!$C32,'Source Data'!$E$2:$E$366913,'Worst Day Profiles'!Z$1,'Source Data'!$F$2:$F$366913,$B32,'Source Data'!$G$2:$G$366913,$A32) -> 0 | AA32: =SUMIFS('Source Data'!$I$2:$I$366913,'Source Data'!$A$2:$A$366913,'Worst Day Profiles'!$C32,'Source Data'!$E$2:$E$366913,'Worst Day Profiles'!AA$1,'Source Data'!$F$2:$F$366913,$B32,'Source Data'!$G$2:$G$366913,$A32) -> 0 | AB32: =SUMIFS('Source Data'!$I$2:$I$366913,'Source Data'!$A$2:$A$366913,'Worst Day Profiles'!$C32,'Source Data'!$E$2:$E$366913,'Worst Day Profiles'!AB$1,'Source Data'!$F$2:$F$366913,$B32,'Source Data'!$G$2:$G$366913,$A32) -> 0
A33: Solar Fixed | B33: North | C33: 43305 | D33: 7 | E33: =SUMIFS('Source Data'!$I$2:$I$366913,'Source Data'!$A$2:$A$366913,'Worst Day Profiles'!$C33,'Source Data'!$E$2:$E$366913,'Worst Day Profiles'!E$1,'Source Data'!$F$2:$F$366913,$B33,'Source Data'!$G$2:$G$366913,$A33) -> 0 | F33: =SUMIFS('Source Data'!$I$2:$I$366913,'Source Data'!$A$2:$A$366913,'Worst Day Profiles'!$C33,'Source Data'!$E$2:$E$366913,'Worst Day Profiles'!F$1,'Source Data'!$F$2:$F$366913,$B33,'Source Data'!$G$2:$G$366913,$A33) -> 0 | G33: =SUMIFS('Source Data'!$I$2:$I$366913,'Source Data'!$A$2:$A$366913,'Worst Day Profiles'!$C33,'Source Data'!$E$2:$E$366913,'Worst Day Profiles'!G$1,'Source Data'!$F$2:$F$366913,$B33,'Source Data'!$G$2:$G$366913,$A33) -> 0 | H33: =SUMIFS('Source Data'!$I$2:$I$366913,'Source Data'!$A$2:$A$366913,'Worst Day Profiles'!$C33,'Source Data'!$E$2:$E$366913,'Worst Day Profiles'!H$1,'Source Data'!$F$2:$F$366913,$B33,'Source Data'!$G$2:$G$366913,$A33) -> 0 | I33: =SUMIFS('Source Data'!$I$2:$I$366913,'Source Data'!$A$2:$A$366913,'Worst Day Profiles'!$C33,'Source Data'!$E$2:$E$366913,'Worst Day Profiles'!I$1,'Source Data'!$F$2:$F$366913,$B33,'Source Data'!$G$2:$G$366913,$A33) -> 0 | J33: =SUMIFS('Source Data'!$I$2:$I$366913,'Source Data'!$A$2:$A$366913,'Worst Day Profiles'!$C33,'Source Data'!$E$2:$E$366913,'Worst Day Profiles'!J$1,'Source Data'!$F$2:$F$366913,$B33,'Source Data'!$G$2:$G$366913,$A33) -> 0.0397578028 | K33: =SUMIFS('Source Data'!$I$2:$I$366913,'Source Data'!$A$2:$A$366913,'Worst Day Profiles'!$C33,'Source Data'!$E$2:$E$366913,'Worst Day Profiles'!K$1,'Source Data'!$F$2:$F$366913,$B33,'Source Data'!$G$2:$G$366913,$A33) -> 0.3071660158 | L33: =SUMIFS('Source Data'!$I$2:$I$366913,'Source Data'!$A$2:$A$366913,'Worst Day Profiles'!$C33,'Source Data'!$E$2:$E$366913,'Worst Day Profiles'!L$1,'Source Data'!$F$2:$F$366913,$B33,'Source Data'!$G$2:$G$366913,$A33) -> 0.5990397383 | M33: =SUMIFS('Source Data'!$I$2:$I$366913,'Source Data'!$A$2:$A$366913,'Worst Day Profiles'!$C33,'Source Data'!$E$2:$E$366913,'Worst Day Profiles'!M$1,'Source Data'!$F$2:$F$366913,$B33,'Source Data'!$G$2:$G$366913,$A33) -> 0.7656559619 | N33: =SUMIFS('Source Data'!$I$2:$I$366913,'Source Data'!$A$2:$A$366913,'Worst Day Profiles'!$C33,'Source Data'!$E$2:$E$366913,'Worst Day Profiles'!N$1,'Source Data'!$F$2:$F$366913,$B33,'Source Data'!$G$2:$G$366913,$A33) -> 0.8670921587 | O33: =SUMIFS('Source Data'!$I$2:$I$366913,'Source Data'!$A$2:$A$366913,'Worst Day Profiles'!$C33,'Source Data'!$E$2:$E$366913,'Worst Day Profiles'!O$1,'Source Data'!$F$2:$F$366913,$B33,'Source Data'!$G$2:$G$366913,$A33) -> 0.9191783791 | P33: =SUMIFS('Source Data'!$I$2:$I$366913,'Source Data'!$A$2:$A$366913,'Worst Day Profiles'!$C33,'Source Data'!$E$2:$E$366913,'Worst Day Profiles'!P$1,'Source Data'!$F$2:$F$366913,$B33,'Source Data'!$G$2:$G$366913,$A33) -> 0.9307363317 | Q33: =SUMIFS('Source Data'!$I$2:$I$366913,'Source Data'!$A$2:$A$366913,'Worst Day Profiles'!$C33,'Source Data'!$E$2:$E$366913,'Worst Day Profiles'!Q$1,'Source Data'!$F$2:$F$366913,$B33,'Source Data'!$G$2:$G$366913,$A33) -> 0.9274944153 | R33: =SUMIFS('Source Data'!$I$2:$I$366913,'Source Data'!$A$2:$A$366913,'Worst Day Profiles'!$C33,'Source Data'!$E$2:$E$366913,'Worst Day Profiles'!R$1,'Source Data'!$F$2:$F$366913,$B33,'Source Data'!$G$2:$G$366913,$A33) -> 0.9178595612 | S33: =SUMIFS('Source Data'!$I$2:$I$366913,'Source Data'!$A$2:$A$366913,'Worst Day Profiles'!$C33,'Source Data'!$E$2:$E$366913,'Worst Day Profiles'!S$1,'Source Data'!$F$2:$F$366913,$B33,'Source Data'!$G$2:$G$366913,$A33) -> 0.8681958731 | T33: =SUMIFS('Source Data'!$I$2:$I$366913,'Source Data'!$A$2:$A$366913,'Worst Day Profiles'!$C33,'Source Data'!$E$2:$E$366913,'Worst Day Profiles'!T$1,'Source Data'!$F$2:$F$366913,$B33,'Source Data'!$G$2:$G$366913,$A33) -> 0.7757869179 | U33: =SUMIFS('Source Data'!$I$2:$I$366913,'Source Data'!$A$2:$A$366913,'Worst Day Profiles'!$C33,'Source Data'!$E$2:$E$366913,'Worst Day Profiles'!U$1,'Source Data'!$F$2:$F$366913,$B33,'Source Data'!$G$2:$G$366913,$A33) -> 0.6333738381 | V33: =SUMIFS('Source Data'!$I$2:$I$366913,'Source Data'!$A$2:$A$366913,'Worst Day Profiles'!$C33,'Source Data'!$E$2:$E$366913,'Worst Day Profiles'!V$1,'Source Data'!$F$2:$F$366913,$B33,'Source Data'!$G$2:$G$366913,$A33) -> 0.3762203238 | W33: =SUMIFS('Source Data'!$I$2:$I$366913,'Source Data'!$A$2:$A$366913,'Worst Day Profiles'!$C33,'Source Data'!$E$2:$E$366913,'Worst Day Profiles'!W$1,'Source Data'!$F$2:$F$366913,$B33,'Source Data'!$G$2:$G$366913,$A33) -> 0.07961277957 | X33: =SUMIFS('Source Data'!$I$2:$I$366913,'Source Data'!$A$2:$A$366913,'Worst Day Profiles'!$C33,'Source Data'!$E$2:$E$366913,'Worst Day Profiles'!X$1,'Source Data'!$F$2:$F$366913,$B33,'Source Data'!$G$2:$G$366913,$A33) -> 0.0001546872824 | Y33: =SUMIFS('Source Data'!$I$2:$I$366913,'Source Data'!$A$2:$A$366913,'Worst Day Profiles'!$C33,'Source Data'!$E$2:$E$366913,'Worst Day Profiles'!Y$1,'Source Data'!$F$2:$F$366913,$B33,'Source Data'!$G$2:$G$366913,$A33) -> 0 | Z33: =SUMIFS('Source Data'!$I$2:$I$366913,'Source Data'!$A$2:$A$366913,'Worst Day Profiles'!$C33,'Source Data'!$E$2:$E$366913,'Worst Day Profiles'!Z$1,'Source Data'!$F$2:$F$366913,$B33,'Source Data'!$G$2:$G$366913,$A33) -> 0 | AA33: =SUMIFS('Source Data'!$I$2:$I$366913,'Source Data'!$A$2:$A$366913,'Worst Day Profiles'!$C33,'Source Data'!$E$2:$E$366913,'Worst Day Profiles'!AA$1,'Source Data'!$F$2:$F$366913,$B33,'Source Data'!$G$2:$G$366913,$A33) -> 0 | AB33: =SUMIFS('Source Data'!$I$2:$I$366913,'Source Data'!$A$2:$A$366913,'Worst Day Profiles'!$C33,'Source Data'!$E$2:$E$366913,'Worst Day Profiles'!AB$1,'Source Data'!$F$2:$F$366913,$B33,'Source Data'!$G$2:$G$366913,$A33) -> 0
A34: Solar Fixed | B34: North | C34: 43304 | D34: 7 | E34: =SUMIFS('Source Data'!$I$2:$I$366913,'Source Data'!$A$2:$A$366913,'Worst Day Profiles'!$C34,'Source Data'!$E$2:$E$366913,'Worst Day Profiles'!E$1,'Source Data'!$F$2:$F$366913,$B34,'Source Data'!$G$2:$G$366913,$A34) -> 0 | F34: =SUMIFS('Source Data'!$I$2:$I$366913,'Source Data'!$A$2:$A$366913,'Worst Day Profiles'!$C34,'Source Data'!$E$2:$E$366913,'Worst Day Profiles'!F$1,'Source Data'!$F$2:$F$366913,$B34,'Source Data'!$G$2:$G$366913,$A34) -> 0 | G34: =SUMIFS('Source Data'!$I$2:$I$366913,'Source Data'!$A$2:$A$366913,'Worst Day Profiles'!$C34,'Source Data'!$E$2:$E$366913,'Worst Day Profiles'!G$1,'Source Data'!$F$2:$F$366913,$B34,'Source Data'!$G$2:$G$366913,$A34) -> 0 | H34: =SUMIFS('Source Data'!$I$2:$I$366913,'Source Data'!$A$2:$A$366913,'Worst Day Profiles'!$C34,'Source Data'!$E$2:$E$366913,'Worst Day Profiles'!H$1,'Source Data'!$F$2:$F$366913,$B34,'Source Data'!$G$2:$G$366913,$A34) -> 0 | I34: =SUMIFS('Source Data'!$I$2:$I$366913,'Source Data'!$A$2:$A$366913,'Worst Day Profiles'!$C34,'Source Data'!$E$2:$E$366913,'Worst Day Profiles'!I$1,'Source Data'!$F$2:$F$366913,$B34,'Source Data'!$G$2:$G$366913,$A34) -> 0 | J34: =SUMIFS('Source Data'!$I$2:$I$366913,'Source Data'!$A$2:$A$366913,'Worst Day Profiles'!$C34,'Source Data'!$E$2:$E$366913,'Worst Day Profiles'!J$1,'Source Data'!$F$2:$F$366913,$B34,'Source Data'!$G$2:$G$366913,$A34) -> 0.04176140067 | K34: =SUMIFS('Source Data'!$I$2:$I$366913,'Source Data'!$A$2:$A$366913,'Worst Day Profiles'!$C34,'Source Data'!$E$2:$E$366913,'Worst Day Profiles'!K$1,'Source Data'!$F$2:$F$366913,$B34,'Source Data'!$G$2:$G$366913,$A34) -> 0.284400801 | L34: =SUMIFS('Source Data'!$I$2:$I$366913,'Source Data'!$A$2:$A$366913,'Worst Day Profiles'!$C34,'Source Data'!$E$2:$E$366913,'Worst Day Profiles'!L$1,'Source Data'!$F$2:$F$366913,$B34,'Source Data'!$G$2:$G$366913,$A34) -> 0.5529638574 | M34: =SUMIFS('Source Data'!$I$2:$I$366913,'Source Data'!$A$2:$A$366913,'Worst Day Profiles'!$C34,'Source Data'!$E$2:$E$366913,'Worst Day Profiles'!M$1,'Source Data'!$F$2:$F$366913,$B34,'Source Data'!$G$2:$G$366913,$A34) -> 0.7599230278 | N34: =SUMIFS('Source Data'!$I$2:$I$366913,'Source Data'!$A$2:$A$366913,'Worst Day Profiles'!$C34,'Source Data'!$E$2:$E$366913,'Worst Day Profiles'!N$1,'Source Data'!$F$2:$F$366913,$B34,'Source Data'!$G$2:$G$366913,$A34) -> 0.8310451351 | O34: =SUMIFS('Source Data'!$I$2:$I$366913,'Source Data'!$A$2:$A$366913,'Worst Day Profiles'!$C34,'Source Data'!$E$2:$E$366913,'Worst Day Profiles'!O$1,'Source Data'!$F$2:$F$366913,$B34,'Source Data'!$G$2:$G$366913,$A34) -> 0.9107533019 | P34: =SUMIFS('Source Data'!$I$2:$I$366913,'Source Data'!$A$2:$A$366913,'Worst Day Profiles'!$C34,'Source Data'!$E$2:$E$366913,'Worst Day Profiles'!P$1,'Source Data'!$F$2:$F$366913,$B34,'Source Data'!$G$2:$G$366913,$A34) -> 0.8852841135 | Q34: =SUMIFS('Source Data'!$I$2:$I$366913,'Source Data'!$A$2:$A$366913,'Worst Day Profiles'!$C34,'Source Data'!$E$2:$E$366913,'Worst Day Profiles'!Q$1,'Source Data'!$F$2:$F$366913,$B34,'Source Data'!$G$2:$G$366913,$A34) -> 0.8808194691 | R34: =SUMIFS('Source Data'!$I$2:$I$366913,'Source Data'!$A$2:$A$366913,'Worst Day Profiles'!$C34,'Source Data'!$E$2:$E$366913,'Worst Day Profiles'!R$1,'Source Data'!$F$2:$F$366913,$B34,'Source Data'!$G$2:$G$366913,$A34) -> 0.8152658384 | S34: =SUMIFS('Source Data'!$I$2:$I$366913,'Source Data'!$A$2:$A$366913,'Worst Day Profiles'!$C34,'Source Data'!$E$2:$E$366913,'Worst Day Profiles'!S$1,'Source Data'!$F$2:$F$366913,$B34,'Source Data'!$G$2:$G$366913,$A34) -> 0.7421635364 | T34: =SUMIFS('Source Data'!$I$2:$I$366913,'Source Data'!$A$2:$A$366913,'Worst Day Profiles'!$C34,'Source Data'!$E$2:$E$366913,'Worst Day Profiles'!T$1,'Source Data'!$F$2:$F$366913,$B34,'Source Data'!$G$2:$G$366913,$A34) -> 0.6541074267 | U34: =SUMIFS('Source Data'!$I$2:$I$366913,'Source Data'!$A$2:$A$366913,'Worst Day Profiles'!$C34,'Source Data'!$E$2:$E$366913,'Worst Day Profiles'!U$1,'Source Data'!$F$2:$F$366913,$B34,'Source Data'!$G$2:$G$366913,$A34) -> 0.5239637219 | V34: =SUMIFS('Source Data'!$I$2:$I$366913,'Source Data'!$A$2:$A$366913,'Worst Day Profiles'!$C34,'Source Data'!$E$2:$E$366913,'Worst Day Profiles'!V$1,'Source Data'!$F$2:$F$366913,$B34,'Source Data'!$G$2:$G$366913,$A34) -> 0.2598701873 | W34: =SUMIFS('Source Data'!$I$2:$I$366913,'Source Data'!$A$2:$A$366913,'Worst Day Profiles'!$C34,'Source Data'!$E$2:$E$366913,'Worst Day Profiles'!W$1,'Source Data'!$F$2:$F$366913,$B34,'Source Data'!$G$2:$G$366913,$A34) -> 0.04041534625 | X34: =SUMIFS('Source Data'!$I$2:$I$366913,'Source Data'!$A$2:$A$366913,'Worst Day Profiles'!$C34,'Source Data'!$E$2:$E$366913,'Worst Day Profiles'!X$1,'Source Data'!$F$2:$F$366913,$B34,'Source Data'!$G$2:$G$366913,$A34) -> 9.734265032e-05 | Y34: =SUMIFS('Source Data'!$I$2:$I$366913,'Source Data'!$A$2:$A$366913,'Worst Day Profiles'!$C34,'Source Data'!$E$2:$E$366913,'Worst Day Profiles'!Y$1,'Source Data'!$F$2:$F$366913,$B34,'Source Data'!$G$2:$G$366913,$A34) -> 0 | Z34: =SUMIFS('Source Data'!$I$2:$I$366913,'Source Data'!$A$2:$A$366913,'Worst Day Profiles'!$C34,'Source Data'!$E$2:$E$366913,'Worst Day Profiles'!Z$1,'Source Data'!$F$2:$F$366913,$B34,'Source Data'!$G$2:$G$366913,$A34) -> 0 | AA34: =SUMIFS('Source Data'!$I$2:$I$366913,'Source Data'!$A$2:$A$366913,'Worst Day Profiles'!$C34,'Source Data'!$E$2:$E$366913,'Worst Day Profiles'!AA$1,'Source Data'!$F$2:$F$366913,$B34,'Source Data'!$G$2:$G$366913,$A34) -> 0 | AB34: =SUMIFS('Source Data'!$I$2:$I$366913,'Source Data'!$A$2:$A$366913,'Worst Day Profiles'!$C34,'Source Data'!$E$2:$E$366913,'Worst Day Profiles'!AB$1,'Source Data'!$F$2:$F$366913,$B34,'Source Data'!$G$2:$G$366913,$A34) -> 0
A35: Solar Fixed | B35: North | C35: 43287 | D35: 7 | E35: =SUMIFS('Source Data'!$I$2:$I$366913,'Source Data'!$A$2:$A$366913,'Worst Day Profiles'!$C35,'Source Data'!$E$2:$E$366913,'Worst Day Profiles'!E$1,'Source Data'!$F$2:$F$366913,$B35,'Source Data'!$G$2:$G$366913,$A35) -> 0 | F35: =SUMIFS('Source Data'!$I$2:$I$366913,'Source Data'!$A$2:$A$366913,'Worst Day Profiles'!$C35,'Source Data'!$E$2:$E$366913,'Worst Day Profiles'!F$1,'Source Data'!$F$2:$F$366913,$B35,'Source Data'!$G$2:$G$366913,$A35) -> 0 | G35: =SUMIFS('Source Data'!$I$2:$I$366913,'Source Data'!$A$2:$A$366913,'Worst Day Profiles'!$C35,'Source Data'!$E$2:$E$366913,'Worst Day Profiles'!G$1,'Source Data'!$F$2:$F$366913,$B35,'Source Data'!$G$2:$G$366913,$A35) -> 0 | H35: =SUMIFS('Source Data'!$I$2:$I$366913,'Source Data'!$A$2:$A$366913,'Worst Day Profiles'!$C35,'Source Data'!$E$2:$E$366913,'Worst Day Profiles'!H$1,'Source Data'!$F$2:$F$366913,$B35,'Source Data'!$G$2:$G$366913,$A35) -> 0 | I35: =SUMIFS('Source Data'!$I$2:$I$366913,'Source Data'!$A$2:$A$366913,'Worst Day Profiles'!$C35,'Source Data'!$E$2:$E$366913,'Worst Day Profiles'!I$1,'Source Data'!$F$2:$F$366913,$B35,'Source Data'!$G$2:$G$366913,$A35) -> 0.0001021107401 | J35: =SUMIFS('Source Data'!$I$2:$I$366913,'Source Data'!$A$2:$A$366913,'Worst Day Profiles'!$C35,'Source Data'!$E$2:$E$366913,'Worst Day Profiles'!J$1,'Source Data'!$F$2:$F$366913,$B35,'Source Data'!$G$2:$G$366913,$A35) -> 0.06065489067 | K35: =SUMIFS('Source Data'!$I$2:$I$366913,'Source Data'!$A$2:$A$366913,'Worst Day Profiles'!$C35,'Source Data'!$E$2:$E$366913,'Worst Day Profiles'!K$1,'Source Data'!$F$2:$F$366913,$B35,'Source Data'!$G$2:$G$366913,$A35) -> 0.3276726366 | L35: =SUMIFS('Source Data'!$I$2:$I$366913,'Source Data'!$A$2:$A$366913,'Worst Day Profiles'!$C35,'Source Data'!$E$2:$E$366913,'Worst Day Profiles'!L$1,'Source Data'!$F$2:$F$366913,$B35,'Source Data'!$G$2:$G$366913,$A35) -> 0.6142279665 | M35: =SUMIFS('Source Data'!$I$2:$I$366913,'Source Data'!$A$2:$A$366913,'Worst Day Profiles'!$C35,'Source Data'!$E$2:$E$366913,'Worst Day Profiles'!M$1,'Source Data'!$F$2:$F$366913,$B35,'Source Data'!$G$2:$G$366913,$A35) -> 0.7841502586 | N35: =SUMIFS('Source Data'!$I$2:$I$366913,'Source Data'!$A$2:$A$366913,'Worst Day Profiles'!$C35,'Source Data'!$E$2:$E$366913,'Worst Day Profiles'!N$1,'Source Data'!$F$2:$F$366913,$B35,'Source Data'!$G$2:$G$366913,$A35) -> 0.8879018588 | O35: =SUMIFS('Source Data'!$I$2:$I$366913,'Source Data'!$A$2:$A$366913,'Worst Day Profiles'!$C35,'Source Data'!$E$2:$E$366913,'Worst Day Profiles'!O$1,'Source Data'!$F$2:$F$366913,$B35,'Source Data'!$G$2:$G$366913,$A35) -> 0.9444246568 | P35: =SUMIFS('Source Data'!$I$2:$I$366913,'Source Data'!$A$2:$A$366913,'Worst Day Profiles'!$C35,'Source Data'!$E$2:$E$366913,'Worst Day Profiles'!P$1,'Source Data'!$F$2:$F$366913,$B35,'Source Data'!$G$2:$G$366913,$A35) -> 0.9366237658 | Q35: =SUMIFS('Source Data'!$I$2:$I$366913,'Source Data'!$A$2:$A$366913,'Worst Day Profiles'!$C35,'Source Data'!$E$2:$E$366913,'Worst Day Profiles'!Q$1,'Source Data'!$F$2:$F$366913,$B35,'Source Data'!$G$2:$G$366913,$A35) -> 0.9558184149 | R35: =SUMIFS('Source Data'!$I$2:$I$366913,'Source Data'!$A$2:$A$366913,'Worst Day Profiles'!$C35,'Source Data'!$E$2:$E$366913,'Worst Day Profiles'!R$1,'Source Data'!$F$2:$F$366913,$B35,'Source Data'!$G$2:$G$366913,$A35) -> 0.7407217146 | S35: =SUMIFS('Source Data'!$I$2:$I$366913,'Source Data'!$A$2:$A$366913,'Worst Day Profiles'!$C35,'Source Data'!$E$2:$E$366913,'Worst Day Profiles'!S$1,'Source Data'!$F$2:$F$366913,$B35,'Source Data'!$G$2:$G$366913,$A35) -> 0.8187837654 | T35: =SUMIFS('Source Data'!$I$2:$I$366913,'Source Data'!$A$2:$A$366913,'Worst Day Profiles'!$C35,'Source Data'!$E$2:$E$366913,'Worst Day Profiles'!T$1,'Source Data'!$F$2:$F$366913,$B35,'Source Data'!$G$2:$G$366913,$A35) -> 0.7884623468 | U35: =SUMIFS('Source Data'!$I$2:$I$366913,'Source Data'!$A$2:$A$366913,'Worst Day Profiles'!$C35,'Source Data'!$E$2:$E$366913,'Worst Day Profiles'!U$1,'Source Data'!$F$2:$F$366913,$B35,'Source Data'!$G$2:$G$366913,$A35) -> 0.6213781693 | V35: =SUMIFS('Source Data'!$I$2:$I$366913,'Source Data'!$A$2:$A$366913,'Worst Day Profiles'!$C35,'Source Data'!$E$2:$E$366913,'Worst Day Profiles'!V$1,'Source Data'!$F$2:$F$366913,$B35,'Source Data'!$G$2:$G$366913,$A35) -> 0.395491247 | W35: =SUMIFS('Source Data'!$I$2:$I$366913,'Source Data'!$A$2:$A$366913,'Worst Day Profiles'!$C35,'Source Data'!$E$2:$E$366913,'Worst Day Profiles'!W$1,'Source Data'!$F$2:$F$366913,$B35,'Source Data'!$G$2:$G$366913,$A35) -> 0.1062260282 | X35: =SUMIFS('Source Data'!$I$2:$I$366913,'Source Data'!$A$2:$A$366913,'Worst Day Profiles'!$C35,'Source Data'!$E$2:$E$366913,'Worst Day Profiles'!X$1,'Source Data'!$F$2:$F$366913,$B35,'Source Data'!$G$2:$G$366913,$A35) -> 0.001249563946 | Y35: =SUMIFS('Source Data'!$I$2:$I$366913,'Source Data'!$A$2:$A$366913,'Worst Day Profiles'!$C35,'Source Data'!$E$2:$E$366913,'Worst Day Profiles'!Y$1,'Source Data'!$F$2:$F$366913,$B35,'Source Data'!$G$2:$G$366913,$A35) -> 0 | Z35: =SUMIFS('Source Data'!$I$2:$I$366913,'Source Data'!$A$2:$A$366913,'Worst Day Profiles'!$C35,'Source Data'!$E$2:$E$366913,'Worst Day Profiles'!Z$1,'Source Data'!$F$2:$F$366913,$B35,'Source Data'!$G$2:$G$366913,$A35) -> 0 | AA35: =SUMIFS('Source Data'!$I$2:$I$366913,'Source Data'!$A$2:$A$366913,'Worst Day Profiles'!$C35,'Source Data'!$E$2:$E$366913,'Worst Day Profiles'!AA$1,'Source Data'!$F$2:$F$366913,$B35,'Source Data'!$G$2:$G$366913,$A35) -> 0 | AB35: =SUMIFS('Source Data'!$I$2:$I$366913,'Source Data'!$A$2:$A$366913,'Worst Day Profiles'!$C35,'Source Data'!$E$2:$E$366913,'Worst Day Profiles'!AB$1,'Source Data'!$F$2:$F$366913,$B35,'Source Data'!$G$2:$G$366913,$A35) -> 0
A36: Solar Fixed | B36: North | C36: 43312 | D36: 7 | E36: =SUMIFS('Source Data'!$I$2:$I$366913,'Source Data'!$A$2:$A$366913,'Worst Day Profiles'!$C36,'Source Data'!$E$2:$E$366913,'Worst Day Profiles'!E$1,'Source Data'!$F$2:$F$366913,$B36,'Source Data'!$G$2:$G$366913,$A36) -> 0 | F36: =SUMIFS('Source Data'!$I$2:$I$366913,'Source Data'!$A$2:$A$366913,'Worst Day Profiles'!$C36,'Source Data'!$E$2:$E$366913,'Worst Day Profiles'!F$1,'Source Data'!$F$2:$F$366913,$B36,'Source Data'!$G$2:$G$366913,$A36) -> 0 | G36: =SUMIFS('Source Data'!$I$2:$I$366913,'Source Data'!$A$2:$A$366913,'Worst Day Profiles'!$C36,'Source Data'!$E$2:$E$366913,'Worst Day Profiles'!G$1,'Source Data'!$F$2:$F$366913,$B36,'Source Data'!$G$2:$G$366913,$A36) -> 0 | H36: =SUMIFS('Source Data'!$I$2:$I$366913,'Source Data'!$A$2:$A$366913,'Worst Day Profiles'!$C36,'Source Data'!$E$2:$E$366913,'Worst Day Profiles'!H$1,'Source Data'!$F$2:$F$366913,$B36,'Source Data'!$G$2:$G$366913,$A36) -> 0 | I36: =SUMIFS('Source Data'!$I$2:$I$366913,'Source Data'!$A$2:$A$366913,'Worst Day Profiles'!$C36,'Source Data'!$E$2:$E$366913,'Worst Day Profiles'!I$1,'Source Data'!$F$2:$F$366913,$B36,'Source Data'!$G$2:$G$366913,$A36) -> 0 | J36: =SUMIFS('Source Data'!$I$2:$I$366913,'Source Data'!$A$2:$A$366913,'Worst Day Profiles'!$C36,'Source Data'!$E$2:$E$366913,'Worst Day Profiles'!J$1,'Source Data'!$F$2:$F$366913,$B36,'Source Data'!$G$2:$G$366913,$A36) -> 0.01980185493 | K36: =SUMIFS('Source Data'!$I$2:$I$366913,'Source Data'!$A$2:$A$366913,'Worst Day Profiles'!$C36,'Source Data'!$E$2:$E$366913,'Worst Day Profiles'!K$1,'Source Data'!$F$2:$F$366913,$B36,'Source Data'!$G$2:$G$366913,$A36) -> 0.189291117 | L36: =SUMIFS('Source Data'!$I$2:$I$366913,'Source Data'!$A$2:$A$366913,'Worst Day Profiles'!$C36,'Source Data'!$E$2:$E$366913,'Worst Day Profiles'!L$1,'Source Data'!$F$2:$F$366913,$B36,'Source Data'!$G$2:$G$366913,$A36) -> 0.4634772652 | M36: =SUMIFS('Source Data'!$I$2:$I$366913,'Source Data'!$A$2:$A$366913,'Worst Day Profiles'!$C36,'Source Data'!$E$2:$E$366913,'Worst Day Profiles'!M$1,'Source Data'!$F$2:$F$366913,$B36,'Source Data'!$G$2:$G$366913,$A36) -> 0.6606661078 | N36: =SUMIFS('Source Data'!$I$2:$I$366913,'Source Data'!$A$2:$A$366913,'Worst Day Profiles'!$C36,'Source Data'!$E$2:$E$366913,'Worst Day Profiles'!N$1,'Source Data'!$F$2:$F$366913,$B36,'Source Data'!$G$2:$G$366913,$A36) -> 0.7732862285 | O36: =SUMIFS('Source Data'!$I$2:$I$366913,'Source Data'!$A$2:$A$366913,'Worst Day Profiles'!$C36,'Source Data'!$E$2:$E$366913,'Worst Day Profiles'!O$1,'Source Data'!$F$2:$F$366913,$B36,'Source Data'!$G$2:$G$366913,$A36) -> 0.8569784639 | P36: =SUMIFS('Source Data'!$I$2:$I$366913,'Source Data'!$A$2:$A$366913,'Worst Day Profiles'!$C36,'Source Data'!$E$2:$E$366913,'Worst Day Profiles'!P$1,'Source Data'!$F$2:$F$366913,$B36,'Source Data'!$G$2:$G$366913,$A36) -> 0.8776808535 | Q36: =SUMIFS('Source Data'!$I$2:$I$366913,'Source Data'!$A$2:$A$366913,'Worst Day Profiles'!$C36,'Source Data'!$E$2:$E$366913,'Worst Day Profiles'!Q$1,'Source Data'!$F$2:$F$366913,$B36,'Source Data'!$G$2:$G$366913,$A36) -> 0.8767886826 | R36: =SUMIFS('Source Data'!$I$2:$I$366913,'Source Data'!$A$2:$A$366913,'Worst Day Profiles'!$C36,'Source Data'!$E$2:$E$366913,'Worst Day Profiles'!R$1,'Source Data'!$F$2:$F$366913,$B36,'Source Data'!$G$2:$G$366913,$A36) -> 0.8652161947 | S36: =SUMIFS('Source Data'!$I$2:$I$366913,'Source Data'!$A$2:$A$366913,'Worst Day Profiles'!$C36,'Source Data'!$E$2:$E$366913,'Worst Day Profiles'!S$1,'Source Data'!$F$2:$F$366913,$B36,'Source Data'!$G$2:$G$366913,$A36) -> 0.8156685641 | T36: =SUMIFS('Source Data'!$I$2:$I$366913,'Source Data'!$A$2:$A$366913,'Worst Day Profiles'!$C36,'Source Data'!$E$2:$E$366913,'Worst Day Profiles'!T$1,'Source Data'!$F$2:$F$366913,$B36,'Source Data'!$G$2:$G$366913,$A36) -> 0.7084346827 | U36: =SUMIFS('Source Data'!$I$2:$I$366913,'Source Data'!$A$2:$A$366913,'Worst Day Profiles'!$C36,'Source Data'!$E$2:$E$366913,'Worst Day Profiles'!U$1,'Source Data'!$F$2:$F$366913,$B36,'Source Data'!$G$2:$G$366913,$A36) -> 0.5429903292 | V36: =SUMIFS('Source Data'!$I$2:$I$366913,'Source Data'!$A$2:$A$366913,'Worst Day Profiles'!$C36,'Source Data'!$E$2:$E$366913,'Worst Day Profiles'!V$1,'Source Data'!$F$2:$F$366913,$B36,'Source Data'!$G$2:$G$366913,$A36) -> 0.2938505555 | W36: =SUMIFS('Source Data'!$I$2:$I$366913,'Source Data'!$A$2:$A$366913,'Worst Day Profiles'!$C36,'Source Data'!$E$2:$E$366913,'Worst Day Profiles'!W$1,'Source Data'!$F$2:$F$366913,$B36,'Source Data'!$G$2:$G$366913,$A36) -> 0.04945663675 | X36: =SUMIFS('Source Data'!$I$2:$I$366913,'Source Data'!$A$2:$A$366913,'Worst Day Profiles'!$C36,'Source Data'!$E$2:$E$366913,'Worst Day Profiles'!X$1,'Source Data'!$F$2:$F$366913,$B36,'Source Data'!$G$2:$G$366913,$A36) -> 1.373317992e-05 | Y36: =SUMIFS('Source Data'!$I$2:$I$366913,'Source Data'!$A$2:$A$366913,'Worst Day Profiles'!$C36,'Source Data'!$E$2:$E$366913,'Worst Day Profiles'!Y$1,'Source Data'!$F$2:$F$366913,$B36,'Source Data'!$G$2:$G$366913,$A36) -> 0 | Z36: =SUMIFS('Source Data'!$I$2:$I$366913,'Source Data'!$A$2:$A$366913,'Worst Day Profiles'!$C36,'Source Data'!$E$2:$E$366913,'Worst Day Profiles'!Z$1,'Source Data'!$F$2:$F$366913,$B36,'Source Data'!$G$2:$G$366913,$A36) -> 0 | AA36: =SUMIFS('Source Data'!$I$2:$I$366913,'Source Data'!$A$2:$A$366913,'Worst Day Profiles'!$C36,'Source Data'!$E$2:$E$366913,'Worst Day Profiles'!AA$1,'Source Data'!$F$2:$F$366913,$B36,'Source Data'!$G$2:$G$366913,$A36) -> 0 | AB36: =SUMIFS('Source Data'!$I$2:$I$366913,'Source Data'!$A$2:$A$366913,'Worst Day Profiles'!$C36,'Source Data'!$E$2:$E$366913,'Worst Day Profiles'!AB$1,'Source Data'!$F$2:$F$366913,$B36,'Source Data'!$G$2:$G$366913,$A36) -> 0
